{"text_format":"1","workbook":"xlsx","n_sheets":16,"sheets":["Copyright","Instructions","Group R","User Notes","Vertical Glazing","Overhead Glazing","Doors","Flat-Vaulted Ceilings","Walls(above grade)","Floors","Slab on Grade","Below Grade Walls & Slabs","Table 406.2 (WSEC 2015)","Weather","Agreement Not Accepted","UserRegistration"],"not_rendered":{"charts":0,"images":3,"macros":1,"external_links":1,"defined_names":184,"comments":9,"pivot_tables":0},"unopened":[],"bounds":{"document_bytes":16777216,"sheet_cells":100000,"rows_first":2000,"rows_last":500,"rows_between":2000,"halvings":0,"cell_chars":16384,"cell_head_chars":4096},"cells_cut":0,"cells_raw":0,"read":"whole","date_system":"1900"}

{"sheet":"Copyright","index":0,"n_rows":101,"n_cols":21,"rows_kept":101,"cut":false,"hidden":false,"merged":[[1,10,3,13]]}
["Total UA Alternative Worksheet ",null,null,null,"ENABLE MACROS: Macros must be enabled for this tool to function properly."]
["Version: Total UA Alternative_20201112~Blank.xlsm, 11/12/2020 11:02:02 AM",null,null,null,null,null,null,null,null,null,"Calculator tabs will open after macros are enabled and terms of use are accepted."]
["Date:","2020-11-12T11:02:02",null,null,null,null,null,null,null,null,null,null,null,null,null,null,null,null,null,null,"ADMIN TOOLS"]
[]
[]
[]
[]
[]
[]
[]
[]
[]
[]
[]
[]
[]
[]
[]
[]
[]
[]
[]
[]
[]
[]
[]
[]
[]
[]
[]
[]
[]
[]
[]
[]
[]
[]
[]
[]
[]
[]
[]
[]
[]
[]
[]
[]
[]
[]
[]
[]
[]
[]
[]
[]
[]
[]
[]
[]
[]
[]
[]
[]
[]
[]
[]
[]
[]
[]
[]
[null,"SheetProtection","Protected"]
[null,"SheetsUnhidden","Calculation Sheets Hidden"]
[null,"Mask",371753209829]
[]
[null,"Current IP Address","2607:fa78:118e:1:a0b2:cef6:7d6d:26a"]
[null,"Registered IP Address"]
[]
[]
[null,"First Name","Carolyn"]
[null,"Last Name","Roos"]
[null,"Registration Date:","2020-08-21"]
[null,"Version","Version: 2015-2018 Total UA Alternative Worksheet~20200819~C2200-1.xlsm, 8/19/2020 3:11:38 PM",null,null,null,"vb"]
[null,"Company","WSUEP"]
[null,"Demographic"]
[null,"ContactInfo1"]
[null,"ContactInfo2"]
[null,"ContactInfo3"]
[null,"ContactInfo4"]
[null,"City","Olympia"]
[null,"State"]
[null,"Zipcode"]
[null,"Add to Mailing List?","No"]
[null,"Registrations with this file",0]
[]
[]
[]
[]
[]
[]
[]
[null,"End of calculation area"]

{"sheet":"Instructions","index":1,"n_rows":126,"n_cols":1,"rows_kept":126,"cut":false,"hidden":false,"merged":[]}
["Component Performance Worksheet (CPWorksheet) "]
[]
["These worksheets are designed to document the qualification of building designs by the component performance approach described in the 2015 edition, Washington State Energy Code (WSEC)."]
[]
["These instructions do not attempt to teach the requirements of the WSEC.  If you need an overview of the Code, we recommend that you begin by looking at the resources contained on the WSU Energy Program website: www.energy.wsu.edu/code. "]
[]
["Resources on the website include:"]
["· Text of the WSEC"]
[]
["How to use the worksheets"]
[]
["This Excel workbook contains 15 worksheets:"]
["Copyright Worksheet"]
["These instructions"]
["The Component Performance Worksheet"]
["   Group R occupancies as defined by the IECC"]
["The Library Worksheets"]
["   Energy Credit Options (Table 406.2)"]
["   Vertical Glazing"]
["   Overhead Glazing"]
["   Doors"]
["   Ceilings, Attic"]
["   Ceilings, Vault"]
["   Walls (above grade)"]
["   Floors"]
["   Slab on Grade"]
["   Below Grade Walls & Slabs"]
["   Weather"]
[]
[]
[]
["The Library Worksheets"]
[]
["The library worksheets provided the default component u-factors from the WSEC.  These are the u-factors necessary to complete most projects."]
[]
["You can enter custom component descriptions to the library worksheets.  If you have tested u-factors for windows, skylights and doors, you will want to enter them into the library, since tested u-factors tend to be more favorable to design qualification than the default values."]
[]
["To add new components to the library worksheets"]
[]
["For most building components, it is important to utilize the component listings from the code.  The exception is glazing and door products.  Most glazing products perform much better than the default code values.  If you can obtain NFRC certified u-factors for windows and doors, it is to your advantage to use them."]
[]
["To add data to the library: "]
["· Tab to the  library worksheet you would like to edit.  A blue box at the right of the screen has \n   instructions for editing the specific worksheet.  Each has somewhat different instructions.  "]
["· There are two types of cells in the worksheet.  White cells are for data entry; shaded cells perform calculations or summarize data.  Do not attempt to enter data into the shaded cells.  Do not delete rows, columns or cells.  This will disrupt the indexing reference to the CPWorksheet."]
["· Get in the habit of clearing cell contents using the delete key.  Other editing functions may leave traces \n   of entries or functions that are undesirable."]
["· Don’t forget to save your worksheet after you make changes."]
[]
["Note: The component library worksheets provide the default component u-factors from the WSEC.  These are the u-factors necessary to complete most projects.  Each of the worksheets contains space for users to input custom components as needed.\n\nPrevious versions of this workbook required opening a separate workbook containing the component libraries (CPLibrary.xls.)  This current version consolidates these two workbooks into one.  If you have been maintaining your own custom library entries, you will need to copy the custom entries from your original CPLibrary worksheet into the appropriate tab of this worksheet (do not copy the entire worksheets from the original CPLibrary worksheet – these entries will not be recognized by the component performance worksheets.  We strongly advise that you keep your original CPLibrary worksheet as a backup.\n"]
[]
["Gathering the Building Component Data"]
[]
["To document energy code compliance, you need to gather certain preliminary information.  You will need to identify all the different exterior components and measure them, based on the set of plans."]
[]
["Identify the Building Components"]
[]
["First, identify the building's thermal envelope.  This is the part of the building that separates the heated and unheated spaces.  Each different component of the building's thermal envelope should be clearly shown on the plans.  Read the component descriptions in the WSEC.  Match the construction method utilized in the project with the proper code description of the component."]
[]
["Measure the Building Components"]
[]
["Each component must be measured and the size of each noted.  Record all measurements.  List the measurements next to the component description."]
[]
["The following measurement conventions should be followed:"]
["· Most components are listed in terms of area in square feet (ft²).  Slabs are measured by the linear foot \n   (ft), based on the length of the conditioned slab perimeter."]
["· Use the rough opening area for windows and doors."]
[]
["You may want to print out a blank copy of the Component Performance CPWorksheet.  Keep notes on the sheet as you take measurements from the plans."]
[]
["Working with the CPWorksheet"]
[" "]
["Open the Worksheet"]
[]
["Immediately save the workbook under a new file name using the Save As function.  Give it a name specific to the project you are currently working on."]
[]
["The worksheets provide detailed documentation for the plans examiner and inspector.  Do not skimp on details.  Provide reference to the plans on the CPWorksheet using the “Plan ID” cell.  Provide itemized glazing and door schedules, as well as area inputs on other building components."]
[]
["The top of the worksheet asks for general data on the building and includes a summary of the data entry performed in the rest of the worksheet."]
[]
["The Proposed Design Values at the top of the worksheet are a summary of the data entered on the rest of the worksheet, and perform the calculation required by WSEC R402.1.4 Total UA alternative. "]
[]
["The Code Target Values on the top of the worksheet perform the calculations as prescribed in the WSEC R402.1.4 Total UA alternative. "]
[]
["Below the Proposed Design Values and the Code Target Values are the Target UA Total, and the Proposed UA Total.  To document compliance with the WSEC, the Proposed UA Total must be less than or equal to the Target UA Total.  In addition, you must select at least Energy Credit options, listed at the bottom of the worksheet, for a total of at least 1.5 credits to meet minimum WSEC requirements for a small dwelling unit, 3.5 credits for a medium dwelling unit, and 4.5 credits for large dwelling unit. The CPWorksheet will add the note “Qualifies” next to the Target and Proposed UA totals and Energy Credits, when these requirements are met.  You can not trade surplus Energy Credits for minimum envelope requirements."]
[]
["As you page down, you will find blank schedules for each component of the building.  This is where most of the data entry work is completed.  For each component, complete as many rows as needed to document your project."]
[]
["You only need to fill in cells that apply to your project.  The CPWorksheets have been developed to accommodate fairly complex structures with numerous building components.  Most projects will only utilize a fraction of the open cells on the CPWorksheet.  For example, most residential structures only use one above grade wall type.  In this case, only complete one row on the in the Walls (Above Grade) schedule; the other three rows would remain blank."]
[]
["A complete schedule for glazing and doors is required.  Plans examiners need to be able to compare the CPWorksheet entries to the plans and to the completed structure.  For each glazing or door model and size, a row on the schedule should be completed."]
[]
["Data Entry"]
[]
["There are two types of cells in the CPWorksheet.  Yellow cells are for data entry; shaded cells perform calculations or summarize data.  Do not attempt to enter data into the shaded cells."]
[]
["The worksheet includes tips on data entry.  Cells with tips can be identified by a red flag in the upper right corner of the cell.  To view comments one at a time, simply place the cursor over the flag.  A text box will appear with a tip on the specific cell."]
[]
["To view all the cell comments, go to the Excel menu bar, select View, then Comments. This will open all of the text boxes.  To close the comments, repeat the selection,  View, comments.  This provides a good overview for first time users.  If you need additional help viewing comments, use the Excel help menu."]
[" "]
["Help? "]
[]
["WSU Energy Program will provide limited direct support for this product.  Due to limited funding, it is simply not possible to complete forms for the public."]
[]
["WSU Energy Program does encourage e-mail input on this product.  Comments from users will be used to update the worksheets and improve these instructions.  Send your comments to energycode@energy.wsu.edu"]
[]
["Changes and Updates"]
[]
[]
["The copyright page includes a version number of the workbook.  If a change is required, a new version of the worksheets will be posted on our web page.  Check the web site periodically to assure you are using the most recent version."]
["Cheating"]
[]
["These worksheets contain password protected cells that should not be edited.  Plans examiners should be aware that this is not a 100% foolproof method of preventing tampering with the worksheets by unethical users; review submissions carefully. Editing cells in protected areas is a violation of the WSU Energy Program Copyright. "]
[" "]
["Copyright Restrictions"]
[]
["Copyright: Washington State University Extension Energy Program*"]
["© 2020"]
[]
["*WSUEEP grants limited, conditional permission to Designated Users for: "]
["1. Creation and distribution of free copies of the Spreadsheets and Workbooks, including electronic \n    reproduction;"]
["2. Editing of unprotected cells; and"]
["3. Printing results from the Workbooks;"]
[]
["The condition for permission is that the source of any materials copied or used from the Spreadsheets or Workbooks shall be acknowledged as: \"Copied by permission from Washington State University Extension Energy Program.\""]
[]
["No other use or purpose for copying is permitted including, without limitation, changing password protected cells in the Workbooks or selling or using the Spreadsheets and Workbooks in any way calculated to derive profit as a product or service. Report any violations of this Copyright Policy to: energycode@energy.wsu.edu."]
[]
["All other rights reserved."]

{"sheet":"Group R","index":2,"n_rows":541,"n_cols":97,"rows_kept":541,"cut":false,"hidden":true,"merged":[[1,12,1,13],[1,14,1,15],[24,10,24,11],[25,10,25,11],[26,10,26,11],[27,10,27,11],[28,10,28,11],[76,5,77,5],[76,12,77,12],[43,7,43,8],[39,4,39,6],[43,4,43,6],[42,7,42,8],[38,3,38,13],[39,2,39,3],[40,2,40,3],[42,4,42,6],[30,10,30,11],[45,9,45,10],[48,11,48,15],[76,10,76,11],[39,9,39,10],[40,9,40,10],[39,11,39,15],[40,11,40,15],[41,11,41,15],[3,3,3,4],[4,3,4,4],[5,3,5,4],[6,3,6,4],[7,3,7,4],[8,3,8,4],[9,3,9,4],[10,3,10,4],[20,10,20,13],[20,5,20,7],[190,27,191,27],[87,20,88,20],[150,20,151,20],[62,23,62,24],[62,25,62,26],[72,22,72,26],[76,20,77,20],[76,22,77,22],[76,23,76,24],[76,25,76,26],[83,22,83,26],[76,27,77,27],[41,9,41,10],[42,9,42,10],[44,9,44,10],[45,11,45,15],[43,9,43,10],[76,7,77,7],[76,8,76,9],[46,11,46,15],[47,7,47,8],[47,9,47,10],[62,8,62,9],[62,10,62,11],[52,3,52,13],[53,2,53,3],[53,4,53,6],[54,2,54,3],[54,4,54,6],[76,13,77,13],[48,2,48,3],[48,4,48,6],[196,23,196,24],[191,23,191,24],[191,25,191,26],[192,23,192,24],[192,25,192,26],[193,23,193,24],[193,25,193,26],[190,8,190,9],[191,10,191,11],[194,23,194,24],[194,25,194,26],[195,23,195,24],[195,25,195,26],[190,23,190,24],[190,25,190,26],[191,8,191,9],[76,28,77,28],[186,7,186,11],[180,12,181,12],[180,27,181,27],[160,27,161,27],[166,22,166,26],[170,27,171,27],[87,28,88,28],[150,27,151,27],[150,28,151,28],[156,22,156,26],[176,22,176,26],[186,22,186,26],[87,22,88,22],[87,23,87,24],[87,25,87,26],[87,27,88,27],[166,7,166,11],[87,12,88,12],[87,13,88,13],[87,7,88,7],[87,8,87,9],[83,7,83,11],[208,20,208,23],[209,20,209,23],[13,5,13,12],[40,4,40,6],[22,10,22,11],[23,10,23,11],[29,10,29,11],[44,7,44,8],[45,7,45,8],[46,7,46,8],[48,7,48,8],[46,9,46,10],[48,9,48,10],[195,10,195,11],[192,10,192,11],[193,10,193,11],[194,10,194,11],[190,10,190,11],[21,10,21,11],[87,5,88,5],[41,4,41,6],[44,4,44,6],[45,4,45,6],[46,4,46,6],[199,8,199,14],[14,5,14,8],[15,5,15,8],[16,5,16,8],[41,2,41,3],[42,2,42,3],[43,2,43,3],[46,2,46,3],[47,2,47,3],[49,2,49,3],[44,2,44,3],[45,2,45,3],[39,7,39,8],[40,7,40,8],[41,7,41,8],[192,8,192,9],[193,8,193,9],[194,8,194,9],[195,8,195,9],[87,10,87,11],[49,9,49,10],[42,11,42,15],[43,11,43,15],[44,11,44,15],[523,11,523,12],[523,13,523,14],[523,15,523,16],[53,11,53,12],[54,11,54,12],[54,7,54,10],[53,7,53,10],[54,15,54,16],[53,13,53,14],[54,13,54,14],[522,11,522,12],[522,13,522,14],[209,5,209,8],[190,12,191,12],[208,5,208,8],[150,5,151,5],[150,12,151,12],[150,13,151,13],[160,12,161,12],[170,12,171,12],[156,7,156,11],[176,7,176,11],[200,5,200,8],[196,8,196,9]]}
[null,null,null,null,"Total UA Alternative Worksheet  - WSEC 2015 & 2018",null,null,null,{"$f":"IF(MacroMessage=\"\",\"\",MacroMessage)","v":"ENABLE MACROS: Macros must be enabled for this tool to function properly."},null,null,null,null,null,null,null,null,null,null,null,null,null,null,null,null,null,null,null,null,null,null,null,null,null,null,null,"Prototypes"]
[null,null,null,null,null,null,null,null,null,null,null,null,"Inputs",null,"Results",null,null,null,null,null,null,null,null,null,null,null,null,null,null,null,null,null,null,null,null,null,"id_prototypes","prototype","Tons","Furnsize","SDloc","SDArea","RDloc","RDArea","Afloorcon","Volume","Afloorext","Aextwall","Aceiling","AwinN","AwinE","AwinS","AwinW","Adoor","Foundtype","Afootprint","Pfootprint","HeightAG","HeightBG","StackHeight","FanCFM","achattic","achcrawl","WH","WH_size","HPWH_performance","ducted","WH_fan","WH_loc","InteractionFactor","prototype_desc","btype","occupants_per_unit","occupants","numunits","height_per_floor","floors_per_building","total_height","baseductsinside","bedrooms_per_unit","reqvent","glazing_pct_hfa","perim_width","perim_length","seemtemplate_sort","official_rtf_prototype","sqft_per_unit","sizecat","fan_cfm_per_unit","wh_size_per_unit","floor_ins_area","wall_ins_area","bsmtwall_ins_area","window_area","slab_area","wall_to_floor_area","duct_area"]
[null,null,null,null,null,null,null,null,null,null,null,null,null,null,null,null,null,null,null,null,null,null,null,null,null,null,null,null,null,null,null,null,null,null,null,null,1,"c1344",2.5,17.584272626562804,"Crawl",240,"Attic",50,1344,10752,0,1184,1344,43.68,43.68,43.68,43.68,40,1,1344,148,1,2,8,50,4.5,4.5,1,50,4,0,0,1,0.65,"sf home","sf",2.3918495297805644,2.3918495297805644,1,8,1,8,false,3,70.319999999999993,0.13,32,42,1,true,1344,1500,50,50,1344,969.28,0,174.72,0,0.88095238095238093,290]
[null,null,null,"Project Information",null,null,"Messages / Results",null,null,null,null,null,null,null,null,null,null,null,null,null,null,null,null,null,null,null,null,null,null,null,null,null,null,null,null,null,2,"s1344",2.5,17.584272626562804,"Attic",240,"Attic",50,1344,10752,0,1184,1344,43.68,43.68,43.68,43.68,40,2,1344,148,0,0,8,50,4.5,4.5,1,50,4,0,0,1,0.65,"sf home","sf",2.3918495297805644,2.3918495297805644,1,8,1,8,false,3,70.319999999999993,0.13,32,42,1,true,1344,1500,50,50,0,969.28,0,174.72,1344,0.88095238095238093,290]
[null,null,null,null,null,null,{"$f":"IF(N33=0,\"\",VLOOKUP(Menu_UseOfCalculator,Table_UseOfCalculator,I252,FALSE))","v":""},null,null,null,null,null,null,null,null,null,null,null,null,null,null,null,null,null,null,null,null,null,null,null,null,null,null,null,null,null,3,"c2200",4,23.445696835417071,"Crawl",300,"Attic",80,2200,18700,200,2210,1784,91.300000000000011,91.300000000000011,91.300000000000011,91.300000000000011,40,1,1584,160,1,2,17,50,4.5,4.5,1,50,4,0,0,1,0.65,"sf home","sf",2.7944162436548226,2.7944162436548226,1,8.5,2,17,false,4,103.5,0.16600000000000001,36,44,2,true,2200,5000,50,50,1784,1804.8,0,365.20000000000005,0,1.0045454545454546,380]
[null,null,null,null,null,null,{"$f":"IF(AND(H33>0,N33>0,F59>0),IF(AND(Menu_UseOfCalculator<>Item_Use_RemodelAlteration,N34<Section_EnergyCreditResults),\"Energy credit requirements are not met.  Select energy credit options from Table 406.2\",\"\"),\"\")","v":""},null,null,null,null,null,null,null,null,null,null,null,null,null,null,null,null,null,null,null,null,null,null,null,null,null,null,null,null,null,4,"s2200",4,23.445696835417071,"Attic",300,"Attic",80,2200,18700,200,2210,1784,91.300000000000011,91.300000000000011,91.300000000000011,91.300000000000011,40,2,1584,160,0,0,17,50,4.5,4.5,1,50,4,0,0,1,0.65,"sf home","sf",2.7944162436548226,2.7944162436548226,1,8.5,2,17,false,4,103.5,0.16600000000000001,36,44,2,true,2200,5000,50,50,200,1804.8,0,365.20000000000005,1584,1.0045454545454546,380]
[null,null,null,null,null,null,{"$f":"G272","v":""},null,null,null,null,null,null,null,null,null,null,null,null,null,null,null,null,null,null,null,null,null,null,null,null,null,null,null,null,null,5,"b2688",3.5,17.584272626562804,"In",0,"Attic",40,2688,22848,0,1480,1344,94.080000000000013,94.080000000000013,94.080000000000013,94.080000000000013,40,4,1344,148,0.5,6.5,10,50,4.5,4.5,1,50,4,0,0,4,0.65,"sf home","sf",2.946236559139785,2.946236559139785,1,10,2,20,false,4,118.14,0.14000000000000001,32,42,3,true,2688,5000,50,50,0,1063.6799999999998,1036,376.32000000000005,0,0.93601190476190477,40]
[null,null,null,null,null,null,{"$f":"I258","v":""},null,null,null,null,null,null,null,null,null,null,null,null,null,null,null,null,null,null,null,null,null,null,null,null,null,null,null,null,null,6,"b5000",6,35.168545253125608,"In",0,"Attic",60,5000,40100,200,2788,1800,187.5,187.5,187.5,187.5,40,4,1600,164,0.5,6.5,17,50,4.5,4.5,1,50,4,0,0,4,0.65,"sf home","sf",3.9355662368310997,3.9355662368310997,1,10,3,30,false,4,187.5,0.15,32,50,null,false,5000,9999,50,50,200,1998,1148,750,0,0.78720000000000001,60]
[null,null,null,null,null,null,{"$f":"IF(M25>0.15*F59,\"Vertical glazing area exceeds 15% of floor area.\",\"\")","v":""},null,null,null,null,null,null,null,null,null,null,null,null,null,null,null,null,null,null,null,null,null,null,null,null,null,null,null,null,null,7,"c2460",6,23.445696835417071,"In",280,"In",70,2460,20910,0,2193,820,92.25,92.25,92.25,92.25,60,1,821.5,86,1,2,25.5,150,4.5,4.5,1,150,4,0,0,1,0.65,"garden style","mf",2.25,6.75,3,8.5,3,25.5,true,2,141.29999999999998,0.15,26.5,31,null,false,820,1500,50,50,821.5,1764,0,369,0,0.89146341463414636,350]
[]
[null,null,null,null,null,null,null,null,null,null,null,null,null,null,null,null,null,null,null,null,null,null,null,null,null,null,null,null,null,null,null,null,null,null,null,null,"vvvvvvvv Not used in 2018 WSREC Analysis",null,null,null,null,null,null,null,"Not used in 2018 WSREC Analysis",null,null,null,"Not used in 2018 WSREC Analysis",null,null,null,"Not used in 2018 WSREC Analysis",null,null,null,"Not used in 2018 WSREC Analysis",null,null,null,"Not used in 2018 WSREC Analysis",null,null,null,"Not used in 2018 WSREC Analysis"]
[null,null,null,null,null,null,null,null,null,null,null,null,null,null,null,null,null,null,null,null,null,null,null,null,null,null,null,null,null,null,null,null,null,null,null,null,10,"c1500",6,35.168545253125608,"Crawl",100,"Attic",50,1500,14250,0,1259,500,48.75,48.75,48.75,48.75,40,1,500,90,1,2,28.5,50,4.5,4.5,1,50,4,0,0,1,0.65,"townhome","sf",1.69,1.69,1,9.5,3,28.5,false,3,75,0.13,20,25,4,true,1500,5000,50,50,500,1024,0,195,0,0.83933333333333338,150]
[null,null,null,null,null,null,null,null,null,null,null,null,null,null,null,null,null,null,null,null,null,null,null,null,null,null,null,null,null,null,null,null,null,null,null,null,{"$f":"AK12+1","v":11},"s1500",6,35.168545253125608,"Attic",20,"Attic",50,1500,14250,0,1259,500,48.75,48.75,48.75,48.75,40,2,500,90,0,0,28.5,50,4.5,4.5,1,50,4,0,0,1,0.65,"townhome","sf",1.69,1.69,1,9.5,3,28.5,false,3,75,0.13,20,25,5,true,1500,5000,50,50,0,1024,0,195,500,0.83933333333333338,70]
[null,null,null,null,"What is this analysis for?","Prescriptive Path Compliance with Option 1",null,null,null,null,null,null,null,null,null,null,null,null,null,null,null,null,null,null,null,null,null,null,null,null,null,null,null,null,null,null,{"$f":"AK13+1","v":12},"s1000",6,35.168545253125608,"In",0,"In",0,26400,237600,0,10152,8800,990,990,990,990,84,2,8800,376,0,0,27,1200,4.5,4.5,1,1200,4,0,0,1,0.65,"double loaded corridor","mf",1.69,40.56,24,9,3,27,true,2,1332,0.15,88,100,6,true,1100,1500,50,50,0,6108,0,3960,8800,0.38454545454545452,0]
[null,null,null,null,"Project Type","New Construction",null,null,null,null,null,null,null,null,null,null,null,null,null,null,null,null,null,null,null,null,null,null,null,null,null,null,null,null,null,null,13,"c1904",4,17.584272626562804,"In",280,"In",70,1904,16184,0,1632,952,71.399999999999991,71.399999999999991,71.399999999999991,71.399999999999991,40,1,952,96,1,2,17,100,4.5,4.5,1,100,4,0,0,1,0.65,"garden style","mf",1.69,3.38,2,8.5,2,17,true,2,102.12,0.15,28,34,7,false,952,1500,50,50,952,1306.4000000000001,0,285.59999999999997,0,0.8571428571428571,350]
[null,null,null,null,"Occupancy Type","R2 Multifamily",null,null,null,{"$f":"IF(ISERROR(F289),\"Error: Select option from drop down\",\"\")","v":""},null,null,null,null,null,null,null,null,null,null,null,null,null,null,null,null,null,null,null,null,null,null,null,null,null,null,14,"c2856",6,23.445696835417071,"In",280,"In",70,2856,24276,0,2448,952,107.1,107.1,107.1,107.1,60,1,952,96,1,2,25.5,150,4.5,4.5,1,150,4,0,0,1,0.65,"garden style","mf",1.69,5.07,3,8.5,3,25.5,true,2,153.18,0.15,28,34,7,false,952,1500,50,50,952,1959.6,0,428.4,0,0.8571428571428571,350]
[null,null,null,null,"Code Version","WSEC 2018",null,null,null,null,null,null,null,null,null,null,null,null,null,null,null,null,null,null,null,null,null,null,null,null,null,null,null,null,null,null,15,"s1904",4,17.584272626562804,"In",280,"In",70,1904,16184,0,1632,952,71.399999999999991,71.399999999999991,71.399999999999991,71.399999999999991,40,2,952,96,0,0,17,100,4.5,4.5,1,100,4,0,0,1,0.65,"garden style","mf",1.69,3.38,2,8.5,2,17,true,2,102.12,0.15,28,34,7,false,952,1500,50,50,0,1306.4000000000001,0,285.59999999999997,952,0.8571428571428571,350]
[null,null,null,null,"Classification",{"$f":"IF(F59>0,F287,\"\")","v":""},null,null,null,null,null,null,null,null,null,null,null,null,null,null,null,null,null,null,null,null,null,null,null,null,null,null,null,null,null,null,16,"s2856",6,23.445696835417071,"In",280,"In",70,2856,24276,0,2448,952,107.1,107.1,107.1,107.1,60,2,952,96,0,0,25.5,150,4.5,4.5,1,150,4,0,0,1,0.65,"garden style","mf",1.69,5.07,3,8.5,3,25.5,true,2,153.18,0.15,28,34,7,false,952,1500,50,50,0,1959.6,0,428.4,952,0.8571428571428571,350]
[null,null,null,null,"Baseline Description: ",{"$f":"CONCATENATE(F465,\" - \",VLOOKUP(Menu_UseOfCalculator,Table_UseOfCalculator,F252, TRUE))","v":"Code Target - Baseline and proposed window areas are equal."},null,null,null,null,null,null,null,null,null,null,null,null,null,null,null,null,null,null,null,null,null,null,null,null,null,null,null,null,null,null,17,"s952",6,35.168545253125608,"In",280,"In",70,7616,64736,0,6528,3808,285.60000000000002,285.60000000000002,285.60000000000002,285.60000000000002,160,2,3808,328,0,0,17,400,4.5,4.5,1,400,4,0,0,1,0.65,"garden style","sf",1.69,13.52,8,8.5,2,17,true,2,408.48,0.15000000000000002,28,136,7,true,952,1500,50,50,0,5225.6000000000004,0,1142.4000000000001,3808,0.8571428571428571,350]
[]
[null,null,null,null,"Component Performance, R occupancies","Baseline",null,null,null,null,"Proposed Design"]
[null,null,null,null,null,"U","Area","UA",null,null,"U",null,"Area","UA",null,null,null,null,null,null,null,null,null,null,null,null,null,null,null,null,null,null,null,null,null,null,"drop down autoload of prototypes"]
[null,null,null,null,"Doors U =",{"$f":"HLOOKUP($F$465,Table_Uvalue_Options,S472,FALSE)","v":0.3},{"$f":"L490","v":0},{"$f":"J452","v":0},null,null,{"$f":"IFERROR(N23/M23,\"\")","v":""},null,{"$f":"M73","v":0},{"$f":"N73","v":0},{"$f":"IF(Menu_UseOfCalculator=$E$255,IF(OR(N23=0,H23=0),\"Missing doors\",\"\"),\"\")","v":"Missing doors"},null,null,null,null,null,null,null,null,null,null,null,null,null,null,null,null,null,null,null,null,null,"exempt doors for prescriptive method"]
[null,null,null,null,"Overhead Glazing U =",0.5,{"$f":"L491","v":0},0,null,null,"",null,{"$f":"M84","v":0},{"$f":"N84","v":0}]
[null,null,null,null,"Vertical Glazing U =",0.3,{"$f":"IFERROR(L492,\"Error\")","v":0},0,null,null,"",null,{"$f":"M146","v":0},{"$f":"N146","v":0},{"$f":"IF(Menu_UseOfCalculator=$E$255,IF(OR(N25=0,H25=0),\"Missing vertical glazing\",\"\"),\"\")","v":"Missing vertical glazing"}]
[null,null,null,null," Flat/Vaulted Ceilings U =",2.5999999999999999E-2,{"$f":"L493","v":0},0,null,null,"",null,{"$f":"M157","v":0},{"$f":"N157","v":0},{"$f":"IF(Menu_UseOfCalculator=$E$255,IF(OR(N26=0,H26=0),\"Missing ceiling/roof\",\"\"),\"\")","v":"Missing ceiling/roof"},null,null,null,null,null,null,null,null,null,null,null,null,null,null,null,null,null,null,null,null,null,"To do:"]
[null,null,null,null," Wall (above grade)  U =",5.6000000000000001E-2,0,0,null,null,"",null,{"$f":"M167","v":0},{"$f":"N167","v":0},{"$f":"IF(Menu_UseOfCalculator=$E$255,IF(OR(N27=0,H27=0),\"Missing above-grade walls\",\"\"),\"\")","v":"Missing above-grade walls"},null,null,null,null,null,null,null,null,null,null,null,null,null,null,null,null,null,null,null,null,null,"Hide calc areas "]
[null,null,null,null,"Floors over Crawlspace U =",2.9000000000000001E-2,0,0,null,null,"",null,{"$f":"M177","v":0},{"$f":"N177","v":0},{"$f":"IF(Menu_UseOfCalculator=$E$255,IF(OR(SUM(H28:H31)=0,SUM(N28:N31)=0),\"Missing floor or slab\",\"\"),\"\")","v":"Missing floor or slab"},null,null,null,null,null,null,null,null,null,null,null,null,null,null,null,null,null,null,null,null,null,"Check unlocked areas"]
[null,null,null,null,"Slab on Grade F =",0.54,0,0,null,null,"",null,{"$f":"M187","v":0},{"$f":"N187","v":0},null,null,null,null,null,null,null,null,null,null,null,null,null,null,null,null,null,null,null,null,null,null,"Update instructions"]
[null,null,null,null," Below Grade Wall U =",4.2000000000000003E-2,0,0,null,null,"",null,{"$f":"H197","v":0},{"$f":"I197","v":0},null,null,null,null,null,null,null,null,null,null,null,null,null,null,null,null,null,null,null,null,null,null,"Option 1 percentage baseline - Message in message area"]
[null,null,null,null," Below Grade Slab  F =",0.56999999999999995,0,0,null,null,"",null,{"$f":"M197","v":0},{"$f":"N197","v":0},null,null,null,null,null,null,null,null,null,null,null,null,null,null,null,null,null,null,null,null,null,null,"Ctrl-Z doesn't work"]
[null,null,null,null,null,null,null,null,null,null,null,null,null,null,null,null,null,null,null,null,null,null,null,null,null,null,null,null,null,null,null,null,null,null,null,null,"WSU logo - formatting"]
[null,null,null,null,null,null,"Target UA Total",{"$f":"IF(SUBTOTAL(109,O66:O197)=0,SUM(H23:H31),\"Check Missing Inputs\")","v":0},null,null,null,null,"Proposed UA Total",{"$f":"IF(SUBTOTAL(109,O66:O197)=0,SUM(N23:N31),\"Check Missing Inputs\")","v":0},null,null,null,null,null,null,null,null,null,null,null,null,null,null,null,null,null,null,null,null,null,null,"Change password"]
[null,null,null,null,null,null,"Target Credits",{"$f":"IFERROR(F290,\"Select occupancy type\")","v":4.5},null,null,null,null,"Proposed Credits ",{"$f":"P524","v":0},{"$f":"IF(Menu_CodeVersion=\"WSEC 2015\",\"from Table 406.2\",\"from Tables 406.2 and 406.3\")","v":"from Tables 406.2 and 406.3"},null,null,null,null,null,null,null,null,null,null,null,null,null,null,null,null,null,null,null,null,null,"Baylon Review:  For 2018, Appendices were not updated"]
[null,null,null,null,null,null,null,null,null,null,null,null,"UA Percent Reduction",{"$f":"IF(H33+N33=0,\"\",IFERROR((H33-N33)/H33,\"Check Errors\"))","v":""},null,null,null,null,null,null,null,null,null,null,null,null,null,null,null,null,null,null,null,null,null,null,"Baylon: Still need U and F for R20 perimeter +R20 underslab for below-grade slabs - Estimated as R20 perimeter + R10 underslab"]
[null,null,null,null,null,null,null,null,null,null,null,null,"Difference",{"$f":"IFERROR(H33-N33,\"\")","v":0},null,null,null,null,null,null,null,null,null,null,null,null,null,null,null,null,null,null,null,null,null,null,"User registration"]
[null,null,null,{"$f":"IF(Menu_UseOfCalculator=E255,\"If the Proposed UA ≤ the Target UA, and the Proposed Credits from Table 406.2 are ≥ those required in Section R406.2, then the home meets the 2015 WSEC.\",\"\")","v":"If the Proposed UA ≤ the Target UA, and the Proposed Credits from Table 406.2 are ≥ those required in Section R406.2, then the home meets the 2015 WSEC."}]
[null,null,null,null,null,null,null,null,null,null,null,null,null,null,null,null,null,null,null,null,null,null,null,null,null,null,null,null,null,null,null,null,null,null,null,null,"Exception R502.1.1 requires calculation of UA of existing building"]
[null,null,null,{"$f":"IF(Menu_CodeVersion=\"WSEC 2015\",IF(Menu_UseOfCalculator=E255,\"Table R406.2 Summary\",\"Table R406.2 Option 1 Energy Credits in Baseline Comparison\"),IF(Menu_UseOfCalculator=E255,\"Table R406.3 Summary\",\"Table R406.3 Option 1 Energy Credits in Baseline Comparison\"))","v":"Table R406.3 Summary"},null,null,null,null,null,null,null,null,null,null,null,null,null,null,null,null,null,null,null,null,null,null,null,null,null,null,null,null,null,null,null,null,"Remodel changes use"]
[null,null,"Cat No.",null,"Category",null,null,"Select Options",null,"Energy Credits",null,"Brief Description of Selected Options (See Table 406.2 for details)"]
[null,null,1,null,"Efficient Building Envelope",null,null,null,null,{"$f":"IFERROR(VLOOKUP(H41,Table_Option_1,2,TRUE),0)","v":0},null,{"$f":"IFERROR(VLOOKUP(H41,Table_Option_1,3,TRUE),\" \")","v":" "},null,null,null,null,null,null,null,null,null,null,null,null,null,null,null,null,null,null,null,null,null,null,null,null,"Addition less than 500 sf not included in Target Credit calc"]
[null,null,2,null,"Air Leakage Control and Efficient Ventilation",null,null,null,null,{"$f":"IFERROR(VLOOKUP(H42,Table_Option_2,2,TRUE),0)","v":0},null,{"$f":"IFERROR(VLOOKUP(H42,Table_Option_2,3,TRUE),\" \")","v":" "},null,null,null,null,null,null,null,null,null,null,null,null,null,null,null,null,null,null,null,null,null,null,null,null,"Unite forms into one"]
[null,null,3,null,"High Efficiency HVAC ",null,null,null,null,{"$f":"IFERROR(VLOOKUP(H43,Table_Option_3,2,TRUE),0)","v":0},null,{"$f":"IFERROR(VLOOKUP(H43,Table_Option_3,3,TRUE),\" \")","v":" "},null,null,null,null,null,null,null,null,null,null,null,null,null,null,null,null,null,null,null,null,null,null,null,null,"1. Existing baseline  --> Add toggle"]
[null,null,4,null,"High Efficiency HVAC Distribution System",null,null,null,null,{"$f":"IFERROR(VLOOKUP(H44,Table_Option_4,2,TRUE),0)","v":0},null,{"$f":"IFERROR(VLOOKUP(H44,Table_Option_4,3,TRUE),\" \")","v":" "},null,null,null,null,null,null,null,null,null,null,null,null,null,null,null,null,null,null,null,null,null,null,null,null,"2. Double counting energy credits"]
[null,null,{"$f":"IF(Menu_CodeVersion=\"WSEC 2015\",\"5a\",\"5.1\")","v":"5.1"},null,"Efficient Water Heating",null,null,null,null,{"$f":"IFERROR(VLOOKUP(H45,Table_Option_5a,2,TRUE),0)","v":0},null,{"$f":"IFERROR(VLOOKUP(H45,Table_Option_5a,3,TRUE),\" \")","v":" "},null,null,null,null,null,null,null,null,null,null,null,null,null,null,null,null,null,null,null,null,null,null,null,null,"5.  Most frequently used section on all drop downs"]
[null,null,{"$f":"IF(Menu_CodeVersion=\"WSEC 2015\",\"5 b&c\",\"5.2-5.6\")","v":"5.2-5.6"},null,"Efficient Water Heating",null,null,null,null,{"$f":"IFERROR(VLOOKUP(H46,Table_Option_5bc,2,TRUE),0)","v":0},null,{"$f":"IFERROR(VLOOKUP(H46,Table_Option_5bc,3,TRUE),\" \")","v":" "},null,null,null,null,null,null,null,null,null,null,null,null,null,null,null,null,null,null,null,null,null,null,null,null,"Existing building as baseline"]
[null,null,"5d",null,"Efficient Water Heating",null,null,null,null,{"$f":"IFERROR(VLOOKUP(H47,Table_Option_5d,2,TRUE),0)","v":0},null,{"$f":"IFERROR(VLOOKUP(H47,Table_Option_5d,3,TRUE),\" \")","v":" "},null,null,null,null,null,null,null,null,null,null,null,null,null,null,null,null,null,null,null,null,null,null,null,null,"Move heating system sizing inputs over with toggle to open and close"]
[null,null,6,null,"Renewable Electric Energy",2000,"kWh",null,null,{"$f":"FLOOR(MIN(IFERROR(VLOOKUP(H48,Table_Option_6,2,TRUE),0)*F48/1200,3),0.5)","v":0},null,{"$f":"IFERROR(VLOOKUP(H48,Table_Option_6,3,TRUE),\" \")","v":" "},null,null,null,null,null,null,null,null,null,null,null,null,null,null,null,null,null,null,null,null,null,null,null,null,"Strip out blank rows in menus"]
[null,null,7,null,"Appliance Package",null,null,null,null,{"$f":"IFERROR(VLOOKUP(H49,Table_Option_7,2,TRUE),0)","v":0},null,{"$f":"IFERROR(VLOOKUP(H49,Table_Option_7,3,TRUE),\" \")","v":" "},null,null,null,null,null,null,null,null,null,null,null,null,null,null,null,null,null,null,null,null,null,null,null,null,"warnings about missing data if prescriptive path"]
[null,null,null,null,null,null,null,null,"Total Energy Credits",{"$f":"SUBTOTAL(109,J41:J49)","v":0},null,null,null,null,null,null,null,null,null,null,null,null,null,null,null,null,null,null,null,null,null,null,null,null,null,null,"warings about custom data"]
[null,null,null,null,"*Please refer to Table R406.2 for complete option descriptions",null,null,null,null,null,null,null,null,null,null,null,null,null,null,null,null,null,null,null,null,null,null,null,null,null,null,null,null,null,null,null,"Update front matter - copyright"]
[]
[null,null,null,"Table R406.2 Fuel Normalization Credits"]
[null,null,"System No.",null,"Full Description",null,null,"Select System Type",null,null,null,"Fuel Normalization Credits",null,"Energy Credits",null,"Total Credits"]
[null,null,{"$f":"VLOOKUP(H55,Table_FuelNormalization,3,FALSE)","v":1},null,{"$f":"VLOOKUP(H55,Table_FuelNormalization,2,FALSE)","v":"Combustion heating equipment meeting minimum federal efficiency standards for the equipment listed in Table C403.3.2(4) or C403.3.2(5)"},null,null,"Min Federal Efficiency System",null,null,null,{"$f":"IF(Menu_CodeVersion=\"WSEC 2015\",0,VLOOKUP(H55,Table_FuelNormalization,H521,FALSE))","v":0},null,{"$f":"J50","v":0},null,{"$f":"IF(ISNUMBER(L55)=TRUE,L55+J50,N55)","v":0}]
[]
[null,null,null,null,null,null,null,null,null,null,null,null,null,null,null,null,null,null,null,null,null,null,null,null,null,null,null,null,null,null,null,null,null,null,null,null,"R406.2, small dwelling unit -- Less than 300 sf of glazing area"]
[null,null,null,"Thermal Envelope Details - Proposed Design",null,null,null,null,null,null,null,null,null,null,null,null,null,"Thermal Envelope Details - Baseline Design"]
[null,null,null,null,"Conditioned Floor Area, Proposed Design",null,"sq. ft",{"$f":"IF(F59<>\"\",\"\", \"Missing Conditioned Floor Area\")","v":"Missing Conditioned Floor Area"},null,null,null,null,null,null,null,null,null,null,null,"Conditioned Floor Area, Baseline",null,"sq. ft"]
[null,null,null,null,null,null,null,null,null,null,null,null,null,null,null,null,null,null,null,null,null,null,null,null,null,null,null,null,null,null,null,null,null,null,null,null,"Tier 2/3"]
[null,null,null,null,null,null,null,null,null,null,null,null,null,null,null,null,null,null,null,null,null,null,null,null,null,null,null,null,null,null,null,null,null,null,null,null,"correct message about window area"]
[null,null,null,"Exterior Doors",null,null,null,null,null,null,null,null,null,null,null,null,null,null,"Exterior Doors",null,null,null,null,null,null,null,null,null,null,null,null,null,null,null,null,null,"baseline - code target  - Not selected"]
[null,null,null,"Plan","Component",null,"Door",null,"Width",null,"Height",null,null,null,null,null,null,null,"Plan","Component",null,"Door",null,"Width",null,"Height",null,null,null,null,null,null,null,null,null,null,"drop down on Project type"]
[null,null,null,"ID","Description","Ref.","U","Qt.","Feet","Inch","Feet","Inch","Area","UA",null,null,null,null,"ID","Description","Ref.","U","Qt.","Feet","Inch","Feet","Inch","Area","UA"]
[null,null,null,"Exempt",null,{"$f":"IFERROR(VLOOKUP($E65,Table_Doors,2,FALSE),\"\")","v":""},{"$f":"IFERROR(VLOOKUP($E65,Table_Doors,3,FALSE),\"\")","v":""},null,null,null,null,null,{"$f":"H65*(I65+(J65/12))*(K65+(L65/12))","v":0},{"$f":"IFERROR(G65*M65,0)","v":0},{"$f":"IF(M65>24,1,IF(AND(F65=\"Custom\",G65=0),1,IF(AND(G65=\"\",SUM(H65:L65)=0),0,IF(AND(G65<>\"\",M65>0),0,1))))","v":0},{"$f":"IF(M65>24,\"Exempt Door>24 sf\",IF(F65=\"Custom\",IF(G65=0,\"U-value missing in Custom Input\",\"Refer to WSEC R402.1.5 U-factor Reference and Calculations\"),\"\"))","v":""}]
[null,null,null,null,null,"","",null,null,null,null,null,{"$f":"H66*(I66+(J66/12))*(K66+(L66/12))","v":0},{"$f":"IFERROR(G66*M66,0)","v":0},{"$f":"IF(AND(E66=\"\",M66=0),0,IF(AND(E66=\"\",M66>0),1,IF(AND(E66<>\"\",N66=0),1,IF(AND(F66=\"Custom\",G66=0),1,IF(AND(G66=\"\",SUM(H66:L66)=0),0,IF(AND(G66<>\"\",M66>0),0,1))))))","v":0},{"$f":"IF(F66=\"Custom\",IF(G66=0,\"U-value missing in Custom Input\",\"Refer to WSEC R402.1.5 U-factor Reference and Calculations\"),\"\")","v":""},null," ",null,null,{"$f":"IFERROR(VLOOKUP($T66,Table_Doors,2,FALSE),\"\")","v":""},{"$f":"IFERROR(VLOOKUP($T66,Table_Doors,3,FALSE),\"\")","v":""},null,null,null,null,null,{"$f":"W66*(X66+(Y66/12))*(Z66+(AA66/12))","v":0},{"$f":"IFERROR(V66*AB66,0)","v":0},{"$f":"IF(AND(T66=\"\",AB66=0),0,IF(AND(T66=\"\",AB66>0),1,IF(AND(T66<>\"\",AC66=0),1,IF(AND(U66=\"Custom\",V66=0),1,IF(AND(V66=\"\",SUM(W66:AA66)=0),0,IF(AND(V66<>\"\",AB66>0),0,1))))))","v":0},{"$f":"IF(U66=\"Custom\",\"Refer to WSEC R402.1.5 U-factor Reference and Calculations\",\"\")","v":""},null,null,null,null,null,"flag if U-value=0"]
[null,null,null,null,null,"","",null,null,null,null,null,0,{"$f":"IFERROR(G67*M67,0)","v":0},{"$f":"IF(AND(E67=\"\",M67=0),0,IF(AND(E67=\"\",M67>0),1,IF(AND(E67<>\"\",N67=0),1,IF(AND(F67=\"Custom\",G67=0),1,IF(AND(G67=\"\",SUM(H67:L67)=0),0,IF(AND(G67<>\"\",M67>0),0,1))))))","v":0},{"$f":"IF(F67=\"Custom\",IF(G67=0,\"U-value missing in Custom Input\",\"Refer to WSEC R402.1.5 U-factor Reference and Calculations\"),\"\")","v":""},null," ",null,null,"","",null,null,null,null,null,0,{"$f":"IFERROR(V67*AB67,0)","v":0},{"$f":"IF(AND(T67=\"\",AB67=0),0,IF(AND(T67=\"\",AB67>0),1,IF(AND(T67<>\"\",AC67=0),1,IF(AND(U67=\"Custom\",V67=0),1,IF(AND(V67=\"\",SUM(W67:AA67)=0),0,IF(AND(V67<>\"\",AB67>0),0,1))))))","v":0},{"$f":"IF(U67=\"Custom\",\"Refer to WSEC R402.1.5 U-factor Reference and Calculations\",\"\")","v":""}]
[null,null,null,null,null,"","",null,null,null,null,null,0,0,0,"",null," ",null,null,"","",null,null,null,null,null,0,0,0,"",null,null,null,null,null,"Error checking"]
[null,null,null,null,null,"","",null,null,null,null,null,0,0,0,"",null," ",null,null,"","",null,null,null,null,null,0,0,0,"",null,null,null,null,null,"Windows can't be below U0.14"]
[null,null,null,null,null,"","",null,null,null,null,null,0,0,0,"",null," ",null,null,"","",null,null,null,null,null,0,0,0,""]
[null,null,null,null,null,"","",null,null,null,null,null,0,0,0,"",null," ",null,null,"","",null,null,null,null,null,0,0,0,""]
[null,null,null,null,null,"","",null,null,null,null,null,0,0,0,"",null," ",null,null,"","",null,null,null,null,null,0,0,0,"",null,null,null,null,null,"For 2018 version "]
[null,null,null,null,null,null,null,null,null,null,null,{"$f":"IF(AND(M65>0,Switch_ShowExempt=\"Show\"),\"Sum of Area and UA (excluding exempt door)\",\"Sum of Area and UA\")","v":"Sum of Area and UA"},{"$f":"IF(O73>0,\"\",SUM(M66:M72))","v":0},{"$f":"IF(O73>0,\"Erorr\",SUM(N66:N72))","v":0},{"$f":"SUBTOTAL(109,O65:O72)","v":0},{"$f":"ROW(P72)-ROW(P65)+1-COUNTBLANK(P65:P72)","v":0},null,null,null,null,null,null,"Sum of Area and UA",null,null,null,null,{"$f":"IF(AD73>0,\"\",SUM(AB66:AB72))","v":0},{"$f":"IF(AD73>0,\"Erorr\",SUM(AC66:AC72))","v":0},{"$f":"SUM(AD66:AD72)","v":0},{"$f":"ROW(AE72)-ROW(AE66)+1-COUNTBLANK(AE66:AE72)","v":0},null,null,null,null,null,"Brief description of options in Table R406"]
[null,null,null,null,null,null,null,null,null,null,null,null,null,null,null,null,null,null,null,null,null,null,null,null,null,null,null,null,null,null,null,null,null,null,null,null,"Code target on most frequently selected"]
[]
[null,null,null,"Overhead Glazing: ",null,null,null,null,null,null,null,null,null,null,null,null,null,null,"Overhead Glazing: "]
[null,null,null,"Plan","Component","Ref.","Glazing","Qt.","Width",null,"Height",null,"Area","UA",null,null,null,null,"Plan","Component","Ref.","Glazing","Qt.","Width",null,"Height",null,"Area","UA"]
[null,null,null,"ID","Description",null,"U",null,"Feet","Inch","Feet","Inch",null,null,null,null,null,null,"ID","Description",null,"U",null,"Feet","Inch","Feet","Inch"]
[null,null,null,null,null,{"$f":"IFERROR(VLOOKUP($E79,Table_OverheadGlazing,2,FALSE),\"\")","v":""},{"$f":"IFERROR(VLOOKUP($E79,Table_OverheadGlazing,3,FALSE),\"\")","v":""},null,null,null,null,null,{"$f":"H79*(I79+(J79/12))*(K79+(L79/12))","v":0},{"$f":"IFERROR(G79*M79,\"\")","v":""},{"$f":"IF(AND(E79=\"\",M79=0),0,IF(AND(E79=\"\",M79>0),1,IF(AND(E79<>\"\",N79=0),1,IF(AND(F79=\"Custom\",G79=0),1,IF(AND(G79=\"\",SUM(H79:L79)=0),0,IF(AND(G79<>\"\",M79>0),0,1))))))","v":0},{"$f":"IF(F79=\"Custom\",\"Refer to WSEC R402.1.5 U-factor Reference and Calculations\",\"\")","v":""},null," ",null,null,{"$f":"IFERROR(VLOOKUP($T79,Table_OverheadGlazing,2,FALSE),\"\")","v":""},{"$f":"IFERROR(VLOOKUP($T79,Table_OverheadGlazing,3,FALSE),\"\")","v":""},null,null,null,null,null,{"$f":"W79*(X79+(Y79/12))*(Z79+(AA79/12))","v":0},{"$f":"IFERROR(V79*AB79,\"\")","v":""},{"$f":"IF(AND(T79=\"\",AB79=0),0,IF(AND(T79=\"\",AB79>0),1,IF(AND(T79<>\"\",AC79=0),1,IF(AND(U79=\"Custom\",V79=0),1,IF(AND(V79=\"\",SUM(W79:AA79)=0),0,IF(AND(V79<>\"\",AB79>0),0,1))))))","v":0},{"$f":"IF(U79=\"Custom\",\"Refer to WSEC R402.1.5 U-factor Reference and Calculations\",\"\")","v":""}]
[null,null,null,null,null,{"$f":"IFERROR(VLOOKUP($E80,Table_OverheadGlazing,2,FALSE),\"\")","v":""},{"$f":"IFERROR(VLOOKUP($E80,Table_OverheadGlazing,3,FALSE),\"\")","v":""},null,null,null,null,null,{"$f":"H80*(I80+(J80/12))*(K80+(L80/12))","v":0},{"$f":"IFERROR(G80*M80,\"\")","v":""},0,{"$f":"IF(F80=\"Custom\",\"Refer to WSEC R402.1.5 U-factor Reference and Calculations\",\"\")","v":""},null," ",null,null,{"$f":"IFERROR(VLOOKUP($T80,Table_OverheadGlazing,2,FALSE),\"\")","v":""},{"$f":"IFERROR(VLOOKUP($T80,Table_OverheadGlazing,3,FALSE),\"\")","v":""},null,null,null,null,null,{"$f":"W80*(X80+(Y80/12))*(Z80+(AA80/12))","v":0},{"$f":"IFERROR(V80*AB80,\"\")","v":""},0,{"$f":"IF(U80=\"Custom\",\"Refer to WSEC R402.1.5 U-factor Reference and Calculations\",\"\")","v":""}]
[null,null,null,null,null,{"$f":"IFERROR(VLOOKUP($E81,Table_OverheadGlazing,2,FALSE),\"\")","v":""},{"$f":"IFERROR(VLOOKUP($E81,Table_OverheadGlazing,3,FALSE),\"\")","v":""},null,null,null,null,null,{"$f":"H81*(I81+(J81/12))*(K81+(L81/12))","v":0},{"$f":"IFERROR(G81*M81,\"\")","v":""},0,{"$f":"IF(F81=\"Custom\",\"Refer to WSEC R402.1.5 U-factor Reference and Calculations\",\"\")","v":""},null," ",null,null,{"$f":"IFERROR(VLOOKUP($T81,Table_OverheadGlazing,2,FALSE),\"\")","v":""},{"$f":"IFERROR(VLOOKUP($T81,Table_OverheadGlazing,3,FALSE),\"\")","v":""},null,null,null,null,null,{"$f":"W81*(X81+(Y81/12))*(Z81+(AA81/12))","v":0},{"$f":"IFERROR(V81*AB81,\"\")","v":""},0,{"$f":"IF(U81=\"Custom\",\"Refer to WSEC R402.1.5 U-factor Reference and Calculations\",\"\")","v":""}]
[null,null,null,null,null,{"$f":"IFERROR(VLOOKUP($E82,Table_OverheadGlazing,2,FALSE),\"\")","v":""},{"$f":"IFERROR(VLOOKUP($E82,Table_OverheadGlazing,3,FALSE),\"\")","v":""},null,null,null,null,null,{"$f":"H82*(I82+(J82/12))*(K82+(L82/12))","v":0},{"$f":"IFERROR(G82*M82,\"\")","v":""},0,{"$f":"IF(F82=\"Custom\",\"Refer to WSEC R402.1.5 U-factor Reference and Calculations\",\"\")","v":""},null," ",null,null,{"$f":"IFERROR(VLOOKUP($T82,Table_OverheadGlazing,2,FALSE),\"\")","v":""},{"$f":"IFERROR(VLOOKUP($T82,Table_OverheadGlazing,3,FALSE),\"\")","v":""},null,null,null,null,null,{"$f":"W82*(X82+(Y82/12))*(Z82+(AA82/12))","v":0},{"$f":"IFERROR(V82*AB82,\"\")","v":""},0,{"$f":"IF(U82=\"Custom\",\"Refer to WSEC R402.1.5 U-factor Reference and Calculations\",\"\")","v":""}]
[null,null,null,null,null,{"$f":"IFERROR(VLOOKUP($E83,Table_OverheadGlazing,2,FALSE),\"\")","v":""},{"$f":"IFERROR(VLOOKUP($E83,Table_OverheadGlazing,3,FALSE),\"\")","v":""},null,null,null,null,null,{"$f":"H83*(I83+(J83/12))*(K83+(L83/12))","v":0},{"$f":"IFERROR(G83*M83,\"\")","v":""},0,{"$f":"IF(F83=\"Custom\",\"Refer to WSEC R402.1.5 U-factor Reference and Calculations\",\"\")","v":""},null," ",null,null,{"$f":"IFERROR(VLOOKUP($T83,Table_OverheadGlazing,2,FALSE),\"\")","v":""},{"$f":"IFERROR(VLOOKUP($T83,Table_OverheadGlazing,3,FALSE),\"\")","v":""},null,null,null,null,null,{"$f":"W83*(X83+(Y83/12))*(Z83+(AA83/12))","v":0},{"$f":"IFERROR(V83*AB83,\"\")","v":""},0,{"$f":"IF(U83=\"Custom\",\"Refer to WSEC R402.1.5 U-factor Reference and Calculations\",\"\")","v":""}]
[null,null,null,null,null,null,null,"Sum of Area and UA",null,null,null,null,{"$f":"IF(O84>0,\"\",SUM(M79:M83))","v":0},{"$f":"IF(O84>0,\"Error\",SUM(N79:N83))","v":0},{"$f":"SUM(O79:O83)","v":0},{"$f":"ROW(P83)-ROW(P79)+1-COUNTBLANK(P79:P83)","v":0},null,null,null,null,null,null,"Sum of Area and UA",null,null,null,null,{"$f":"IF(AD84>0,\"\",SUM(AB79:AB83))","v":0},{"$f":"IF(AD84>0,\"Error\",SUM(AC79:AC83))","v":0},{"$f":"SUM(AD77:AD83)","v":0},{"$f":"ROW(AE83)-ROW(AE79)+1-COUNTBLANK(AE79:AE83)","v":0}]
[]
[]
[null,null,null,"Vertical Glazing Schedule",null,null,null,null,null,null,null,null,"Rows to Show",10,null,null,null,null,"Vertical Glazing"]
[null,null,null,"Plan","Component","Ref.","Glazing","Qt.","Width",null,"Height",null,"Area","UA",null,null,null,null,"Plan","Component","Ref.","Glazing","Qt.","Width",null,"Height",null,"Area","UA"]
[null,null,null,"ID","Description",null,"U",null,"Feet","Inch","Feet","Inch",null,null,null,null,null," ","ID","Description",null,"U",null,"Feet","Inch","Feet","Inch"]
[null,null,null,"Exempt",null,{"$f":"IFERROR(VLOOKUP($E90,Table_VerticalGlazing,2,FALSE),\"\")","v":""},{"$f":"IFERROR(VLOOKUP($E90,Table_VerticalGlazing,3,FALSE),0)","v":0},null,null,null,null,null,{"$f":"H90*(I90+(J90/12))*(K90+(L90/12))","v":0},{"$f":"IFERROR(G90*M90,0)","v":0},{"$f":"IF(AND(E90=\"\",M90=0),0,IF(AND(E90=\"\",M90>0),1,IF(AND(E90<>\"\",N90=0),1,IF(AND(F90=\"Custom\",G90=0),1,IF(AND(G90=\"\",SUM(H90:L90)=0),0,IF(AND(G90<>\"\",M90>0),0,1))))))","v":0},{"$f":"IF(M90>15,\"Exempt Window>15 sf\",IF(F90=\"Custom\",IF(G90=0,\"U-value missing in Custom Input\",\"Refer to WSEC R402.1.5 U-factor Reference and Calculations\"),\"\"))","v":""}]
["\\",null,1,null,null,"",{"$f":"IFERROR(VLOOKUP($E91,Table_VerticalGlazing,3,FALSE),0)","v":0},null,null,null,null,null,{"$f":"H91*(I91+(J91/12))*(K91+(L91/12))","v":0},{"$f":"IFERROR(G91*M91,0)","v":0},{"$f":"IF(AND(E91=\"\",M91=0),0,IF(AND(E91=\"\",M91>0),1,IF(AND(E91<>\"\",N91=0),1,IF(AND(F91=\"Custom\",G91=0),1,IF(AND(G91=\"\",SUM(H91:L91)=0),0,IF(AND(G91<>\"\",M91>0),0,1))))))","v":0},{"$f":"IF(F91=\"Custom\",IF(G91=0,\"U-value missing in Custom Input\",\"Refer to WSEC R402.1.5 U-factor Reference and Calculations\"),\"\")","v":""},null," ",null,null,{"$f":"IFERROR(VLOOKUP($T91,Table_VerticalGlazing,2,FALSE),\"\")","v":""},{"$f":"IFERROR(VLOOKUP(T91,Table_VerticalGlazing,3,FALSE),0)","v":0},null,null,null,null,null,{"$f":"W91*(X91+(Y91/12))*(Z91+(AA91/12))","v":0},{"$f":"IFERROR(V91*AB91,0)","v":0},{"$f":"IF(AND(T91=\"\",AB91=0),0,IF(AND(T91=\"\",AB91>0),1,IF(AND(T91<>\"\",AC91=0),1,IF(AND(U91=\"Custom\",V91=0),1,IF(AND(V91=\"\",SUM(W91:AA91)=0),0,IF(AND(V91<>\"\",AB91>0),0,1))))))","v":0},{"$f":"IF(U91=\"Custom\",\"Refer to WSEC R402.1.5 U-factor Reference and Calculations\",\"\")","v":""}]
[null,null,{"$f":"C91+1","v":2},null,null,"",{"$f":"IFERROR(VLOOKUP($E92,Table_VerticalGlazing,3,FALSE),+\"\")","v":""},null,null,null,null,null,{"$f":"H92*(I92+(J92/12))*(K92+(L92/12))","v":0},{"$f":"IFERROR(G92*M92,0)","v":0},{"$f":"IF(AND(E92=\"\",M92=0),0,IF(AND(E92=\"\",M92>0),1,IF(AND(E92<>\"\",N92=0),1,IF(AND(F92=\"Custom\",G92=0),1,IF(AND(G92=\"\",SUM(H92:L92)=0),0,IF(AND(G92<>\"\",M92>0),0,1))))))","v":0},{"$f":"IF(F92=\"Custom\",IF(G92=0,\"U-value missing in Custom Input\",\"Refer to WSEC R402.1.5 U-factor Reference and Calculations\"),\"\")","v":""},null," ",null,null,"",0,null,null,null,null,null,0,{"$f":"IFERROR(V92*AB92,0)","v":0},{"$f":"IF(AND(T92=\"\",AB92=0),0,IF(AND(T92=\"\",AB92>0),1,IF(AND(T92<>\"\",AC92=0),1,IF(AND(U92=\"Custom\",V92=0),1,IF(AND(V92=\"\",SUM(W92:AA92)=0),0,IF(AND(V92<>\"\",AB92>0),0,1))))))","v":0},{"$f":"IF(U92=\"Custom\",\"Refer to WSEC R402.1.5 U-factor Reference and Calculations\",\"\")","v":""}]
[null,null,{"$f":"C92+1","v":3},null,null,"","",null,null,null,null,null,{"$f":"H93*(I93+(J93/12))*(K93+(L93/12))","v":0},{"$f":"IFERROR(G93*M93,0)","v":0},0,"",null," ",null,null,"",0,null,null,null,null,null,0,0,0,""]
[null,null,4,null,null,"","",null,null,null,null,null,0,0,0,"",null," ",null,null,"",0,null,null,null,null,null,0,0,0,""]
[null,null,5,null,null,"","",null,null,null,null,null,0,0,0,"",null," ",null,null,"",0,null,null,null,null,null,0,0,0,""]
[null,null,6,null,null,"","",null,null,null,null,null,0,0,0,"",null," ",null,null,"",0,null,null,null,null,null,0,0,0,""]
[null,null,7,null,null,"","",null,null,null,null,null,0,0,0,"",null," ",null,null,"",0,null,null,null,null,null,0,0,0,""]
[null,null,8,null,null,"","",null,null,null,null,null,0,0,0,"",null," ",null,null,"",0,null,null,null,null,null,0,0,0,""]
[null,null,9,null,null,"","",null,null,null,null,null,0,0,0,"",null," ",null,null,"",0,null,null,null,null,null,0,0,0,""]
[null,null,10,null,null,"","",null,null,null,null,null,0,0,0,"",null," ",null,null,"",0,null,null,null,null,null,0,0,0,""]
[null,null,11,null,null,"","",null,null,null,null,null,0,0,0,"",null," ",null,null,"",0,null,null,null,null,null,0,0,0,""]
[null,null,12,null,null,"","",null,null,null,null,null,0,0,0,"",null," ",null,null,"",0,null,null,null,null,null,0,0,0,""]
[null,null,13,null,null,"","",null,null,null,null,null,0,0,0,"",null," ",null,null,"",0,null,null,null,null,null,0,0,0,""]
[null,null,14,null,null,"","",null,null,null,null,null,0,0,0,"",null," ",null,null,"",0,null,null,null,null,null,0,0,0,""]
[null,null,15,null,null,"","",null,null,null,null,null,0,0,0,"",null," ",null,null,"",0,null,null,null,null,null,0,0,0,""]
[null,null,16,null,null,"","",null,null,null,null,null,0,0,0,"",null," ",null,null,"",0,null,null,null,null,null,0,0,0,""]
[null,null,17,null,null,"","",null,null,null,null,null,0,0,0,"",null," ",null,null,"",0,null,null,null,null,null,0,0,0,""]
[null,null,18,null,null,"","",null,null,null,null,null,0,0,0,"",null," ",null,null,"",0,null,null,null,null,null,0,0,0,""]
[null,null,19,null,null,"","",null,null,null,null,null,0,0,0,"",null," ",null,null,"",0,null,null,null,null,null,0,0,0,""]
[null,null,20,null,null,"","",null,null,null,null,null,0,0,0,"",null," ",null,null,"",0,null,null,null,null,null,0,0,0,""]
[null,null,21,null,null,"","",null,null,null,null,null,0,0,0,"",null," ",null,null,"",0,null,null,null,null,null,0,0,0,""]
[null,null,22,null,null,"","",null,null,null,null,null,0,0,0,"",null," ",null,null,"",0,null,null,null,null,null,0,0,0,""]
[null,null,23,null,null,"","",null,null,null,null,null,0,0,0,"",null," ",null,null,"",0,null,null,null,null,null,0,0,0,""]
[null,null,24,null,null,"","",null,null,null,null,null,0,0,0,"",null," ",null,null,"",0,null,null,null,null,null,0,0,0,""]
[null,null,25,null,null,"","",null,null,null,null,null,0,0,0,"",null," ",null,null,"",0,null,null,null,null,null,0,0,0,""]
[null,null,26,null,null,"","",null,null,null,null,null,0,0,0,"",null," ",null,null,"",0,null,null,null,null,null,0,0,0,""]
[null,null,27,null,null,"","",null,null,null,null,null,0,0,0,"",null," ",null,null,"",0,null,null,null,null,null,0,0,0,""]
[null,null,28,null,null,"","",null,null,null,null,null,0,0,0,"",null," ",null,null,"",0,null,null,null,null,null,0,0,0,""]
[null,null,29,null,null,"","",null,null,null,null,null,0,0,0,"",null," ",null,null,"",0,null,null,null,null,null,0,0,0,""]
[null,null,30,null,null,"","",null,null,null,null,null,0,0,0,"",null," ",null,null,"",0,null,null,null,null,null,0,0,0,""]
[null,null,31,null,null,"","",null,null,null,null,null,0,0,0,"",null," ",null,null,"",0,null,null,null,null,null,0,0,0,""]
[null,null,32,null,null,"","",null,null,null,null,null,0,0,0,"",null," ",null,null,"",0,null,null,null,null,null,0,0,0,""]
[null,null,33,null,null,"","",null,null,null,null,null,0,0,0,"",null," ",null,null,{"$f":"IFERROR(VLOOKUP($T123,Table_VerticalGlazing,2,FALSE),\"\")","v":""},{"$f":"IFERROR(VLOOKUP(T123,Table_VerticalGlazing,3,FALSE),0)","v":0},null,null,null,null,null,0,0,0,""]
[null,null,34,null,null,"",{"$f":"IFERROR(VLOOKUP($E124,Table_VerticalGlazing,3,FALSE),+\"\")","v":""},null,null,null,null,null,0,0,0,"",null," ",null,null,"",0,null,null,null,null,null,0,0,0,""]
[null,null,35,null,null,"","",null,null,null,null,null,0,0,0,"",null," ",null,null,"",0,null,null,null,null,null,0,0,0,""]
[null,null,36,null,null,"","",null,null,null,null,null,0,0,0,"",null," ",null,null,"",0,null,null,null,null,null,0,0,0,""]
[null,null,37,null,null,"","",null,null,null,null,null,{"$f":"H127*(I127+(J127/12))*(K127+(L127/12))","v":0},{"$f":"IFERROR(G127*M127,0)","v":0},0,"",null," ",null,null,"",0,null,null,null,null,null,0,0,0,""]
[null,null,38,null,null,"","",null,null,null,null,null,0,0,0,"",null," ",null,null,"",0,null,null,null,null,null,0,0,0,""]
[null,null,39,null,null,"","",null,null,null,null,null,0,0,0,"",null," ",null,null,"",0,null,null,null,null,null,0,0,0,""]
[null,null,40,null,null,"","",null,null,null,null,null,0,0,0,"",null," ",null,null,"",0,null,null,null,null,null,0,0,0,""]
[null,null,41,null,null,"","",null,null,null,null,null,0,0,0,"",null," ",null,null,"",0,null,null,null,null,null,0,0,0,""]
[null,null,42,null,null,"","",null,null,null,null,null,0,0,0,"",null," ",null,null,"",0,null,null,null,null,null,0,0,0,""]
[null,null,43,null,null,"","",null,null,null,null,null,0,0,0,"",null," ",null,null,"",0,null,null,null,null,null,0,0,0,""]
[null,null,44,null,null,"","",null,null,null,null,null,0,0,0,"",null," ",null,null,"",0,null,null,null,null,null,0,0,0,""]
[null,null,45,null,null,"","",null,null,null,null,null,0,0,0,"",null," ",null,null,"",0,null,null,null,null,null,0,0,0,""]
[null,null,46,null,null,"","",null,null,null,null,null,0,0,0,"",null," ",null,null,"",0,null,null,null,null,null,0,0,0,""]
[null,null,47,null,null,"","",null,null,null,null,null,0,0,0,"",null," ",null,null,"",0,null,null,null,null,null,0,0,0,""]
[null,null,48,null,null,"","",null,null,null,null,null,0,0,0,"",null," ",null,null,"",0,null,null,null,null,null,0,0,0,""]
[null,null,49,null,null,"","",null,null,null,null,null,0,0,0,"",null," ",null,null,"",0,null,null,null,null,null,0,0,0,""]
[null,null,50,null,null,"","",null,null,null,null,null,0,0,0,"",null," ",null,null,"",0,null,null,null,null,null,0,0,0,""]
[null,null,51,null,null,"","",null,null,null,null,null,0,0,0,"",null," ",null,null,"",0,null,null,null,null,null,0,0,0,""]
[null,null,52,null,null,"","",null,null,null,null,null,0,0,0,"",null," ",null,null,"",0,null,null,null,null,null,0,0,0,""]
[null,null,53,null,null,"","",null,null,null,null,null,0,0,0,"",null," ",null,null,"",0,null,null,null,null,null,0,0,0,""]
[null,null,54,null,null,"","",null,null,null,null,null,0,0,0,"",null," ",null,null,"",0,null,null,null,null,null,0,0,0,""]
[null,null,55,null,null,"","",null,null,null,null,null,0,0,0,"",null," ",null,null,"",0,null,null,null,null,null,0,0,0,""]
[null,null,null,null,null,null,null,null,null,null,null,{"$f":"IF(AND(M90>0,Switch_ShowExempt=\"Show\"),\"Sum of Area and UA (excluding exempt window)\",\"Sum of Area and UA\")","v":"Sum of Area and UA"},{"$f":"IF(O146>0,\"\",SUBTOTAL(109,M91:M145))","v":0},{"$f":"IF(O146>0,\"Error\",SUBTOTAL(109,N91:N145))","v":0},{"$f":"SUBTOTAL(109,O90:O145)","v":0},{"$f":"ROW(P145)-ROW(P90)+1-COUNTBLANK(P90:P145)","v":0},null,null,null,null,null,null,null,null,null,null,"Sum of Area and UA",{"$f":"IF(AD146>0,\"\",SUBTOTAL(109,AB91:AB145))","v":0},{"$f":"IF(AD146>0,\"Error\",SUBTOTAL(109,AC91:AC145))","v":0},{"$f":"SUBTOTAL(109,AD91:AD145)","v":0},{"$f":"ROW(AE145)-ROW(AE91)+1-COUNTBLANK(AE91:AE145)","v":0}]
[null,null,null,null,null,null,null,null,null,null,null,"Glazing Area Weighted U",null,{"$f":"IFERROR(N146/M146,\"\")","v":""},null,null,null,null,null,null,null,null,null,null,null,null,"Glazing Area Weighted U",null,{"$f":"IFERROR(AC146/AB146,\"\")","v":""}]
[]
[]
[null,null,null,"Flat/Vaulted Ceilings",null,null,null,null,null,null,null,null,null,null,null,null,null,null,"Flat/Vaulted Ceilings"]
[null,null,null,"Plan","Component","Ref.","Attic",null,null,null,null,null,"Area","UA",null,null,null," ","Plan","Component","Ref.","Attic",null,null,null,null,null,"Area","UA"]
[null,null,null,"ID","Description",null,"U",null,null,null,null,null,null,null,null,null,null," ","ID","Description",null,"U"]
[null,null,null,null,null,{"$f":"IFERROR(VLOOKUP($E153,Table_FlatVaultedCeilings,2,FALSE),\"\")","v":""},{"$f":"IFERROR(VLOOKUP($E153,Table_FlatVaultedCeilings,3,FALSE),+\"\")","v":""},null,null,null,null,null,null,{"$f":"IFERROR(G153*M153,\"\")","v":""},{"$f":"IF(AND(E153=\"\",G153=\"\",M153=\"\"),0,IF(AND(F153=\"Custom\",G153=0),1,IF(AND(G153<>\"\",N153=0),1,IF(AND(G153=\"\",M153>0),1,0))))","v":0},{"$f":"IF(F153=\"Custom\",IF(G153=0,\"U-value missing in Custom Input\",\"Refer to WSEC R402.1.5 U-factor Reference and Calculations\"),\"\")","v":""},null," ",null,null,{"$f":"IFERROR(VLOOKUP(T153,Table_FlatVaultedCeilings,2,FALSE),\"\")","v":""},{"$f":"IFERROR(VLOOKUP(T153,Table_FlatVaultedCeilings,3,FALSE),+\"\")","v":""},null,null,null,null,null,{"$f":"U59","v":0},{"$f":"IFERROR(V153*AB153,\"\")","v":""},{"$f":"IF(AND(T153=\"\",V153=\"\",AB153=\"\"),0,IF(AND(U153=\"Custom\",V153=0),1,IF(AND(V153<>\"\",AC153=0),1,IF(AND(V153=\"\",AB153>0),1,0))))","v":0},{"$f":"IF(U153=\"Custom\",\"Refer to WSEC R402.1.5 U-factor Reference and Calculations\",\"\")","v":""}]
[null,null,null,null,null,{"$f":"IFERROR(VLOOKUP($E154,Table_FlatVaultedCeilings,2,FALSE),\"\")","v":""},{"$f":"IFERROR(VLOOKUP($E154,Table_FlatVaultedCeilings,3,FALSE),+\"\")","v":""},null,null,null,null,null,null,{"$f":"IFERROR(G154*M154,\"\")","v":""},0,{"$f":"IF(F154=\"Custom\",IF(G154=0,\"U-value missing in Custom Input\",\"Refer to WSEC R402.1.5 U-factor Reference and Calculations\"),\"\")","v":""},null," ",null,null,{"$f":"IFERROR(VLOOKUP(T154,Table_FlatVaultedCeilings,2,FALSE),\"\")","v":""},{"$f":"IFERROR(VLOOKUP(T154,Table_FlatVaultedCeilings,3,FALSE),+\"\")","v":""},null,null,null,null,null,null,{"$f":"IFERROR(V154*AB154,\"\")","v":""},0,{"$f":"IF(U154=\"Custom\",\"Refer to WSEC R402.1.5 U-factor Reference and Calculations\",\"\")","v":""}]
[null,null,null,null,null,{"$f":"IFERROR(VLOOKUP($E155,Table_FlatVaultedCeilings,2,FALSE),\"\")","v":""},{"$f":"IFERROR(VLOOKUP($E155,Table_FlatVaultedCeilings,3,FALSE),+\"\")","v":""},null,null,null,null,null,null,{"$f":"IFERROR(G155*M155,\"\")","v":""},0,{"$f":"IF(F155=\"Custom\",IF(G155=0,\"U-value missing in Custom Input\",\"Refer to WSEC R402.1.5 U-factor Reference and Calculations\"),\"\")","v":""},null," ",null,null,{"$f":"IFERROR(VLOOKUP(T155,Table_FlatVaultedCeilings,2,FALSE),\"\")","v":""},{"$f":"IFERROR(VLOOKUP(T155,Table_FlatVaultedCeilings,3,FALSE),+\"\")","v":""},null,null,null,null,null,null,{"$f":"IFERROR(V155*AB155,\"\")","v":""},0,{"$f":"IF(U155=\"Custom\",\"Refer to WSEC R402.1.5 U-factor Reference and Calculations\",\"\")","v":""}]
[null,null,null,null,null,{"$f":"IFERROR(VLOOKUP($E156,Table_FlatVaultedCeilings,2,FALSE),\"\")","v":""},{"$f":"IFERROR(VLOOKUP($E156,Table_FlatVaultedCeilings,3,FALSE),+\"\")","v":""},null,null,null,null,null,null,{"$f":"IFERROR(G156*M156,\"\")","v":""},0,{"$f":"IF(F156=\"Custom\",IF(G156=0,\"U-value missing in Custom Input\",\"Refer to WSEC R402.1.5 U-factor Reference and Calculations\"),\"\")","v":""},null," ",null,null,{"$f":"IFERROR(VLOOKUP(T156,Table_FlatVaultedCeilings,2,FALSE),\"\")","v":""},{"$f":"IFERROR(VLOOKUP(T156,Table_FlatVaultedCeilings,3,FALSE),+\"\")","v":""},null,null,null,null,null,null,{"$f":"IFERROR(V156*AB156,\"\")","v":""},0,{"$f":"IF(U156=\"Custom\",\"Refer to WSEC R402.1.5 U-factor Reference and Calculations\",\"\")","v":""}]
[null,null,null,null,null,null,null,"Sum of Area and UA",null,null,null,null,{"$f":"IF(O157>0,\"\",SUM(M153:M156))","v":0},{"$f":"IF(O157>0,\"Error\",SUM(N153:N156))","v":0},{"$f":"SUM(O153:O156)","v":0},{"$f":"ROW(P156)-ROW(P153)+1-COUNTBLANK(P153:P156)","v":0},null," ",null,null,null,null,"Sum of Area and UA",null,null,null,null,{"$f":"IF(AD157>0,\"\",SUM(AB153:AB156))","v":0},{"$f":"IF(AD157>0,\"Error\",SUM(AC153:AC156))","v":0},{"$f":"SUM(AD153:AD156)","v":0},{"$f":"ROW(AE156)-ROW(AE153)+1-COUNTBLANK(AE153:AE156)","v":0}]
[null,null,null,null,null,null,null,null,null,null,null,null,null,null,null,null,null," "]
[]
[null,null,null,"Walls (Above Grade)",null,null,null,null,null,null,null,null,null,null,null,null,null,null,"Walls (Above Grade)"]
[null,null,null,"Plan","Component",null,"Wall",null,null,null,null,null," Net Area",null,null,null,null,null,"Plan","Component",null,"Wall",null,null,null,null,null," Net Area"]
[null,null,null,"ID","Description","Ref.","U",null,null,null,null,null,null,"UA",null,null,null,null,"ID","Description","Ref.","U",null,null,null,null,null,null,"UA"]
[null,null,null,null,null,{"$f":"IFERROR(VLOOKUP($E163,Table_AboveGradeWalls,2,FALSE),\"\")","v":""},{"$f":"IFERROR(VLOOKUP($E163,Table_AboveGradeWalls,3,FALSE),+\"\")","v":""},null,null,null,null,null,null,{"$f":"IFERROR(G163*M163,\"\")","v":""},{"$f":"IF(AND(E163=\"\",G163=\"\",M163=\"\"),0,IF(AND(F163=\"Custom\",G163=0),1,IF(AND(G163<>\"\",N163=0),1,IF(AND(G163=\"\",M163>0),1,0))))","v":0},{"$f":"IF(F163=\"Custom\",\"Refer to WSEC R402.1.5 U-factor Reference and Calculations\",\"\")","v":""},null,null,null,null,{"$f":"IFERROR(VLOOKUP(T163,Table_AboveGradeWalls,2,FALSE),\"\")","v":""},{"$f":"IFERROR(VLOOKUP(T163,Table_AboveGradeWalls,3,FALSE),+\"\")","v":""},null,null,null,null,null,null,{"$f":"IFERROR(V163*AB163,\"\")","v":""},{"$f":"IF(AND(T163=\"\",V163=\"\",AB163=\"\"),0,IF(AND(U163=\"Custom\",V163=0),1,IF(AND(V163<>\"\",AC163=0),1,IF(AND(V163=\"\",AB163>0),1,0))))","v":0},{"$f":"IF(U163=\"Custom\",\"Refer to WSEC R402.1.5 U-factor Reference and Calculations\",\"\")","v":""}]
[null,null,null,null,null,{"$f":"IFERROR(VLOOKUP($E164,Table_AboveGradeWalls,2,FALSE),\"\")","v":""},{"$f":"IFERROR(VLOOKUP($E164,Table_AboveGradeWalls,3,FALSE),+\"\")","v":""},null,null,null,null,null,null,{"$f":"IFERROR(G164*M164,\"\")","v":""},0,{"$f":"IF(F164=\"Custom\",\"Refer to WSEC R402.1.5 U-factor Reference and Calculations\",\"\")","v":""},null,null,null,null,{"$f":"IFERROR(VLOOKUP(T164,Table_AboveGradeWalls,2,FALSE),\"\")","v":""},{"$f":"IFERROR(VLOOKUP(T164,Table_AboveGradeWalls,3,FALSE),+\"\")","v":""},null,null,null,null,null,null,{"$f":"IFERROR(V164*AB164,\"\")","v":""},0,{"$f":"IF(U164=\"Custom\",\"Refer to WSEC R402.1.5 U-factor Reference and Calculations\",\"\")","v":""}]
[null,null,null,null,null,{"$f":"IFERROR(VLOOKUP($E165,Table_AboveGradeWalls,2,FALSE),\"\")","v":""},{"$f":"IFERROR(VLOOKUP($E165,Table_AboveGradeWalls,3,FALSE),+\"\")","v":""},null,null,null,null,null,null,{"$f":"IFERROR(G165*M165,\"\")","v":""},0,{"$f":"IF(F165=\"Custom\",\"Refer to WSEC R402.1.5 U-factor Reference and Calculations\",\"\")","v":""},null,null,null,null,{"$f":"IFERROR(VLOOKUP(T165,Table_AboveGradeWalls,2,FALSE),\"\")","v":""},{"$f":"IFERROR(VLOOKUP(T165,Table_AboveGradeWalls,3,FALSE),+\"\")","v":""},null,null,null,null,null,null,{"$f":"IFERROR(V165*AB165,\"\")","v":""},0,{"$f":"IF(U165=\"Custom\",\"Refer to WSEC R402.1.5 U-factor Reference and Calculations\",\"\")","v":""}]
[null,null,null,null,null,{"$f":"IFERROR(VLOOKUP($E166,Table_AboveGradeWalls,2,FALSE),\"\")","v":""},{"$f":"IFERROR(VLOOKUP($E166,Table_AboveGradeWalls,3,FALSE),+\"\")","v":""},null,null,null,null,null,null,{"$f":"IFERROR(G166*M166,\"\")","v":""},0,{"$f":"IF(F166=\"Custom\",\"Refer to WSEC R402.1.5 U-factor Reference and Calculations\",\"\")","v":""},null,null,null,null,{"$f":"IFERROR(VLOOKUP(T166,Table_AboveGradeWalls,2,FALSE),\"\")","v":""},{"$f":"IFERROR(VLOOKUP(T166,Table_AboveGradeWalls,3,FALSE),+\"\")","v":""},null,null,null,null,null,null,{"$f":"IFERROR(V166*AB166,\"\")","v":""},0,{"$f":"IF(U166=\"Custom\",\"Refer to WSEC R402.1.5 U-factor Reference and Calculations\",\"\")","v":""}]
[null,null,null,null,null,null,null,"Sum of Area and UA",null,null,null,null,{"$f":"IF(O167>0,\"\",SUM(M163:M166))","v":0},{"$f":"IF(O167>0,\"Error\",SUM(N163:N166))","v":0},{"$f":"SUM(O163:O166)","v":0},{"$f":"ROW(P166)-ROW(P163)+1-COUNTBLANK(P163:P166)","v":0},null,null,null,null,null,null,"Sum of Area and UA",null,null,null,null,{"$f":"IF(AD167>0,\"\",SUM(AB163:AB166))","v":0},{"$f":"IF(AD167>0,\"Error\",SUM(AC163:AC166))","v":0},{"$f":"SUM(AD163:AD166)","v":0},{"$f":"ROW(AE166)-ROW(AE163)+1-COUNTBLANK(AE163:AE166)","v":0}]
[]
[]
[null,null,null,"Floor (over crawl or exterior)",null,null,null,null,null,null,null,null,null,null,null,null,null,null,"Floor (over crawl or exterior)"]
[null,null,null,"Plan","Component",null,"Floor",null,null,null,null,null,"Area","UA",null,null,null," ","Plan","Component",null,"Floor",null,null,null,null,null,"Area","UA"]
[null,null,null,"ID","Description","Ref.","U",null,null,null,null,null,null,null,null,null,null," ","ID","Description","Ref.","U"]
[null,null,null,null,null,{"$f":"IFERROR(VLOOKUP($E173,Table_FloorOverCrawlspace,2,FALSE),\"\")","v":""},{"$f":"IFERROR(VLOOKUP($E173,Table_FloorOverCrawlspace,3,FALSE),+\"\")","v":""},null,null,null,null,null,null,{"$f":"IFERROR(G173*M173,\"\")","v":""},{"$f":"IF(AND(E173=\"\",G173=\"\",M173=\"\"),0,IF(AND(F173=\"Custom\",G173=0),1,IF(AND(G173<>\"\",N173=0),1,IF(AND(G173=\"\",M173>0),1,0))))","v":0},{"$f":"IF(F173=\"Custom\",IF(G173=0,\"U-value missing in Custom Input\",\"Refer to WSEC R402.1.5 U-factor Reference and Calculations\"),\"\")","v":""},null," ",null,null,{"$f":"IFERROR(VLOOKUP(T173,Table_FloorOverCrawlspace,2,FALSE),\"\")","v":""},{"$f":"IFERROR(VLOOKUP(T173,Table_FloorOverCrawlspace,3,FALSE),+\"\")","v":""},null,null,null,null,null,null,{"$f":"IFERROR(V173*AB173,\"\")","v":""},{"$f":"IF(AND(T173=\"\",V173=\"\",AB173=\"\"),0,IF(AND(U173=\"Custom\",V173=0),1,IF(AND(V173<>\"\",AC173=0),1,IF(AND(V173=\"\",AB173>0),1,0))))","v":0},{"$f":"IF(U173=\"Custom\",\"Refer to WSEC R402.1.5 U-factor Reference and Calculations\",\"\")","v":""}]
[null,null,null,null,null,{"$f":"IFERROR(VLOOKUP($E174,Table_FloorOverCrawlspace,2,FALSE),\"\")","v":""},{"$f":"IFERROR(VLOOKUP($E174,Table_FloorOverCrawlspace,3,FALSE),+\"\")","v":""},null,null,null,null,null,null,{"$f":"IFERROR(G174*M174,\"\")","v":""},{"$f":"IF(AND(E174=\"\",G174=\"\",M174=\"\"),0,IF(AND(F174=\"Custom\",G174=0),1,IF(AND(G174<>\"\",N174=0),1,IF(AND(G174=\"\",M174>0),1,0))))","v":0},{"$f":"IF(F174=\"Custom\",IF(G174=0,\"U-value missing in Custom Input\",\"Refer to WSEC R402.1.5 U-factor Reference and Calculations\"),\"\")","v":""},null," ",null,null,{"$f":"IFERROR(VLOOKUP(T174,Table_FloorOverCrawlspace,2,FALSE),\"\")","v":""},{"$f":"IFERROR(VLOOKUP(T174,Table_FloorOverCrawlspace,3,FALSE),+\"\")","v":""},null,null,null,null,null,null,{"$f":"IFERROR(V174*AB174,\"\")","v":""},0,{"$f":"IF(U174=\"Custom\",\"Refer to WSEC R402.1.5 U-factor Reference and Calculations\",\"\")","v":""}]
[null,null,null,null,null,{"$f":"IFERROR(VLOOKUP($E175,Table_FloorOverCrawlspace,2,FALSE),\"\")","v":""},{"$f":"IFERROR(VLOOKUP($E175,Table_FloorOverCrawlspace,3,FALSE),+\"\")","v":""},null,null,null,null,null,null,{"$f":"IFERROR(G175*M175,\"\")","v":""},0,{"$f":"IF(F175=\"Custom\",IF(G175=0,\"U-value missing in Custom Input\",\"Refer to WSEC R402.1.5 U-factor Reference and Calculations\"),\"\")","v":""},null," ",null,null,{"$f":"IFERROR(VLOOKUP(T175,Table_FloorOverCrawlspace,2,FALSE),\"\")","v":""},{"$f":"IFERROR(VLOOKUP(T175,Table_FloorOverCrawlspace,3,FALSE),+\"\")","v":""},null,null,null,null,null,null,{"$f":"IFERROR(V175*AB175,\"\")","v":""},0,{"$f":"IF(U175=\"Custom\",\"Refer to WSEC R402.1.5 U-factor Reference and Calculations\",\"\")","v":""}]
[null,null,null,null,null,{"$f":"IFERROR(VLOOKUP($E176,Table_FloorOverCrawlspace,2,FALSE),\"\")","v":""},{"$f":"IFERROR(VLOOKUP($E176,Table_FloorOverCrawlspace,3,FALSE),+\"\")","v":""},null,null,null,null,null,null,{"$f":"IFERROR(G176*M176,\"\")","v":""},0,{"$f":"IF(F176=\"Custom\",IF(G176=0,\"U-value missing in Custom Input\",\"Refer to WSEC R402.1.5 U-factor Reference and Calculations\"),\"\")","v":""},null," ",null,null,{"$f":"IFERROR(VLOOKUP(T176,Table_FloorOverCrawlspace,2,FALSE),\"\")","v":""},{"$f":"IFERROR(VLOOKUP(T176,Table_FloorOverCrawlspace,3,FALSE),+\"\")","v":""},null,null,null,null,null,null,{"$f":"IFERROR(V176*AB176,\"\")","v":""},0,{"$f":"IF(U176=\"Custom\",\"Refer to WSEC R402.1.5 U-factor Reference and Calculations\",\"\")","v":""}]
[null,null,null,null,null,null,null,"Sum of Area and UA",null,null,null,null,{"$f":"IF(O177>0,\"\",SUM(M173:M176))","v":0},{"$f":"IF(O177>0,\"Error\",SUM(N173:N176))","v":0},{"$f":"SUM(O173:O176)","v":0},{"$f":"ROW(P176)-ROW(P173)+1-COUNTBLANK(P173:P176)","v":0},null," ",null,null,null,null,"Sum of Area and UA",null,null,null,null,{"$f":"IF(AD177>0,\"\",SUM(AB173:AB176))","v":0},{"$f":"IF(AD177>0,\"Error\",SUM(AC173:AC176))","v":0},{"$f":"SUM(AD173:AD176)","v":0},{"$f":"ROW(AE176)-ROW(AE173)+1-COUNTBLANK(AE173:AE176)","v":0}]
[]
[]
[null,null,null,"Slab on Grade (less than 2 feet below grade)",null,null,null,null,null,null,null,null,null,null,null,null,null,null,"Slab on Grade (less than 2 feet below grade)"]
[null,null,null,"Plan","Component",null,"Slab",null,null,null,null,null,"Slab Perim",null,null,null,null,null,"Plan","Component",null,"Slab",null,null,null,null,null,"Slab Perim"]
[null,null,null,"ID","Description","Ref.","F",null,null,null,null,null,"Perimeter","FP",null,null,null,null,"ID","Description","Ref.","F",null,null,null,null,null,"Perimeter","FP"]
[null,null,null,null,null,{"$f":"IFERROR(VLOOKUP($E183,Table_SlabOnGrade,2,FALSE),\"\")","v":""},{"$f":"IFERROR(VLOOKUP($E183,Table_SlabOnGrade,3,FALSE),+\"\")","v":""},null,null,null,null,null,null,{"$f":"IFERROR(G183*M183,\"\")","v":""},{"$f":"IF(AND(E183<>\"\",G183=\"\"),1,IF(AND(F183=\"Custom\",G183=0),1,IF(AND(G183=\"\",SUM(H183:L183)=0),0,IF(AND(G183<>\"\",M183>0),0,1))))","v":0},{"$f":"IF(F183=\"Custom\",IF(G183=0,\"U-value missing in Custom Input\",\"Refer to WSEC R402.1.5 U-factor Reference and Calculations\"),\"\")","v":""},null," ",null,null,{"$f":"IFERROR(VLOOKUP(T183,Table_SlabOnGrade,2,FALSE),\"\")","v":""},{"$f":"IFERROR(VLOOKUP(T183,Table_SlabOnGrade,3,FALSE),+\"\")","v":""},null,null,null,null,null,null,{"$f":"IFERROR(V183*AB183,\"\")","v":""},{"$f":"IF(AND(T183<>\"\",V183=\"\"),1,IF(AND(U183=\"Custom\",V183=0),1,IF(AND(V183=\"\",SUM(W183:AA183)=0),0,IF(AND(V183<>\"\",AB183>0),0,1))))","v":0},{"$f":"IF(U183=\"Custom\",\"Refer to WSEC R402.1.5 U-factor Reference and Calculations\",\"\")","v":""}]
[null,null,null,null,null,{"$f":"IFERROR(VLOOKUP($E184,Table_SlabOnGrade,2,FALSE),\"\")","v":""},{"$f":"IFERROR(VLOOKUP($E184,Table_SlabOnGrade,3,FALSE),\"\")","v":""},null,null,null,null,null,null,{"$f":"IFERROR(G184*M184,\"\")","v":""},{"$f":"IF(AND(E184<>\"\",G184=\"\"),1,IF(AND(F184=\"Custom\",G184=0),1,IF(AND(G184=\"\",SUM(H184:L184)=0),0,IF(AND(G184<>\"\",M184>0),0,1))))","v":0},{"$f":"IF(F184=\"Custom\",IF(G184=0,\"U-value missing in Custom Input\",\"Refer to WSEC R402.1.5 U-factor Reference and Calculations\"),\"\")","v":""},null," ",null,null,{"$f":"IFERROR(VLOOKUP(T184,Table_SlabOnGrade,2,FALSE),\"\")","v":""},{"$f":"IFERROR(VLOOKUP(T184,Table_SlabOnGrade,3,FALSE),+\"\")","v":""},null,null,null,null,null,null,{"$f":"IFERROR(V184*AB184,\"\")","v":""},0,{"$f":"IF(U184=\"Custom\",\"Refer to WSEC R402.1.5 U-factor Reference and Calculations\",\"\")","v":""}]
[null,null,null,null,null,{"$f":"IFERROR(VLOOKUP($E185,Table_SlabOnGrade,2,FALSE),\"\")","v":""},{"$f":"IFERROR(VLOOKUP($E185,Table_SlabOnGrade,3,FALSE),+\"\")","v":""},null,null,null,null,null,null,{"$f":"IFERROR(G185*M185,\"\")","v":""},{"$f":"IF(AND(E185<>\"\",G185=\"\"),1,IF(AND(F185=\"Custom\",G185=0),1,IF(AND(G185=\"\",SUM(H185:L185)=0),0,IF(AND(G185<>\"\",M185>0),0,1))))","v":0},{"$f":"IF(F185=\"Custom\",IF(G185=0,\"U-value missing in Custom Input\",\"Refer to WSEC R402.1.5 U-factor Reference and Calculations\"),\"\")","v":""},null," ",null,null,{"$f":"IFERROR(VLOOKUP(T185,Table_SlabOnGrade,2,FALSE),\"\")","v":""},{"$f":"IFERROR(VLOOKUP(T185,Table_SlabOnGrade,3,FALSE),+\"\")","v":""},null,null,null,null,null,null,{"$f":"IFERROR(V185*AB185,\"\")","v":""},0,{"$f":"IF(U185=\"Custom\",\"Refer to WSEC R402.1.5 U-factor Reference and Calculations\",\"\")","v":""}]
[null,null,null,null,null,{"$f":"IFERROR(VLOOKUP($E186,Table_SlabOnGrade,2,FALSE),\"\")","v":""},{"$f":"IFERROR(VLOOKUP($E186,Table_SlabOnGrade,3,FALSE),+\"\")","v":""},null,null,null,null,null,null,{"$f":"IFERROR(G186*M186,\"\")","v":""},0,{"$f":"IF(F186=\"Custom\",IF(G186=0,\"U-value missing in Custom Input\",\"Refer to WSEC R402.1.5 U-factor Reference and Calculations\"),\"\")","v":""},null," ",null,null,{"$f":"IFERROR(VLOOKUP(T186,Table_SlabOnGrade,2,FALSE),\"\")","v":""},{"$f":"IFERROR(VLOOKUP(T186,Table_SlabOnGrade,3,FALSE),+\"\")","v":""},null,null,null,null,null,null,{"$f":"IFERROR(V186*AB186,\"\")","v":""},0,{"$f":"IF(U186=\"Custom\",\"Refer to WSEC R402.1.5 U-factor Reference and Calculations\",\"\")","v":""}]
[null,null,null,null,null,null,null,"Sum of Perimeter and FP",null,null,null,null,{"$f":"IF(O187>0,\"\",SUM(M183:M186))","v":0},{"$f":"IF(O187>0,\"Error\",SUM(N183:N186))","v":0},{"$f":"SUM(O183:O186)","v":0},{"$f":"ROW(P186)-ROW(P183)+1-COUNTBLANK(P183:P186)","v":0},null,null,null,null,null,null,"Sum of Perimeter and FP",null,null,null,null,{"$f":"IF(AD187>0,\"\",SUM(AB183:AB186))","v":0},{"$f":"IF(AD187>0,\"Error\",SUM(AC183:AC186))","v":0},{"$f":"SUM(AD183:AD186)","v":0},{"$f":"ROW(AE186)-ROW(AE183)+1-COUNTBLANK(AE183:AE186)","v":0}]
[]
[]
[null,null,null,"Below Grade Walls and Slabs",null,null,null,null,null,null,null,null,null,null,null,null,null,null,"Below Grade Walls and Slabs"]
[null,null,null,"Plan","Component",null,"Wall ","Wall","Wall ",null,"Slab",null,"Slab","Slab",null,null,null,null,"Plan","Component",null,"Wall ","Wall","Wall ",null,"Slab",null,"Slab","Slab"]
[null,null,null,"ID","Description","Ref.","U","Area","UA",null,"F",null,"Perimeter","UA",null,null,null,null,"ID","Description","Ref.","U","Area","UA",null,"F",null,"Perimeter","FP"]
[null,null,null,null,null,{"$f":"IFERROR(VLOOKUP($E193,Table_BelowGradeWalls,2,FALSE),\"\")","v":""},{"$f":"IFERROR(VLOOKUP($E193,Table_BelowGradeWalls,3,FALSE),+\"\")","v":""},null,{"$f":"IFERROR(G193*H193,\"\")","v":""},null,{"$f":"IFERROR(VLOOKUP($E193,Table_BelowGradeWalls,4,FALSE),+\"\")","v":""},null,null,{"$f":"IFERROR(K193*M193,\"\")","v":""},{"$f":"IF(AND(F193=\"Custom\",G193=0),1,IF(AND(G193=\"\",SUM(H193:L193)=0),0,IF(AND(G193<>\"\",M193>0),0,1)))","v":0},{"$f":"IF(F193=\"Custom\",IF(G193=0,\"U-value missing in Custom Input\",\"Refer to WSEC R402.1.5 U-factor Reference and Calculations\"),\"\")","v":""},null," ",null,null,{"$f":"IFERROR(VLOOKUP(T193,Table_BelowGradeWalls,2,FALSE),\"\")","v":""},{"$f":"IFERROR(VLOOKUP(T193,Table_BelowGradeWalls,3,FALSE),+\"\")","v":""},null,{"$f":"IFERROR(V193*W193,\"\")","v":""},null,{"$f":"IFERROR(VLOOKUP(T193,Table_BelowGradeWalls,4,FALSE),+\"\")","v":""},null,null,{"$f":"IFERROR(Z193*AB193,\"\")","v":""},{"$f":"IF(AND(U193=\"Custom\",V193=0),1,IF(AND(V193=\"\",SUM(W193:AA193)=0),0,IF(AND(V193<>\"\",AB193>0),0,1)))","v":0},{"$f":"IF(U193=\"Custom\",\"Refer to WSEC R402.1.5 U-factor Reference and Calculations\",\"\")","v":""}]
[null,null,null,null,null,{"$f":"IFERROR(VLOOKUP($E194,Table_BelowGradeWalls,2,FALSE),\"\")","v":""},{"$f":"IFERROR(VLOOKUP($E194,Table_BelowGradeWalls,3,FALSE),+\"\")","v":""},null,{"$f":"IFERROR(G194*H194,\"\")","v":""},null,{"$f":"IFERROR(VLOOKUP($E194,Table_BelowGradeWalls,4,FALSE),+\"\")","v":""},null,null,{"$f":"IFERROR(K194*M194,\"\")","v":""},{"$f":"IF(AND(F194=\"Custom\",G194=0),1,IF(AND(G194=\"\",SUM(H194:L194)=0),0,IF(AND(G194<>\"\",M194>0),0,1)))","v":0},{"$f":"IF(F194=\"Custom\",IF(G194=0,\"U-value missing in Custom Input\",\"Refer to WSEC R402.1.5 U-factor Reference and Calculations\"),\"\")","v":""},null," ",null,null,{"$f":"IFERROR(VLOOKUP(T194,Table_BelowGradeWalls,2,FALSE),\"\")","v":""},{"$f":"IFERROR(VLOOKUP(T194,Table_BelowGradeWalls,3,FALSE),+\"\")","v":""},null,{"$f":"IFERROR(V194*W194,\"\")","v":""},null,{"$f":"IFERROR(VLOOKUP(T194,Table_BelowGradeWalls,4,FALSE),+\"\")","v":""},null,null,{"$f":"IFERROR(Z194*AB194,\"\")","v":""},0,{"$f":"IF(U194=\"Custom\",\"Refer to WSEC R402.1.5 U-factor Reference and Calculations\",\"\")","v":""}]
[null,null,null,null,null,{"$f":"IFERROR(VLOOKUP($E195,Table_BelowGradeWalls,2,FALSE),\"\")","v":""},{"$f":"IFERROR(VLOOKUP($E195,Table_BelowGradeWalls,3,FALSE),+\"\")","v":""},null,{"$f":"IFERROR(G195*H195,\"\")","v":""},null,{"$f":"IFERROR(VLOOKUP($E195,Table_BelowGradeWalls,4,FALSE),+\"\")","v":""},null,null,{"$f":"IFERROR(K195*M195,\"\")","v":""},{"$f":"IF(AND(F195=\"Custom\",G195=0),1,IF(AND(G195=\"\",SUM(H195:L195)=0),0,IF(AND(G195<>\"\",M195>0),0,1)))","v":0},{"$f":"IF(F195=\"Custom\",IF(G195=0,\"U-value missing in Custom Input\",\"Refer to WSEC R402.1.5 U-factor Reference and Calculations\"),\"\")","v":""},null," ",null,null,{"$f":"IFERROR(VLOOKUP(T195,Table_BelowGradeWalls,2,FALSE),\"\")","v":""},{"$f":"IFERROR(VLOOKUP(T195,Table_BelowGradeWalls,3,FALSE),+\"\")","v":""},null,{"$f":"IFERROR(V195*W195,\"\")","v":""},null,{"$f":"IFERROR(VLOOKUP(T195,Table_BelowGradeWalls,4,FALSE),+\"\")","v":""},null,null,{"$f":"IFERROR(Z195*AB195,\"\")","v":""},0,{"$f":"IF(U195=\"Custom\",\"Refer to WSEC R402.1.5 U-factor Reference and Calculations\",\"\")","v":""}]
[null,null,null,null,null,{"$f":"IFERROR(VLOOKUP($E196,Table_BelowGradeWalls,2,FALSE),\"\")","v":""},{"$f":"IFERROR(VLOOKUP($E196,Table_BelowGradeWalls,3,FALSE),+\"\")","v":""},null,{"$f":"IFERROR(G196*H196,\"\")","v":""},null,{"$f":"IFERROR(VLOOKUP($E196,Table_BelowGradeWalls,4,FALSE),+\"\")","v":""},null,null,{"$f":"IFERROR(K196*M196,\"\")","v":""},{"$f":"IF(AND(F196=\"Custom\",G196=0),1,IF(AND(G196=\"\",SUM(H196:L196)=0),0,IF(AND(G196<>\"\",M196>0),0,1)))","v":0},{"$f":"IF(F196=\"Custom\",IF(G196=0,\"U-value missing in Custom Input\",\"Refer to WSEC R402.1.5 U-factor Reference and Calculations\"),\"\")","v":""},null," ",null,null,{"$f":"IFERROR(VLOOKUP(T196,Table_BelowGradeWalls,2,FALSE),\"\")","v":""},{"$f":"IFERROR(VLOOKUP(T196,Table_BelowGradeWalls,3,FALSE),+\"\")","v":""},null,{"$f":"IFERROR(V196*W196,\"\")","v":""},null,{"$f":"IFERROR(VLOOKUP(T196,Table_BelowGradeWalls,4,FALSE),+\"\")","v":""},null,null,{"$f":"IFERROR(Z196*AB196,\"\")","v":""},0,{"$f":"IF(U196=\"Custom\",\"Refer to WSEC R402.1.5 U-factor Reference and Calculations\",\"\")","v":""}]
[null,null,null,null,null,null,"Sum of Area, Length and UA",{"$f":"IF(O197>0,\"\",SUM(H193:H196))","v":0},{"$f":"IF(O197>0,\"Error\",SUM(I193:J196))","v":0},null,null,null,{"$f":"IF($O197>0,\"\",SUM(M193:M196))","v":0},{"$f":"IF($O197>0,\"Error\",SUM(N193:N196))","v":0},{"$f":"SUM(O193:O196)","v":0},{"$f":"ROW(P196)-ROW(P193)+1-COUNTBLANK(P193:P196)","v":0},null,null,null,null,null,"Sum of Area, Length and UA",{"$f":"IF(AD197>0,\"\",SUM(W193:W196))","v":0},{"$f":"IF(AD197>0,\"Error\",SUM(X193:Y196))","v":0},null,null,null,{"$f":"IF($O197>0,\"\",SUM(AB193:AB196))","v":0},{"$f":"IF($O197>0,\"Error\",SUM(AC193:AC196))","v":0},{"$f":"SUM(AD193:AD196)","v":0},{"$f":"ROW(AE196)-ROW(AE193)+1-COUNTBLANK(AE193:AE196)","v":0}]
[]
[]
[null,null,null,"Heating System Sizing Worksheet - Proposed Design",null,null,null,"Try Out NEEA's SpecPro:","https://betterbuiltnw.com/resources/hvac-sizing-tool",null,null,null,null,null,null,null,null,null,"Heating System Sizing Worksheet - Existing Baseline"]
[null,null,null,null,"Nearest Weather Station",null,null,null,null,null,null,null,null,null,null,null,null,null,null,"Nearest Weather Station",{"$f":"IF(F201=\"\",\"\",F201)","v":""}]
[null,null,null,null,"Indoor Design Temperature",70,"F",null,null,null,null,null,null,null,null,null,null,null,null,"Indoor Design Temperature",70,"F"]
[null,null,null,null,"Outdoor Design Temperature",{"$f":"IFERROR(VLOOKUP(F201,Table_Weather,2,FALSE),\"\")","v":""},"F",null,null,null,null,null,null,null,null,null,null,null,null,"Outdoor Design Temperature",{"$f":"IFERROR(VLOOKUP(F201,Table_Weather,2,FALSE),\"\")","v":""},"F"]
[null,null,null,null,"Design Temperature Difference (∆T)",{"$f":"IFERROR(F202-F203,\"\")","v":""},"F",null,null,null,null,null,null,null,null,null,null,null,null,"Design Temperature Difference (∆T)",{"$f":"IFERROR(U202-U203,\"\")","v":""},"F"]
[]
[null,null,null,null,"Conditioned Floor Area",{"$f":"F59","v":0},"ft2",null,null,null,null,null,null,null,null,null,null,null,null,"Conditioned Floor Area",{"$f":"U59","v":0},"ft2"]
[null,null,null,null,"Conditioned Volume",null,"ft3",{"$f":"IF(OR(F207=0,F207=\"\"),\"If blank, volume is calculated assuming ceiling height of 8.5 ft\",\"\")","v":"If blank, volume is calculated assuming ceiling height of 8.5 ft"},null,null,null,null,null,null,null,null,null,null,null,"Conditioned Volume",null,"ft3",{"$f":"IF(OR(U207=0,U207=\"\"),H207,\"\")","v":"If blank, volume is calculated assuming ceiling height of 8.5 ft"}]
[]
[null,null,null,null,"System Type",null,null,null,null,null,null,null,null,null,null,null,null,null,null,"System Type"]
[null,null,null,null,"Location of Ducts",null,null,null,null,null,null,null,null,null,null,null,null,null,null,"Location of Ducts"]
[]
[null,null,null,null,{"$f":"IF(Menu_UseOfCalculator=E255,\"Sum of UA, including exempt door and window\",\"Sum of UA\")","v":"Sum of UA, including exempt door and window"},{"$f":"F508","v":0},null,null,null,null,null,null,null,null,null,null,null,null,null,"Sum of UA",{"$f":"H33","v":0}]
[]
[null,null,null,null,"Envelope Heat Load",{"$f":"IFERROR(F212*F204,\"\")","v":""},"Btu / Hour",null,null,null,null,null,null,null,null,null,null,null,null,"Envelope Heat Load",{"$f":"IFERROR(U212*U204,\"\")","v":""},"Btu / Hour"]
[null,null,null,null,"Sum of UA X ∆T",null,null,null,null,null,null,null,null,null,null,null,null,null,null,"Sum of UA X ∆T"]
[null,null,null,null,"Air Leakage Heat Load",{"$f":"IFERROR(IF(OR(F207=0,F207=\"\"),(((F501*0.6)*F204)*0.018),(((F207*0.6)*F204)*0.018)),\"\")","v":""},"Btu / Hour",null,null,null,null,null,null,null,null,null,null,null,null,"Air Leakage Heat Load",{"$f":"IFERROR(IF(OR(U212=0,U212=\"\"),\"\",IF(OR(U207=0,U207=\"\"),(((F502*0.6)*U204)*0.018),(((U207*0.6)*U204)*0.018))),\"\")","v":""},"Btu / Hour"]
[null,null,null,null,"((Volume X  0.6) X ∆T) X .018))",null,null,null,null,null,null,null,null,null,null,null,null,null,null,"((Volume X  0.6) X ∆T) X .018))"]
[null,null,null,null,"Building Design Heat Load",{"$f":"IFERROR(F214+F216,\"\")","v":""},"Btu / Hour",null,null,null,null,null,null,null,null,null,null,null,null,"Building Design Heat Load",{"$f":"IFERROR(U214+U216,\"\")","v":""},"Btu / Hour"]
[null,null,null,null,"Air Leakage + Envelope Heat Loss",null,null,null,null,null,null,null,null,null,null,null,null,null,null,"Air Leakage + Envelope Heat Loss"]
[null,null,null,null,"Building and Duct Heat Load",{"$f":"IFERROR(F218*F515,\"\")","v":""},"Btu / Hour",null,null,null,null,null,null,null,null,null,null,null,null,"Building and Duct Heat Load",{"$f":"IFERROR(U218*F516,\"\")","v":""},"Btu / Hour"]
[null,null,null,null,"For ducts located in unconditioned space: Sum of Building Heat Loss X 1.1",null,null,null,null,null,null,null,null,null,null,null,null,null,null,"For ducts located in unconditioned space: Sum of Building Heat Loss X 1.1"]
[null,null,null,null,"For ducts located in conditioned space or ductless: Sum of Building Heat Loss X 1",null,null,null,null,null,null,null,null,null,null,null,null,null,null,"For ducts located in conditioned space or ductless: Sum of Building Heat Loss X 1"]
[null,null,null,null,"Maximum Heat Equipment Output",{"$f":"IFERROR(F220*I514,\"Error\")","v":"Error"},"Btu / Hour",null,null,null,null,null,null,null,null,null,null,null,null,"Maximum Heat Equipment Output",{"$f":"IFERROR(U220*I515,\"Error\")","v":"Error"},"Btu / Hour"]
[null,null,null,null,"Building and Duct Heat Loss X 1.25 for heat pumps",null,null,null,null,null,null,null,null,null,null,null,null,null,null,"Building and Duct Heat Loss X 1.25 for heat pumps"]
[null,null,null,null,"Building and Duct Heat Loss X 1.40 for all other systems",null,null,null,null,null,null,null,null,null,null,null,null,null,null,"Building and Duct Heat Loss X 1.40 for all other systems"]
[]
[]
[]
[]
[]
[]
[]
[]
[]
[]
[]
[]
[]
[]
[]
[]
[]
[]
[]
[]
[]
[]
[]
[]
[]
[]
[null,null,null,null,1,{"$f":"E252+1","v":2},3,4,5,6,7]
[null,null,null,null,"DropDown_UseOfCalculator, Table_UseOfCalculator","Baseline Message","Row Action","Column Action"," Results Message 1"]
[null,null,null,1]
[null,null,null,2,"Prescriptive Path Compliance with Option 1","Baseline and proposed window areas are equal.","Show","Hide",{"$f":"IF(G273<>\"\",G273,IF(AND(N33>0,H33>0,AND(N33<=H33,N34>=Section_EnergyCreditResults),SUM(O58:O197)=0),\"UA Qualifies. Please check for complete Component Descriptions\",\"Proposed design does not meet prescriptive path requirements.\"))","v":"Proposed design does not meet prescriptive path requirements."}]
[null,null,null,2,"UA Component Performance Analysis","Maximum baseline window area is 15% of floor area.","Hide 2-6","Hide",{"$f":"IF(G$273<>\"\",G$273,IF(N$33<H$33,\"Proposed design has lower (better) UA than baseline\",\"Proposed design has higher (worse) UA than baseline.\"))","v":"Proposed design has higher (worse) UA than baseline."}]
[null,null,null,3,"User-Defined Baseline (Remodel/Alteration of Existing Only)","Baseline and proposed window areas are equal.","Hide All","Show",{"$f":"IF(G$273<>\"\",G$273,IF(N$33<H$33,\"Proposed design has lower (better) UA than baseline\",\"Proposed design has higher (worse) UA than baseline.\"))","v":"Proposed design has higher (worse) UA than baseline."}]
[null,null,null,null,null,"Switch",{"$f":"VLOOKUP(Menu_UseOfCalculator,Table_UseOfCalculator,3, TRUE)","v":"Show"},{"$f":"VLOOKUP(Menu_UseOfCalculator,Table_UseOfCalculator,4, TRUE)","v":"Hide"},{"$f":"IFERROR(IF(G273<>\"\",\"\",IF(N$33<H$33,CONCATENATE(\"Proposed UA is better than baseline by \",ROUND(N$35*100,1),\"%\"),CONCATENATE(\"Proposed UA exceeds baseline by \",-ROUND(N$35*100,1),\"%\"))),\"\")","v":""}]
[]
[null,null,null,null,"Show Exempt Door and Window Input?","Switch",{"$f":"IF(Menu_UseOfCalculator=E255,\"Show\",\"Hide\")","v":"Show"}]
[null,null,null,null,"Show WSEC 2015 or 2018 options?","Switch",{"$f":"IF(Menu_UseOfCalculator<>E255,\"Hide\",IF(Menu_CodeVersion=Q285,2015,2018))","v":2018}]
[]
[null,null,null,null,"Check custom entries meassage","Custom Entries"]
[null,null,null,null,"Doors",{"$f":"P73","v":0},{"$f":"IF(F264>0,CONCATENATE(\"- \",E264),\"\")","v":""}]
[null,null,null,null,"Overhead Glazing",{"$f":"P84","v":0},{"$f":"IF(F265>0,CONCATENATE(\"- \",E265),\"\")","v":""}]
[null,null,null,null,"Vertical Glazing",{"$f":"P146","v":0},""]
[null,null,null,null,"Flat/Vaulted Ceilings",{"$f":"P157","v":0},""]
[null,null,null,null,"Wall (above grade)",{"$f":"P167","v":0},""]
[null,null,null,null,"Floors",{"$f":"P177","v":0},""]
[null,null,null,null,"Slab on Grade",{"$f":"P187","v":0},""]
[null,null,null,null,"Below Grade Wall",{"$f":"P197","v":0},""]
[null,null,null,null,"Check custom entries meassage",{"$f":"CONCATENATE(G264,G265,G266,G267,G268,G269,G270,G271)","v":""},{"$f":"IF(F272=\"\",\"\",CONCATENATE(\"Review required for custom entries: \",G264,G265,G266,G267,G268,G269,G270,G271))","v":""}]
[null,null,null,null,"Missing Data Message",null,{"$f":"IF(SUBTOTAL(109,O66:O197)=0,\"\",\"Correct Missing Inputs or Errors Below\")","v":""}]
[]
[null,null,null,null,"Required Credits"]
[null,null,null,null,"Target energy credits",null,null,null,null,null,"WSEC 2015","WSEC 2015","WSEC 2018","WSEC 2018"]
[null,null,null,null,"DropDown_ProjectType",null,null,null,null,null,{"$f":"$Q280","v":"R3 Single family homes and duplexes"},{"$f":"$Q279","v":"R2 Multifamily"},{"$f":"$Q280","v":"R3 Single family homes and duplexes"},{"$f":"$Q279","v":"R2 Multifamily"},null,null,"DropDown_Occupancy"]
[null,null,null,null,null,null,null,null,null,"Column Search String",{"$f":"CONCATENATE(K276,K277)","v":"WSEC 2015R3 Single family homes and duplexes"},{"$f":"CONCATENATE(L276,L277)","v":"WSEC 2015R2 Multifamily"},{"$f":"CONCATENATE(M276,M277)","v":"WSEC 2018R3 Single family homes and duplexes"},{"$f":"CONCATENATE(N276,N277)","v":"WSEC 2018R2 Multifamily"},null,1]
[null,null,null,null,"New Construction",null,null,null,null,"Small Dwelling Unit",1.5,1.5,3,4.5,1,{"$f":"P278+1","v":2},"R2 Multifamily"]
[null,null,null,null,"Addition",null,null,null,null,"Medium Dwelling Unit",3.5,2.5,6,4.5,2,{"$f":"P279+1","v":3},"R3 Single family homes and duplexes"]
[null,null,null,null,"Remodel / Alteration",null,null,null,null,"Large Dwelling Unit",4.5,2.5,7,4.5,3,{"$f":"P280+1","v":4}]
[null,null,null,null,null,null,null,null,null,"Addition less than 500 sf",0.5,0.5,1.5,4.5,4,{"$f":"P281+1","v":5}]
[null,null,null,null,"Occupancy Type",{"$f":"F16","v":"R2 Multifamily"},null,null,null,1,{"$f":"J283+1","v":2},{"$f":"K283+1","v":3},{"$f":"L283+1","v":4},{"$f":"M283+1","v":5},null,{"$f":"P282+1","v":6},"DropDown_CodeVersion"]
[null,null,null,null,"Project Type",{"$f":"F15","v":"New Construction"}]
[null,null,null,null,"Floor Area",{"$f":"F59","v":0},null,null,null,null,null,null,null,null,null,null,"WSEC 2015"]
[null,null,null,null,"Window Area",{"$f":"M146","v":0},null,null,null,null,null,null,null,null,null,null,"WSEC 2018"]
[null,null,null,null,"Classification",{"$f":"IF(AND(F285<500,F284=E280),J282,IF(F285<1500,J279,IF(F285>5000,J281,J280)))","v":"Small Dwelling Unit"}]
[null,null,null,null,"Code version",{"$f":"F17","v":"WSEC 2018"}]
[null,null,null,null,"Column",{"$f":"HLOOKUP(CONCATENATE(F288,F283),Table_ColumnEnergyCredits,$P$283,FALSE)","v":5}]
[null,null,null,null,"Required credits",{"$f":"VLOOKUP(F287,Table_EnergyCredits,F289,FALSE)","v":4.5}]
[]
[null,null,null,null,null,"Option Definitions"]
[]
[null,null,null,null,null,null,null,"Option 1a",{"$f":"IFERROR(VLOOKUP(H294,Table_Option_1,2,TRUE),0)","v":1.5}]
[null,null,null,"Selected",{"$f":"F17","v":"WSEC 2018"},null,null,"DropDown_Option_1","Credits","Desc"]
[null,null,null,"Selected",{"$f":"F16","v":"R2 Multifamily"},null,null,null,null,"-"]
[null,null,null,"R3/R2 Column",{"$f":"IF(E296=Q279,3,2)","v":3},null,null,"Not Selected",null,"-"]
[null,null,null,null,null,null,"Selected Menu",{"$f":"IF(E$295=Q$285,H307,H314)","v":"Option 1.1"},{"$f":"IFERROR(VLOOKUP($H298,Table_Option1,$E$297,FALSE),\"\")","v":0.5},{"$f":"IFERROR(VLOOKUP($H298,Table_Option1,$K$321,FALSE),\"\")","v":"U 0.24 Windows"}]
[null,null,null,null,null,null,null,"Option 1.2",1,"U 0.20 Windows"]
[null,null,null,null,null,null,null,"Option 1.3","NA","U 0.28 Windows / R-38 floors or R-10 Fully insulated slab"]
[null,null,null,null,null,null,null,"Option 1.4",1,"U-0.25 Windows / R-21+4ci walls / R-21+5ci below-grade walls / R-38 floors or R-10 Fully insulated slab"]
[null,null,null,null,null,null,null,"Option 1.5",1.5,"U-0.22 Windows / R-21+12ci walls / R-49 adv ceiling / R-38 floors or R-10 Fully insulated slab"]
[null,null,null,null,null,null,null,"Option 1.6",2,"U-0.18 Windows / R-21+16ci walls / R-49 adv ceilign / R-48 floors or R-20 Fully insulated slab"]
[null,null,null,null,null,null,null,"Option 1.7",0.5,"U 0.28 Windows / R-49 advanced ceiling"]
[]
[null,null,null,null,null,null,"Option Data",null,"R3","R2"]
[null,null,null,null,null,1,{"$f":"K276","v":"WSEC 2015"},"Option 1a",0.5,0.5,"U 0.28 Windows / R-38 floors or R-10 Fully insulated slab"]
[null,null,null,null,null,{"$f":"F307+1","v":2},null,"Option 1b",1,1,"U-0.25 Windows / R-21+4ci walls / R-38 floors or R-10 Fully insulated slab"]
[null,null,null,null,null,{"$f":"F308+1","v":3},null,"Option 1c",2,2,"U-0.22 Windows / R-21+12ci walls / R-49 adv ceiling / R-38 floors or R-10 Fully insulated slab"]
[null,null,null,null,null,4,null,"Option 1d",0.5,0.5,"U 0.24 Windows"]
[null,null,null,null,null,5,"Intentionally",0]
[null,null,null,null,null,6,"Blank",0]
[null,null,null,null,null,7,"Lines",0]
[null,null,null,null,null,8,{"$f":"N276","v":"WSEC 2018"},"Option 1.1",0.5,0.5,"U 0.24 Windows"]
[null,null,null,null,null,9,null,"Option 1.2",1,1,"U 0.20 Windows"]
[null,null,null,null,null,10,null,"Option 1.3",0.5,"NA","U 0.28 Windows / R-38 floors or R-10 Fully insulated slab"]
[null,null,null,null,null,11,null,"Option 1.4",1,1,"U-0.25 Windows / R-21+4ci walls / R-21+5ci below-grade walls / R-38 floors or R-10 Fully insulated slab"]
[null,null,null,null,null,12,null,"Option 1.5",2,1.5,"U-0.22 Windows / R-21+12ci walls / R-49 adv ceiling / R-38 floors or R-10 Fully insulated slab"]
[null,null,null,null,null,13,null,"Option 1.6",3,2,"U-0.18 Windows / R-21+16ci walls / R-49 adv ceilign / R-48 floors or R-20 Fully insulated slab"]
[null,null,null,null,null,14,null,"Option 1.7",0.5,0.5,"U 0.28 Windows / R-49 advanced ceiling"]
[null,null,null,null,null,null,null,1,2,3,4]
[]
[]
[]
[null,null,null,null,null,null,null,"Option 2.1"]
[null,null,null,null,null,null,null,"DropDown_Option_2","Credits","Desc"]
[null,null,null,null,null,null,"Selected Menu",null,null,"-"]
[null,null,null,null,null,null,null,"Not Selected",0]
[null,null,null,null,null,null,null,{"$f":"IF($E$295=$Q$285,H335,H339)","v":"Option 2.1"},{"$f":"IFERROR(VLOOKUP($H329,Table_Option2,$E$297,FALSE),\"\")","v":1},{"$f":"IFERROR(VLOOKUP($H329,Table_Option2,$K$321,FALSE),\"\")","v":"3.0 ACH50 / High efficiency fans / For R-2, 0.3 cfm per ft2 at 50 Pa"}]
[null,null,null,null,null,null,null,{"$f":"IF($E$295=$Q$285,H336,H340)","v":"Option 2.2"},{"$f":"IFERROR(VLOOKUP($H330,Table_Option2,$E$297,FALSE),\"\")","v":1.5},{"$f":"IFERROR(VLOOKUP($H330,Table_Option2,$K$321,FALSE),\"\")","v":"2.0 ACH50 / Heat Recovery Ventilation min eff 65%  / For R2, 0.25 cfm per ft2 at 50 Pa"}]
[null,null,null,null,null,null,null,{"$f":"IF($E$295=$Q$285,H337,H341)","v":"Option 2.3"},{"$f":"IFERROR(VLOOKUP($H331,Table_Option2,$E$297,FALSE),\"\")","v":2},{"$f":"IFERROR(VLOOKUP($H331,Table_Option2,$K$321,FALSE),\"\")","v":"1.5 ACH50 / Heat Recovery Ventilation min eff 75% / For R2, 0.25 cfm per ft2 at 50 Pa"}]
[null,null,null,null,null,null,null,{"$f":"IF($E$295=$Q$285,H338,H342)","v":"Option 2.4"},{"$f":"IFERROR(VLOOKUP($H332,Table_Option2,$E$297,FALSE),\"\")","v":2.5},{"$f":"IFERROR(VLOOKUP($H332,Table_Option2,$K$321,FALSE),\"\")","v":"0.6 ACH50 / Heat Recovery Ventilation min eff 80% / For R2, 0.15 cfm per ft2 at 50 Pa"}]
[]
[null,null,null,null,null,null,"Option Data",null,"R3","R2","R2 has different defintion"]
[null,null,null,null,null,1,{"$f":"K303","v":0},"Option 2a",0.5,0.5,"3.0 ACH50 / High efficiency fans"]
[null,null,null,null,null,{"$f":"F335+1","v":2},null,"Option 2b",1,1,"2.0 ACH50 / Heat Recovery Ventilation min eff 70%"]
[null,null,null,null,null,{"$f":"F336+1","v":3},null,"Option 2c",1.5,1.5,"1.5 ACH50 / Heat Recovery Ventilation min eff 85%"]
[null,null,null,null,null,4,"Blank",0]
[null,null,null,null,null,5,{"$f":"L300","v":0},"Option 2.1",0.5,1,"3.0 ACH50 / High efficiency fans / For R-2, 0.3 cfm per ft2 at 50 Pa"]
[null,null,null,null,null,6,null,"Option 2.2",1,1.5,"2.0 ACH50 / Heat Recovery Ventilation min eff 65%  / For R2, 0.25 cfm per ft2 at 50 Pa"]
[null,null,null,null,null,7,null,"Option 2.3",1.5,2,"1.5 ACH50 / Heat Recovery Ventilation min eff 75% / For R2, 0.25 cfm per ft2 at 50 Pa"]
[null,null,null,null,null,8,null,"Option 2.4",2,2.5,"0.6 ACH50 / Heat Recovery Ventilation min eff 80% / For R2, 0.15 cfm per ft2 at 50 Pa"]
[]
[]
[null,null,null,null,null,null,null,"Option 3a",{"$f":"IFERROR(VLOOKUP(H345,Table_Option_1,2,TRUE),0)","v":1.5}]
[null,null,null,null,null,null,null,"DropDown_Option_3","Credits","Desc"]
[null,null,null,null,null,null,"Selected Menu"]
[null,null,null,null,null,null,null,"Not Selected",0,"-"]
[null,null,null,null,null,null,null,{"$f":"IF($E$295=$Q$285,H357,H363)","v":"Option 3.1"},{"$f":"IFERROR(VLOOKUP($H349,Table_Option3,$E$297,FALSE),\"\")","v":1},{"$f":"IFERROR(VLOOKUP($H349,Table_Option3,4,FALSE),\"\")","v":"High Efficiency Fossil fuel-fired furnace or boiler"}]
[null,null,null,null,null,null,null,"Option 3.2","NA","Heat Pump:  Air Source with min HSPF of 9.5"]
[null,null,null,null,null,null,null,"Option 3.3",1,"Heat Pump: Closed-loop ground source or open loop water source"]
[null,null,null,null,null,null,null,"Option 3.4",2,"Ductless Split System, Zonal Control"]
[null,null,null,null,null,null,null,"Option 3.5","NA","Heat Pump:  Air Source with min HSPF of 11"]
[null,null,null,null,null,null,null,"Option 3.6",3,"Ductless Split System with no electric resistance in primary living areas"]
[]
[null,null,null,null,null,null,"Option Data",null,"R3","R2"]
[null,null,null,null,null,1,null,"Option 3a",1,1,"High Efficiency Fossil fuel-fired furnace or boiler"]
[null,null,null,null,null,{"$f":"F357+1","v":2},null,"Option 3b",1,1,"Heat Pump:  Air Source"]
[null,null,null,null,null,{"$f":"F358+1","v":3},null,"Option 3c",1.5,1.5,"Heat Pump: Closed-loop ground source or open loop water source"]
[null,null,null,null,null,4,null,"Option 3d",1,1,"Ductless Split System, Zonal Control"]
[null,null,null,null,null,5,"Blank",0]
[null,null,null,null,null,6,"Blank",0]
[null,null,null,null,null,7,null,"Option 3.1",1,1,"High Efficiency Fossil fuel-fired furnace or boiler"]
[null,null,null,null,null,8,null,"Option 3.2",1,"NA","Heat Pump:  Air Source with min HSPF of 9.5"]
[null,null,null,null,null,9,null,"Option 3.3",1.5,1,"Heat Pump: Closed-loop ground source or open loop water source"]
[null,null,null,null,null,10,null,"Option 3.4",1.5,2,"Ductless Split System, Zonal Control"]
[null,null,null,null,null,11,null,"Option 3.5",1.5,"NA","Heat Pump:  Air Source with min HSPF of 11"]
[null,null,null,null,null,12,null,"Option 3.6",2,3,"Ductless Split System with no electric resistance in primary living areas"]
[]
[]
[null,null,null,null,null,null,null,"Option 4.1",{"$f":"IFERROR(VLOOKUP(H371,Table_Option_4,2,TRUE),)","v":0.5}]
[null,null,null,null,null,null,null,"DropDown_Option_4"]
[null,null,null,null,null,null,"Selected Menu",null,null,"-"]
[null,null,null,null,null,null,null,"Not Selected",0]
[null,null,null,null,null,null,null,{"$f":"IF($E$295=$Q$285,H379,H381)","v":"Option 4.1"},{"$f":"IFERROR(VLOOKUP($H375,Table_Option4,$E$297,FALSE),\"\")","v":0.5},{"$f":"IFERROR(VLOOKUP($H375,Table_Option4,4,FALSE),\"\")","v":"Ducts deeply buried in unconditioned attic / Duct leakage<=3 cfm/100 sf of floor area"}]
[null,null,null,null,null,null,null,{"$f":"IF($E$295=$Q$285,H380,H382)","v":"Option 4.2"},{"$f":"IFERROR(VLOOKUP($H376,Table_Option4,$E$297,FALSE),\"\")","v":"NA"},{"$f":"IFERROR(VLOOKUP($H376,Table_Option4,4,FALSE),\"\")","v":"Ducts/distribution system in conditioned space per R403.3.7"}]
[]
[null,null,null,null,null,null,"Option Data",null,"R3","R2"]
[null,null,null,null,null,1,null,"Option 4",1,1,"Ducts/distribution system in conditioned space  per R403.3.7"]
[null,null,null,null,null,{"$f":"F379+1","v":2},"Blank",0]
[null,null,null,null,null,{"$f":"F380+1","v":3},null,"Option 4.1",0.5,0.5,"Ducts deeply buried in unconditioned attic / Duct leakage<=3 cfm/100 sf of floor area"]
[null,null,null,null,null,{"$f":"F381+1","v":4},null,"Option 4.2",1,"NA","Ducts/distribution system in conditioned space per R403.3.7"]
[]
[]
[null,null,null,null,null,null,null,"Option 5a: Low Flow Fixtures",{"$f":"IFERROR(VLOOKUP(H385,Table_Option_5a,2,TRUE),0)","v":0.5}]
[null,null,null,null,null,null,null,"DropDown_Option_5a","Credits","Desc"]
[null,null,null,null,null,null,"Selected Menu"]
[null,null,null,null,null,null,null,"Not Selected"]
[null,null,null,null,null,null,null,{"$f":"IF($E$295=$Q$285,H392,H393)","v":"Option 5.1"},{"$f":"IFERROR(VLOOKUP($H389,Table_Option5a,$E$297,FALSE),\"\")","v":0.5},{"$f":"IFERROR(VLOOKUP($H389,Table_Option5a,4,FALSE),\"\")","v":"Drain Water Heat Recovery"}]
[]
[null,null,null,null,null,null,"Option Data",null,"R3","R2"]
[null,null,null,null,null,1,null,"Option 5a",0.5,0.5,"Low Flow Water Fixtures"]
[null,null,null,null,null,{"$f":"F392+1","v":2},null,"Option 5.1",0.5,0.5,"Drain Water Heat Recovery"]
[]
[]
[]
[null,null,null,null,null,null,null,"Option 5b",{"$f":"IFERROR(VLOOKUP(H397,Table_Option_5bc,2,TRUE),0)","v":3}]
[null,null,null,null,null,null,null,"DropDown_Option_5bc","Credits","Desc"]
[null,null,null,null,null,null,"Selected Menu"]
[null,null,null,null,null,null,null,"Not Selected"]
[null,null,null,null,null,null,null,{"$f":"IF($E$295=$Q$285,H408,H413)","v":"Option 5.2"},{"$f":"IFERROR(VLOOKUP($H401,Table_Option5bc,$E$297,FALSE),\"\")","v":0.5},{"$f":"IFERROR(VLOOKUP($H401,Table_Option5bc,4,FALSE),\"\")","v":"Gas or propane water heater with min UEF of 0.80"}]
[null,null,null,null,null,null,null,{"$f":"IF($E$295=$Q$285,H409,H414)","v":"Option 5.3"},{"$f":"IFERROR(VLOOKUP($H402,Table_Option5bc,$E$297,FALSE),\"\")","v":1},{"$f":"IFERROR(VLOOKUP($H402,Table_Option5bc,4,FALSE),\"\")","v":"Gas or propane water heater with min UEF of 0.91 OR Solar supplemental OR GSHP"}]
[null,null,null,null,null,null,null,{"$f":"IF($E$295=$Q$285,H410,H415)","v":"Option 5.4"},{"$f":"IFERROR(VLOOKUP($H403,Table_Option5bc,$E$297,FALSE),\"\")","v":2},{"$f":"IFERROR(VLOOKUP($H403,Table_Option5bc,4,FALSE),\"\")","v":"Tier 1 Water Heater"}]
[null,null,null,null,null,null,null,{"$f":"IF($E$295=$Q$285,H411,H416)","v":"Option 5.5"},{"$f":"IFERROR(VLOOKUP($H404,Table_Option5bc,$E$297,FALSE),\"\")","v":2.5},{"$f":"IFERROR(VLOOKUP($H404,Table_Option5bc,4,FALSE),\"\")","v":"Tier 3 Water Heater"}]
[null,null,null,null,null,null,null,{"$f":"IF($E$295=$Q$285,H412,H417)","v":"Option 5.6"},{"$f":"IFERROR(VLOOKUP($H405,Table_Option5bc,$E$297,FALSE),\"\")","v":3},{"$f":"IFERROR(VLOOKUP($H405,Table_Option5bc,4,FALSE),\"\")","v":"Split system heat pump water heater with min UEF of 2.9"}]
[]
[null,null,null,null,null,null,"Option Data",null,"R3","R2"]
[null,null,null,null,null,1,null,"Option 5b",1,1,"Tier 2 Water Heater"]
[null,null,null,null,null,{"$f":"F408+1","v":2},null,"Option 5c",1.5,1.5,"Tier 3 Water Heater"]
[null,null,null,null,null,{"$f":"F409+1","v":3},"Blank",0]
[null,null,null,null,null,4,"Blank",0]
[null,null,null,null,null,5,"Blank",0]
[null,null,null,null,null,6,null,"Option 5.2",0.5,0.5,"Gas or propane water heater with min UEF of 0.80"]
[null,null,null,null,null,7,null,"Option 5.3",1,1,"Gas or propane water heater with min UEF of 0.91 OR Solar supplemental OR GSHP"]
[null,null,null,null,null,8,null,"Option 5.4",1.5,2,"Tier 1 Water Heater"]
[null,null,null,null,null,9,null,"Option 5.5",2,2.5,"Tier 3 Water Heater"]
[null,null,null,null,null,10,null,"Option 5.6",2.5,3,"Split system heat pump water heater with min UEF of 2.9"]
[]
[]
[null,null,null,null,null,null,"Only WSEC 2015","Option 5d: Drain Water Heat Recovery",{"$f":"IFERROR(VLOOKUP(H420,Table_Option_5d,2,TRUE),0)","v":0.5}]
[null,null,null,null,null,null,null,"DropDown_Option_5d","Credits","Desc"]
[null,null,null,null,null,null,null,"Not Selected",0,"-"]
[null,null,null,null,null,null,null,"Option 5d",0.5,"Drain Water Heat Recovery"]
[]
[null,null,null,null,null,null,null,"Option 6",{"$f":"IFERROR(VLOOKUP(H425,Table_Option_6,2,TRUE),0)","v":0}]
[null,null,null,null,null,null,null,"DropDown_Option_6","Credits","Desc"]
[null,null,null,null,null,null,"Selected Menu"]
[null,null,null,null,null,null,null,"Not Selected",0,"-"]
[null,null,null,null,null,null,null,{"$f":"IF($E$295=$Q$285,H432,H433)","v":"Option 6.1"},{"$f":"IFERROR(VLOOKUP(H429,Table_Option6,$E$297,FALSE),\"\")","v":1},{"$f":"IFERROR(VLOOKUP($H429,Table_Option6,4,FALSE),\"\")","v":"On-site wind or solar electric energy"}]
[]
[null,null,null,null,null,null,"Option Data",null,"R3","R2"]
[null,null,null,null,null,1,null,"Option 6",0.5,0.5,"On-site wind or solar electric energy"]
[null,null,null,null,null,{"$f":"F432+1","v":2},null,"Option 6.1",1,1,"On-site wind or solar electric energy"]
[]
[]
[null,null,null,null,null,null,null,"Option 6",{"$f":"IFERROR(VLOOKUP(H436,Table_Option_6,2,TRUE),0)","v":0}]
[null,null,null,null,null,null,null,"DropDown_Option_6","Credits","Desc"]
[null,null,null,null,null,null,"Selected Menu"]
[null,null,null,null,null,null,null,"Not Selected",0,"-"]
[null,null,null,null,null,null,null,{"$f":"H444","v":"Option 7.1"},{"$f":"IFERROR(VLOOKUP(H440,Table_Option7,$E$297,FALSE),\"\")","v":1.5},{"$f":"IFERROR(VLOOKUP($H440,Table_Option7,4,FALSE),\"\")","v":"Appliance Package"}]
[]
[]
[null,null,null,null,null,null,"Option Data",null,"R3","R2"]
[null,null,null,null,null,1,null,"Option 7.1",0.5,1.5,"Appliance Package"]
[]
[]
[]
[]
[null,null,null,null,null,null,null,null,"Determine Baseline U-Values"]
[null,null,null,null,null,null,null,"Proposed Design"]
[null,null,null,null,null,null,null,"Selected U","Baseline Area","Baseline UA"]
[null,null,null,null,null,null,{"$f":"E23","v":"Doors U ="},{"$f":"HLOOKUP($F$465,Table_Uvalue_Options,S472,FALSE)","v":0.3},{"$f":"G23","v":0},{"$f":"IFERROR(H452*I452,\"\")","v":0}]
[null,null,null,null,null,null,"Overhead Glazing U =",0.5,0,0]
[null,null,null,null,null,null,"Vertical Glazing U =",0.3,0,0]
[null,null,null,null,null,null," Flat/Vaulted Ceilings U =",2.5999999999999999E-2,0,0]
[null,null,null,null,null,null," Wall (above grade)  U =",5.6000000000000001E-2,0,0,null,null,null,null,null,null,null,null,null,null,{"$f":"1/20","v":0.05}]
[null,null,null,null,null,null,"Floors over Crawlspace U =",2.9000000000000001E-2,0,0]
[null,null,null,null,null,null,"Slab on Grade F =",0.54,0,0]
[null,null,null,null,null,null," Below Grade Wall U =",4.2000000000000003E-2,0,0]
[null,null,null,null,null,null," Below Grade Slab  F =",0.56999999999999995,0,0]
[null,null,null,null,null,null,null,null,"Sum",{"$f":"SUM(J452:J460)","v":0}]
[]
[]
[]
[null,null,null,null,"Search String",{"$f":"IF(Menu_UseOfCalculator=E257,G471,IF(OR(H41=H328,H41=\"\"),F471,H41))","v":"Code Target"}]
[null,null,null,null,null,"U Values",null,null,null,null,null,null,null,null,null,null,null,null,null,null,null,null,null,"Baseline UA Values"]
[null,null,null,null,null,1,{"$f":"F467+1","v":2},3,{"$f":"H467+1","v":4},5,6,7,null,null,null,null,null,null,null,{"$f":"L467+1","v":8},null,null,null,1,3,4,5,6]
[]
[]
[null,null,null,null,null,null,null,"WSEC 2015",null,null,null,"WSEC 2018"]
[null,null,null,"Selected",null,{"$f":"G487","v":"Code Target"},"Existing Baseline","Option 1a","Option 1b","Option 1c","Option 1d","Option 1.1","Option 1.2","Option 1.3","Option 1.4","Option 1.5","Option 1.6","Option 1.7"]
[null,null,null,{"$f":"F23","v":0.3},"Doors  U =",0.3,{"$f":"IFERROR(AC73/AB73,0)","v":0},{"$f":"F472","v":0.3},{"$f":"$F472","v":0.3},{"$f":"F472","v":0.3},{"$f":"F472","v":0.3},{"$f":"F472","v":0.3},{"$f":"F472","v":0.3},{"$f":"H472","v":0.3},{"$f":"I472","v":0.3},{"$f":"J472","v":0.3},{"$f":"H472","v":0.3},{"$f":"I472","v":0.3},2]
[null,null,null,0.5,"Overhead Glazing U =",0.5,{"$f":"IFERROR(AC84/AB84,0)","v":0},{"$f":"F473","v":0.5},{"$f":"$F473","v":0.5},{"$f":"F473","v":0.5},{"$f":"F473","v":0.5},{"$f":"F473","v":0.5},{"$f":"F473","v":0.5},{"$f":"H473","v":0.5},{"$f":"I473","v":0.5},{"$f":"J473","v":0.5},{"$f":"H473","v":0.5},{"$f":"I473","v":0.5},3]
[null,null,null,0.3,"Vertical Glazing  U =",0.3,{"$f":"AC147","v":""},0.28000000000000003,0.25,0.22,0.24,0.24,0.2,0.28000000000000003,0.25,0.22,0.18,0.28000000000000003,4]
[null,null,null,2.5999999999999999E-2," Flat/Vaulted Ceilings U =",2.5999999999999999E-2,{"$f":"IFERROR(AC157/AB157,0)","v":0},{"$f":"F475","v":2.5999999999999999E-2},{"$f":"F475","v":2.5999999999999999E-2},0.02,{"$f":"F475","v":2.5999999999999999E-2},{"$f":"F475","v":2.5999999999999999E-2},{"$f":"F475","v":2.5999999999999999E-2},2.5999999999999999E-2,2.5999999999999999E-2,0.02,1.7000000000000001E-2,0.02,5]
[null,null,null,5.6000000000000001E-2," Wall (above grade)  U =",5.6000000000000001E-2,{"$f":"IFERROR(AC167/AB167,0)","v":0},{"$f":"F476","v":5.6000000000000001E-2},4.4999999999999998E-2,3.2000000000000001E-2,5.6000000000000001E-2,5.6000000000000001E-2,5.6000000000000001E-2,5.6000000000000001E-2,4.4999999999999998E-2,3.2000000000000001E-2,2.8000000000000001E-2,{"$f":"I476","v":4.4999999999999998E-2},6]
[null,null,null,2.9000000000000001E-2,"Floors  U =",2.9000000000000001E-2,{"$f":"IFERROR(AC177/AB177,0)","v":0},2.5000000000000001E-2,2.5000000000000001E-2,2.5000000000000001E-2,2.9000000000000001E-2,2.9000000000000001E-2,2.9000000000000001E-2,2.5000000000000001E-2,2.5000000000000001E-2,2.5000000000000001E-2,0.02,{"$f":"I477","v":2.5000000000000001E-2},7]
[null,null,null,0.54,"Slab on Grade  F =",0.54,{"$f":"IFERROR(AC187/AB187,0)","v":0},0.36,0.36,0.36,0.54,0.54,0.54,0.36,0.36,0.36,0.26100000000000001,{"$f":"I478","v":0.36},8]
[null,null,null,4.2000000000000003E-2," Below Grade Wall  U =",4.2000000000000003E-2,{"$f":"IFERROR(X197/W197,0)","v":0},5.5E-2,5.5E-2,5.5E-2,4.2000000000000003E-2,4.2000000000000003E-2,4.2000000000000003E-2,5.5E-2,2.9000000000000001E-2,5.5E-2,3.4000000000000002E-2,{"$f":"I479","v":5.5E-2},9]
[null,null,null,0.56999999999999995," Below Grade Slab  F =",0.56999999999999995,{"$f":"IFERROR(AC197/AB197,0)","v":0},0.29299999999999998,0.29299999999999998,0.29299999999999998,0.56999999999999995,0.56999999999999995,0.56999999999999995,0.29299999999999998,0.307,0.29299999999999998,0.30399999999999999,{"$f":"I480","v":0.29299999999999998},10]
[null,null,null,null,null,null,null,"Baylon:  R-11 batt (U=0.095)+R10 under slab"]
[]
[]
[]
[null,null,null,null,null,null,null,"Determine Baseline Areas for Proposal"]
[null,null,null,null,null,null,{"$f":"E255","v":"Prescriptive Path Compliance with Option 1"}]
[null,null,null,null,null,null,{"$f":"F471","v":"Code Target"},"Existing Baseline Area","Proposed",null,null,"Selected Baseline"]
[null,null,null,null,null,null,{"$f":"E255","v":"Prescriptive Path Compliance with Option 1"},{"$f":"E257","v":"User-Defined Baseline (Remodel/Alteration of Existing Only)"},{"$f":"E256","v":"UA Component Performance Analysis"},null,null,{"$f":"Menu_UseOfCalculator","v":"Prescriptive Path Compliance with Option 1"}]
[null,null,null,null,null,null,"Area","Area","Area",null,null,"Area"]
[null,null,null,null,null,"Doors  U =",{"$f":"IF(M$23=\"\",\"Error\",M$23)","v":0},{"$f":"AB73","v":0},{"$f":"M23","v":0},3,null,{"$f":"HLOOKUP(Menu_UseOfCalculator,Table_Areas,J490,FALSE)","v":0}]
[null,null,null,null,null,"Overhead Glazing U =",{"$f":"IF(M$24=\"\",\"Error\",IF(M$24<(F$59*0.15),M$24,F$59*0.15))","v":0},{"$f":"AB84","v":0},{"$f":"M24","v":0},{"$f":"J490+1","v":4},null,0]
[null,null,null,null,null,"Vertical Glazing  U =",{"$f":"M25","v":0},{"$f":"AB146","v":0},{"$f":"IF(M$25=\"\",\"Error\",IF(SUM(M$25,M$24)>F$59*0.15,F$59*0.15-I$491,M$25))","v":0},{"$f":"J491+1","v":5},null,{"$f":"HLOOKUP(Menu_UseOfCalculator,Table_Areas,J492,FALSE)","v":0},null,{"$f":"IF(M$25=\"\",\"Error\",IF(SUM(M$25,M$24)>F$59*0.15,F$59*0.15-G$491,M$25))","v":0}]
[null,null,null,null,null," Flat/Vaulted Ceilings U =",{"$f":"IFERROR((M$26+M$24)-G$491,\"Error\")","v":0},{"$f":"AB157","v":0},{"$f":"M26","v":0},6,null,0]
[null,null,null,null,null," Wall (above grade)  U =",{"$f":"IFERROR((M27+M23+M25)-(G492+G490),\"Error\")","v":0},{"$f":"AB167","v":0},0,7,null,0]
[null,null,null,null,null,"Floors  U =",{"$f":"IF(M28=\"\",\"Error\",M28)","v":0},{"$f":"AB177","v":0},0,8,null,0]
[null,null,null,null,null,"Slab on Grade  F =",{"$f":"IF(M29=\"\",\"Error\",M29)","v":0},{"$f":"AB187","v":0},0,9,null,0]
[null,null,null,null,null," Below Grade Wall  U =",{"$f":"IF(M30=\"\",\"Error\",M30)","v":0},{"$f":"W197","v":0},0,10,null,0]
[null,null,null,null,null," Below Grade Slab  F =",{"$f":"IF(M31=\"\",\"Error\",M31)","v":0},{"$f":"AB197","v":0},0,11,null,0]
[]
[null,null,null,null,"Heating System Sizing Worksheet"]
[null,null,null,null,"Volume, Proposed",{"$f":"F206*8.5","v":0},"ft3 default"]
[null,null,null,null,"Volume, Baseline",{"$f":"U206*8.5","v":0},"ft3 default"]
[]
[null,null,null,null,"Total UA including exempt window and door","Proposed"]
[null,null,null,null,"UA excluding exempt window and door",{"$f":"N33","v":0}]
[null,null,null,null,"Exempt door",{"$f":"IFERROR(SUBTOTAL(109,N65),0)","v":0}]
[null,null,null,null,"Exempt window",{"$f":"IFERROR(SUBTOTAL(109,N90),0)","v":0}]
[null,null,null,null,"Total UA",{"$f":"IF(F505=\"Check Missing Inputs\",F505,SUM(F505:F507))","v":0}]
[]
[null,null,null,null,"Table_DuctLossMultiplier",null,null,"Table_MaxOutputMultiplier"]
[]
[null,null,null,null,"Unducted",1,null,"Heat Pump",1.25]
[null,null,null,null,"Conditioned Space",1,null,"All Other Systems (not heat pump)",1.4]
[null,null,null,null,"Unconditioned Space",1.1000000000000001,null,"Selected Proposed",{"$f":"VLOOKUP(F209,Table_MaxOutputMultiplier,2,FALSE)","v":{"$error":"#N/A"}}]
[null,null,null,null,"Selected, Proposed",{"$f":"VLOOKUP(F210,Table_DuctLossMultiplier,2,FALSE)","v":{"$error":"#N/A"}},null,"Selected Baseline",{"$f":"VLOOKUP(U209,Table_MaxOutputMultiplier,2,FALSE)","v":{"$error":"#N/A"}}]
[null,null,null,null,"Selected, Baseline",{"$f":"VLOOKUP(U210,Table_DuctLossMultiplier,2,FALSE)","v":{"$error":"#N/A"}}]
[]
[]
[]
[null,null,null,"TABLE R406.2"]
[null,null,null,"FUEL NORMALIZATION CREDITS",null,null,"Credit Column",{"$f":"IF(F16=N277,H522,G522)","v":5}]
[null,null,null,1,2,3,4,5]
[null,null,null,"DropDown_FuelNormalizationSystem",null,null,"Credits",null,null,null,null,"Fuel Normalization Credits",null,"Energy Credits",null,"Total Credits"]
[null,null,null,null,"Description of Primary Heating Source","System Number","All Other","Group R-2",null,null,null,{"$f":"L55","v":0},null,{"$f":"J50","v":0},null,{"$f":"IF(ISNUMBER(L524)=TRUE,L524+J519,N524)","v":0}]
[null,null,null,"Min Federal Efficiency System","Combustion heating equipment meeting minimum federal efficiency standards for the equipment listed in Table C403.3.2(4) or C403.3.2(5)",1,0,0]
[null,null,null,"Heat Pump, air-to-air or air to water","For an initial heating system using a heat pump that meets federal standards for the equipment listed in Table C403.3.2(1)C or C403.3.2(2)  OR Air to water heat pump units that are configured to provide both heating and cooling and are rated in accordance with AHRI 550/590",2,1,1]
[null,null,null,"Electric Resistance Only","For heating system based on electric resistance only (either forced air or Zonal)",3,-1,-1]
[null,null,null,"Electric Resistance with Ductless Heat Pump","For heating system based on electric resistance with a ductless mini-split heat pump system in accordance with Section R403.7.1 including the exception",4,0.5,"N/A"]
[null,null,null,"All Other Heating Systems","All other heating systems",5,-1,-0.5]
[]
[]
[]
[]
[]
[]
[]
[]
[]
[]
[]
[null,null,null,null,"Bottom of Calc Error"]

{"sheet":"User Notes","index":3,"n_rows":0,"n_cols":0,"rows_kept":0,"cut":false,"hidden":false,"merged":[]}

{"sheet":"Vertical Glazing","index":4,"n_rows":377,"n_cols":6,"rows_kept":377,"cut":false,"hidden":true,"merged":[]}
["Index","Component Description","Reference","Glazing U"]
[]
[1]
[{"$f":"A3+1","v":2},"=== Most Frequently Used ========= "]
[3,"1gl Wood/Vinyl Clear","10-6A",1.2]
[4,"2gl Wood/vinyl, Low-e2 ½\"","10-6B",0.4]
[5,"3gl Wood/vinyl, Low-e2 ½\" + argon (Code Target)","10-6B",0.3]
[6,"3gl Wood/vinyl, Low-e1 ½\" + argon","10-6B",0.28999999999999998]
[7,"Code Target: U=0.30","Table 406.2",0.3]
[8,"Option 1a: U=0.28","Table 406.2",0.28000000000000003]
[9,"Option 1b: U=0.25","Table 406.2",0.25]
[10,"Option 1c: U=0.22","Table 406.2",0.22]
[11,"Option 1d: U=0.24","Table 406.2",0.24]
[12,"Default Metal, Single Pane","Table R303.1.3(1)",1.2]
[13,"Default Metal, Double Pane","Table R303.1.3(1)",0.8]
[14,"Default Metal w/TB, Single Pane","Table R303.1.3(1)",2.2000000000000002]
[15,"Default Metal w/TB, Double Pane","Table R303.1.3(1)",0.65]
[16,"Default Nonmetal or Metal Clad, Single Pane","Table R303.1.3(1)",0.95]
[17,"Default Nonmetal or Metal Clad, Double Pane","Table R303.1.3(1)",0.55000000000000004]
[18,"Default Glazed Block","Table R303.1.3(1)",0.6]
[19,"============================="]
[20,"1gl Wood/Vinyl Clear","10-6A",1.2]
[21,"2gl Wood/Vinyl Clear <1/2\" spacer","10-6A",0.63]
[22,"2gl Wood/Vinyl Clear+Argon <1/2\"spacer","10-6A",0.6]
[23,"2gl Wood/Vinyl LowE <1/2\"spacer","10-6A",0.57999999999999996]
[24,"2gl Wood/Vinyl LowE+Argon <1/2\"spacer","10-6A",0.53]
[25,"2gl Wood/Vinyl Clear ≥1/2\"spacer","10-6A",0.57999999999999996]
[{"$f":"A27+1","v":26},"2gl Wood/Vinyl Clear+Argon ≥1/2\"spacer","10-6A",0.55000000000000004]
[27,"2gl Wood/Vinyl LowE ≥1/2\"spacer","10-6A",0.51]
[28,"2gl Wood/Vinyl LowE+Argon ≥1/2\"spacer","10-6A",0.48]
[29,"3gl Wood/Vinyl Clear","10-6A",0.43]
[30,"3gl Wood/Vinyl Clear+Argon","10-6A",0.41]
[31,"3gl Wood/Vinyl LowE","10-6A",0.4]
[32,"3gl Wood/Vinyl LowE+Argon","10-6A",0.37]
[33,"1gl Garden Wood/Vinyl Clear","10-6A",2.31]
[34,"2gl Garden Wood/Vinyl Clear","10-6A",1.61]
[35,"2gl Garden Wood/Vinyl Clear+Argon","10-6A",1.56]
[36,"2gl Garden Wood/Vinyl LowE+Argon","10-6A",1.54]
[37,"2gl Garden Wood/Vinyl LowE+Argon","10-6A",1.47]
[38,"1gl Alum with TB Clear","10-6A",1.2]
[39,"2gl Alum with TB Clear <1/2\" spacer","10-6A",0.75]
[40,"2gl Alum with TB Clear+Argon <1/2\"spacer","10-6A",0.71]
[41,"2gl Alum with TB LowE <1/2\"spacer","10-6A",0.69]
[42,"2gl Alum with TB LowE+Argon <1/2\"spacer","10-6A",0.62]
[43,"2gl Alum with TB Clear ≥1/2\"spacer","10-6A",0.69]
[44,"2gl Alum with TB Clear+Argon ≥1/2\"spacer","10-6A",0.67]
[45,"2gl Alum with TB LowE ≥1/2\"spacer","10-6A",0.61]
[46,"2gl Alum with TB LowE+Argon ≥1/2\"spacer","10-6A",0.57999999999999996]
[47,"3gl Alum with TB Clear","10-6A",0.53]
[48,"3gl Alum with TB Clear+Argon","10-6A",0.52]
[49,"3gl Alum with TB LowE","10-6A",0.49]
[50,"3gl Alum with TB LowE+Argon","10-6A",0.47]
[51,"1gl Aluminum Clear","10-6A",1.2]
[52,"2gl Aluminum Clear <1/2\" spacer","10-6A",0.92]
[53,"2gl Aluminum Clear+Argon <1/2\"spacer","10-6A",0.87]
[54,"2gl Aluminum LowE <1/2\"spacer","10-6A",0.85]
[55,"2gl Aluminum LowE+Argon <1/2\"spacer","10-6A",0.79]
[56,"2gl Aluminum Clear ≥1/2\"spacer","10-6A",0.86]
[57,"2gl Aluminum Clear+Argon ≥1/2\"spacer","10-6A",0.83]
[58,"2gl Aluminum LowE ≥1/2\"spacer","10-6A",0.78]
[59,"2gl Aluminum LowE+Argon ≥1/2\"spacer","10-6A",0.75]
[60,"3gl Aluminum Clear","10-6A",0.7]
[61,"3gl Aluminum Clear+Argon","10-6A",0.69]
[62,"3gl Aluminum LowE","10-6A",0.67]
[63,"3gl Aluminum LowE+Argon","10-6A",0.63]
[64,"1gl Garden Aluminum Clear","10-6A",2.6]
[65,"2gl Garden Aluminum Clear","10-6A",1.81]
[66,"2gl Garden Aluminum Clear+Argon","10-6A",1.76]
[67,"2gl Garden Aluminum LowE+Argon","10-6A",1.73]
[68,"2gl Garden Aluminum LowE+Argon","10-6A",1.64]
[69,"Glass Block","10-6A",0.51]
[70,"2gl Alum clad wood, Clear ¼\"","10-6B",0.59]
[71,"2gl Alum clad wood, Clear ¼\" + argon","10-6B",0.56000000000000005]
[72,"2gl Alum clad wood, Low-e4 ¼\"","10-6B",0.54]
[73,"2gl Alum clad wood, Low-e2 ¼\"","10-6B",0.51]
[74,"2gl Alum clad wood, Low-e1 ¼\"","10-6B",0.49]
[75,"2gl Alum clad wood, Low-e4 ¼\" + argon","10-6B",0.49]
[76,"2gl Alum clad wood, Low-e2 ¼\" + argon","10-6B",0.46]
[77,"2gl Alum clad wood, Low-e1 ¼\" + argon","10-6B",0.43]
[78,"2gl Alum clad wood, Clear 3/8\"","10-6B",0.56999999999999995]
[79,"2gl Alum clad wood, Clear 3/8\" + argon","10-6B",0.54]
[80,"2gl Alum clad wood, Low-e4 3/8\"","10-6B",0.51]
[81,"2gl Alum clad wood, Low-e2 3/8\"","10-6B",0.48]
[82,"2gl Alum clad wood, Low-e1 3/8\"","10-6B",0.46]
[83,"2gl Alum clad wood, Low-e4 3/8\" + argon","10-6B",0.47]
[84,"2gl Alum clad wood, Low-e2 3/8\" + argon","10-6B",0.44]
[{"$f":"A86+1","v":85},"2gl Alum clad wood, Low-e1 3/8\" + argon","10-6B",0.41]
[86,"2gl Alum clad wood, Clear ½\"","10-6B",0.54]
[87,"2gl Alum clad wood, Clear ½\" + argon","10-6B",0.51]
[88,"2gl Alum clad wood, Low-e4 ½\"","10-6B",0.47]
[89,"2gl Alum clad wood, Low-e2 ½\"","10-6B",0.44]
[90,"2gl Alum clad wood, Low-e1 ½\"","10-6B",0.42]
[91,"2gl Alum clad wood, Low-e4 ½\" + argon","10-6B",0.44]
[92,"2gl Alum clad wood, Low-e2 ½\" + argon","10-6B",0.4]
[93,"2gl Alum clad wood, Low-e1 ½\" + argon","10-6B",0.38]
[94,"3gl Alum clad wood, Clear ¼\"","10-6B",0.44]
[95,"3gl Alum clad wood, Clear ¼\" + argon","10-6B",0.42]
[96,"3gl Alum clad wood, Low-e4 ¼\"","10-6B",0.4]
[97,"3gl Alum clad wood, Low-e2 ¼\"","10-6B",0.41]
[98,"3gl Alum clad wood, Low-e1 ¼\"","10-6B",0.4]
[99,"3gl Alum clad wood, Low-e4 ¼\" + argon","10-6B",0.39]
[100,"3gl Alum clad wood, Low-e2 ¼\" + argon","10-6B",0.37]
[101,"3gl Alum clad wood, Low-e1 ¼\" + argon","10-6B",0.36]
[102,"3gl Alum clad wood, Clear ½\"","10-6B",0.4]
[103,"3gl Alum clad wood, Clear ½\" + argon","10-6B",0.38]
[104,"3gl Alum clad wood, Low-e4 ½\"","10-6B",0.37]
[105,"3gl Alum clad wood, Low-e2 ½\"","10-6B",0.35]
[106,"3gl Alum clad wood, Low-e1 ½\"","10-6B",0.33]
[107,"3gl Alum clad wood, Low-e4 ½\" + argon","10-6B",0.35]
[108,"3gl Alum clad wood, Low-e2 ½\" + argon","10-6B",0.32]
[109,"3gl Alum clad wood, Low-e1 ½\" + argon","10-6B",0.31]
[110,"2gl Wood/vinyl, Clear ¼\"","10-6B",0.56000000000000005]
[111,"2gl Wood/vinyl, Clear ¼\" + argon","10-6B",0.53]
[112,"2gl Wood/vinyl, Low-e4 ¼\"","10-6B",0.52]
[113,"2gl Wood/vinyl, Low-e2 ¼\"","10-6B",0.49]
[114,"2gl Wood/vinyl, Low-e1 ¼\"","10-6B",0.47]
[115,"2gl Wood/vinyl, Low-e4 ¼\" + argon","10-6B",0.47]
[116,"2gl Wood/vinyl, Low-e2 ¼\" + argon","10-6B",0.43]
[117,"2gl Wood/vinyl, Low-e1 ¼\" + argon","10-6B",0.41]
[118,"2gl Wood/vinyl, Clear 3/8\"","10-6B",0.54]
[119,"2gl Wood/vinyl, Clear 3/8\" + argon","10-6B",0.51]
[120,"2gl Wood/vinyl, Low-e4 3/8\"","10-6B",0.48]
[121,"2gl Wood/vinyl, Low-e2 3/8\"","10-6B",0.45]
[122,"2gl Wood/vinyl, Low-e1 3/8\"","10-6B",0.43]
[123,"2gl Wood/vinyl, Low-e4 3/8\" + argon","10-6B",0.44]
[124,"2gl Wood/vinyl, Low-e2 3/8\" + argon","10-6B",0.41]
[125,"2gl Wood/vinyl, Low-e1 3/8\" + argon","10-6B",0.39]
[126,"2gl Wood/vinyl, Clear ½\"","10-6B",0.5]
[127,"2gl Wood/vinyl, Clear ½\" + argon","10-6B",0.48]
[128,"2gl Wood/vinyl, Low-e4 ½\"","10-6B",0.44]
[129,"2gl Wood/vinyl, Low-e2 ½\"","10-6B",0.4]
[130,"2gl Wood/vinyl, Low-e1 ½\"","10-6B",0.35]
[131,"2gl Wood/vinyl, Low-e4 ½\" + argon","10-6B",0.42]
[132,"2gl Wood/vinyl, Low-e2 ½\" + argon","10-6B",0.37]
[133,"2gl Wood/vinyl, Low-e1 ½\" + argon","10-6B",0.35]
[134,"3gl Wood/vinyl, Clear ¼\"","10-6B",0.42]
[135,"3gl Wood/vinyl, Clear ¼\" + argon","10-6B",0.39]
[136,"3gl Wood/vinyl, Low-e4 ¼\"","10-6B",0.4]
[137,"3gl Wood/vinyl, Low-e2 ¼\"","10-6B",0.39]
[138,"3gl Wood/vinyl, Low-e1 ¼\"","10-6B",0.38]
[139,"3gl Wood/vinyl, Low-e4 ¼\" + argon","10-6B",0.37]
[140,"3gl Wood/vinyl, Low-e2 ¼\" + argon","10-6B",0.34]
[141,"3gl Wood/vinyl, Low-e1 ¼\" + argon","10-6B",0.34]
[142,"3gl Wood/vinyl, Clear ½\"","10-6B",0.37]
[143,"3gl Wood/vinyl, Clear ½\" + argon","10-6B",0.36]
[144,"3gl Wood/vinyl, Low-e4 ½\"","10-6B",0.35]
[145,"3gl Wood/vinyl, Low-e2 ½\"","10-6B",0.32]
[146,"3gl Wood/vinyl, Low-e1 ½\"","10-6B",0.31]
[147,"3gl Wood/vinyl, Low-e4 ½\" + argon","10-6B",0.32]
[148,"3gl Wood/vinyl, Low-e2 ½\" + argon","10-6B",0.3]
[{"$f":"A150+1","v":149},"3gl Wood/vinyl, Low-e1 ½\" + argon","10-6B",0.28999999999999998]
[150,"2gl Alum with TB, Clear ¼\"","10-6B",0.66]
[151,"2gl Alum with TB, Clear ¼\" + argon","10-6B",0.63]
[152,"2gl Alum with TB, Low-e4 ¼\"","10-6B",0.61]
[153,"2gl Alum with TB, Low-e2 ¼\"","10-6B",0.57999999999999996]
[154,"2gl Alum with TB, Low-e1 ¼\"","10-6B",0.55000000000000004]
[155,"2gl Alum with TB, Low-e4 ¼\" + argon","10-6B",0.55000000000000004]
[156,"2gl Alum with TB, Low-e2 ¼\" + argon","10-6B",0.52]
[157,"2gl Alum with TB, Low-e1 ¼\" + argon","10-6B",0.5]
[158,"2gl Alum with TB, Clear 3/8\"","10-6B",0.63]
[159,"2gl Alum with TB, Clear 3/8\" + argon","10-6B",0.6]
[160,"2gl Alum with TB, Low-e4 3/8\"","10-6B",0.56999999999999995]
[161,"2gl Alum with TB, Low-e2 3/8\"","10-6B",0.54]
[162,"2gl Alum with TB, Low-e1 3/8\"","10-6B",0.51]
[163,"2gl Alum with TB, Low-e4 3/8\" + argon","10-6B",0.53]
[164,"2gl Alum with TB, Low-e2 3/8\" + argon","10-6B",0.49]
[165,"2gl Alum with TB, Low-e1 3/8\" + argon","10-6B",0.47]
[166,"2gl Alum with TB, Clear ½\"","10-6B",0.6]
[167,"2gl Alum with TB, Clear ½\" + argon","10-6B",0.57999999999999996]
[168,"2gl Alum with TB, Low-e4 ½\"","10-6B",0.53]
[169,"2gl Alum with TB, Low-e2 ½\"","10-6B",0.5]
[170,"2gl Alum with TB, Low-e1 ½\"","10-6B",0.47]
[171,"2gl Alum with TB, Low-e4 ½\" + argon","10-6B",0.5]
[172,"2gl Alum with TB, Low-e2 ½\" + argon","10-6B",0.46]
[173,"2gl Alum with TB, Low-e1 ½\" + argon","10-6B",0.43]
[174,"3gl Alum with TB, Clear ¼\"","10-6B",0.52]
[175,"3gl Alum with TB, Clear ¼\" + argon","10-6B",0.49]
[176,"3gl Alum with TB, Low-e4 ¼\"","10-6B",0.5]
[177,"3gl Alum with TB, Low-e2 ¼\"","10-6B",0.48]
[178,"3gl Alum with TB, Low-e1 ¼\"","10-6B",0.47]
[179,"3gl Alum with TB, Low-e4 ¼\" + argon","10-6B",0.46]
[180,"3gl Alum with TB, Low-e2 ¼\" + argon","10-6B",0.43]
[181,"3gl Alum with TB, Low-e1 ¼\" + argon","10-6B",0.42]
[182,"3gl Alum with TB, Clear ½\"","10-6B",0.46]
[183,"3gl Alum with TB, Clear ½\" + argon","10-6B",0.45]
[184,"3gl Alum with TB, Low-e4 ½\"","10-6B",0.43]
[185,"3gl Alum with TB, Low-e2 ½\"","10-6B",0.41]
[186,"3gl Alum with TB, Low-e1 ½\"","10-6B",0.39]
[187,"3gl Alum with TB, Low-e4 ½\" + argon","10-6B",0.41]
[188,"3gl Alum with TB, Low-e2 ½\" + argon","10-6B",0.38]
[189,"3gl Alum with TB, Low-e1 ½\" + argon","10-6B",0.37]
[190,"2gl Aluminum, Clear ¼\"","10-6B",0.82]
[191,"2gl Aluminum, Clear ¼\" + argon","10-6B",0.77]
[192,"2gl Aluminum, Low-e4 ¼\"","10-6B",0.76]
[193,"2gl Aluminum, Low-e2 ¼\"","10-6B",0.73]
[194,"2gl Aluminum, Low-e1 ¼\"","10-6B",0.7]
[195,"2gl Aluminum, Low-e4 ¼\" + argon","10-6B",0.7]
[196,"2gl Aluminum, Low-e2 ¼\" + argon","10-6B",0.66]
[197,"2gl Aluminum, Low-e1 ¼\" + argon","10-6B",0.64]
[198,"2gl Aluminum, Clear 3/8\"","10-6B",0.78]
[199,"2gl Aluminum, Clear 3/8\" + argon","10-6B",0.75]
[200,"2gl Aluminum, Low-e4 3/8\"","10-6B",0.72]
[201,"2gl Aluminum, Low-e2 3/8\"","10-6B",0.69]
[202,"2gl Aluminum, Low-e1 3/8\"","10-6B",0.66]
[203,"2gl Aluminum, Low-e4 3/8\" + argon","10-6B",0.68]
[204,"2gl Aluminum, Low-e2 3/8\" + argon","10-6B",0.63]
[205,"2gl Aluminum, Low-e1 3/8\" + argon","10-6B",0.61]
[206,"2gl Aluminum, Clear ½\"","10-6B",0.75]
[207,"2gl Aluminum, Clear ½\" + argon","10-6B",0.72]
[208,"2gl Aluminum, Low-e4 ½\"","10-6B",0.68]
[209,"2gl Aluminum, Low-e2 ½\"","10-6B",0.64]
[210,"2gl Aluminum, Low-e1 ½\"","10-6B",0.61]
[211,"2gl Aluminum, Low-e4 ½\" + argon","10-6B",0.65]
[212,"2gl Aluminum, Low-e2 ½\" + argon","10-6B",0.6]
[{"$f":"A214+1","v":213},"2gl Aluminum, Low-e1 ½\" + argon","10-6B",0.57999999999999996]
[214,"3gl Aluminum, Clear ¼\"","10-6B",0.66]
[215,"3gl Aluminum, Clear ¼\" + argon","10-6B",0.63]
[216,"3gl Aluminum, Low-e4 ¼\"","10-6B",0.64]
[217,"3gl Aluminum, Low-e2 ¼\"","10-6B",0.62]
[218,"3gl Aluminum, Low-e1 ¼\"","10-6B",0.61]
[219,"3gl Aluminum, Low-e4 ¼\" + argon","10-6B",0.6]
[220,"3gl Aluminum, Low-e2 ¼\" + argon","10-6B",0.57999999999999996]
[221,"3gl Aluminum, Low-e1 ¼\" + argon","10-6B",0.56999999999999995]
[222,"3gl Aluminum, Clear ½\"","10-6B",0.61]
[223,"3gl Aluminum, Clear ½\" + argon","10-6B",0.59]
[224,"3gl Aluminum, Low-e4 ½\"","10-6B",0.57999999999999996]
[225,"3gl Aluminum, Low-e2 ½\"","10-6B",0.55000000000000004]
[226,"3gl Aluminum, Low-e1 ½\"","10-6B",0.54]
[227,"3gl Aluminum, Low-e4 ½\" + argon","10-6B",0.55000000000000004]
[228,"3gl Aluminum, Low-e2 ½\" + argon","10-6B",0.52]
[229,"3gl Aluminum, Low-e1 ½\" + argon","10-6B",0.51]
[230,"=== Custom Entries: Use NFRC Tested U-Values  ================",null,null,"Notes"]
[231,null,"Custom",null,null,{"$f":"IF(AND(B234<>\"\",B233=\"\"),\"Don't skip lines\",IF(AND(D233=\"\",B233<>\"\"),\"Enter U-value\",IF(AND(D233<>\"\",B233=\"\"),\"Enter Description\",\"\")))","v":""}]
[232,null,"Custom",null,null,""]
[233,null,"Custom",null,null,""]
[234,null,"Custom",null,null,""]
[235,null,"Custom",null,null,""]
[236,null,"Custom",null,null,""]
[237,null,"Custom",null,null,""]
[238,null,"Custom",null,null,""]
[239,null,"Custom",null,null,""]
[240,null,"Custom",null,null,""]
[241,null,"Custom",null,null,""]
[242,null,"Custom",null,null,""]
[243,null,"Custom",null,null,""]
[244,null,"Custom",null,null,""]
[245,null,"Custom",null,null,""]
[246,null,"Custom",null,null,""]
[247,null,"Custom",null,null,""]
[248,null,"Custom",null,null,""]
[249,null,"Custom",null,null,""]
[250,null,"Custom",null,null,""]
[251,null,"Custom",null,null,""]
[252,null,"Custom",null,null,""]
[253,null,"Custom",null,null,""]
[254,null,"Custom",null,null,""]
[255,null,"Custom",null,null,""]
[256,null,"Custom",null,null,""]
[257,null,"Custom",null,null,""]
[258,null,"Custom",null,null,""]
[259,null,"Custom",null,null,""]
[260,null,"Custom",null,null,""]
[261,null,"Custom",null,null,""]
[262,null,"Custom",null,null,""]
[263,null,"Custom",null,null,""]
[264,null,"Custom",null,null,""]
[265,null,"Custom",null,null,""]
[266,null,"Custom",null,null,""]
[267,null,"Custom",null,null,""]
[268,null,"Custom",null,null,""]
[269,null,"Custom",null,null,""]
[270,null,"Custom",null,null,""]
[271,null,"Custom",null,null,""]
[272,null,"Custom",null,null,""]
[273,null,"Custom",null,null,""]
[274,null,"Custom",null,null,""]
[275,null,"Custom",null,null,""]
[276,null,"Custom",null,null,""]
[277,null,"Custom",null,null,""]
[{"$f":"A279+1","v":278},null,"Custom",null,null,""]
[279,null,"Custom",null,null,""]
[280,null,"Custom",null,null,""]
[281,null,"Custom",null,null,""]
[282,null,"Custom",null,null,""]
[283,null,"Custom",null,null,""]
[284,null,"Custom",null,null,""]
[285,null,"Custom",null,null,""]
[286,null,"Custom",null,null,""]
[287,null,"Custom",null,null,""]
[288,null,"Custom",null,null,""]
[289,null,"Custom",null,null,""]
[290,null,"Custom",null,null,""]
[291,null,"Custom",null,null,""]
[292,null,"Custom",null,null,""]
[293,null,"Custom",null,null,""]
[294,null,"Custom",null,null,""]
[295,null,"Custom",null,null,{"$f":"IF(AND(B298<>\"\",B297=\"\"),\"Don't skip lines\",IF(AND(D297=\"\",B297<>\"\"),\"Enter U-value\",IF(AND(D297<>\"\",B297=\"\"),\"Enter Description\",\"\")))","v":""}]
[296,null,"Custom",null,null,""]
[297,null,"Custom",null,null,""]
[298,null,"Custom",null,null,""]
[299,null,"Custom",null,null,""]
[300,null,"Custom",null,null,""]
[301,null,"Custom",null,null,""]
[302,null,"Custom",null,null,""]
[303,null,"Custom",null,null,""]
[304,null,"Custom",null,null,""]
[305,null,"Custom",null,null,""]
[306,null,"Custom",null,null,""]
[307,null,"Custom",null,null,""]
[308,null,"Custom",null,null,""]
[309,null,"Custom",null,null,""]
[310,null,"Custom",null,null,""]
[311,null,"Custom",null,null,""]
[312,null,"Custom",null,null,""]
[313,null,"Custom",null,null,""]
[314,null,"Custom",null,null,""]
[315,null,"Custom",null,null,""]
[316,null,"Custom",null,null,""]
[317,null,"Custom",null,null,""]
[318,null,"Custom",null,null,""]
[319,null,"Custom",null,null,""]
[320,null,"Custom",null,null,""]
[321,null,"Custom",null,null,""]
[322,null,"Custom",null,null,""]
[323,null,"Custom",null,null,""]
[324,null,"Custom",null,null,""]
[325,null,"Custom",null,null,""]
[326,null,"Custom",null,null,""]
[327,null,"Custom",null,null,""]
[328,null,"Custom",null,null,""]
[329,null,"Custom",null,null,""]
[330,null,"Custom",null,null,""]
[331,null,"Custom",null,null,""]
[332,null,"Custom",null,null,""]
[333,null,"Custom",null,null,""]
[334,null,"Custom",null,null,""]
[335,null,"Custom",null,null,""]
[336,null,"Custom",null,null,""]
[337,null,"Custom",null,null,""]
[338,null,"Custom",null,null,""]
[339,null,"Custom",null,null,""]
[340,null,"Custom",null,null,""]
[341,null,"Custom",null,null,""]
[{"$f":"A343+1","v":342},null,"Custom",null,null,""]
[343,null,"Custom",null,null,""]
[344,null,"Custom",null,null,""]
[345,null,"Custom",null,null,""]
[346,null,"Custom",null,null,""]
[347,null,"Custom",null,null,""]
[348,null,"Custom",null,null,""]
[349,null,"Custom",null,null,""]
[350,null,"Custom",null,null,""]
[351,null,"Custom",null,null,""]
[352,null,"Custom",null,null,""]
[353,null,"Custom",null,null,""]
[354,null,"Custom",null,null,""]
[355,null,"Custom",null,null,""]
[356,null,"Custom",null,null,""]
[357,null,"Custom",null,null,""]
[358,null,"Custom",null,null,""]
[359,null,"Custom",null,null,{"$f":"IF(AND(B362<>\"\",B361=\"\"),\"Don't skip lines\",IF(AND(D361=\"\",B361<>\"\"),\"Enter U-value\",IF(AND(D361<>\"\",B361=\"\"),\"Enter Description\",\"\")))","v":""}]
[360,null,"Custom",null,null,""]
[361,null,"Custom",null,null,""]
[362,null,"Custom",null,null,""]
[363,null,"Custom",null,null,""]
[364,null,"Custom",null,null,""]
[365,null,"Custom",null,null,""]
[366,null,"Custom",null,null,""]
[367,null,"Custom",null,null,""]
[368,null,"Custom",null,null,""]
[369,null,"Custom",null,null,""]
[370,null,"Custom",null,null,""]
[371,null,"Custom",null,null,""]
[372,null,"Custom",null,null,""]
[373,null,"Custom",null,null,""]
[374,null,"Custom",null,null,""]
[375,null,"Custom",null,null,""]

{"sheet":"Overhead Glazing","index":5,"n_rows":2017,"n_cols":6,"rows_kept":2017,"cut":false,"hidden":true,"merged":[]}
["Index","Component Description","Reference","Glazing U"]
[]
[1]
[{"$f":"A3+1","v":2},"=== Most Frequently Used ========= "]
[3,"1gl wood glass","10-6E",1.18]
[4,"2gl wood, e=0.05 argon (Code Target)","10-6E",0.5]
[5,"3gl wood, e=0.20 air","10-6E",0.47]
[6,"3gl wood, e=0.20 argon","10-6E",0.43]
[7,"3gl wood, e=0.20 on 2 surfaces air","10-6E",0.44]
[8,"3gl wood, e=0.20 on 2 surfaces argon","10-6E",0.4]
[9,"3gl wood, e=0.10 on 2 surfaces air","10-6E",0.42]
[10,"3gl wood, e=0.10 on 2 surfaces argon","10-6E",0.38]
[11,"4gl wood, e=0.10 on 2 surfaces air","10-6E",0.39]
[12,"4gl wood, e=0.10 on 2 surfaces argon","10-6E",0.36]
[13,"4gl wood, e=0.10 on 2 surfaces krypton","10-6E",0.32]
[14,"4gl Alum clad wood, e=0.10 on 2 surf krypton","10-6E",0.48]
[15,"============================="]
[16,"1gl wood glass","10-6E",1.18]
[17,"1gl wood acrylic/polycarb","10-6E",1.1100000000000001]
[18,"2gl wood clear air","10-6E",0.67]
[19,"2gl wood clear argon","10-6E",0.64]
[20,"2gl wood, e=0.20 air","10-6E",0.59]
[21,"2gl wood, e=0.20 argon","10-6E",0.54]
[22,"2gl wood, e=0.10 air","10-6E",0.57999999999999996]
[23,"2gl wood, e=0.10 argon","10-6E",0.52]
[24,"2gl wood, e=0.05 air","10-6E",0.56000000000000005]
[25,"2gl wood, e=0.05 argon","10-6E",0.5]
[26,"3gl wood clear air","10-6E",0.51]
[27,"3gl wood clear argon","10-6E",0.48]
[28,"3gl wood, e=0.20 air","10-6E",0.47]
[29,"3gl wood, e=0.20 argon","10-6E",0.43]
[30,"3gl wood, e=0.20 on 2 surfaces air","10-6E",0.44]
[31,"3gl wood, e=0.20 on 2 surfaces argon","10-6E",0.4]
[32,"3gl wood, e=0.10 on 2 surfaces air","10-6E",0.42]
[33,"3gl wood, e=0.10 on 2 surfaces argon","10-6E",0.38]
[34,"4gl wood, e=0.10 on 2 surfaces air","10-6E",0.39]
[35,"4gl wood, e=0.10 on 2 surfaces argon","10-6E",0.36]
[36,"4gl wood, e=0.10 on 2 surfaces krypton","10-6E",0.32]
[37,"1gl Alum clad wood glass","10-6E",1.4]
[38,"1gl Alum clad wood acrylic/polycarb","10-6E",1.34]
[39,"2gl Alum clad wood clear air","10-6E",0.84]
[40,"2gl Alum clad wood clear argon","10-6E",0.8]
[41,"2gl Alum clad wood, e=0.20 air","10-6E",0.75]
[42,"2gl Alum clad wood, e=0.20 argon","10-6E",0.7]
[43,"2gl Alum clad wood, e=0.10 air","10-6E",0.74]
[44,"2gl Alum clad wood, e=0.10 argon","10-6E",0.68]
[45,"2gl Alum clad wood, e=0.05 air","10-6E",0.73]
[46,"2gl Alum clad wood, e=0.05 argon","10-6E",0.66]
[47,"3gl Alum clad wood clear air","10-6E",0.67]
[48,"3gl Alum clad wood clear argon","10-6E",0.64]
[49,"3gl Alum clad wood, e=0.20 air","10-6E",0.63]
[50,"3gl Alum clad wood, e=0.20 argon","10-6E",0.59]
[51,"3gl Alum clad wood, e=0.20 on 2 surf air","10-6E",0.6]
[52,"3gl Alum clad wood, e=0.20 on 2 surf argon","10-6E",0.56000000000000005]
[53,"3gl Alum clad wood, e=0.10 on 2 surf air","10-6E",0.57999999999999996]
[54,"3gl Alum clad wood, e=0.10 on 2 surf argon","10-6E",0.54]
[55,"4gl Alum clad wood, e=0.10 on 2 surf air","10-6E",0.55000000000000004]
[56,"4gl Alum clad wood, e=0.10 on 2 surf argon","10-6E",0.52]
[57,"4gl Alum clad wood, e=0.10 on 2 surf krypton","10-6E",0.48]
[58,"1gl Alum with TB glass","10-6E",1.51]
[59,"1gl Alum with TB acrylic/polycarb","10-6E",1.45]
[60,"2gl Alum with TB clear air","10-6E",0.89]
[{"$f":"A62+1","v":61},"2gl Alum with TB clear argon","10-6E",0.86]
[62,"2gl Alum with TB, e=0.20 air","10-6E",0.8]
[63,"2gl Alum with TB, e=0.20 argon","10-6E",0.75]
[64,"2gl Alum with TB, e=0.10 air","10-6E",0.79]
[65,"2gl Alum with TB, e=0.10 argon","10-6E",0.73]
[66,"2gl Alum with TB, e=0.05 air","10-6E",0.78]
[67,"2gl Alum with TB, e=0.05 argon","10-6E",0.71]
[68,"3gl Alum with TB clear air","10-6E",0.7]
[69,"3gl Alum with TB clear argon","10-6E",0.69]
[70,"3gl Alum with TB, e=0.20 air","10-6E",0.68]
[71,"3gl Alum with TB, e=0.20 argon","10-6E",0.63]
[72,"3gl Alum with TB, e=0.20 on 2 surf air","10-6E",0.64]
[73,"3gl Alum with TB, e=0.20 on 2 surf argon","10-6E",0.6]
[74,"3gl Alum with TB, e=0.10 on 2 surfaces air","10-6E",0.62]
[75,"3gl Alum with TB, e=0.10 on 2 surf argon","10-6E",0.57999999999999996]
[76,"4gl Alum with TB, e=0.10 on 2 surfaces air","10-6E",0.59]
[77,"4gl Alum with TB, e=0.10 on 2 surf argon","10-6E",0.56000000000000005]
[78,"4gl Alum with TB, e=0.10 on 2 surf krypton","10-6E",0.52]
[79,"1gl Aluminum glass","10-6E",1.58]
[80,"1gl Aluminum acrylic/polycarb","10-6E",1.52]
[81,"2gl Aluminum clear air","10-6E",1.05]
[82,"2gl Aluminum clear argon","10-6E",1.02]
[83,"2gl Aluminum, e=0.20 air","10-6E",0.96]
[84,"2gl Aluminum, e=0.20 argon","10-6E",0.91]
[85,"2gl Aluminum, e=0.10 air","10-6E",0.94]
[86,"2gl Aluminum, e=0.10 argon","10-6E",0.89]
[87,"2gl Aluminum, e=0.05 air","10-6E",0.93]
[88,"2gl Aluminum, e=0.05 argon","10-6E",0.87]
[89,"3gl Aluminum clear air","10-6E",0.9]
[90,"3gl Aluminum clear argon","10-6E",0.87]
[91,"3gl Aluminum, e=0.20 air","10-6E",0.86]
[92,"3gl Aluminum, e=0.20 argon","10-6E",0.82]
[93,"3gl Aluminum, e=0.20 on 2 surf air","10-6E",0.82]
[94,"3gl Aluminum, e=0.20 on 2 surf argon","10-6E",0.79]
[95,"3gl Aluminum, e=0.10 on 2 surf air","10-6E",0.81]
[96,"3gl Aluminum, e=0.10 on 2 surf argon","10-6E",0.77]
[97,"4gl Aluminum, e=0.10 on 2 surf air","10-6E",0.78]
[98,"4gl Aluminum, e=0.10 on 2 surf argon","10-6E",0.74]
[99,"4gl Aluminum, e=0.10 on 2 surf krypton","10-6E",0.7]
[100,"=== Custom Entries: Use NFRC Tested Values  ================",null,null,"Notes"]
[101,null,"Custom",null,null,{"$f":"IF(AND(B104<>\"\",B103=\"\"),\"Don't skip lines\",IF(AND(D103=\"\",B103<>\"\"),\"Enter U-value\",IF(AND(D103<>\"\",B103=\"\"),\"Enter Description\",\"\")))","v":""}]
[102,null,"Custom",null,null,""]
[103,null,"Custom",null,null,""]
[104,null,"Custom",null,null,""]
[105,null,"Custom",null,null,""]
[106,null,"Custom",null,null,""]
[107,null,"Custom",null,null,""]
[108,null,"Custom",null,null,""]
[109,null,"Custom",null,null,""]
[110,null,"Custom",null,null,""]
[111,null,"Custom",null,null,""]
[112,null,"Custom",null,null,""]
[113,null,"Custom",null,null,""]
[114,null,"Custom",null,null,""]
[115,null,"Custom",null,null,""]
[116,null,"Custom",null,null,""]
[117,null,"Custom",null,null,""]
[118,null,"Custom",null,null,""]
[119,null,"Custom",null,null,""]
[120,null,"Custom",null,null,""]
[121,null,"Custom",null,null,""]
[122,null,"Custom",null,null,""]
[123,null,"Custom",null,null,""]
[124,null,"Custom",null,null,""]
[125,null,"Custom",null,null,""]
[{"$f":"A127+1","v":126},null,"Custom",null,null,""]
[127,null,"Custom",null,null,""]
[128,null,"Custom",null,null,""]
[129,null,"Custom",null,null,""]
[130,null,"Custom",null,null,""]
[131,null,"Custom",null,null,""]
[132,null,"Custom",null,null,""]
[133,null,"Custom",null,null,""]
[134,null,"Custom",null,null,""]
[135,null,"Custom",null,null,""]
[136,null,"Custom",null,null,""]
[137,null,"Custom",null,null,""]
[138,null,"Custom",null,null,""]
[139,null,"Custom",null,null,""]
[140,null,"Custom",null,null,""]
[141,null,"Custom",null,null,""]
[142,null,"Custom",null,null,""]
[143,null,"Custom",null,null,""]
[144,null,"Custom",null,null,""]
[145,null,"Custom",null,null,""]
[146,null,"Custom",null,null,""]
[147,null,"Custom",null,null,""]
[148,null,"Custom",null,null,""]
[149,null,"Custom",null,null,""]
[150,null,"Custom",null,null,""]
[151,null,"Custom",null,null,""]
[152,null,"Custom",null,null,""]
[153,null,"Custom",null,null,""]
[154,null,"Custom",null,null,""]
[155,null,"Custom",null,null,""]
[156,null,"Custom",null,null,""]
[157,null,"Custom",null,null,""]
[158,null,"Custom",null,null,""]
[159,null,"Custom",null,null,""]
[160,null,"Custom",null,null,""]
[161,null,"Custom",null,null,""]
[162,null,"Custom",null,null,""]
[163,null,"Custom",null,null,""]
[164,null,"Custom",null,null,""]
[165,null,"Custom",null,null,{"$f":"IF(AND(B168<>\"\",B167=\"\"),\"Don't skip lines\",IF(AND(D167=\"\",B167<>\"\"),\"Enter U-value\",IF(AND(D167<>\"\",B167=\"\"),\"Enter Description\",\"\")))","v":""}]
[166,null,"Custom",null,null,""]
[167,null,"Custom",null,null,""]
[168,null,"Custom",null,null,""]
[169,null,"Custom",null,null,""]
[170,null,"Custom",null,null,""]
[171,null,"Custom",null,null,""]
[172,null,"Custom",null,null,""]
[173,null,"Custom",null,null,""]
[174,null,"Custom",null,null,""]
[175,null,"Custom",null,null,""]
[176,null,"Custom",null,null,""]
[177,null,"Custom",null,null,""]
[178,null,"Custom",null,null,""]
[179,null,"Custom",null,null,""]
[180,null,"Custom",null,null,""]
[181,null,"Custom",null,null,""]
[182,null,"Custom",null,null,""]
[183,null,"Custom",null,null,""]
[184,null,"Custom",null,null,""]
[185,null,"Custom",null,null,""]
[186,null,"Custom",null,null,""]
[187,null,"Custom",null,null,""]
[188,null,"Custom",null,null,""]
[189,null,"Custom",null,null,""]
[{"$f":"A191+1","v":190},null,"Custom",null,null,""]
[191,null,"Custom",null,null,""]
[192,null,"Custom",null,null,""]
[193,null,"Custom",null,null,""]
[194,null,"Custom",null,null,""]
[195,null,"Custom",null,null,""]
[196,null,"Custom",null,null,""]
[197,null,"Custom",null,null,""]
[198,null,"Custom",null,null,""]
[199,null,"Custom",null,null,""]
[200,null,"Custom",null,null,""]
[201,null,"Custom",null,null,""]
[202,null,"Custom",null,null,""]
[203,null,"Custom",null,null,""]
[204,null,"Custom",null,null,""]
[205,null,"Custom",null,null,""]
[206,null,"Custom",null,null,""]
[207,null,"Custom",null,null,""]
[208,null,"Custom",null,null,""]
[209,null,"Custom",null,null,""]
[210,null,"Custom",null,null,""]
[211,null,"Custom",null,null,""]
[212,null,"Custom",null,null,""]
[213,null,"Custom",null,null,""]
[214,null,"Custom",null,null,""]
[215,null,"Custom",null,null,""]
[216,null,"Custom",null,null,""]
[217,null,"Custom",null,null,""]
[218,null,"Custom",null,null,""]
[219,null,"Custom",null,null,""]
[220,null,"Custom",null,null,""]
[221,null,"Custom",null,null,""]
[222,null,"Custom",null,null,""]
[223,null,"Custom",null,null,""]
[224,null,"Custom",null,null,""]
[225,null,"Custom",null,null,""]
[226,null,"Custom",null,null,""]
[227,null,"Custom",null,null,""]
[228,null,"Custom",null,null,""]
[229,null,"Custom",null,null,{"$f":"IF(AND(B232<>\"\",B231=\"\"),\"Don't skip lines\",IF(AND(D231=\"\",B231<>\"\"),\"Enter U-value\",IF(AND(D231<>\"\",B231=\"\"),\"Enter Description\",\"\")))","v":""}]
[230,null,"Custom",null,null,""]
[231,null,"Custom",null,null,""]
[232,null,"Custom",null,null,""]
[233,null,"Custom",null,null,""]
[234,null,"Custom",null,null,""]
[235,null,"Custom",null,null,""]
[236,null,"Custom",null,null,""]
[237,null,"Custom",null,null,""]
[238,null,"Custom",null,null,""]
[239,null,"Custom",null,null,""]
[240,null,"Custom",null,null,""]
[241,null,"Custom",null,null,""]
[242,null,"Custom",null,null,""]
[243,null,"Custom",null,null,""]
[244,null,"Custom",null,null,""]
[245,null,"Custom",null,null,""]
[246,null,"Custom",null,null,""]
[247,null,"Custom",null,null,""]
[248,null,"Custom",null,null,""]
[249,null,"Custom",null,null,""]
[250,null,"Custom",null,null,""]
[251,null,"Custom",null,null,""]
[252,null,"Custom",null,null,""]
[253,null,"Custom",null,null,""]
[{"$f":"A255+1","v":254},null,"Custom",null,null,""]
[255,null,"Custom",null,null,""]
[256,null,"Custom",null,null,""]
[257,null,"Custom",null,null,""]
[258,null,"Custom",null,null,""]
[259,null,"Custom",null,null,""]
[260,null,"Custom",null,null,""]
[261,null,"Custom",null,null,""]
[262,null,"Custom",null,null,""]
[263,null,"Custom",null,null,""]
[264,null,"Custom",null,null,""]
[265,null,"Custom",null,null,""]
[266,null,"Custom",null,null,""]
[267,null,"Custom",null,null,""]
[268,null,"Custom",null,null,""]
[269,null,"Custom",null,null,""]
[270,null,"Custom",null,null,""]
[271,null,"Custom",null,null,""]
[272,null,"Custom",null,null,""]
[273,null,"Custom",null,null,""]
[274,null,"Custom",null,null,""]
[275,null,"Custom",null,null,""]
[276,null,"Custom",null,null,""]
[277,null,"Custom",null,null,""]
[278,null,"Custom",null,null,""]
[279,null,"Custom",null,null,""]
[280,null,"Custom",null,null,""]
[281,null,"Custom",null,null,""]
[282,null,"Custom",null,null,""]
[283,null,"Custom",null,null,""]
[284,null,"Custom",null,null,""]
[285,null,"Custom",null,null,""]
[286,null,"Custom",null,null,""]
[287,null,"Custom",null,null,""]
[288,null,"Custom",null,null,""]
[289,null,"Custom",null,null,""]
[290,null,"Custom",null,null,""]
[291,null,"Custom",null,null,""]
[292,null,"Custom",null,null,""]
[293,null,"Custom",null,null,{"$f":"IF(AND(B296<>\"\",B295=\"\"),\"Don't skip lines\",IF(AND(D295=\"\",B295<>\"\"),\"Enter U-value\",IF(AND(D295<>\"\",B295=\"\"),\"Enter Description\",\"\")))","v":""}]
[294,null,"Custom",null,null,""]
[295,null,"Custom",null,null,""]
[296,null,"Custom",null,null,""]
[297,null,"Custom",null,null,""]
[298,null,"Custom",null,null,""]
[299,null,"Custom",null,null,""]
[300,null,"Custom",null,null,""]
[301,null,"Custom",null,null,""]
[302,null,"Custom",null,null,""]
[303,null,"Custom",null,null,""]
[304,null,"Custom",null,null,""]
[305,null,"Custom",null,null,""]
[306,null,"Custom",null,null,""]
[307,null,"Custom",null,null,""]
[308,null,"Custom",null,null,""]
[309,null,"Custom",null,null,""]
[310,null,"Custom",null,null,""]
[311,null,"Custom",null,null,""]
[312,null,"Custom",null,null,""]
[313,null,"Custom",null,null,""]
[314,null,"Custom",null,null,""]
[315,null,"Custom",null,null,""]
[316,null,"Custom",null,null,""]
[317,null,"Custom",null,null,""]
[{"$f":"A319+1","v":318},null,"Custom",null,null,""]
[319,null,"Custom",null,null,""]
[320,null,"Custom",null,null,""]
[321,null,"Custom",null,null,""]
[322,null,"Custom",null,null,""]
[323,null,"Custom",null,null,""]
[324,null,"Custom",null,null,""]
[325,null,"Custom",null,null,""]
[326,null,"Custom",null,null,""]
[327,null,"Custom",null,null,""]
[328,null,"Custom",null,null,""]
[329,null,"Custom",null,null,""]
[330,null,"Custom",null,null,""]
[331,null,"Custom",null,null,""]
[332,null,"Custom",null,null,""]
[333,null,"Custom",null,null,""]
[334,null,"Custom",null,null,""]
[335,null,"Custom",null,null,""]
[336,null,"Custom",null,null,""]
[337,null,"Custom",null,null,""]
[338,null,"Custom",null,null,""]
[339,null,"Custom",null,null,""]
[340,null,"Custom",null,null,""]
[341,null,"Custom",null,null,""]
[342,null,"Custom",null,null,""]
[343,null,"Custom",null,null,""]
[344,null,"Custom",null,null,""]
[345,null,"Custom",null,null,""]
[346,null,"Custom",null,null,""]
[347,null,"Custom",null,null,""]
[348,null,"Custom",null,null,""]
[349,null,"Custom",null,null,""]
[350,null,"Custom",null,null,""]
[351,null,"Custom",null,null,""]
[352,null,"Custom",null,null,""]
[353,null,"Custom",null,null,""]
[354,null,"Custom",null,null,""]
[355,null,"Custom",null,null,""]
[356,null,"Custom",null,null,""]
[357,null,"Custom",null,null,{"$f":"IF(AND(B360<>\"\",B359=\"\"),\"Don't skip lines\",IF(AND(D359=\"\",B359<>\"\"),\"Enter U-value\",IF(AND(D359<>\"\",B359=\"\"),\"Enter Description\",\"\")))","v":""}]
[358,null,"Custom",null,null,""]
[359,null,"Custom",null,null,""]
[360,null,"Custom",null,null,""]
[361,null,"Custom",null,null,""]
[362,null,"Custom",null,null,""]
[363,null,"Custom",null,null,""]
[364,null,"Custom",null,null,""]
[365,null,"Custom",null,null,""]
[366,null,"Custom",null,null,""]
[367,null,"Custom",null,null,""]
[368,null,"Custom",null,null,""]
[369,null,"Custom",null,null,""]
[370,null,"Custom",null,null,""]
[371,null,"Custom",null,null,""]
[372,null,"Custom",null,null,""]
[373,null,"Custom",null,null,""]
[374,null,"Custom",null,null,""]
[375,null,"Custom",null,null,""]
[376,null,"Custom",null,null,""]
[377,null,"Custom",null,null,""]
[378,null,"Custom",null,null,""]
[379,null,"Custom",null,null,""]
[380,null,"Custom",null,null,""]
[381,null,"Custom",null,null,""]
[{"$f":"A383+1","v":382},null,"Custom",null,null,""]
[383,null,"Custom",null,null,""]
[384,null,"Custom",null,null,""]
[385,null,"Custom",null,null,""]
[386,null,"Custom",null,null,""]
[387,null,"Custom",null,null,""]
[388,null,"Custom",null,null,""]
[389,null,"Custom",null,null,""]
[390,null,"Custom",null,null,""]
[391,null,"Custom",null,null,""]
[392,null,"Custom",null,null,""]
[393,null,"Custom",null,null,""]
[394,null,"Custom",null,null,""]
[395,null,"Custom",null,null,""]
[396,null,"Custom",null,null,""]
[397,null,"Custom",null,null,""]
[398,null,"Custom",null,null,""]
[399,null,"Custom",null,null,""]
[400,null,"Custom",null,null,""]
[401,null,"Custom",null,null,""]
[402,null,"Custom",null,null,""]
[403,null,"Custom",null,null,""]
[404,null,"Custom",null,null,""]
[405,null,"Custom",null,null,""]
[406,null,"Custom",null,null,""]
[407,null,"Custom",null,null,""]
[408,null,"Custom",null,null,""]
[409,null,"Custom",null,null,""]
[410,null,"Custom",null,null,""]
[411,null,"Custom",null,null,""]
[412,null,"Custom",null,null,""]
[413,null,"Custom",null,null,""]
[414,null,"Custom",null,null,""]
[415,null,"Custom",null,null,""]
[416,null,"Custom",null,null,""]
[417,null,"Custom",null,null,""]
[418,null,"Custom",null,null,""]
[419,null,"Custom",null,null,""]
[420,null,"Custom",null,null,""]
[421,null,"Custom",null,null,{"$f":"IF(AND(B424<>\"\",B423=\"\"),\"Don't skip lines\",IF(AND(D423=\"\",B423<>\"\"),\"Enter U-value\",IF(AND(D423<>\"\",B423=\"\"),\"Enter Description\",\"\")))","v":""}]
[422,null,"Custom",null,null,""]
[423,null,"Custom",null,null,""]
[424,null,"Custom",null,null,""]
[425,null,"Custom",null,null,""]
[426,null,"Custom",null,null,""]
[427,null,"Custom",null,null,""]
[428,null,"Custom",null,null,""]
[429,null,"Custom",null,null,""]
[430,null,"Custom",null,null,""]
[431,null,"Custom",null,null,""]
[432,null,"Custom",null,null,""]
[433,null,"Custom",null,null,""]
[434,null,"Custom",null,null,""]
[435,null,"Custom",null,null,""]
[436,null,"Custom",null,null,""]
[437,null,"Custom",null,null,""]
[438,null,"Custom",null,null,""]
[439,null,"Custom",null,null,""]
[440,null,"Custom",null,null,""]
[441,null,"Custom",null,null,""]
[442,null,"Custom",null,null,""]
[443,null,"Custom",null,null,""]
[444,null,"Custom",null,null,""]
[445,null,"Custom",null,null,""]
[{"$f":"A447+1","v":446},null,"Custom",null,null,""]
[447,null,"Custom",null,null,""]
[448,null,"Custom",null,null,""]
[449,null,"Custom",null,null,""]
[450,null,"Custom",null,null,""]
[451,null,"Custom",null,null,""]
[452,null,"Custom",null,null,""]
[453,null,"Custom",null,null,""]
[454,null,"Custom",null,null,""]
[455,null,"Custom",null,null,""]
[456,null,"Custom",null,null,""]
[457,null,"Custom",null,null,""]
[458,null,"Custom",null,null,""]
[459,null,"Custom",null,null,""]
[460,null,"Custom",null,null,""]
[461,null,"Custom",null,null,""]
[462,null,"Custom",null,null,""]
[463,null,"Custom",null,null,""]
[464,null,"Custom",null,null,""]
[465,null,"Custom",null,null,""]
[466,null,"Custom",null,null,""]
[467,null,"Custom",null,null,""]
[468,null,"Custom",null,null,""]
[469,null,"Custom",null,null,""]
[470,null,"Custom",null,null,""]
[471,null,"Custom",null,null,""]
[472,null,"Custom",null,null,""]
[473,null,"Custom",null,null,""]
[474,null,"Custom",null,null,""]
[475,null,"Custom",null,null,""]
[476,null,"Custom",null,null,""]
[477,null,"Custom",null,null,""]
[478,null,"Custom",null,null,""]
[479,null,"Custom",null,null,""]
[480,null,"Custom",null,null,""]
[481,null,"Custom",null,null,""]
[482,null,"Custom",null,null,""]
[483,null,"Custom",null,null,""]
[484,null,"Custom",null,null,""]
[485,null,"Custom",null,null,{"$f":"IF(AND(B488<>\"\",B487=\"\"),\"Don't skip lines\",IF(AND(D487=\"\",B487<>\"\"),\"Enter U-value\",IF(AND(D487<>\"\",B487=\"\"),\"Enter Description\",\"\")))","v":""}]
[486,null,"Custom",null,null,""]
[487,null,"Custom",null,null,""]
[488,null,"Custom",null,null,""]
[489,null,"Custom",null,null,""]
[490,null,"Custom",null,null,""]
[491,null,"Custom",null,null,""]
[492,null,"Custom",null,null,""]
[493,null,"Custom",null,null,""]
[494,null,"Custom",null,null,""]
[495,null,"Custom",null,null,""]
[496,null,"Custom",null,null,""]
[497,null,"Custom",null,null,""]
[498,null,"Custom",null,null,""]
[499,null,"Custom",null,null,""]
[500,null,"Custom",null,null,""]
[501,null,"Custom",null,null,""]
[502,null,"Custom",null,null,""]
[503,null,"Custom",null,null,""]
[504,null,"Custom",null,null,""]
[505,null,"Custom",null,null,""]
[506,null,"Custom",null,null,""]
[507,null,"Custom",null,null,""]
[508,null,"Custom",null,null,""]
[509,null,"Custom",null,null,""]
[{"$f":"A511+1","v":510},null,"Custom",null,null,""]
[511,null,"Custom",null,null,""]
[512,null,"Custom",null,null,""]
[513,null,"Custom",null,null,""]
[514,null,"Custom",null,null,""]
[515,null,"Custom",null,null,""]
[516,null,"Custom",null,null,""]
[517,null,"Custom",null,null,""]
[518,null,"Custom",null,null,""]
[519,null,"Custom",null,null,""]
[520,null,"Custom",null,null,""]
[521,null,"Custom",null,null,""]
[522,null,"Custom",null,null,""]
[523,null,"Custom",null,null,""]
[524,null,"Custom",null,null,""]
[525,null,"Custom",null,null,""]
[526,null,"Custom",null,null,""]
[527,null,"Custom",null,null,""]
[528,null,"Custom",null,null,""]
[529,null,"Custom",null,null,""]
[530,null,"Custom",null,null,""]
[531,null,"Custom",null,null,""]
[532,null,"Custom",null,null,""]
[533,null,"Custom",null,null,""]
[534,null,"Custom",null,null,""]
[535,null,"Custom",null,null,""]
[536,null,"Custom",null,null,""]
[537,null,"Custom",null,null,""]
[538,null,"Custom",null,null,""]
[539,null,"Custom",null,null,""]
[540,null,"Custom",null,null,""]
[541,null,"Custom",null,null,""]
[542,null,"Custom",null,null,""]
[543,null,"Custom",null,null,""]
[544,null,"Custom",null,null,""]
[545,null,"Custom",null,null,""]
[546,null,"Custom",null,null,""]
[547,null,"Custom",null,null,""]
[548,null,"Custom",null,null,""]
[549,null,"Custom",null,null,{"$f":"IF(AND(B552<>\"\",B551=\"\"),\"Don't skip lines\",IF(AND(D551=\"\",B551<>\"\"),\"Enter U-value\",IF(AND(D551<>\"\",B551=\"\"),\"Enter Description\",\"\")))","v":""}]
[550,null,"Custom",null,null,""]
[551,null,"Custom",null,null,""]
[552,null,"Custom",null,null,""]
[553,null,"Custom",null,null,""]
[554,null,"Custom",null,null,""]
[555,null,"Custom",null,null,""]
[556,null,"Custom",null,null,""]
[557,null,"Custom",null,null,""]
[558,null,"Custom",null,null,""]
[559,null,"Custom",null,null,""]
[560,null,"Custom",null,null,""]
[561,null,"Custom",null,null,""]
[562,null,"Custom",null,null,""]
[563,null,"Custom",null,null,""]
[564,null,"Custom",null,null,""]
[565,null,"Custom",null,null,""]
[566,null,"Custom",null,null,""]
[567,null,"Custom",null,null,""]
[568,null,"Custom",null,null,""]
[569,null,"Custom",null,null,""]
[570,null,"Custom",null,null,""]
[571,null,"Custom",null,null,""]
[572,null,"Custom",null,null,""]
[573,null,"Custom",null,null,""]
[{"$f":"A575+1","v":574},null,"Custom",null,null,""]
[575,null,"Custom",null,null,""]
[576,null,"Custom",null,null,""]
[577,null,"Custom",null,null,""]
[578,null,"Custom",null,null,""]
[579,null,"Custom",null,null,""]
[580,null,"Custom",null,null,""]
[581,null,"Custom",null,null,""]
[582,null,"Custom",null,null,""]
[583,null,"Custom",null,null,""]
[584,null,"Custom",null,null,""]
[585,null,"Custom",null,null,""]
[586,null,"Custom",null,null,""]
[587,null,"Custom",null,null,""]
[588,null,"Custom",null,null,""]
[589,null,"Custom",null,null,""]
[590,null,"Custom",null,null,""]
[591,null,"Custom",null,null,""]
[592,null,"Custom",null,null,""]
[593,null,"Custom",null,null,""]
[594,null,"Custom",null,null,""]
[595,null,"Custom",null,null,""]
[596,null,"Custom",null,null,""]
[597,null,"Custom",null,null,""]
[598,null,"Custom",null,null,""]
[599,null,"Custom",null,null,""]
[600,null,"Custom",null,null,""]
[601,null,"Custom",null,null,""]
[602,null,"Custom",null,null,""]
[603,null,"Custom",null,null,""]
[604,null,"Custom",null,null,""]
[605,null,"Custom",null,null,""]
[606,null,"Custom",null,null,""]
[607,null,"Custom",null,null,""]
[608,null,"Custom",null,null,""]
[609,null,"Custom",null,null,""]
[610,null,"Custom",null,null,""]
[611,null,"Custom",null,null,""]
[612,null,"Custom",null,null,""]
[613,null,"Custom",null,null,{"$f":"IF(AND(B616<>\"\",B615=\"\"),\"Don't skip lines\",IF(AND(D615=\"\",B615<>\"\"),\"Enter U-value\",IF(AND(D615<>\"\",B615=\"\"),\"Enter Description\",\"\")))","v":""}]
[614,null,"Custom",null,null,""]
[615,null,"Custom",null,null,""]
[616,null,"Custom",null,null,""]
[617,null,"Custom",null,null,""]
[618,null,"Custom",null,null,""]
[619,null,"Custom",null,null,""]
[620,null,"Custom",null,null,""]
[621,null,"Custom",null,null,""]
[622,null,"Custom",null,null,""]
[623,null,"Custom",null,null,""]
[624,null,"Custom",null,null,""]
[625,null,"Custom",null,null,""]
[626,null,"Custom",null,null,""]
[627,null,"Custom",null,null,""]
[628,null,"Custom",null,null,""]
[629,null,"Custom",null,null,""]
[630,null,"Custom",null,null,""]
[631,null,"Custom",null,null,""]
[632,null,"Custom",null,null,""]
[633,null,"Custom",null,null,""]
[634,null,"Custom",null,null,""]
[635,null,"Custom",null,null,""]
[636,null,"Custom",null,null,""]
[637,null,"Custom",null,null,""]
[{"$f":"A639+1","v":638},null,"Custom",null,null,""]
[639,null,"Custom",null,null,""]
[640,null,"Custom",null,null,""]
[641,null,"Custom",null,null,""]
[642,null,"Custom",null,null,""]
[643,null,"Custom",null,null,""]
[644,null,"Custom",null,null,""]
[645,null,"Custom",null,null,""]
[646,null,"Custom",null,null,""]
[647,null,"Custom",null,null,""]
[648,null,"Custom",null,null,""]
[649,null,"Custom",null,null,""]
[650,null,"Custom",null,null,""]
[651,null,"Custom",null,null,""]
[652,null,"Custom",null,null,""]
[653,null,"Custom",null,null,""]
[654,null,"Custom",null,null,""]
[655,null,"Custom",null,null,""]
[656,null,"Custom",null,null,""]
[657,null,"Custom",null,null,""]
[658,null,"Custom",null,null,""]
[659,null,"Custom",null,null,""]
[660,null,"Custom",null,null,""]
[661,null,"Custom",null,null,""]
[662,null,"Custom",null,null,""]
[663,null,"Custom",null,null,""]
[664,null,"Custom",null,null,""]
[665,null,"Custom",null,null,""]
[666,null,"Custom",null,null,""]
[667,null,"Custom",null,null,""]
[668,null,"Custom",null,null,""]
[669,null,"Custom",null,null,""]
[670,null,"Custom",null,null,""]
[671,null,"Custom",null,null,""]
[672,null,"Custom",null,null,""]
[673,null,"Custom",null,null,""]
[674,null,"Custom",null,null,""]
[675,null,"Custom",null,null,""]
[676,null,"Custom",null,null,""]
[677,null,"Custom",null,null,{"$f":"IF(AND(B680<>\"\",B679=\"\"),\"Don't skip lines\",IF(AND(D679=\"\",B679<>\"\"),\"Enter U-value\",IF(AND(D679<>\"\",B679=\"\"),\"Enter Description\",\"\")))","v":""}]
[678,null,"Custom",null,null,""]
[679,null,"Custom",null,null,""]
[680,null,"Custom",null,null,""]
[681,null,"Custom",null,null,""]
[682,null,"Custom",null,null,""]
[683,null,"Custom",null,null,""]
[684,null,"Custom",null,null,""]
[685,null,"Custom",null,null,""]
[686,null,"Custom",null,null,""]
[687,null,"Custom",null,null,""]
[688,null,"Custom",null,null,""]
[689,null,"Custom",null,null,""]
[690,null,"Custom",null,null,""]
[691,null,"Custom",null,null,""]
[692,null,"Custom",null,null,""]
[693,null,"Custom",null,null,""]
[694,null,"Custom",null,null,""]
[695,null,"Custom",null,null,""]
[696,null,"Custom",null,null,""]
[697,null,"Custom",null,null,""]
[698,null,"Custom",null,null,""]
[699,null,"Custom",null,null,""]
[700,null,"Custom",null,null,""]
[701,null,"Custom",null,null,""]
[{"$f":"A703+1","v":702},null,"Custom",null,null,""]
[703,null,"Custom",null,null,""]
[704,null,"Custom",null,null,""]
[705,null,"Custom",null,null,""]
[706,null,"Custom",null,null,""]
[707,null,"Custom",null,null,""]
[708,null,"Custom",null,null,""]
[709,null,"Custom",null,null,""]
[710,null,"Custom",null,null,""]
[711,null,"Custom",null,null,""]
[712,null,"Custom",null,null,""]
[713,null,"Custom",null,null,""]
[714,null,"Custom",null,null,""]
[715,null,"Custom",null,null,""]
[716,null,"Custom",null,null,""]
[717,null,"Custom",null,null,""]
[718,null,"Custom",null,null,""]
[719,null,"Custom",null,null,""]
[720,null,"Custom",null,null,""]
[721,null,"Custom",null,null,""]
[722,null,"Custom",null,null,""]
[723,null,"Custom",null,null,""]
[724,null,"Custom",null,null,""]
[725,null,"Custom",null,null,""]
[726,null,"Custom",null,null,""]
[727,null,"Custom",null,null,""]
[728,null,"Custom",null,null,""]
[729,null,"Custom",null,null,""]
[730,null,"Custom",null,null,""]
[731,null,"Custom",null,null,""]
[732,null,"Custom",null,null,""]
[733,null,"Custom",null,null,""]
[734,null,"Custom",null,null,""]
[735,null,"Custom",null,null,""]
[736,null,"Custom",null,null,""]
[737,null,"Custom",null,null,""]
[738,null,"Custom",null,null,""]
[739,null,"Custom",null,null,""]
[740,null,"Custom",null,null,""]
[741,null,"Custom",null,null,{"$f":"IF(AND(B744<>\"\",B743=\"\"),\"Don't skip lines\",IF(AND(D743=\"\",B743<>\"\"),\"Enter U-value\",IF(AND(D743<>\"\",B743=\"\"),\"Enter Description\",\"\")))","v":""}]
[742,null,"Custom",null,null,""]
[743,null,"Custom",null,null,""]
[744,null,"Custom",null,null,""]
[745,null,"Custom",null,null,""]
[746,null,"Custom",null,null,""]
[747,null,"Custom",null,null,""]
[748,null,"Custom",null,null,""]
[749,null,"Custom",null,null,""]
[750,null,"Custom",null,null,""]
[751,null,"Custom",null,null,""]
[752,null,"Custom",null,null,""]
[753,null,"Custom",null,null,""]
[754,null,"Custom",null,null,""]
[755,null,"Custom",null,null,""]
[756,null,"Custom",null,null,""]
[757,null,"Custom",null,null,""]
[758,null,"Custom",null,null,""]
[759,null,"Custom",null,null,""]
[760,null,"Custom",null,null,""]
[761,null,"Custom",null,null,""]
[762,null,"Custom",null,null,""]
[763,null,"Custom",null,null,""]
[764,null,"Custom",null,null,""]
[765,null,"Custom",null,null,""]
[{"$f":"A767+1","v":766},null,"Custom",null,null,""]
[767,null,"Custom",null,null,""]
[768,null,"Custom",null,null,""]
[769,null,"Custom",null,null,""]
[770,null,"Custom",null,null,""]
[771,null,"Custom",null,null,""]
[772,null,"Custom",null,null,""]
[773,null,"Custom",null,null,""]
[774,null,"Custom",null,null,""]
[775,null,"Custom",null,null,""]
[776,null,"Custom",null,null,""]
[777,null,"Custom",null,null,""]
[778,null,"Custom",null,null,""]
[779,null,"Custom",null,null,""]
[780,null,"Custom",null,null,""]
[781,null,"Custom",null,null,""]
[782,null,"Custom",null,null,""]
[783,null,"Custom",null,null,""]
[784,null,"Custom",null,null,""]
[785,null,"Custom",null,null,""]
[786,null,"Custom",null,null,""]
[787,null,"Custom",null,null,""]
[788,null,"Custom",null,null,""]
[789,null,"Custom",null,null,""]
[790,null,"Custom",null,null,""]
[791,null,"Custom",null,null,""]
[792,null,"Custom",null,null,""]
[793,null,"Custom",null,null,""]
[794,null,"Custom",null,null,""]
[795,null,"Custom",null,null,""]
[796,null,"Custom",null,null,""]
[797,null,"Custom",null,null,""]
[798,null,"Custom",null,null,""]
[799,null,"Custom",null,null,""]
[800,null,"Custom",null,null,""]
[801,null,"Custom",null,null,""]
[802,null,"Custom",null,null,""]
[803,null,"Custom",null,null,""]
[804,null,"Custom",null,null,""]
[805,null,"Custom",null,null,{"$f":"IF(AND(B808<>\"\",B807=\"\"),\"Don't skip lines\",IF(AND(D807=\"\",B807<>\"\"),\"Enter U-value\",IF(AND(D807<>\"\",B807=\"\"),\"Enter Description\",\"\")))","v":""}]
[806,null,"Custom",null,null,""]
[807,null,"Custom",null,null,""]
[808,null,"Custom",null,null,""]
[809,null,"Custom",null,null,""]
[810,null,"Custom",null,null,""]
[811,null,"Custom",null,null,""]
[812,null,"Custom",null,null,""]
[813,null,"Custom",null,null,""]
[814,null,"Custom",null,null,""]
[815,null,"Custom",null,null,""]
[816,null,"Custom",null,null,""]
[817,null,"Custom",null,null,""]
[818,null,"Custom",null,null,""]
[819,null,"Custom",null,null,""]
[820,null,"Custom",null,null,""]
[821,null,"Custom",null,null,""]
[822,null,"Custom",null,null,""]
[823,null,"Custom",null,null,""]
[824,null,"Custom",null,null,""]
[825,null,"Custom",null,null,""]
[826,null,"Custom",null,null,""]
[827,null,"Custom",null,null,""]
[828,null,"Custom",null,null,""]
[829,null,"Custom",null,null,""]
[{"$f":"A831+1","v":830},null,"Custom",null,null,""]
[831,null,"Custom",null,null,""]
[832,null,"Custom",null,null,""]
[833,null,"Custom",null,null,""]
[834,null,"Custom",null,null,""]
[835,null,"Custom",null,null,""]
[836,null,"Custom",null,null,""]
[837,null,"Custom",null,null,""]
[838,null,"Custom",null,null,""]
[839,null,"Custom",null,null,""]
[840,null,"Custom",null,null,""]
[841,null,"Custom",null,null,""]
[842,null,"Custom",null,null,""]
[843,null,"Custom",null,null,""]
[844,null,"Custom",null,null,""]
[845,null,"Custom",null,null,""]
[846,null,"Custom",null,null,""]
[847,null,"Custom",null,null,""]
[848,null,"Custom",null,null,""]
[849,null,"Custom",null,null,""]
[850,null,"Custom",null,null,""]
[851,null,"Custom",null,null,""]
[852,null,"Custom",null,null,""]
[853,null,"Custom",null,null,""]
[854,null,"Custom",null,null,""]
[855,null,"Custom",null,null,""]
[856,null,"Custom",null,null,""]
[857,null,"Custom",null,null,""]
[858,null,"Custom",null,null,""]
[859,null,"Custom",null,null,""]
[860,null,"Custom",null,null,""]
[861,null,"Custom",null,null,""]
[862,null,"Custom",null,null,""]
[863,null,"Custom",null,null,""]
[864,null,"Custom",null,null,""]
[865,null,"Custom",null,null,""]
[866,null,"Custom",null,null,""]
[867,null,"Custom",null,null,""]
[868,null,"Custom",null,null,""]
[869,null,"Custom",null,null,{"$f":"IF(AND(B872<>\"\",B871=\"\"),\"Don't skip lines\",IF(AND(D871=\"\",B871<>\"\"),\"Enter U-value\",IF(AND(D871<>\"\",B871=\"\"),\"Enter Description\",\"\")))","v":""}]
[870,null,"Custom",null,null,""]
[871,null,"Custom",null,null,""]
[872,null,"Custom",null,null,""]
[873,null,"Custom",null,null,""]
[874,null,"Custom",null,null,""]
[875,null,"Custom",null,null,""]
[876,null,"Custom",null,null,""]
[877,null,"Custom",null,null,""]
[878,null,"Custom",null,null,""]
[879,null,"Custom",null,null,""]
[880,null,"Custom",null,null,""]
[881,null,"Custom",null,null,""]
[882,null,"Custom",null,null,""]
[883,null,"Custom",null,null,""]
[884,null,"Custom",null,null,""]
[885,null,"Custom",null,null,""]
[886,null,"Custom",null,null,""]
[887,null,"Custom",null,null,""]
[888,null,"Custom",null,null,""]
[889,null,"Custom",null,null,""]
[890,null,"Custom",null,null,""]
[891,null,"Custom",null,null,""]
[892,null,"Custom",null,null,""]
[893,null,"Custom",null,null,""]
[{"$f":"A895+1","v":894},null,"Custom",null,null,""]
[895,null,"Custom",null,null,""]
[896,null,"Custom",null,null,""]
[897,null,"Custom",null,null,""]
[898,null,"Custom",null,null,""]
[899,null,"Custom",null,null,""]
[900,null,"Custom",null,null,""]
[901,null,"Custom",null,null,""]
[902,null,"Custom",null,null,""]
[903,null,"Custom",null,null,""]
[904,null,"Custom",null,null,""]
[905,null,"Custom",null,null,""]
[906,null,"Custom",null,null,""]
[907,null,"Custom",null,null,""]
[908,null,"Custom",null,null,""]
[909,null,"Custom",null,null,""]
[910,null,"Custom",null,null,""]
[911,null,"Custom",null,null,""]
[912,null,"Custom",null,null,""]
[913,null,"Custom",null,null,""]
[914,null,"Custom",null,null,""]
[915,null,"Custom",null,null,""]
[916,null,"Custom",null,null,""]
[917,null,"Custom",null,null,""]
[918,null,"Custom",null,null,""]
[919,null,"Custom",null,null,""]
[920,null,"Custom",null,null,""]
[921,null,"Custom",null,null,""]
[922,null,"Custom",null,null,""]
[923,null,"Custom",null,null,""]
[924,null,"Custom",null,null,""]
[925,null,"Custom",null,null,""]
[926,null,"Custom",null,null,""]
[927,null,"Custom",null,null,""]
[928,null,"Custom",null,null,""]
[929,null,"Custom",null,null,""]
[930,null,"Custom",null,null,""]
[931,null,"Custom",null,null,""]
[932,null,"Custom",null,null,""]
[933,null,"Custom",null,null,{"$f":"IF(AND(B936<>\"\",B935=\"\"),\"Don't skip lines\",IF(AND(D935=\"\",B935<>\"\"),\"Enter U-value\",IF(AND(D935<>\"\",B935=\"\"),\"Enter Description\",\"\")))","v":""}]
[934,null,"Custom",null,null,""]
[935,null,"Custom",null,null,""]
[936,null,"Custom",null,null,""]
[937,null,"Custom",null,null,""]
[938,null,"Custom",null,null,""]
[939,null,"Custom",null,null,""]
[940,null,"Custom",null,null,""]
[941,null,"Custom",null,null,""]
[942,null,"Custom",null,null,""]
[943,null,"Custom",null,null,""]
[944,null,"Custom",null,null,""]
[945,null,"Custom",null,null,""]
[946,null,"Custom",null,null,""]
[947,null,"Custom",null,null,""]
[948,null,"Custom",null,null,""]
[949,null,"Custom",null,null,""]
[950,null,"Custom",null,null,""]
[951,null,"Custom",null,null,""]
[952,null,"Custom",null,null,""]
[953,null,"Custom",null,null,""]
[954,null,"Custom",null,null,""]
[955,null,"Custom",null,null,""]
[956,null,"Custom",null,null,""]
[957,null,"Custom",null,null,""]
[{"$f":"A959+1","v":958},null,"Custom",null,null,""]
[959,null,"Custom",null,null,""]
[960,null,"Custom",null,null,""]
[961,null,"Custom",null,null,""]
[962,null,"Custom",null,null,""]
[963,null,"Custom",null,null,""]
[964,null,"Custom",null,null,""]
[965,null,"Custom",null,null,""]
[966,null,"Custom",null,null,""]
[967,null,"Custom",null,null,""]
[968,null,"Custom",null,null,""]
[969,null,"Custom",null,null,""]
[970,null,"Custom",null,null,""]
[971,null,"Custom",null,null,""]
[972,null,"Custom",null,null,""]
[973,null,"Custom",null,null,""]
[974,null,"Custom",null,null,""]
[975,null,"Custom",null,null,""]
[976,null,"Custom",null,null,""]
[977,null,"Custom",null,null,""]
[978,null,"Custom",null,null,""]
[979,null,"Custom",null,null,""]
[980,null,"Custom",null,null,""]
[981,null,"Custom",null,null,""]
[982,null,"Custom",null,null,""]
[983,null,"Custom",null,null,""]
[984,null,"Custom",null,null,""]
[985,null,"Custom",null,null,""]
[986,null,"Custom",null,null,""]
[987,null,"Custom",null,null,""]
[988,null,"Custom",null,null,""]
[989,null,"Custom",null,null,""]
[990,null,"Custom",null,null,""]
[991,null,"Custom",null,null,""]
[992,null,"Custom",null,null,""]
[993,null,"Custom",null,null,""]
[994,null,"Custom",null,null,""]
[995,null,"Custom",null,null,""]
[996,null,"Custom",null,null,""]
[997,null,"Custom",null,null,{"$f":"IF(AND(B1000<>\"\",B999=\"\"),\"Don't skip lines\",IF(AND(D999=\"\",B999<>\"\"),\"Enter U-value\",IF(AND(D999<>\"\",B999=\"\"),\"Enter Description\",\"\")))","v":""}]
[998,null,"Custom",null,null,""]
[999,null,"Custom",null,null,""]
[1000,null,"Custom",null,null,""]
[1001,null,"Custom",null,null,""]
[1002,null,"Custom",null,null,""]
[1003,null,"Custom",null,null,""]
[1004,null,"Custom",null,null,""]
[1005,null,"Custom",null,null,""]
[1006,null,"Custom",null,null,""]
[1007,null,"Custom",null,null,""]
[1008,null,"Custom",null,null,""]
[1009,null,"Custom",null,null,""]
[1010,null,"Custom",null,null,""]
[1011,null,"Custom",null,null,""]
[1012,null,"Custom",null,null,""]
[1013,null,"Custom",null,null,""]
[1014,null,"Custom",null,null,""]
[1015,null,"Custom",null,null,""]
[1016,null,"Custom",null,null,""]
[1017,null,"Custom",null,null,""]
[1018,null,"Custom",null,null,""]
[1019,null,"Custom",null,null,""]
[1020,null,"Custom",null,null,""]
[1021,null,"Custom",null,null,""]
[{"$f":"A1023+1","v":1022},null,"Custom",null,null,""]
[1023,null,"Custom",null,null,""]
[1024,null,"Custom",null,null,""]
[1025,null,"Custom",null,null,""]
[1026,null,"Custom",null,null,""]
[1027,null,"Custom",null,null,""]
[1028,null,"Custom",null,null,""]
[1029,null,"Custom",null,null,""]
[1030,null,"Custom",null,null,""]
[1031,null,"Custom",null,null,""]
[1032,null,"Custom",null,null,""]
[1033,null,"Custom",null,null,""]
[1034,null,"Custom",null,null,""]
[1035,null,"Custom",null,null,""]
[1036,null,"Custom",null,null,""]
[1037,null,"Custom",null,null,""]
[1038,null,"Custom",null,null,""]
[1039,null,"Custom",null,null,""]
[1040,null,"Custom",null,null,""]
[1041,null,"Custom",null,null,""]
[1042,null,"Custom",null,null,""]
[1043,null,"Custom",null,null,""]
[1044,null,"Custom",null,null,""]
[1045,null,"Custom",null,null,""]
[1046,null,"Custom",null,null,""]
[1047,null,"Custom",null,null,""]
[1048,null,"Custom",null,null,""]
[1049,null,"Custom",null,null,""]
[1050,null,"Custom",null,null,""]
[1051,null,"Custom",null,null,""]
[1052,null,"Custom",null,null,""]
[1053,null,"Custom",null,null,""]
[1054,null,"Custom",null,null,""]
[1055,null,"Custom",null,null,""]
[1056,null,"Custom",null,null,""]
[1057,null,"Custom",null,null,""]
[1058,null,"Custom",null,null,""]
[1059,null,"Custom",null,null,""]
[1060,null,"Custom",null,null,""]
[1061,null,"Custom",null,null,{"$f":"IF(AND(B1064<>\"\",B1063=\"\"),\"Don't skip lines\",IF(AND(D1063=\"\",B1063<>\"\"),\"Enter U-value\",IF(AND(D1063<>\"\",B1063=\"\"),\"Enter Description\",\"\")))","v":""}]
[1062,null,"Custom",null,null,""]
[1063,null,"Custom",null,null,""]
[1064,null,"Custom",null,null,""]
[1065,null,"Custom",null,null,""]
[1066,null,"Custom",null,null,""]
[1067,null,"Custom",null,null,""]
[1068,null,"Custom",null,null,""]
[1069,null,"Custom",null,null,""]
[1070,null,"Custom",null,null,""]
[1071,null,"Custom",null,null,""]
[1072,null,"Custom",null,null,""]
[1073,null,"Custom",null,null,""]
[1074,null,"Custom",null,null,""]
[1075,null,"Custom",null,null,""]
[1076,null,"Custom",null,null,""]
[1077,null,"Custom",null,null,""]
[1078,null,"Custom",null,null,""]
[1079,null,"Custom",null,null,""]
[1080,null,"Custom",null,null,""]
[1081,null,"Custom",null,null,""]
[1082,null,"Custom",null,null,""]
[1083,null,"Custom",null,null,""]
[1084,null,"Custom",null,null,""]
[1085,null,"Custom",null,null,""]
[{"$f":"A1087+1","v":1086},null,"Custom",null,null,""]
[1087,null,"Custom",null,null,""]
[1088,null,"Custom",null,null,""]
[1089,null,"Custom",null,null,""]
[1090,null,"Custom",null,null,""]
[1091,null,"Custom",null,null,""]
[1092,null,"Custom",null,null,""]
[1093,null,"Custom",null,null,""]
[1094,null,"Custom",null,null,""]
[1095,null,"Custom",null,null,""]
[1096,null,"Custom",null,null,""]
[1097,null,"Custom",null,null,""]
[1098,null,"Custom",null,null,""]
[1099,null,"Custom",null,null,""]
[1100,null,"Custom",null,null,""]
[1101,null,"Custom",null,null,""]
[1102,null,"Custom",null,null,""]
[1103,null,"Custom",null,null,""]
[1104,null,"Custom",null,null,""]
[1105,null,"Custom",null,null,""]
[1106,null,"Custom",null,null,""]
[1107,null,"Custom",null,null,""]
[1108,null,"Custom",null,null,""]
[1109,null,"Custom",null,null,""]
[1110,null,"Custom",null,null,""]
[1111,null,"Custom",null,null,""]
[1112,null,"Custom",null,null,""]
[1113,null,"Custom",null,null,""]
[1114,null,"Custom",null,null,""]
[1115,null,"Custom",null,null,""]
[1116,null,"Custom",null,null,""]
[1117,null,"Custom",null,null,""]
[1118,null,"Custom",null,null,""]
[1119,null,"Custom",null,null,""]
[1120,null,"Custom",null,null,""]
[1121,null,"Custom",null,null,""]
[1122,null,"Custom",null,null,""]
[1123,null,"Custom",null,null,""]
[1124,null,"Custom",null,null,""]
[1125,null,"Custom",null,null,{"$f":"IF(AND(B1128<>\"\",B1127=\"\"),\"Don't skip lines\",IF(AND(D1127=\"\",B1127<>\"\"),\"Enter U-value\",IF(AND(D1127<>\"\",B1127=\"\"),\"Enter Description\",\"\")))","v":""}]
[1126,null,"Custom",null,null,""]
[1127,null,"Custom",null,null,""]
[1128,null,"Custom",null,null,""]
[1129,null,"Custom",null,null,""]
[1130,null,"Custom",null,null,""]
[1131,null,"Custom",null,null,""]
[1132,null,"Custom",null,null,""]
[1133,null,"Custom",null,null,""]
[1134,null,"Custom",null,null,""]
[1135,null,"Custom",null,null,""]
[1136,null,"Custom",null,null,""]
[1137,null,"Custom",null,null,""]
[1138,null,"Custom",null,null,""]
[1139,null,"Custom",null,null,""]
[1140,null,"Custom",null,null,""]
[1141,null,"Custom",null,null,""]
[1142,null,"Custom",null,null,""]
[1143,null,"Custom",null,null,""]
[1144,null,"Custom",null,null,""]
[1145,null,"Custom",null,null,""]
[1146,null,"Custom",null,null,""]
[1147,null,"Custom",null,null,""]
[1148,null,"Custom",null,null,""]
[1149,null,"Custom",null,null,""]
[{"$f":"A1151+1","v":1150},null,"Custom",null,null,""]
[1151,null,"Custom",null,null,""]
[1152,null,"Custom",null,null,""]
[1153,null,"Custom",null,null,""]
[1154,null,"Custom",null,null,""]
[1155,null,"Custom",null,null,""]
[1156,null,"Custom",null,null,""]
[1157,null,"Custom",null,null,""]
[1158,null,"Custom",null,null,""]
[1159,null,"Custom",null,null,""]
[1160,null,"Custom",null,null,""]
[1161,null,"Custom",null,null,""]
[1162,null,"Custom",null,null,""]
[1163,null,"Custom",null,null,""]
[1164,null,"Custom",null,null,""]
[1165,null,"Custom",null,null,""]
[1166,null,"Custom",null,null,""]
[1167,null,"Custom",null,null,""]
[1168,null,"Custom",null,null,""]
[1169,null,"Custom",null,null,""]
[1170,null,"Custom",null,null,""]
[1171,null,"Custom",null,null,""]
[1172,null,"Custom",null,null,""]
[1173,null,"Custom",null,null,""]
[1174,null,"Custom",null,null,""]
[1175,null,"Custom",null,null,""]
[1176,null,"Custom",null,null,""]
[1177,null,"Custom",null,null,""]
[1178,null,"Custom",null,null,""]
[1179,null,"Custom",null,null,""]
[1180,null,"Custom",null,null,""]
[1181,null,"Custom",null,null,""]
[1182,null,"Custom",null,null,""]
[1183,null,"Custom",null,null,""]
[1184,null,"Custom",null,null,""]
[1185,null,"Custom",null,null,""]
[1186,null,"Custom",null,null,""]
[1187,null,"Custom",null,null,""]
[1188,null,"Custom",null,null,""]
[1189,null,"Custom",null,null,{"$f":"IF(AND(B1192<>\"\",B1191=\"\"),\"Don't skip lines\",IF(AND(D1191=\"\",B1191<>\"\"),\"Enter U-value\",IF(AND(D1191<>\"\",B1191=\"\"),\"Enter Description\",\"\")))","v":""}]
[1190,null,"Custom",null,null,""]
[1191,null,"Custom",null,null,""]
[1192,null,"Custom",null,null,""]
[1193,null,"Custom",null,null,""]
[1194,null,"Custom",null,null,""]
[1195,null,"Custom",null,null,""]
[1196,null,"Custom",null,null,""]
[1197,null,"Custom",null,null,""]
[1198,null,"Custom",null,null,""]
[1199,null,"Custom",null,null,""]
[1200,null,"Custom",null,null,""]
[1201,null,"Custom",null,null,""]
[1202,null,"Custom",null,null,""]
[1203,null,"Custom",null,null,""]
[1204,null,"Custom",null,null,""]
[1205,null,"Custom",null,null,""]
[1206,null,"Custom",null,null,""]
[1207,null,"Custom",null,null,""]
[1208,null,"Custom",null,null,""]
[1209,null,"Custom",null,null,""]
[1210,null,"Custom",null,null,""]
[1211,null,"Custom",null,null,""]
[1212,null,"Custom",null,null,""]
[1213,null,"Custom",null,null,""]
[{"$f":"A1215+1","v":1214},null,"Custom",null,null,""]
[1215,null,"Custom",null,null,""]
[1216,null,"Custom",null,null,""]
[1217,null,"Custom",null,null,""]
[1218,null,"Custom",null,null,""]
[1219,null,"Custom",null,null,""]
[1220,null,"Custom",null,null,""]
[1221,null,"Custom",null,null,""]
[1222,null,"Custom",null,null,""]
[1223,null,"Custom",null,null,""]
[1224,null,"Custom",null,null,""]
[1225,null,"Custom",null,null,""]
[1226,null,"Custom",null,null,""]
[1227,null,"Custom",null,null,""]
[1228,null,"Custom",null,null,""]
[1229,null,"Custom",null,null,""]
[1230,null,"Custom",null,null,""]
[1231,null,"Custom",null,null,""]
[1232,null,"Custom",null,null,""]
[1233,null,"Custom",null,null,""]
[1234,null,"Custom",null,null,""]
[1235,null,"Custom",null,null,""]
[1236,null,"Custom",null,null,""]
[1237,null,"Custom",null,null,""]
[1238,null,"Custom",null,null,""]
[1239,null,"Custom",null,null,""]
[1240,null,"Custom",null,null,""]
[1241,null,"Custom",null,null,""]
[1242,null,"Custom",null,null,""]
[1243,null,"Custom",null,null,""]
[1244,null,"Custom",null,null,""]
[1245,null,"Custom",null,null,""]
[1246,null,"Custom",null,null,""]
[1247,null,"Custom",null,null,""]
[1248,null,"Custom",null,null,""]
[1249,null,"Custom",null,null,""]
[1250,null,"Custom",null,null,""]
[1251,null,"Custom",null,null,""]
[1252,null,"Custom",null,null,""]
[1253,null,"Custom",null,null,{"$f":"IF(AND(B1256<>\"\",B1255=\"\"),\"Don't skip lines\",IF(AND(D1255=\"\",B1255<>\"\"),\"Enter U-value\",IF(AND(D1255<>\"\",B1255=\"\"),\"Enter Description\",\"\")))","v":""}]
[1254,null,"Custom",null,null,""]
[1255,null,"Custom",null,null,""]
[1256,null,"Custom",null,null,""]
[1257,null,"Custom",null,null,""]
[1258,null,"Custom",null,null,""]
[1259,null,"Custom",null,null,""]
[1260,null,"Custom",null,null,""]
[1261,null,"Custom",null,null,""]
[1262,null,"Custom",null,null,""]
[1263,null,"Custom",null,null,""]
[1264,null,"Custom",null,null,""]
[1265,null,"Custom",null,null,""]
[1266,null,"Custom",null,null,""]
[1267,null,"Custom",null,null,""]
[1268,null,"Custom",null,null,""]
[1269,null,"Custom",null,null,""]
[1270,null,"Custom",null,null,""]
[1271,null,"Custom",null,null,""]
[1272,null,"Custom",null,null,""]
[1273,null,"Custom",null,null,""]
[1274,null,"Custom",null,null,""]
[1275,null,"Custom",null,null,""]
[1276,null,"Custom",null,null,""]
[1277,null,"Custom",null,null,""]
[{"$f":"A1279+1","v":1278},null,"Custom",null,null,""]
[1279,null,"Custom",null,null,""]
[1280,null,"Custom",null,null,""]
[1281,null,"Custom",null,null,""]
[1282,null,"Custom",null,null,""]
[1283,null,"Custom",null,null,""]
[1284,null,"Custom",null,null,""]
[1285,null,"Custom",null,null,""]
[1286,null,"Custom",null,null,""]
[1287,null,"Custom",null,null,""]
[1288,null,"Custom",null,null,""]
[1289,null,"Custom",null,null,""]
[1290,null,"Custom",null,null,""]
[1291,null,"Custom",null,null,""]
[1292,null,"Custom",null,null,""]
[1293,null,"Custom",null,null,""]
[1294,null,"Custom",null,null,""]
[1295,null,"Custom",null,null,""]
[1296,null,"Custom",null,null,""]
[1297,null,"Custom",null,null,""]
[1298,null,"Custom",null,null,""]
[1299,null,"Custom",null,null,""]
[1300,null,"Custom",null,null,""]
[1301,null,"Custom",null,null,""]
[1302,null,"Custom",null,null,""]
[1303,null,"Custom",null,null,""]
[1304,null,"Custom",null,null,""]
[1305,null,"Custom",null,null,""]
[1306,null,"Custom",null,null,""]
[1307,null,"Custom",null,null,""]
[1308,null,"Custom",null,null,""]
[1309,null,"Custom",null,null,""]
[1310,null,"Custom",null,null,""]
[1311,null,"Custom",null,null,""]
[1312,null,"Custom",null,null,""]
[1313,null,"Custom",null,null,""]
[1314,null,"Custom",null,null,""]
[1315,null,"Custom",null,null,""]
[1316,null,"Custom",null,null,""]
[1317,null,"Custom",null,null,{"$f":"IF(AND(B1320<>\"\",B1319=\"\"),\"Don't skip lines\",IF(AND(D1319=\"\",B1319<>\"\"),\"Enter U-value\",IF(AND(D1319<>\"\",B1319=\"\"),\"Enter Description\",\"\")))","v":""}]
[1318,null,"Custom",null,null,""]
[1319,null,"Custom",null,null,""]
[1320,null,"Custom",null,null,""]
[1321,null,"Custom",null,null,""]
[1322,null,"Custom",null,null,""]
[1323,null,"Custom",null,null,""]
[1324,null,"Custom",null,null,""]
[1325,null,"Custom",null,null,""]
[1326,null,"Custom",null,null,""]
[1327,null,"Custom",null,null,""]
[1328,null,"Custom",null,null,""]
[1329,null,"Custom",null,null,""]
[1330,null,"Custom",null,null,""]
[1331,null,"Custom",null,null,""]
[1332,null,"Custom",null,null,""]
[1333,null,"Custom",null,null,""]
[1334,null,"Custom",null,null,""]
[1335,null,"Custom",null,null,""]
[1336,null,"Custom",null,null,""]
[1337,null,"Custom",null,null,""]
[1338,null,"Custom",null,null,""]
[1339,null,"Custom",null,null,""]
[1340,null,"Custom",null,null,""]
[1341,null,"Custom",null,null,""]
[{"$f":"A1343+1","v":1342},null,"Custom",null,null,""]
[1343,null,"Custom",null,null,""]
[1344,null,"Custom",null,null,""]
[1345,null,"Custom",null,null,""]
[1346,null,"Custom",null,null,""]
[1347,null,"Custom",null,null,""]
[1348,null,"Custom",null,null,""]
[1349,null,"Custom",null,null,""]
[1350,null,"Custom",null,null,""]
[1351,null,"Custom",null,null,""]
[1352,null,"Custom",null,null,""]
[1353,null,"Custom",null,null,""]
[1354,null,"Custom",null,null,""]
[1355,null,"Custom",null,null,""]
[1356,null,"Custom",null,null,""]
[1357,null,"Custom",null,null,""]
[1358,null,"Custom",null,null,""]
[1359,null,"Custom",null,null,""]
[1360,null,"Custom",null,null,""]
[1361,null,"Custom",null,null,""]
[1362,null,"Custom",null,null,""]
[1363,null,"Custom",null,null,""]
[1364,null,"Custom",null,null,""]
[1365,null,"Custom",null,null,""]
[1366,null,"Custom",null,null,""]
[1367,null,"Custom",null,null,""]
[1368,null,"Custom",null,null,""]
[1369,null,"Custom",null,null,""]
[1370,null,"Custom",null,null,""]
[1371,null,"Custom",null,null,""]
[1372,null,"Custom",null,null,""]
[1373,null,"Custom",null,null,""]
[1374,null,"Custom",null,null,""]
[1375,null,"Custom",null,null,""]
[1376,null,"Custom",null,null,""]
[1377,null,"Custom",null,null,""]
[1378,null,"Custom",null,null,""]
[1379,null,"Custom",null,null,""]
[1380,null,"Custom",null,null,""]
[1381,null,"Custom",null,null,{"$f":"IF(AND(B1384<>\"\",B1383=\"\"),\"Don't skip lines\",IF(AND(D1383=\"\",B1383<>\"\"),\"Enter U-value\",IF(AND(D1383<>\"\",B1383=\"\"),\"Enter Description\",\"\")))","v":""}]
[1382,null,"Custom",null,null,""]
[1383,null,"Custom",null,null,""]
[1384,null,"Custom",null,null,""]
[1385,null,"Custom",null,null,""]
[1386,null,"Custom",null,null,""]
[1387,null,"Custom",null,null,""]
[1388,null,"Custom",null,null,""]
[1389,null,"Custom",null,null,""]
[1390,null,"Custom",null,null,""]
[1391,null,"Custom",null,null,""]
[1392,null,"Custom",null,null,""]
[1393,null,"Custom",null,null,""]
[1394,null,"Custom",null,null,""]
[1395,null,"Custom",null,null,""]
[1396,null,"Custom",null,null,""]
[1397,null,"Custom",null,null,""]
[1398,null,"Custom",null,null,""]
[1399,null,"Custom",null,null,""]
[1400,null,"Custom",null,null,""]
[1401,null,"Custom",null,null,""]
[1402,null,"Custom",null,null,""]
[1403,null,"Custom",null,null,""]
[1404,null,"Custom",null,null,""]
[1405,null,"Custom",null,null,""]
[{"$f":"A1407+1","v":1406},null,"Custom",null,null,""]
[1407,null,"Custom",null,null,""]
[1408,null,"Custom",null,null,""]
[1409,null,"Custom",null,null,""]
[1410,null,"Custom",null,null,""]
[1411,null,"Custom",null,null,""]
[1412,null,"Custom",null,null,""]
[1413,null,"Custom",null,null,""]
[1414,null,"Custom",null,null,""]
[1415,null,"Custom",null,null,""]
[1416,null,"Custom",null,null,""]
[1417,null,"Custom",null,null,""]
[1418,null,"Custom",null,null,""]
[1419,null,"Custom",null,null,""]
[1420,null,"Custom",null,null,""]
[1421,null,"Custom",null,null,""]
[1422,null,"Custom",null,null,""]
[1423,null,"Custom",null,null,""]
[1424,null,"Custom",null,null,""]
[1425,null,"Custom",null,null,""]
[1426,null,"Custom",null,null,""]
[1427,null,"Custom",null,null,""]
[1428,null,"Custom",null,null,""]
[1429,null,"Custom",null,null,""]
[1430,null,"Custom",null,null,""]
[1431,null,"Custom",null,null,""]
[1432,null,"Custom",null,null,""]
[1433,null,"Custom",null,null,""]
[1434,null,"Custom",null,null,""]
[1435,null,"Custom",null,null,""]
[1436,null,"Custom",null,null,""]
[1437,null,"Custom",null,null,""]
[1438,null,"Custom",null,null,""]
[1439,null,"Custom",null,null,""]
[1440,null,"Custom",null,null,""]
[1441,null,"Custom",null,null,""]
[1442,null,"Custom",null,null,""]
[1443,null,"Custom",null,null,""]
[1444,null,"Custom",null,null,""]
[1445,null,"Custom",null,null,{"$f":"IF(AND(B1448<>\"\",B1447=\"\"),\"Don't skip lines\",IF(AND(D1447=\"\",B1447<>\"\"),\"Enter U-value\",IF(AND(D1447<>\"\",B1447=\"\"),\"Enter Description\",\"\")))","v":""}]
[1446,null,"Custom",null,null,""]
[1447,null,"Custom",null,null,""]
[1448,null,"Custom",null,null,""]
[1449,null,"Custom",null,null,""]
[1450,null,"Custom",null,null,""]
[1451,null,"Custom",null,null,""]
[1452,null,"Custom",null,null,""]
[1453,null,"Custom",null,null,""]
[1454,null,"Custom",null,null,""]
[1455,null,"Custom",null,null,""]
[1456,null,"Custom",null,null,""]
[1457,null,"Custom",null,null,""]
[1458,null,"Custom",null,null,""]
[1459,null,"Custom",null,null,""]
[1460,null,"Custom",null,null,""]
[1461,null,"Custom",null,null,""]
[1462,null,"Custom",null,null,""]
[1463,null,"Custom",null,null,""]
[1464,null,"Custom",null,null,""]
[1465,null,"Custom",null,null,""]
[1466,null,"Custom",null,null,""]
[1467,null,"Custom",null,null,""]
[1468,null,"Custom",null,null,""]
[1469,null,"Custom",null,null,""]
[{"$f":"A1471+1","v":1470},null,"Custom",null,null,""]
[1471,null,"Custom",null,null,""]
[1472,null,"Custom",null,null,""]
[1473,null,"Custom",null,null,""]
[1474,null,"Custom",null,null,""]
[1475,null,"Custom",null,null,""]
[1476,null,"Custom",null,null,""]
[1477,null,"Custom",null,null,""]
[1478,null,"Custom",null,null,""]
[1479,null,"Custom",null,null,""]
[1480,null,"Custom",null,null,""]
[1481,null,"Custom",null,null,""]
[1482,null,"Custom",null,null,""]
[1483,null,"Custom",null,null,""]
[1484,null,"Custom",null,null,""]
[1485,null,"Custom",null,null,""]
[1486,null,"Custom",null,null,""]
[1487,null,"Custom",null,null,""]
[1488,null,"Custom",null,null,""]
[1489,null,"Custom",null,null,""]
[1490,null,"Custom",null,null,""]
[1491,null,"Custom",null,null,""]
[1492,null,"Custom",null,null,""]
[1493,null,"Custom",null,null,""]
[1494,null,"Custom",null,null,""]
[1495,null,"Custom",null,null,""]
[1496,null,"Custom",null,null,""]
[1497,null,"Custom",null,null,""]
[1498,null,"Custom",null,null,""]
[1499,null,"Custom",null,null,""]
[1500,null,"Custom",null,null,""]
[1501,null,"Custom",null,null,""]
[1502,null,"Custom",null,null,""]
[1503,null,"Custom",null,null,""]
[1504,null,"Custom",null,null,""]
[1505,null,"Custom",null,null,""]
[1506,null,"Custom",null,null,""]
[1507,null,"Custom",null,null,""]
[1508,null,"Custom",null,null,""]
[1509,null,"Custom",null,null,{"$f":"IF(AND(B1512<>\"\",B1511=\"\"),\"Don't skip lines\",IF(AND(D1511=\"\",B1511<>\"\"),\"Enter U-value\",IF(AND(D1511<>\"\",B1511=\"\"),\"Enter Description\",\"\")))","v":""}]
[1510,null,"Custom",null,null,""]
[1511,null,"Custom",null,null,""]
[1512,null,"Custom",null,null,""]
[1513,null,"Custom",null,null,""]
[1514,null,"Custom",null,null,""]
[1515,null,"Custom",null,null,""]
[1516,null,"Custom",null,null,""]
[1517,null,"Custom",null,null,""]
[1518,null,"Custom",null,null,""]
[1519,null,"Custom",null,null,""]
[1520,null,"Custom",null,null,""]
[1521,null,"Custom",null,null,""]
[1522,null,"Custom",null,null,""]
[1523,null,"Custom",null,null,""]
[1524,null,"Custom",null,null,""]
[1525,null,"Custom",null,null,""]
[1526,null,"Custom",null,null,""]
[1527,null,"Custom",null,null,""]
[1528,null,"Custom",null,null,""]
[1529,null,"Custom",null,null,""]
[1530,null,"Custom",null,null,""]
[1531,null,"Custom",null,null,""]
[1532,null,"Custom",null,null,""]
[1533,null,"Custom",null,null,""]
[{"$f":"A1535+1","v":1534},null,"Custom",null,null,""]
[1535,null,"Custom",null,null,""]
[1536,null,"Custom",null,null,""]
[1537,null,"Custom",null,null,""]
[1538,null,"Custom",null,null,""]
[1539,null,"Custom",null,null,""]
[1540,null,"Custom",null,null,""]
[1541,null,"Custom",null,null,""]
[1542,null,"Custom",null,null,""]
[1543,null,"Custom",null,null,""]
[1544,null,"Custom",null,null,""]
[1545,null,"Custom",null,null,""]
[1546,null,"Custom",null,null,""]
[1547,null,"Custom",null,null,""]
[1548,null,"Custom",null,null,""]
[1549,null,"Custom",null,null,""]
[1550,null,"Custom",null,null,""]
[1551,null,"Custom",null,null,""]
[1552,null,"Custom",null,null,""]
[1553,null,"Custom",null,null,""]
[1554,null,"Custom",null,null,""]
[1555,null,"Custom",null,null,""]
[1556,null,"Custom",null,null,""]
[1557,null,"Custom",null,null,""]
[1558,null,"Custom",null,null,""]
[1559,null,"Custom",null,null,""]
[1560,null,"Custom",null,null,""]
[1561,null,"Custom",null,null,""]
[1562,null,"Custom",null,null,""]
[1563,null,"Custom",null,null,""]
[1564,null,"Custom",null,null,""]
[1565,null,"Custom",null,null,""]
[1566,null,"Custom",null,null,""]
[1567,null,"Custom",null,null,""]
[1568,null,"Custom",null,null,""]
[1569,null,"Custom",null,null,""]
[1570,null,"Custom",null,null,""]
[1571,null,"Custom",null,null,""]
[1572,null,"Custom",null,null,""]
[1573,null,"Custom",null,null,{"$f":"IF(AND(B1576<>\"\",B1575=\"\"),\"Don't skip lines\",IF(AND(D1575=\"\",B1575<>\"\"),\"Enter U-value\",IF(AND(D1575<>\"\",B1575=\"\"),\"Enter Description\",\"\")))","v":""}]
[1574,null,"Custom",null,null,""]
[1575,null,"Custom",null,null,""]
[1576,null,"Custom",null,null,""]
[1577,null,"Custom",null,null,""]
[1578,null,"Custom",null,null,""]
[1579,null,"Custom",null,null,""]
[1580,null,"Custom",null,null,""]
[1581,null,"Custom",null,null,""]
[1582,null,"Custom",null,null,""]
[1583,null,"Custom",null,null,""]
[1584,null,"Custom",null,null,""]
[1585,null,"Custom",null,null,""]
[1586,null,"Custom",null,null,""]
[1587,null,"Custom",null,null,""]
[1588,null,"Custom",null,null,""]
[1589,null,"Custom",null,null,""]
[1590,null,"Custom",null,null,""]
[1591,null,"Custom",null,null,""]
[1592,null,"Custom",null,null,""]
[1593,null,"Custom",null,null,""]
[1594,null,"Custom",null,null,""]
[1595,null,"Custom",null,null,""]
[1596,null,"Custom",null,null,""]
[1597,null,"Custom",null,null,""]
[{"$f":"A1599+1","v":1598},null,"Custom",null,null,""]
[1599,null,"Custom",null,null,""]
[1600,null,"Custom",null,null,""]
[1601,null,"Custom",null,null,""]
[1602,null,"Custom",null,null,""]
[1603,null,"Custom",null,null,""]
[1604,null,"Custom",null,null,""]
[1605,null,"Custom",null,null,""]
[1606,null,"Custom",null,null,""]
[1607,null,"Custom",null,null,""]
[1608,null,"Custom",null,null,""]
[1609,null,"Custom",null,null,""]
[1610,null,"Custom",null,null,""]
[1611,null,"Custom",null,null,""]
[1612,null,"Custom",null,null,""]
[1613,null,"Custom",null,null,""]
[1614,null,"Custom",null,null,""]
[1615,null,"Custom",null,null,""]
[1616,null,"Custom",null,null,""]
[1617,null,"Custom",null,null,""]
[1618,null,"Custom",null,null,""]
[1619,null,"Custom",null,null,""]
[1620,null,"Custom",null,null,""]
[1621,null,"Custom",null,null,""]
[1622,null,"Custom",null,null,""]
[1623,null,"Custom",null,null,""]
[1624,null,"Custom",null,null,""]
[1625,null,"Custom",null,null,""]
[1626,null,"Custom",null,null,""]
[1627,null,"Custom",null,null,""]
[1628,null,"Custom",null,null,""]
[1629,null,"Custom",null,null,""]
[1630,null,"Custom",null,null,""]
[1631,null,"Custom",null,null,""]
[1632,null,"Custom",null,null,""]
[1633,null,"Custom",null,null,""]
[1634,null,"Custom",null,null,""]
[1635,null,"Custom",null,null,""]
[1636,null,"Custom",null,null,""]
[1637,null,"Custom",null,null,{"$f":"IF(AND(B1640<>\"\",B1639=\"\"),\"Don't skip lines\",IF(AND(D1639=\"\",B1639<>\"\"),\"Enter U-value\",IF(AND(D1639<>\"\",B1639=\"\"),\"Enter Description\",\"\")))","v":""}]
[1638,null,"Custom",null,null,""]
[1639,null,"Custom",null,null,""]
[1640,null,"Custom",null,null,""]
[1641,null,"Custom",null,null,""]
[1642,null,"Custom",null,null,""]
[1643,null,"Custom",null,null,""]
[1644,null,"Custom",null,null,""]
[1645,null,"Custom",null,null,""]
[1646,null,"Custom",null,null,""]
[1647,null,"Custom",null,null,""]
[1648,null,"Custom",null,null,""]
[1649,null,"Custom",null,null,""]
[1650,null,"Custom",null,null,""]
[1651,null,"Custom",null,null,""]
[1652,null,"Custom",null,null,""]
[1653,null,"Custom",null,null,""]
[1654,null,"Custom",null,null,""]
[1655,null,"Custom",null,null,""]
[1656,null,"Custom",null,null,""]
[1657,null,"Custom",null,null,""]
[1658,null,"Custom",null,null,""]
[1659,null,"Custom",null,null,""]
[1660,null,"Custom",null,null,""]
[1661,null,"Custom",null,null,""]
[{"$f":"A1663+1","v":1662},null,"Custom",null,null,""]
[1663,null,"Custom",null,null,""]
[1664,null,"Custom",null,null,""]
[1665,null,"Custom",null,null,""]
[1666,null,"Custom",null,null,""]
[1667,null,"Custom",null,null,""]
[1668,null,"Custom",null,null,""]
[1669,null,"Custom",null,null,""]
[1670,null,"Custom",null,null,""]
[1671,null,"Custom",null,null,""]
[1672,null,"Custom",null,null,""]
[1673,null,"Custom",null,null,""]
[1674,null,"Custom",null,null,""]
[1675,null,"Custom",null,null,""]
[1676,null,"Custom",null,null,""]
[1677,null,"Custom",null,null,""]
[1678,null,"Custom",null,null,""]
[1679,null,"Custom",null,null,""]
[1680,null,"Custom",null,null,""]
[1681,null,"Custom",null,null,""]
[1682,null,"Custom",null,null,""]
[1683,null,"Custom",null,null,""]
[1684,null,"Custom",null,null,""]
[1685,null,"Custom",null,null,""]
[1686,null,"Custom",null,null,""]
[1687,null,"Custom",null,null,""]
[1688,null,"Custom",null,null,""]
[1689,null,"Custom",null,null,""]
[1690,null,"Custom",null,null,""]
[1691,null,"Custom",null,null,""]
[1692,null,"Custom",null,null,""]
[1693,null,"Custom",null,null,""]
[1694,null,"Custom",null,null,""]
[1695,null,"Custom",null,null,""]
[1696,null,"Custom",null,null,""]
[1697,null,"Custom",null,null,""]
[1698,null,"Custom",null,null,""]
[1699,null,"Custom",null,null,""]
[1700,null,"Custom",null,null,""]
[1701,null,"Custom",null,null,{"$f":"IF(AND(B1704<>\"\",B1703=\"\"),\"Don't skip lines\",IF(AND(D1703=\"\",B1703<>\"\"),\"Enter U-value\",IF(AND(D1703<>\"\",B1703=\"\"),\"Enter Description\",\"\")))","v":""}]
[1702,null,"Custom",null,null,""]
[1703,null,"Custom",null,null,""]
[1704,null,"Custom",null,null,""]
[1705,null,"Custom",null,null,""]
[1706,null,"Custom",null,null,""]
[1707,null,"Custom",null,null,""]
[1708,null,"Custom",null,null,""]
[1709,null,"Custom",null,null,""]
[1710,null,"Custom",null,null,""]
[1711,null,"Custom",null,null,""]
[1712,null,"Custom",null,null,""]
[1713,null,"Custom",null,null,""]
[1714,null,"Custom",null,null,""]
[1715,null,"Custom",null,null,""]
[1716,null,"Custom",null,null,""]
[1717,null,"Custom",null,null,""]
[1718,null,"Custom",null,null,""]
[1719,null,"Custom",null,null,""]
[1720,null,"Custom",null,null,""]
[1721,null,"Custom",null,null,""]
[1722,null,"Custom",null,null,""]
[1723,null,"Custom",null,null,""]
[1724,null,"Custom",null,null,""]
[1725,null,"Custom",null,null,""]
[{"$f":"A1727+1","v":1726},null,"Custom",null,null,""]
[1727,null,"Custom",null,null,""]
[1728,null,"Custom",null,null,""]
[1729,null,"Custom",null,null,""]
[1730,null,"Custom",null,null,""]
[1731,null,"Custom",null,null,""]
[1732,null,"Custom",null,null,""]
[1733,null,"Custom",null,null,""]
[1734,null,"Custom",null,null,""]
[1735,null,"Custom",null,null,""]
[1736,null,"Custom",null,null,""]
[1737,null,"Custom",null,null,""]
[1738,null,"Custom",null,null,""]
[1739,null,"Custom",null,null,""]
[1740,null,"Custom",null,null,""]
[1741,null,"Custom",null,null,""]
[1742,null,"Custom",null,null,""]
[1743,null,"Custom",null,null,""]
[1744,null,"Custom",null,null,""]
[1745,null,"Custom",null,null,""]
[1746,null,"Custom",null,null,""]
[1747,null,"Custom",null,null,""]
[1748,null,"Custom",null,null,""]
[1749,null,"Custom",null,null,""]
[1750,null,"Custom",null,null,""]
[1751,null,"Custom",null,null,""]
[1752,null,"Custom",null,null,""]
[1753,null,"Custom",null,null,""]
[1754,null,"Custom",null,null,""]
[1755,null,"Custom",null,null,""]
[1756,null,"Custom",null,null,""]
[1757,null,"Custom",null,null,""]
[1758,null,"Custom",null,null,""]
[1759,null,"Custom",null,null,""]
[1760,null,"Custom",null,null,""]
[1761,null,"Custom",null,null,""]
[1762,null,"Custom",null,null,""]
[1763,null,"Custom",null,null,""]
[1764,null,"Custom",null,null,""]
[1765,null,"Custom",null,null,{"$f":"IF(AND(B1768<>\"\",B1767=\"\"),\"Don't skip lines\",IF(AND(D1767=\"\",B1767<>\"\"),\"Enter U-value\",IF(AND(D1767<>\"\",B1767=\"\"),\"Enter Description\",\"\")))","v":""}]
[1766,null,"Custom",null,null,""]
[1767,null,"Custom",null,null,""]
[1768,null,"Custom",null,null,""]
[1769,null,"Custom",null,null,""]
[1770,null,"Custom",null,null,""]
[1771,null,"Custom",null,null,""]
[1772,null,"Custom",null,null,""]
[1773,null,"Custom",null,null,""]
[1774,null,"Custom",null,null,""]
[1775,null,"Custom",null,null,""]
[1776,null,"Custom",null,null,""]
[1777,null,"Custom",null,null,""]
[1778,null,"Custom",null,null,""]
[1779,null,"Custom",null,null,""]
[1780,null,"Custom",null,null,""]
[1781,null,"Custom",null,null,""]
[1782,null,"Custom",null,null,""]
[1783,null,"Custom",null,null,""]
[1784,null,"Custom",null,null,""]
[1785,null,"Custom",null,null,""]
[1786,null,"Custom",null,null,""]
[1787,null,"Custom",null,null,""]
[1788,null,"Custom",null,null,""]
[1789,null,"Custom",null,null,""]
[{"$f":"A1791+1","v":1790},null,"Custom",null,null,""]
[1791,null,"Custom",null,null,""]
[1792,null,"Custom",null,null,""]
[1793,null,"Custom",null,null,""]
[1794,null,"Custom",null,null,""]
[1795,null,"Custom",null,null,""]
[1796,null,"Custom",null,null,""]
[1797,null,"Custom",null,null,""]
[1798,null,"Custom",null,null,""]
[1799,null,"Custom",null,null,""]
[1800,null,"Custom",null,null,""]
[1801,null,"Custom",null,null,""]
[1802,null,"Custom",null,null,""]
[1803,null,"Custom",null,null,""]
[1804,null,"Custom",null,null,""]
[1805,null,"Custom",null,null,""]
[1806,null,"Custom",null,null,""]
[1807,null,"Custom",null,null,""]
[1808,null,"Custom",null,null,""]
[1809,null,"Custom",null,null,""]
[1810,null,"Custom",null,null,""]
[1811,null,"Custom",null,null,""]
[1812,null,"Custom",null,null,""]
[1813,null,"Custom",null,null,""]
[1814,null,"Custom",null,null,""]
[1815,null,"Custom",null,null,""]
[1816,null,"Custom",null,null,""]
[1817,null,"Custom",null,null,""]
[1818,null,"Custom",null,null,""]
[1819,null,"Custom",null,null,""]
[1820,null,"Custom",null,null,""]
[1821,null,"Custom",null,null,""]
[1822,null,"Custom",null,null,""]
[1823,null,"Custom",null,null,""]
[1824,null,"Custom",null,null,""]
[1825,null,"Custom",null,null,""]
[1826,null,"Custom",null,null,""]
[1827,null,"Custom",null,null,""]
[1828,null,"Custom",null,null,""]
[1829,null,"Custom",null,null,{"$f":"IF(AND(B1832<>\"\",B1831=\"\"),\"Don't skip lines\",IF(AND(D1831=\"\",B1831<>\"\"),\"Enter U-value\",IF(AND(D1831<>\"\",B1831=\"\"),\"Enter Description\",\"\")))","v":""}]
[1830,null,"Custom",null,null,""]
[1831,null,"Custom",null,null,""]
[1832,null,"Custom",null,null,""]
[1833,null,"Custom",null,null,""]
[1834,null,"Custom",null,null,""]
[1835,null,"Custom",null,null,""]
[1836,null,"Custom",null,null,""]
[1837,null,"Custom",null,null,""]
[1838,null,"Custom",null,null,""]
[1839,null,"Custom",null,null,""]
[1840,null,"Custom",null,null,""]
[1841,null,"Custom",null,null,""]
[1842,null,"Custom",null,null,""]
[1843,null,"Custom",null,null,""]
[1844,null,"Custom",null,null,""]
[1845,null,"Custom",null,null,""]
[1846,null,"Custom",null,null,""]
[1847,null,"Custom",null,null,""]
[1848,null,"Custom",null,null,""]
[1849,null,"Custom",null,null,""]
[1850,null,"Custom",null,null,""]
[1851,null,"Custom",null,null,""]
[1852,null,"Custom",null,null,""]
[1853,null,"Custom",null,null,""]
[{"$f":"A1855+1","v":1854},null,"Custom",null,null,""]
[1855,null,"Custom",null,null,""]
[1856,null,"Custom",null,null,""]
[1857,null,"Custom",null,null,""]
[1858,null,"Custom",null,null,""]
[1859,null,"Custom",null,null,""]
[1860,null,"Custom",null,null,""]
[1861,null,"Custom",null,null,""]
[1862,null,"Custom",null,null,""]
[1863,null,"Custom",null,null,""]
[1864,null,"Custom",null,null,""]
[1865,null,"Custom",null,null,""]
[1866,null,"Custom",null,null,""]
[1867,null,"Custom",null,null,""]
[1868,null,"Custom",null,null,""]
[1869,null,"Custom",null,null,""]
[1870,null,"Custom",null,null,""]
[1871,null,"Custom",null,null,""]
[1872,null,"Custom",null,null,""]
[1873,null,"Custom",null,null,""]
[1874,null,"Custom",null,null,""]
[1875,null,"Custom",null,null,""]
[1876,null,"Custom",null,null,""]
[1877,null,"Custom",null,null,""]
[1878,null,"Custom",null,null,""]
[1879,null,"Custom",null,null,""]
[1880,null,"Custom",null,null,""]
[1881,null,"Custom",null,null,""]
[1882,null,"Custom",null,null,""]
[1883,null,"Custom",null,null,""]
[1884,null,"Custom",null,null,""]
[1885,null,"Custom",null,null,""]
[1886,null,"Custom",null,null,""]
[1887,null,"Custom",null,null,""]
[1888,null,"Custom",null,null,""]
[1889,null,"Custom",null,null,""]
[1890,null,"Custom",null,null,""]
[1891,null,"Custom",null,null,""]
[1892,null,"Custom",null,null,""]
[1893,null,"Custom",null,null,{"$f":"IF(AND(B1896<>\"\",B1895=\"\"),\"Don't skip lines\",IF(AND(D1895=\"\",B1895<>\"\"),\"Enter U-value\",IF(AND(D1895<>\"\",B1895=\"\"),\"Enter Description\",\"\")))","v":""}]
[1894,null,"Custom",null,null,""]
[1895,null,"Custom",null,null,""]
[1896,null,"Custom",null,null,""]
[1897,null,"Custom",null,null,""]
[1898,null,"Custom",null,null,""]
[1899,null,"Custom",null,null,""]
[1900,null,"Custom",null,null,""]
[1901,null,"Custom",null,null,""]
[1902,null,"Custom",null,null,""]
[1903,null,"Custom",null,null,""]
[1904,null,"Custom",null,null,""]
[1905,null,"Custom",null,null,""]
[1906,null,"Custom",null,null,""]
[1907,null,"Custom",null,null,""]
[1908,null,"Custom",null,null,""]
[1909,null,"Custom",null,null,""]
[1910,null,"Custom",null,null,""]
[1911,null,"Custom",null,null,""]
[1912,null,"Custom",null,null,""]
[1913,null,"Custom",null,null,""]
[1914,null,"Custom",null,null,""]
[1915,null,"Custom",null,null,""]
[1916,null,"Custom",null,null,""]
[1917,null,"Custom",null,null,""]
[{"$f":"A1919+1","v":1918},null,"Custom",null,null,""]
[1919,null,"Custom",null,null,""]
[1920,null,"Custom",null,null,""]
[1921,null,"Custom",null,null,""]
[1922,null,"Custom",null,null,""]
[1923,null,"Custom",null,null,""]
[1924,null,"Custom",null,null,""]
[1925,null,"Custom",null,null,""]
[1926,null,"Custom",null,null,""]
[1927,null,"Custom",null,null,""]
[1928,null,"Custom",null,null,""]
[1929,null,"Custom",null,null,""]
[1930,null,"Custom",null,null,""]
[1931,null,"Custom",null,null,""]
[1932,null,"Custom",null,null,""]
[1933,null,"Custom",null,null,""]
[1934,null,"Custom",null,null,""]
[1935,null,"Custom",null,null,""]
[1936,null,"Custom",null,null,""]
[1937,null,"Custom",null,null,""]
[1938,null,"Custom",null,null,""]
[1939,null,"Custom",null,null,""]
[1940,null,"Custom",null,null,""]
[1941,null,"Custom",null,null,""]
[1942,null,"Custom",null,null,""]
[1943,null,"Custom",null,null,""]
[1944,null,"Custom",null,null,""]
[1945,null,"Custom",null,null,""]
[1946,null,"Custom",null,null,""]
[1947,null,"Custom",null,null,""]
[1948,null,"Custom",null,null,""]
[1949,null,"Custom",null,null,""]
[1950,null,"Custom",null,null,""]
[1951,null,"Custom",null,null,""]
[1952,null,"Custom",null,null,""]
[1953,null,"Custom",null,null,""]
[1954,null,"Custom",null,null,""]
[1955,null,"Custom",null,null,""]
[1956,null,"Custom",null,null,""]
[1957,null,"Custom",null,null,{"$f":"IF(AND(B1960<>\"\",B1959=\"\"),\"Don't skip lines\",IF(AND(D1959=\"\",B1959<>\"\"),\"Enter U-value\",IF(AND(D1959<>\"\",B1959=\"\"),\"Enter Description\",\"\")))","v":""}]
[1958,null,"Custom",null,null,""]
[1959,null,"Custom",null,null,""]
[1960,null,"Custom",null,null,""]
[1961,null,"Custom",null,null,""]
[1962,null,"Custom",null,null,""]
[1963,null,"Custom",null,null,""]
[1964,null,"Custom",null,null,""]
[1965,null,"Custom",null,null,""]
[1966,null,"Custom",null,null,""]
[1967,null,"Custom",null,null,""]
[1968,null,"Custom",null,null,""]
[1969,null,"Custom",null,null,""]
[1970,null,"Custom",null,null,""]
[1971,null,"Custom",null,null,""]
[1972,null,"Custom",null,null,""]
[1973,null,"Custom",null,null,""]
[1974,null,"Custom",null,null,""]
[1975,null,"Custom",null,null,""]
[1976,null,"Custom",null,null,""]
[1977,null,"Custom",null,null,""]
[1978,null,"Custom",null,null,""]
[1979,null,"Custom",null,null,""]
[1980,null,"Custom",null,null,""]
[1981,null,"Custom",null,null,""]
[{"$f":"A1983+1","v":1982},null,"Custom",null,null,""]
[1983,null,"Custom",null,null,""]
[1984,null,"Custom",null,null,""]
[1985,null,"Custom",null,null,""]
[1986,null,"Custom",null,null,""]
[1987,null,"Custom",null,null,""]
[1988,null,"Custom",null,null,""]
[1989,null,"Custom",null,null,""]
[1990,null,"Custom",null,null,""]
[1991,null,"Custom",null,null,""]
[1992,null,"Custom",null,null,""]
[1993,null,"Custom",null,null,""]
[1994,null,"Custom",null,null,""]
[1995,null,"Custom",null,null,""]
[1996,null,"Custom",null,null,""]
[1997,null,"Custom",null,null,""]
[1998,null,"Custom",null,null,""]
[1999,null,"Custom",null,null,""]
[2000,null,"Custom",null,null,""]
[2001,null,"Custom",null,null,""]
[2002,null,"Custom",null,null,""]
[2003,null,"Custom",null,null,""]
[2004,null,"Custom",null,null,""]
[2005,null,"Custom",null,null,""]
[2006,null,"Custom",null,null,""]
[2007,null,"Custom",null,null,""]
[2008,null,"Custom",null,null,""]
[2009,null,"Custom",null,null,""]
[2010,null,"Custom",null,null,""]
[2011,null,"Custom",null,null,""]
[2012,null,"Custom",null,null,""]
[2013,null,"Custom",null,null,""]
[2014,null,"Custom",null,null,""]
[2015,null,"Custom",null,null,""]

{"sheet":"Doors","index":6,"n_rows":114,"n_cols":6,"rows_kept":114,"cut":false,"hidden":true,"merged":[]}
["Index","Component Description","Reference","Glazing U"]
[]
[1,null,0,0]
[{"$f":"A3+1","v":2},"=== Most Frequently Used ========= "]
[{"$f":"A4+1","v":3},"Wood slab in wood frame (WoodSWF)","10-6C",0.46]
[4,"Code Target, U=0.30",null,0.3]
[5,"Insulated Steel, Wood Edge (ISteelWE)","10-6C",0.16]
[6,"ISteelWE 1gl 6% 22x8\"","10-6C",0.21]
[7,"ISteelWE 2gl 6% 22x8' 1/4\" ","10-6C",0.2]
[8,"ISteelWE 2gl 25% 22x8' 1/4\" ","10-6C",0.28000000000000003]
[9,"ISteelWE 2gl 6% 22x8' 1/2\" ","10-6C",0.19]
[10,"ISteelWE 2gl 6% 22x8' 1/2\" LowE.1 Ar ","10-6C",0.18]
[11,"ISteelWE2gl 25% 22x36' 1/2\" LowE .1 Ar  ","10-6C",0.23]
[12,"ISteelWE2gl 45% 22x64' 1/2\" LowE .1 Ar","10-6C",0.26]
[13,"============================"]
[14,"Wood slab in wood frame (WoodSWF)","10-6C",0.46]
[15,"WoodSWF 1gl 6% 22x8\"","10-6C",0.48]
[16,"WoodSWF 1gl 25% 22x36'","10-6C",0.57999999999999996]
[17,"WoodSWF 1gl 45% 22x64' ","10-6C",0.69]
[18,"WoodSWF 1gl >50% ","10-6A",1.2]
[19,"WoodSWF 2gl 6% 22x8' 1/4\" ","10-6C",0.47]
[20,"WoodSWF 2gl 25% 22x8' 1/4\" ","10-6C",0.48]
[{"$f":"A22+1","v":21},"WoodSWF 2gl 45% 22x8' 1/4\" ","10-6C",0.49]
[22,"WoodSWF 2gl >50% 1/4\" ","10-6A",0.63]
[23,"WoodSWF 2gl 6% 22x8' 1/2\" ","10-6C",0.46]
[24,"WoodSWF 2gl 25% 22x8' 1/2\" ","10-6C",0.46]
[25,"WoodSWF 2gl 45% 22x8' 1/2\" ","10-6C",0.46]
[26,"WoodSWF 2gl >50% 1/2\" ","10-6A",0.57999999999999996]
[27,"WoodSWF 2gl 6% 22x8' 1/2\" LowE.1 Ar ","10-6C",0.44]
[28,"WoodSWF2gl 25% 22x36' 1/2\" LowE .1 Ar  ","10-6C",0.42]
[29,"WoodSWF2gl 45% 22x64' 1/2\" LowE .1 Ar","10-6C",0.39]
[30,"WoodSWF 2gl >50% 1/2\" LowE .1 Ar ","10-6A",0.48]
[31,"Insulated Steel, Wood Edge (ISteelWE)","10-6C",0.16]
[32,"ISteelWE 1gl 6% 22x8'  ","10-6C",0.21]
[33,"ISteelWE 1gl 25% 22x36'","10-6C",0.39]
[34,"ISteelWE 1gl 45% 22x64' ","10-6C",0.57999999999999996]
[35,"ISteelWE 1gl >50% ","10-6A",1.2]
[36,"ISteelWE 2gl 6% 22x8' 1/4\" ","10-6C",0.2]
[37,"ISteelWE 2gl 25% 22x8' 1/4\" ","10-6C",0.28000000000000003]
[38,"ISteelWE 2gl 45% 22x8' 1/4\" ","10-6C",0.38]
[39,"ISteelWE 2gl >50% 1/4\" ","10-6A",0.63]
[40,"ISteelWE 2gl 6% 22x8' 1/2\" ","10-6C",0.19]
[41,"ISteelWE 2gl 25% 22x8' 1/2\" ","10-6C",0.26]
[42,"ISteelWE 2gl 45% 22x8' 1/2\" ","10-6C",0.35]
[43,"ISteelWE 2gl >50% 1/2\" ","10-6A",0.57999999999999996]
[44,"ISteelWE 2gl 6% 22x8' 1/2\" LowE.1 Ar ","10-6C",0.18]
[45,"ISteelWE2gl 25% 22x36' 1/2\" LowE .1 Ar  ","10-6C",0.23]
[46,"ISteelWE2gl 45% 22x64' 1/2\" LowE .1 Ar","10-6C",0.26]
[47,"ISteelWE 2gl >50% 1/2\" LowE .1 Ar","10-6A",0.48]
[48,"Insulated Steel, Steel Edge Steel Frame (ISteel,SEdge,SFrame)","10-6C",0.37]
[49,"ISteel,SEdge,SFrame 1gl 6% 22x8' ","10-6C",0.44]
[50,"ISteel,SEdge,SFrame 1gl 25% 22x36'","10-6C",0.55000000000000004]
[51,"ISteel,SEdge,SFrame 1gl 45% 22x64'","10-6C",0.71]
[52,"ISteel,SEdge,SFrame 1gl > 50%","10-6A",1.2]
[53,"ISteel,SEdge,SFrame 2gl 6% 22x8'  1/4\"","10-6C",0.42]
[54,"ISteel,SEdge,SFrame 2gl 25% 22x36' 1/4\" ","10-6C",0.5]
[55,"ISteel,SEdge,SFrame 2gl 45% 22x64' 1/4\" ","10-6C",0.59]
[56,"ISteel,SEdge,SFrame 2gl > 50% 1/4\"","10-6A",0.92]
[57,"ISteel,SEdge,SFrame 2gl 6% 22x8' 1/2\" ","10-6C",0.41]
[58,"ISteel,SEdge,SFrame 2gl 25% 22x36'  1/2\" ","10-6C",0.48]
[59,"ISteel,SEdge,SFrame 2gl 45% 22x64'  1/2\" ","10-6C",0.56000000000000005]
[60,"ISteel,SEdge,SFrame 2gl > 50% 1/2\"","10-6A",0.86]
[61,"ISteel,SEdge,SFrame 2gl 6% 22x8' 1/2\" LowE.1 Ar","10-6C",0.39]
[62,"ISteel,SEdge,SFrame 2gl 25% 22x36' 1/2\" LowE .1 Ar","10-6C",0.44]
[63,"ISteel,SEdge,SFrame 2gl 45% 22x64' 1/2\" LowE .1 Ar","10-6C",0.48]
[64,"ISteel,SEdge,SFrame 2gl > 50% 1/2\" LowE .1 Ar","10-6A",0.79]
[65,{"$f":"'Flat-Vaulted Ceilings'!B330","v":"== Custom Entries per WSEC R402.1.5 U-factor Reference and Calculations ========"},null,null,"Notes"]
[66,null,"Custom",null,null,{"$f":"IF(AND(B69<>\"\",B68=\"\"),\"Don't skip lines\",IF(AND(D68=\"\",B68<>\"\"),\"Enter U-value\",IF(AND(D68<>\"\",B68=\"\"),\"Enter Description\",\"\")))","v":""}]
[67,null,"Custom",null,null,""]
[68,null,"Custom",null,null,""]
[69,null,"Custom",null,null,""]
[70,null,"Custom",null,null,""]
[71,null,"Custom",null,null,""]
[72,null,"Custom",null,null,""]
[73,null,"Custom",null,null,""]
[74,null,"Custom",null,null,""]
[75,null,"Custom",null,null,""]
[76,null,"Custom",null,null,""]
[77,null,"Custom",null,null,""]
[78,null,"Custom",null,null,""]
[79,null,"Custom",null,null,""]
[80,null,"Custom",null,null,""]
[81,null,"Custom",null,null,""]
[{"$f":"A83+1","v":82},null,"Custom",null,null,""]
[83,null,"Custom",null,null,""]
[84,null,"Custom",null,null,""]
[85,null,"Custom",null,null,""]
[86,null,"Custom",null,null,""]
[87,null,"Custom",null,null,""]
[88,null,"Custom",null,null,""]
[89,null,"Custom",null,null,""]
[90,null,"Custom",null,null,""]
[91,null,"Custom",null,null,""]
[92,null,"Custom",null,null,""]
[93,null,"Custom",null,null,""]
[94,null,"Custom",null,null,""]
[95,null,"Custom",null,null,""]
[96,null,"Custom",null,null,""]
[97,null,"Custom",null,null,""]
[98,null,"Custom",null,null,""]
[99,null,"Custom",null,null,""]
[100,null,"Custom",null,null,""]
[101,null,"Custom",null,null,""]
[102,null,"Custom",null,null,""]
[103,null,"Custom",null,null,""]
[104,null,"Custom",null,null,""]
[105,null,"Custom",null,null,""]
[106,null,"Custom",null,null,""]
[107,null,"Custom",null,null,""]
[108,null,"Custom",null,null,""]
[109,null,"Custom",null,null,""]
[110,null,"Custom",null,null,""]
[111,null,"Custom",null,null,""]
[112,null,"Custom",null,null,""]

{"sheet":"Flat-Vaulted Ceilings","index":7,"n_rows":370,"n_cols":6,"rows_kept":370,"cut":false,"hidden":true,"merged":[]}
["Index","Component Description","Reference","Attic U"]
[]
[1]
[{"$f":"A3+1","v":2},"=== Most Frequently Used ========= "]
[{"$f":"A4+1","v":3},"R0 Attic","WSU",0.30199999999999999]
[4,"R0 Scissors","WSU",0.28399999999999997]
[5,"R19 blown Attic STD baffled","10-7",4.9000000000000002E-2]
[6,"R30 blown Attic STD baffled","10-7",3.5999999999999997E-2]
[7,"R38 blown Attic ADV baffled (Code Target)","10-7",2.5999999999999999E-2]
[8,"R49 blown Attic STD baffled (Code Target)","10-7",2.7E-2]
[{"$f":"A9+1","v":8},"R49 blown Attic ADV baffled","10-7",0.02]
[9,"R60 blown Attic ADV baffled","10-7",1.7000000000000001E-2]
[{"$f":"A11+1","v":9},"R38 blown Scissor 4:12 ADV baffled","10-7",2.5000000000000001E-2]
[{"$f":"A12+1","v":10},"R49 blown Scissor 4:12 ADV baffled","10-7",0.02]
[10,"R38 blown Scissor 5:12 ADV baffled","10-7",2.5999999999999999E-2]
[11,"R49 blown Scissor 5:12 ADV baffled","10-7",0.02]
[11,"R19 batt Vault vented 2x10 16oc","10-7",4.9000000000000002E-2]
[12,"R19 batt Vault vented 2x10 24oc","10-7",4.8000000000000001E-2]
[13,"R30 batt Vault vented 2x12 16oc","10-7",3.4000000000000002E-2]
[14,"R30 batt Vault vented 2x12 24oc","10-7",3.3000000000000002E-2]
[15,"R38 batt Vault vented 2x14 16oc","10-7",2.7E-2]
[16,"R38 batt Vault vented 2x14 24oc","10-7",2.7E-2]
[17,"============================"]
[{"$f":"A23+1","v":18},"R0 Attic","WSU",0.30199999999999999]
[19,"R0 Scissors","WSU",0.28399999999999997]
[20,"R19 blown Attic STD baffled","10-7",4.9000000000000002E-2]
[21,"R19 blown Attic ADV baffled","10-7",4.7E-2]
[22,"R30 blown Attic STD baffled","10-7",3.5999999999999997E-2]
[23,"R30 blown Attic ADV baffled","10-7",3.2000000000000001E-2]
[24,"R38 blown Attic STD baffled","10-7",3.1E-2]
[25,"R38 blown Attic ADV baffled","10-7",2.5999999999999999E-2]
[26,"R49 blown Attic STD baffled","10-7",2.7E-2]
[27,"R49 blown Attic ADV baffled","10-7",0.02]
[28,"R60 blown Attic STD baffled","10-7",2.5000000000000001E-2]
[29,"R60 blown Attic ADV baffled","10-7",1.7000000000000001E-2]
[30,"R30 blown Scissor 4:12 STD baffled","10-7",4.2999999999999997E-2]
[31,"R30 blown Scissor 4:12 ADV baffled","10-7",3.1E-2]
[32,"R38 blown Scissor 4:12 STD baffled","10-7",0.04]
[33,"R38 blown Scissor 4:12 ADV baffled","10-7",2.5000000000000001E-2]
[34,"R49 blown Scissor 4:12 STD baffled","10-7",3.7999999999999999E-2]
[35,"R49 blown Scissor 4:12 ADV baffled","10-7",0.02]
[36,"R30 blown Scissor 5:12 STD baffled","10-7",3.9E-2]
[37,"R30 blown Scissor 5:12 ADV baffled","10-7",3.2000000000000001E-2]
[38,"R38 blown Scissor 5:12 STD baffled","10-7",3.5000000000000003E-2]
[39,"R38 blown Scissor 5:12 ADV baffled","10-7",2.5999999999999999E-2]
[40,"R49 blown Scissor 5:12 STD baffled","10-7",3.2000000000000001E-2]
[41,"R49 blown Scissor 5:12 ADV baffled","10-7",0.02]
[42,"St Truss R19 cavity 12' Span","10-7A",0.1075]
[43,"St Truss R19 cavity 14' Span","10-7A",9.9099999999999994E-2]
[44,"St Truss R19 cavity 16' Span","10-7A",9.2799999999999994E-2]
[45,"St Truss R19 cavity 18' Span","10-7A",8.7800000000000003E-2]
[46,"St Truss R19 cavity 20' Span","10-7A",8.3900000000000002E-2]
[47,"St Truss R19 cavity 22' Span","10-7A",8.0699999999999994E-2]
[48,"St Truss R19 cavity 24' Span","10-7A",7.8E-2]
[49,"St Truss R19 cavity 26' Span","10-7A",7.5700000000000003E-2]
[50,"St Truss R19 cavity 28' Span","10-7A",7.3700000000000002E-2]
[51,"St Truss R19 cavity 30' Span","10-7A",7.1999999999999995E-2]
[52,"St Truss R19 cavity 32' Span","10-7A",7.0599999999999996E-2]
[53,"St Truss R19 cavity 34' Span","10-7A",6.93E-2]
[54,"St Truss R19 cavity 36' Span","10-7A",6.8099999999999994E-2]
[55,"St Truss R30 cavity 12' Span","10-7A",9.0700000000000003E-2]
[56,"St Truss R30 cavity 14' Span","10-7A",8.2299999999999998E-2]
[57,"St Truss R30 cavity 16' Span","10-7A",7.5999999999999998E-2]
[58,"St Truss R30 cavity 18' Span","10-7A",7.0999999999999994E-2]
[59,"St Truss R30 cavity 20' Span","10-7A",6.7100000000000007E-2]
[60,"St Truss R30 cavity 22' Span","10-7A",6.3799999999999996E-2]
[61,"St Truss R30 cavity 24' Span","10-7A",6.1199999999999997E-2]
[62,"St Truss R30 cavity 26' Span","10-7A",5.8900000000000001E-2]
[63,"St Truss R30 cavity 28' Span","10-7A",5.6899999999999999E-2]
[64,"St Truss R30 cavity 30' Span","10-7A",5.5199999999999999E-2]
[65,"St Truss R30 cavity 32' Span","10-7A",5.3800000000000001E-2]
[66,"St Truss R30 cavity 34' Span","10-7A",5.2499999999999998E-2]
[67,"St Truss R30 cavity 36' Span","10-7A",5.1299999999999998E-2]
[68,"St Truss R38 cavity 12' Span","10-7A",8.4400000000000003E-2]
[69,"St Truss R38 cavity 14' Span","10-7A",7.5899999999999995E-2]
[70,"St Truss R38 cavity 16' Span","10-7A",6.9599999999999995E-2]
[71,"St Truss R38 cavity 18' Span","10-7A",6.4699999999999994E-2]
[{"$f":"A77+1","v":72},"St Truss R38 cavity 20' Span","10-7A",6.0699999999999997E-2]
[73,"St Truss R38 cavity 22' Span","10-7A",5.7500000000000002E-2]
[74,"St Truss R38 cavity 24' Span","10-7A",5.4800000000000001E-2]
[75,"St Truss R38 cavity 26' Span","10-7A",5.2499999999999998E-2]
[76,"St Truss R38 cavity 28' Span","10-7A",5.0599999999999999E-2]
[77,"St Truss R38 cavity 30' Span","10-7A",4.8899999999999999E-2]
[78,"St Truss R38 cavity 32' Span","10-7A",4.7399999999999998E-2]
[79,"St Truss R38 cavity 34' Span","10-7A",4.6100000000000002E-2]
[80,"St Truss R38 cavity 36' Span","10-7A",4.4900000000000002E-2]
[81,"St Truss R49 cavity 12' Span","10-7A",7.8899999999999998E-2]
[82,"St Truss R49 cavity 14' Span","10-7A",7.0400000000000004E-2]
[83,"St Truss R49 cavity 16' Span","10-7A",6.4100000000000004E-2]
[84,"St Truss R49 cavity 18' Span","10-7A",5.9200000000000003E-2]
[85,"St Truss R49 cavity 20' Span","10-7A",5.5199999999999999E-2]
[86,"St Truss R49 cavity 22' Span","10-7A",5.1999999999999998E-2]
[87,"St Truss R49 cavity 24' Span","10-7A",4.9299999999999997E-2]
[88,"St Truss R49 cavity 26' Span","10-7A",4.7E-2]
[89,"St Truss R49 cavity 28' Span","10-7A",4.5100000000000001E-2]
[90,"St Truss R49 cavity 30' Span","10-7A",4.3400000000000001E-2]
[91,"St Truss R49 cavity 32' Span","10-7A",4.19E-2]
[92,"St Truss R49 cavity 34' Span","10-7A",4.0599999999999997E-2]
[93,"St Truss R49 cavity 36' Span","10-7A",3.95E-2]
[94,"St Truss R19 cavity R3 Sheath 12' Span","10-7A",8.09E-2]
[95,"St Truss R19 cavity R3 Sheath 14' Span","10-7A",7.6300000000000007E-2]
[96,"St Truss R19 cavity R3 Sheath 16' Span","10-7A",7.2800000000000004E-2]
[97,"St Truss R19 cavity R3 Sheath 18' Span","10-7A",7.0099999999999996E-2]
[98,"St Truss R19 cavity R3 Sheath 20' Span","10-7A",6.7900000000000002E-2]
[99,"St Truss R19 cavity R3 Sheath 22' Span","10-7A",6.6100000000000006E-2]
[100,"St Truss R19 cavity R3 Sheath 24' Span","10-7A",6.4699999999999994E-2]
[101,"St Truss R19 cavity R3 Sheath 26' Span","10-7A",6.3399999999999998E-2]
[102,"St Truss R19 cavity R3 Sheath 28' Span","10-7A",6.2300000000000001E-2]
[103,"St Truss R19 cavity R3 Sheath 30' Span","10-7A",6.1400000000000003E-2]
[104,"St Truss R19 cavity R3 Sheath 32' Span","10-7A",6.0600000000000001E-2]
[105,"St Truss R19 cavity R3 Sheath 34' Span","10-7A",5.9900000000000002E-2]
[106,"St Truss R19 cavity R3 Sheath 36' Span","10-7A",5.9200000000000003E-2]
[107,"St Truss R30 cavity R3 Sheath 12' Span","10-7A",6.4100000000000004E-2]
[108,"St Truss R30 cavity R3 Sheath 14' Span","10-7A",5.9499999999999997E-2]
[109,"St Truss R30 cavity R3 Sheath 16' Span","10-7A",5.6000000000000001E-2]
[110,"St Truss R30 cavity R3 Sheath 18' Span","10-7A",5.33E-2]
[111,"St Truss R30 cavity R3 Sheath 20' Span","10-7A",5.11E-2]
[112,"St Truss R30 cavity R3 Sheath 22' Span","10-7A",4.9299999999999997E-2]
[113,"St Truss R30 cavity R3 Sheath 24' Span","10-7A",4.7800000000000002E-2]
[114,"St Truss R30 cavity R3 Sheath 26' Span","10-7A",4.6600000000000003E-2]
[115,"St Truss R30 cavity R3 Sheath 28' Span","10-7A",4.5499999999999999E-2]
[116,"St Truss R30 cavity R3 Sheath 30' Span","10-7A",4.4600000000000001E-2]
[117,"St Truss R30 cavity R3 Sheath 32' Span","10-7A",4.3799999999999999E-2]
[118,"St Truss R30 cavity R3 Sheath 34' Span","10-7A",4.3099999999999999E-2]
[119,"St Truss R30 cavity R3 Sheath 36' Span","10-7A",4.24E-2]
[120,"St Truss R38 cavity R3 Sheath 12' Span","10-7A",5.7700000000000001E-2]
[121,"St Truss R38 cavity R3 Sheath 14' Span","10-7A",5.3100000000000001E-2]
[122,"St Truss R38 cavity R3 Sheath 16' Span","10-7A",4.9599999999999998E-2]
[123,"St Truss R38 cavity R3 Sheath 18' Span","10-7A",4.6899999999999997E-2]
[124,"St Truss R38 cavity R3 Sheath 20' Span","10-7A",4.4699999999999997E-2]
[125,"St Truss R38 cavity R3 Sheath 22' Span","10-7A",4.2999999999999997E-2]
[126,"St Truss R38 cavity R3 Sheath 24' Span","10-7A",4.1500000000000002E-2]
[127,"St Truss R38 cavity R3 Sheath 26' Span","10-7A",4.02E-2]
[128,"St Truss R38 cavity R3 Sheath 28' Span","10-7A",3.9199999999999999E-2]
[129,"St Truss R38 cavity R3 Sheath 30' Span","10-7A",3.8199999999999998E-2]
[130,"St Truss R38 cavity R3 Sheath 32' Span","10-7A",3.7400000000000003E-2]
[131,"St Truss R38 cavity R3 Sheath 34' Span","10-7A",3.6700000000000003E-2]
[132,"St Truss R38 cavity R3 Sheath 36' Span","10-7A",3.61E-2]
[133,"St Truss R49 cavity R3 Sheath 12' Span","10-7A",5.2299999999999999E-2]
[134,"St Truss R49 cavity R3 Sheath 14' Span","10-7A",4.7600000000000003E-2]
[135,"St Truss R49 cavity R3 Sheath 16' Span","10-7A",4.41E-2]
[{"$f":"A141+1","v":136},"St Truss R49 cavity R3 Sheath 18' Span","10-7A",4.1399999999999999E-2]
[137,"St Truss R49 cavity R3 Sheath 20' Span","10-7A",3.9300000000000002E-2]
[138,"St Truss R49 cavity R3 Sheath 22' Span","10-7A",3.7499999999999999E-2]
[139,"St Truss R49 cavity R3 Sheath 24' Span","10-7A",3.5999999999999997E-2]
[140,"St Truss R49 cavity R3 Sheath 26' Span","10-7A",3.4799999999999998E-2]
[141,"St Truss R49 cavity R3 Sheath 28' Span","10-7A",3.3700000000000001E-2]
[142,"St Truss R49 cavity R3 Sheath 30' Span","10-7A",3.2800000000000003E-2]
[143,"St Truss R49 cavity R3 Sheath 32' Span","10-7A",3.1899999999999998E-2]
[144,"St Truss R49 cavity R3 Sheath 34' Span","10-7A",3.1199999999999999E-2]
[145,"St Truss R49 cavity R3 Sheath 36' Span","10-7A",3.0599999999999999E-2]
[146,"St Truss R19 cavity R5 Sheath 12' Span","10-7A",7.3200000000000001E-2]
[147,"St Truss R19 cavity R5 Sheath 14' Span","10-7A",6.9699999999999998E-2]
[148,"St Truss R19 cavity R5 Sheath 16' Span","10-7A",6.7000000000000004E-2]
[149,"St Truss R19 cavity R5 Sheath 18' Span","10-7A",6.4899999999999999E-2]
[150,"St Truss R19 cavity R5 Sheath 20' Span","10-7A",6.3299999999999995E-2]
[151,"St Truss R19 cavity R5 Sheath 22' Span","10-7A",6.1899999999999997E-2]
[152,"St Truss R19 cavity R5 Sheath 24' Span","10-7A",6.08E-2]
[153,"St Truss R19 cavity R5 Sheath 26' Span","10-7A",5.9799999999999999E-2]
[154,"St Truss R19 cavity R5 Sheath 28' Span","10-7A",5.8999999999999997E-2]
[155,"St Truss R19 cavity R5 Sheath 30' Span","10-7A",5.8299999999999998E-2]
[156,"St Truss R19 cavity R5 Sheath 32' Span","10-7A",5.7700000000000001E-2]
[157,"St Truss R19 cavity R5 Sheath 34' Span","10-7A",5.7099999999999998E-2]
[158,"St Truss R19 cavity R5 Sheath 36' Span","10-7A",5.67E-2]
[159,"St Truss R30 cavity R5 Sheath 12' Span","10-7A",5.6399999999999999E-2]
[160,"St Truss R30 cavity R5 Sheath 14' Span","10-7A",5.2900000000000003E-2]
[161,"St Truss R30 cavity R5 Sheath 16' Span","10-7A",5.0200000000000002E-2]
[162,"St Truss R30 cavity R5 Sheath 18' Span","10-7A",4.8099999999999997E-2]
[163,"St Truss R30 cavity R5 Sheath 20' Span","10-7A",4.65E-2]
[164,"St Truss R30 cavity R5 Sheath 22' Span","10-7A",5.0999999999999997E-2]
[165,"St Truss R30 cavity R5 Sheath 24' Span","10-7A",4.3999999999999997E-2]
[166,"St Truss R30 cavity R5 Sheath 26' Span","10-7A",4.2999999999999997E-2]
[167,"St Truss R30 cavity R5 Sheath 28' Span","10-7A",4.2200000000000001E-2]
[168,"St Truss R30 cavity R5 Sheath 30' Span","10-7A",4.1500000000000002E-2]
[169,"St Truss R30 cavity R5 Sheath 32' Span","10-7A",4.0899999999999999E-2]
[170,"St Truss R30 cavity R5 Sheath 34' Span","10-7A",4.0300000000000002E-2]
[171,"St Truss R30 cavity R5 Sheath 36' Span","10-7A",3.9899999999999998E-2]
[172,"St Truss R38 cavity R5 Sheath 12' Span","10-7A",5.0099999999999999E-2]
[173,"St Truss R38 cavity R5 Sheath 14' Span","10-7A",4.65E-2]
[174,"St Truss R38 cavity R5 Sheath 16' Span","10-7A",4.3799999999999999E-2]
[175,"St Truss R38 cavity R5 Sheath 18' Span","10-7A",4.1799999999999997E-2]
[176,"St Truss R38 cavity R5 Sheath 20' Span","10-7A",4.0099999999999997E-2]
[177,"St Truss R38 cavity R5 Sheath 22' Span","10-7A",3.8800000000000001E-2]
[178,"St Truss R38 cavity R5 Sheath 24' Span","10-7A",3.7600000000000001E-2]
[179,"St Truss R38 cavity R5 Sheath 26' Span","10-7A",3.6700000000000003E-2]
[180,"St Truss R38 cavity R5 Sheath 28' Span","10-7A",3.5900000000000001E-2]
[181,"St Truss R38 cavity R5 Sheath 30' Span","10-7A",3.5099999999999999E-2]
[182,"St Truss R38 cavity R5 Sheath 32' Span","10-7A",3.4500000000000003E-2]
[183,"St Truss R38 cavity R5 Sheath 34' Span","10-7A",3.4000000000000002E-2]
[184,"St Truss R38 cavity R5 Sheath 36' Span","10-7A",3.3500000000000002E-2]
[185,"St Truss R49 cavity R5 Sheath 12' Span","10-7A",4.4600000000000001E-2]
[186,"St Truss R49 cavity R5 Sheath 14' Span","10-7A",4.1000000000000002E-2]
[187,"St Truss R49 cavity R5 Sheath 16' Span","10-7A",3.8399999999999997E-2]
[188,"St Truss R49 cavity R5 Sheath 18' Span","10-7A",3.6299999999999999E-2]
[189,"St Truss R49 cavity R5 Sheath 20' Span","10-7A",3.4599999999999999E-2]
[190,"St Truss R49 cavity R5 Sheath 22' Span","10-7A",3.3300000000000003E-2]
[191,"St Truss R49 cavity R5 Sheath 24' Span","10-7A",3.2199999999999999E-2]
[192,"St Truss R49 cavity R5 Sheath 26' Span","10-7A",3.1199999999999999E-2]
[193,"St Truss R49 cavity R5 Sheath 28' Span","10-7A",3.04E-2]
[194,"St Truss R49 cavity R5 Sheath 30' Span","10-7A",2.9700000000000001E-2]
[195,"St Truss R49 cavity R5 Sheath 32' Span","10-7A",2.9100000000000001E-2]
[196,"St Truss R49 cavity R5 Sheath 34' Span","10-7A",2.8500000000000001E-2]
[197,"St Truss R49 cavity R5 Sheath 36' Span","10-7A",2.8000000000000001E-2]
[198,"St Truss R19 cavity R10 Sheath 12' Span","10-7A",6.2600000000000003E-2]
[199,"St Truss R19 cavity R10 Sheath 14' Span","10-7A",6.0600000000000001E-2]
[{"$f":"A205+1","v":200},"St Truss R19 cavity R10 Sheath 16' Span","10-7A",5.8999999999999997E-2]
[201,"St Truss R19 cavity R10 Sheath 18' Span","10-7A",5.7799999999999997E-2]
[202,"St Truss R19 cavity R10 Sheath 20' Span","10-7A",5.6899999999999999E-2]
[203,"St Truss R19 cavity R10 Sheath 22' Span","10-7A",5.6099999999999997E-2]
[204,"St Truss R19 cavity R10 Sheath 24' Span","10-7A",5.5500000000000001E-2]
[205,"St Truss R19 cavity R10 Sheath 26' Span","10-7A",5.4899999999999997E-2]
[206,"St Truss R19 cavity R10 Sheath 28' Span","10-7A",5.45E-2]
[207,"St Truss R19 cavity R10 Sheath 30' Span","10-7A",5.4100000000000002E-2]
[208,"St Truss R19 cavity R10 Sheath 32' Span","10-7A",5.3699999999999998E-2]
[209,"St Truss R19 cavity R10 Sheath 34' Span","10-7A",5.3400000000000003E-2]
[210,"St Truss R19 cavity R10 Sheath 36' Span","10-7A",5.3100000000000001E-2]
[211,"St Truss R30 cavity R10 Sheath 12' Span","10-7A",4.58E-2]
[212,"St Truss R30 cavity R10 Sheath 14' Span","10-7A",4.3700000000000003E-2]
[213,"St Truss R30 cavity R10 Sheath 16' Span","10-7A",4.2200000000000001E-2]
[214,"St Truss R30 cavity R10 Sheath 18' Span","10-7A",4.1000000000000002E-2]
[215,"St Truss R30 cavity R10 Sheath 20' Span","10-7A",4.0099999999999997E-2]
[216,"St Truss R30 cavity R10 Sheath 22' Span","10-7A",3.9300000000000002E-2]
[217,"St Truss R30 cavity R10 Sheath 24' Span","10-7A",3.8699999999999998E-2]
[218,"St Truss R30 cavity R10 Sheath 26' Span","10-7A",3.8100000000000002E-2]
[219,"St Truss R30 cavity R10 Sheath 28' Span","10-7A",3.7699999999999997E-2]
[220,"St Truss R30 cavity R10 Sheath 30' Span","10-7A",3.73E-2]
[221,"St Truss R30 cavity R10 Sheath 32' Span","10-7A",3.6900000000000002E-2]
[222,"St Truss R30 cavity R10 Sheath 34' Span","10-7A",3.6600000000000001E-2]
[223,"St Truss R30 cavity R10 Sheath 36' Span","10-7A",3.6299999999999999E-2]
[224,"St Truss R38 cavity R10 Sheath 12' Span","10-7A",3.9399999999999998E-2]
[225,"St Truss R38 cavity R10 Sheath 14' Span","10-7A",3.7400000000000003E-2]
[226,"St Truss R38 cavity R10 Sheath 16' Span","10-7A",3.5900000000000001E-2]
[227,"St Truss R38 cavity R10 Sheath 18' Span","10-7A",3.4700000000000002E-2]
[228,"St Truss R38 cavity R10 Sheath 20' Span","10-7A",3.3700000000000001E-2]
[229,"St Truss R38 cavity R10 Sheath 22' Span","10-7A",3.3000000000000002E-2]
[230,"St Truss R38 cavity R10 Sheath 24' Span","10-7A",3.2300000000000002E-2]
[231,"St Truss R38 cavity R10 Sheath 26' Span","10-7A",3.1800000000000002E-2]
[232,"St Truss R38 cavity R10 Sheath 28' Span","10-7A",3.1300000000000001E-2]
[233,"St Truss R38 cavity R10 Sheath 30' Span","10-7A",3.09E-2]
[234,"St Truss R38 cavity R10 Sheath 32' Span","10-7A",3.0499999999999999E-2]
[235,"St Truss R38 cavity R10 Sheath 34' Span","10-7A",3.0200000000000001E-2]
[236,"St Truss R38 cavity R10 Sheath 36' Span","10-7A",2.9899999999999999E-2]
[237,"St Truss R49 cavity R10 Sheath 12' Span","10-7A",3.39E-2]
[238,"St Truss R49 cavity R10 Sheath 14' Span","10-7A",3.1899999999999998E-2]
[239,"St Truss R49 cavity R10 Sheath 16' Span","10-7A",3.04E-2]
[240,"St Truss R49 cavity R10 Sheath 18' Span","10-7A",2.92E-2]
[241,"St Truss R49 cavity R10 Sheath 20' Span","10-7A",2.8299999999999999E-2]
[242,"St Truss R49 cavity R10 Sheath 22' Span","10-7A",2.75E-2]
[243,"St Truss R49 cavity R10 Sheath 24' Span","10-7A",2.6800000000000001E-2]
[244,"St Truss R49 cavity R10 Sheath 26' Span","10-7A",2.63E-2]
[245,"St Truss R49 cavity R10 Sheath 28' Span","10-7A",2.58E-2]
[246,"St Truss R49 cavity R10 Sheath 30' Span","10-7A",2.5399999999999999E-2]
[247,"St Truss R49 cavity R10 Sheath 32' Span","10-7A",2.5100000000000001E-2]
[248,"St Truss R49 cavity R10 Sheath 34' Span","10-7A",2.47E-2]
[249,"St Truss R49 cavity R10 Sheath 36' Span","10-7A",2.4500000000000001E-2]
[250,"St Truss R19 cavity R15 Sheath 12' Span","10-7A",5.6099999999999997E-2]
[251,"St Truss R19 cavity R15 Sheath 14' Span","10-7A",5.5E-2]
[252,"St Truss R19 cavity R15 Sheath 16' Span","10-7A",5.4100000000000002E-2]
[253,"St Truss R19 cavity R15 Sheath 18' Span","10-7A",5.3499999999999999E-2]
[254,"St Truss R19 cavity R15 Sheath 20' Span","10-7A",5.2999999999999999E-2]
[255,"St Truss R19 cavity R15 Sheath 22' Span","10-7A",5.2600000000000001E-2]
[256,"St Truss R19 cavity R15 Sheath 24' Span","10-7A",5.2200000000000003E-2]
[257,"St Truss R19 cavity R15 Sheath 26' Span","10-7A",5.1900000000000002E-2]
[258,"St Truss R19 cavity R15 Sheath 28' Span","10-7A",5.1700000000000003E-2]
[259,"St Truss R19 cavity R15 Sheath 30' Span","10-7A",5.1499999999999997E-2]
[260,"St Truss R19 cavity R15 Sheath 32' Span","10-7A",5.1299999999999998E-2]
[261,"St Truss R19 cavity R15 Sheath 34' Span","10-7A",5.11E-2]
[262,"St Truss R19 cavity R15 Sheath 36' Span","10-7A",5.0900000000000001E-2]
[263,"St Truss R30 cavity R15 Sheath 12' Span","10-7A",3.9300000000000002E-2]
[{"$f":"A269+1","v":264},"St Truss R30 cavity R15 Sheath 14' Span","10-7A",3.8199999999999998E-2]
[265,"St Truss R30 cavity R15 Sheath 16' Span","10-7A",3.73E-2]
[266,"St Truss R30 cavity R15 Sheath 18' Span","10-7A",3.6700000000000003E-2]
[267,"St Truss R30 cavity R15 Sheath 20' Span","10-7A",3.6200000000000003E-2]
[268,"St Truss R30 cavity R15 Sheath 22' Span","10-7A",3.5799999999999998E-2]
[269,"St Truss R30 cavity R15 Sheath 24' Span","10-7A",3.5400000000000001E-2]
[270,"St Truss R30 cavity R15 Sheath 26' Span","10-7A",3.5099999999999999E-2]
[271,"St Truss R30 cavity R15 Sheath 28' Span","10-7A",3.49E-2]
[272,"St Truss R30 cavity R15 Sheath 30' Span","10-7A",3.4700000000000002E-2]
[273,"St Truss R30 cavity R15 Sheath 32' Span","10-7A",3.4500000000000003E-2]
[274,"St Truss R30 cavity R15 Sheath 34' Span","10-7A",3.4299999999999997E-2]
[275,"St Truss R30 cavity R15 Sheath 36' Span","10-7A",3.4099999999999998E-2]
[276,"St Truss R38 cavity R15 Sheath 12' Span","10-7A",3.2899999999999999E-2]
[277,"St Truss R38 cavity R15 Sheath 14' Span","10-7A",3.1800000000000002E-2]
[278,"St Truss R38 cavity R15 Sheath 16' Span","10-7A",3.1E-2]
[279,"St Truss R38 cavity R15 Sheath 18' Span","10-7A",3.0300000000000001E-2]
[280,"St Truss R38 cavity R15 Sheath 20' Span","10-7A",2.98E-2]
[281,"St Truss R38 cavity R15 Sheath 22' Span","10-7A",2.9399999999999999E-2]
[282,"St Truss R38 cavity R15 Sheath 24' Span","10-7A",2.9100000000000001E-2]
[283,"St Truss R38 cavity R15 Sheath 26' Span","10-7A",2.8799999999999999E-2]
[284,"St Truss R38 cavity R15 Sheath 28' Span","10-7A",2.8500000000000001E-2]
[285,"St Truss R38 cavity R15 Sheath 30' Span","10-7A",2.8299999999999999E-2]
[286,"St Truss R38 cavity R15 Sheath 32' Span","10-7A",2.81E-2]
[287,"St Truss R38 cavity R15 Sheath 34' Span","10-7A",2.7900000000000001E-2]
[288,"St Truss R38 cavity R15 Sheath 36' Span","10-7A",2.7799999999999998E-2]
[289,"St Truss R49 cavity R15 Sheath 12' Span","10-7A",2.7400000000000001E-2]
[290,"St Truss R49 cavity R15 Sheath 14' Span","10-7A",2.63E-2]
[291,"St Truss R49 cavity R15 Sheath 16' Span","10-7A",2.5499999999999998E-2]
[292,"St Truss R49 cavity R15 Sheath 18' Span","10-7A",2.4899999999999999E-2]
[293,"St Truss R49 cavity R15 Sheath 20' Span","10-7A",2.4400000000000002E-2]
[294,"St Truss R49 cavity R15 Sheath 22' Span","10-7A",2.3900000000000001E-2]
[295,"St Truss R49 cavity R15 Sheath 24' Span","10-7A",2.3599999999999999E-2]
[296,"St Truss R49 cavity R15 Sheath 26' Span","10-7A",2.3300000000000001E-2]
[297,"St Truss R49 cavity R15 Sheath 28' Span","10-7A",2.3E-2]
[298,"St Truss R49 cavity R15 Sheath 30' Span","10-7A",2.2800000000000001E-2]
[299,"St Truss R49 cavity R15 Sheath 32' Span","10-7A",2.2599999999999999E-2]
[300,"St Truss R49 cavity R15 Sheath 34' Span","10-7A",2.2499999999999999E-2]
[301,"St Truss R49 cavity R15 Sheath 36' Span","10-7A",2.23E-2]
[302,"R19 batt Vault vented 2x10 16oc","10-7",4.9000000000000002E-2]
[303,"R19 batt Vault vented 2x10 24oc","10-7",4.8000000000000001E-2]
[304,"R30 batt Vault vented 2x12 16oc","10-7",3.4000000000000002E-2]
[305,"R30 batt Vault vented 2x12 24oc","10-7",3.3000000000000002E-2]
[306,"R38 batt Vault vented 2x14 16oc","10-7",2.7E-2]
[307,"R38 batt Vault vented 2x14 24oc","10-7",2.7E-2]
[308,"R30 batt Vault unvented 2x10 16oc","10-7",3.4000000000000002E-2]
[309,"R30 batt Vault unvented 2x10 24oc","10-7",3.3000000000000002E-2]
[310,"R38 batt Vault unvented 2x12 16oc","10-7",2.9000000000000001E-2]
[311,"R38 batt Vault unvented 2x12 24oc","10-7",2.7E-2]
[312,"R21+R21 Vault unvented 2x12 16oc","10-7",2.5999999999999999E-2]
[313,"R21+R21 Vault unvented 2x12 24oc","10-7",2.5000000000000001E-2]
[314,"R12.5 2\" Rigid Roof Deck 48oc","10-7",6.4000000000000001E-2]
[315,"R21.9 3.5\" Rigid Roof Deck 48oc","10-7",0.04]
[316,"R37.5 6\" Rigid Roof Deck 48oc","10-7",2.5000000000000001E-2]
[317,"R50 8\" Rigid Roof Deck 48oc","10-7",1.9E-2]
[318,"7.25\" flush frame stress skin","WSU",3.5999999999999997E-2]
[319,"7.25\" supported stress skin","WSU",3.3000000000000002E-2]
[320,"9.25\" flush frame stress skin","WSU",3.1E-2]
[321,"9.25\" supported stress skin","WSU",2.7E-2]
[322,"11.25\" flush frame stress skin","WSU",2.5000000000000001E-2]
[323,"11.25\" supported stress skin","WSU",2.1999999999999999E-2]
[324,"== Custom Entries per WSEC R402.1.5 U-factor Reference and Calculations ========",null,null,"Notes"]
[325,"R38 blown Attic ADV baffled + R30","Custom",0.14599999999999999,null,{"$f":"IF(AND(B332<>\"\",B331=\"\"),\"Don't skip lines\",IF(AND(D331=\"\",B331<>\"\"),\"Enter U-value\",IF(AND(D331<>\"\",B331=\"\"),\"Enter Description\",\"\")))","v":""}]
[326,null,"Custom",null,null,""]
[327,null,"Custom",null,null,""]
[328,null,"Custom",null,null,""]
[{"$f":"A334+1","v":329},null,"Custom",null,null,""]
[330,null,"Custom",null,null,""]
[331,null,"Custom",null,null,""]
[332,null,"Custom",null,null,""]
[333,null,"Custom",null,null,""]
[334,null,"Custom",null,null,""]
[335,null,"Custom",null,null,""]
[336,null,"Custom",null,null,""]
[337,null,"Custom",null,null,""]
[338,null,"Custom",null,null,""]
[339,null,"Custom",null,null,""]
[340,null,"Custom",null,null,""]
[341,null,"Custom",null,null,""]
[342,null,"Custom",null,null,""]
[343,null,"Custom",null,null,""]
[344,null,"Custom",null,null,""]
[345,null,"Custom",null,null,""]
[346,null,"Custom",null,null,""]
[347,null,"Custom",null,null,""]
[348,null,"Custom",null,null,""]
[349,null,"Custom",null,null,""]
[350,null,"Custom",null,null,""]
[351,null,"Custom",null,null,""]
[352,null,"Custom",null,null,""]
[353,null,"Custom",null,null,""]
[354,null,"Custom",null,null,""]
[355,null,"Custom",null,null,""]
[356,null,"Custom",null,null,""]
[357,null,"Custom",null,null,""]
[358,null,"Custom",null,null,""]
[359,null,"Custom",null,null,""]
[360,null,"Custom",null,null,""]
[361,null,"Custom",null,null,""]
[362,null,"Custom",null,null,""]
[363,null,"Custom",null,null,""]
[364,null,"Custom",null,null,""]

{"sheet":"Walls(above grade)","index":8,"n_rows":943,"n_cols":6,"rows_kept":943,"cut":false,"hidden":true,"merged":[]}
["Index","Component Description","Reference","Wall U"]
[]
[1]
[{"$f":"A3+1","v":2},"=== Most Frequently Used ========= "]
[{"$f":"A4+1","v":3},"R11 cavity+R0 foam STD 2X4W Lap","10-5",8.7999999999999995E-2]
[4,"R19 cavity+R0 foam STD 2X6W Lap","10-5",6.2E-2]
[5,"R21 cavity+R0 foam INT 2X6W Lap (Code Target)","10-5",5.3999999999999999E-2]
[6,"R21 cavity+R0 foam INT 2X6W T111 (Code Target)","10-5",5.6000000000000001E-2]
[7,"R21 cavity+R4 foam INT 2X6W Lap (Option 1b)","10-5",4.2999999999999997E-2]
[8,"R21 cavity+R4 foam INT 2X6W T111 (Option 1b)","10-5",4.4999999999999998E-2]
[9,"R21 cavity+R5 foam INT 2X6W Lap","10-5",4.1000000000000002E-2]
[10,"R21 cavity+R5 foam INT 2X6W T111","10-5",4.2000000000000003E-2]
[11,"R21 cavity+R12 foam INT 2X6W Lap (Option 1c)","10-5",3.1E-2]
[12,"R21 cavity+R12 foam INT 2X6W T111 (Option 1c)","10-5",3.2000000000000001E-2]
[13,"============================"]
[14,"R11 cavity+R0 foam STD 2X4W Lap","10-5",8.7999999999999995E-2]
[15,"R11 cavity+R0 foam ADV 2X4W Lap","10-5",8.4000000000000005E-2]
[16,"R11 cavity+R0 foam STD 2X4W T111","10-5",9.4E-2]
[17,"R11 cavity+R0 foam ADV 2X4W T111","10-5",0.09]
[18,"R11 cavity+R1 foam STD 2X4W Lap","10-5",0.08]
[19,"R11 cavity+R1 foam ADV 2X4W Lap","10-5",0.77]
[20,"R11 cavity+R1 foam STD 2X4W T111","10-5",8.5000000000000006E-2]
[21,"R11 cavity+R1 foam ADV 2X4W T111","10-5",8.2000000000000003E-2]
[22,"R11 cavity+R2 foam STD 2X4W Lap","10-5",7.3999999999999996E-2]
[23,"R11 cavity+R2 foam ADV 2X4W Lap","10-5",7.0999999999999994E-2]
[24,"R11 cavity+R2 foam STD 2X4W T111","10-5",7.8E-2]
[25,"R11 cavity+R2 foam ADV 2X4W T111","10-5",7.4999999999999997E-2]
[26,"R11 cavity+R3 foam STD 2X4W Lap","10-5",6.9000000000000006E-2]
[27,"R11 cavity+R3 foam ADV 2X4W Lap","10-5",6.6000000000000003E-2]
[28,"R11 cavity+R3 foam STD 2X4W T111","10-5",7.1999999999999995E-2]
[29,"R11 cavity+R3 foam ADV 2X4W T111","10-5",7.0000000000000007E-2]
[30,"R11 cavity+R4 foam STD 2X4W Lap","10-5",6.4000000000000001E-2]
[31,"R11 cavity+R4 foam ADV 2X4W Lap","10-5",6.2E-2]
[32,"R11 cavity+R4 foam STD 2X4W T111","10-5",6.7000000000000004E-2]
[33,"R11 cavity+R4 foam ADV 2X4W T111","10-5",6.5000000000000002E-2]
[34,"R11 cavity+R5 foam STD 2X4W Lap","10-5",0.06]
[35,"R11 cavity+R5 foam ADV 2X4W Lap","10-5",5.8000000000000003E-2]
[36,"R11 cavity+R5 foam STD 2X4W T111","10-5",6.3E-2]
[37,"R11 cavity+R5 foam ADV 2X4W T111","10-5",6.0999999999999999E-2]
[38,"R11 cavity+R6 foam STD 2X4W Lap","10-5",5.6000000000000001E-2]
[39,"R11 cavity+R6 foam ADV 2X4W Lap","10-5",5.5E-2]
[40,"R11 cavity+R6 foam STD 2X4W T111","10-5",5.8999999999999997E-2]
[41,"R11 cavity+R6 foam ADV 2X4W T111","10-5",5.7000000000000002E-2]
[42,"R11 cavity+R7 foam STD 2X4W Lap","10-5",5.2999999999999999E-2]
[43,"R11 cavity+R7 foam ADV 2X4W Lap","10-5",5.1999999999999998E-2]
[44,"R11 cavity+R7 foam STD 2X4W T111","10-5",5.5E-2]
[45,"R11 cavity+R7 foam ADV 2X4W T111","10-5",5.3999999999999999E-2]
[46,"R11 cavity+R8 foam STD 2X4W Lap","10-5",5.0999999999999997E-2]
[47,"R11 cavity+R8 foam ADV 2X4W Lap","10-5",4.9000000000000002E-2]
[48,"R11 cavity+R8 foam STD 2X4W T111","10-5",5.1999999999999998E-2]
[49,"R11 cavity+R8 foam ADV 2X4W T111","10-5",5.0999999999999997E-2]
[50,"R11 cavity+R9 foam STD 2X4W Lap","10-5",4.8000000000000001E-2]
[51,"R11 cavity+R9 foam ADV 2X4W Lap","10-5",4.7E-2]
[52,"R11 cavity+R9 foam STD 2X4W T111","10-5",0.05]
[53,"R11 cavity+R9 foam ADV 2X4W T111","10-5",4.9000000000000002E-2]
[54,"R11 cavity+R10 foam STD 2X4W Lap","10-5",4.5999999999999999E-2]
[55,"R11 cavity+R10 foam ADV 2X4W Lap","10-5",4.4999999999999998E-2]
[56,"R11 cavity+R10 foam STD 2X4W T111","10-5",4.7E-2]
[57,"R11 cavity+R10 foam ADV 2X4W T111","10-5",4.5999999999999999E-2]
[58,"R11 cavity+R11 foam STD 2X4W Lap","10-5",4.3999999999999997E-2]
[59,"R11 cavity+R11 foam ADV 2X4W Lap","10-5",4.2999999999999997E-2]
[60,"R11 cavity+R11 foam STD 2X4W T111","10-5",4.4999999999999998E-2]
[61,"R11 cavity+R11 foam ADV 2X4W T111","10-5",4.3999999999999997E-2]
[62,"R11 cavity+R12 foam STD 2X4W Lap","10-5",4.2000000000000003E-2]
[63,"R11 cavity+R12 foam ADV 2X4W Lap","10-5",4.1000000000000002E-2]
[64,"R11 cavity+R12 foam STD 2X4W T111","10-5",4.2999999999999997E-2]
[65,"R11 cavity+R12 foam ADV 2X4W T111","10-5",4.2000000000000003E-2]
[66,"R13 cavity+R0 foam STD 2X4W Lap","10-5",8.2000000000000003E-2]
[{"$f":"A68+1","v":67},"R13 cavity+R0 foam ADV 2X4W Lap","10-5",7.8E-2]
[68,"R13 cavity+R0 foam STD 2X4W T111","10-5",8.7999999999999995E-2]
[69,"R13 cavity+R0 foam ADV 2X4W T111","10-5",8.3000000000000004E-2]
[70,"R13 cavity+R1 foam STD 2X4W Lap","10-5",7.4999999999999997E-2]
[71,"R13 cavity+R1 foam ADV 2X4W Lap","10-5",7.1999999999999995E-2]
[72,"R13 cavity+R1 foam STD 2X4W T111","10-5",0.08]
[73,"R13 cavity+R1 foam ADV 2X4W T111","10-5",7.5999999999999998E-2]
[74,"R13 cavity+R2 foam STD 2X4W Lap","10-5",6.9000000000000006E-2]
[75,"R13 cavity+R2 foam ADV 2X4W Lap","10-5",6.6000000000000003E-2]
[76,"R13 cavity+R2 foam STD 2X4W T111","10-5",7.2999999999999995E-2]
[77,"R13 cavity+R2 foam ADV 2X4W T111","10-5",7.0000000000000007E-2]
[78,"R13 cavity+R3 foam STD 2X4W Lap","10-5",6.5000000000000002E-2]
[79,"R13 cavity+R3 foam ADV 2X4W Lap","10-5",6.2E-2]
[80,"R13 cavity+R3 foam STD 2X4W T111","10-5",6.8000000000000005E-2]
[81,"R13 cavity+R3 foam ADV 2X4W T111","10-5",6.5000000000000002E-2]
[82,"R13 cavity+R4 foam STD 2X4W Lap","10-5",0.06]
[83,"R13 cavity+R4 foam ADV 2X4W Lap","10-5",5.8000000000000003E-2]
[84,"R13 cavity+R4 foam STD 2X4W T111","10-5",6.3E-2]
[85,"R13 cavity+R4 foam ADV 2X4W T111","10-5",6.0999999999999999E-2]
[86,"R13 cavity+R5 foam STD 2X4W Lap","10-5",5.7000000000000002E-2]
[87,"R13 cavity+R5 foam ADV 2X4W Lap","10-5",5.5E-2]
[88,"R13 cavity+R5 foam STD 2X4W T111","10-5",5.8999999999999997E-2]
[89,"R13 cavity+R5 foam ADV 2X4W T111","10-5",5.7000000000000002E-2]
[90,"R13 cavity+R6 foam STD 2X4W Lap","10-5",5.2999999999999999E-2]
[91,"R13 cavity+R6 foam ADV 2X4W Lap","10-5",5.1999999999999998E-2]
[92,"R13 cavity+R6 foam STD 2X4W T111","10-5",5.6000000000000001E-2]
[93,"R13 cavity+R6 foam ADV 2X4W T111","10-5",5.3999999999999999E-2]
[94,"R13 cavity+R7 foam STD 2X4W Lap","10-5",5.0999999999999997E-2]
[95,"R13 cavity+R7 foam ADV 2X4W Lap","10-5",4.9000000000000002E-2]
[96,"R13 cavity+R7 foam STD 2X4W T111","10-5",5.1999999999999998E-2]
[97,"R13 cavity+R7 foam ADV 2X4W T111","10-5",5.0999999999999997E-2]
[98,"R13 cavity+R8 foam STD 2X4W Lap","10-5",4.8000000000000001E-2]
[99,"R13 cavity+R8 foam ADV 2X4W Lap","10-5",4.7E-2]
[100,"R13 cavity+R8 foam STD 2X4W T111","10-5",0.05]
[101,"R13 cavity+R8 foam ADV 2X4W T111","10-5",4.8000000000000001E-2]
[102,"R13 cavity+R9 foam STD 2X4W Lap","10-5",4.5999999999999999E-2]
[103,"R13 cavity+R9 foam ADV 2X4W Lap","10-5",4.4999999999999998E-2]
[104,"R13 cavity+R9 foam STD 2X4W T111","10-5",4.7E-2]
[105,"R13 cavity+R9 foam ADV 2X4W T111","10-5",4.5999999999999999E-2]
[106,"R13 cavity+R10 foam STD 2X4W Lap","10-5",4.3999999999999997E-2]
[107,"R13 cavity+R10 foam ADV 2X4W Lap","10-5",4.2999999999999997E-2]
[108,"R13 cavity+R10 foam STD 2X4W T111","10-5",4.4999999999999998E-2]
[109,"R13 cavity+R10 foam ADV 2X4W T111","10-5",4.3999999999999997E-2]
[110,"R13 cavity+R11 foam STD 2X4W Lap","10-5",4.2000000000000003E-2]
[111,"R13 cavity+R11 foam ADV 2X4W Lap","10-5",4.1000000000000002E-2]
[112,"R13 cavity+R11 foam STD 2X4W T111","10-5",4.2999999999999997E-2]
[113,"R13 cavity+R11 foam ADV 2X4W T111","10-5",4.2000000000000003E-2]
[114,"R13 cavity+R12 foam STD 2X4W Lap","10-5",0.04]
[115,"R13 cavity+R12 foam ADV 2X4W Lap","10-5",3.9E-2]
[116,"R13 cavity+R12 foam STD 2X4W T111","10-5",4.1000000000000002E-2]
[117,"R13 cavity+R12 foam ADV 2X4W T111","10-5",0.04]
[118,"R15 cavity+R0 foam STD 2X4W Lap","10-5",7.5999999999999998E-2]
[119,"R15 cavity+R0 foam ADV 2X4W Lap","10-5",7.0999999999999994E-2]
[120,"R15 cavity+R0 foam STD 2X4W T111","10-5",8.1000000000000003E-2]
[121,"R15 cavity+R0 foam ADV 2X4W T111","10-5",7.4999999999999997E-2]
[122,"R15 cavity+R1 foam STD 2X4W Lap","10-5",6.9000000000000006E-2]
[123,"R15 cavity+R1 foam ADV 2X4W Lap","10-5",6.5000000000000002E-2]
[124,"R15 cavity+R1 foam STD 2X4W T111","10-5",7.2999999999999995E-2]
[125,"R15 cavity+R1 foam ADV 2X4W T111","10-5",6.9000000000000006E-2]
[126,"R15 cavity+R2 foam STD 2X4W Lap","10-5",6.4000000000000001E-2]
[127,"R15 cavity+R2 foam ADV 2X4W Lap","10-5",6.0999999999999999E-2]
[128,"R15 cavity+R2 foam STD 2X4W T111","10-5",6.8000000000000005E-2]
[129,"R15 cavity+R2 foam ADV 2X4W T111","10-5",6.9000000000000006E-2]
[130,"R15 cavity+R3 foam STD 2X4W Lap","10-5",0.06]
[{"$f":"A132+1","v":131},"R15 cavity+R3 foam ADV 2X4W Lap","10-5",5.7000000000000002E-2]
[132,"R15 cavity+R3 foam STD 2X4W T111","10-5",6.3E-2]
[133,"R15 cavity+R3 foam ADV 2X4W T111","10-5",5.8999999999999997E-2]
[134,"R15 cavity+R4 foam STD 2X4W Lap","10-5",5.6000000000000001E-2]
[135,"R15 cavity+R4 foam ADV 2X4W Lap","10-5",5.2999999999999999E-2]
[136,"R15 cavity+R4 foam STD 2X4W T111","10-5",5.8999999999999997E-2]
[137,"R15 cavity+R4 foam ADV 2X4W T111","10-5",5.6000000000000001E-2]
[138,"R15 cavity+R5 foam STD 2X4W Lap","10-5",5.2999999999999999E-2]
[139,"R15 cavity+R5 foam ADV 2X4W Lap","10-5",5.0999999999999997E-2]
[140,"R15 cavity+R5 foam STD 2X4W T111","10-5",5.5E-2]
[141,"R15 cavity+R5 foam ADV 2X4W T111","10-5",5.1999999999999998E-2]
[142,"R15 cavity+R6 foam STD 2X4W Lap","10-5",0.05]
[143,"R15 cavity+R6 foam ADV 2X4W Lap","10-5",4.8000000000000001E-2]
[144,"R15 cavity+R6 foam STD 2X4W T111","10-5",5.1999999999999998E-2]
[145,"R15 cavity+R6 foam ADV 2X4W T111","10-5",0.05]
[146,"R15 cavity+R7 foam STD 2X4W Lap","10-5",4.7E-2]
[147,"R15 cavity+R7 foam ADV 2X4W Lap","10-5",4.5999999999999999E-2]
[148,"R15 cavity+R7 foam STD 2X4W T111","10-5",4.9000000000000002E-2]
[149,"R15 cavity+R7 foam ADV 2X4W T111","10-5",4.7E-2]
[150,"R15 cavity+R8 foam STD 2X4W Lap","10-5",4.4999999999999998E-2]
[151,"R15 cavity+R8 foam ADV 2X4W Lap","10-5",4.3999999999999997E-2]
[152,"R15 cavity+R8 foam STD 2X4W T111","10-5",4.7E-2]
[153,"R15 cavity+R8 foam ADV 2X4W T111","10-5",4.4999999999999998E-2]
[154,"R15 cavity+R9 foam STD 2X4W Lap","10-5",4.2999999999999997E-2]
[155,"R15 cavity+R9 foam ADV 2X4W Lap","10-5",4.2000000000000003E-2]
[156,"R15 cavity+R9 foam STD 2X4W T111","10-5",4.3999999999999997E-2]
[157,"R15 cavity+R9 foam ADV 2X4W T111","10-5",4.2999999999999997E-2]
[158,"R15 cavity+R10 foam STD 2X4W Lap","10-5",4.1000000000000002E-2]
[159,"R15 cavity+R10 foam ADV 2X4W Lap","10-5",0.04]
[160,"R15 cavity+R10 foam STD 2X4W T111","10-5",4.2000000000000003E-2]
[161,"R15 cavity+R10 foam ADV 2X4W T111","10-5",4.1000000000000002E-2]
[162,"R15 cavity+R11 foam STD 2X4W Lap","10-5",3.9E-2]
[163,"R15 cavity+R11 foam ADV 2X4W Lap","10-5",3.7999999999999999E-2]
[164,"R15 cavity+R11 foam STD 2X4W T111","10-5",4.1000000000000002E-2]
[165,"R15 cavity+R11 foam ADV 2X4W T111","10-5",3.9E-2]
[166,"R15 cavity+R12 foam STD 2X4W Lap","10-5",3.7999999999999999E-2]
[167,"R15 cavity+R12 foam ADV 2X4W Lap","10-5",3.6999999999999998E-2]
[168,"R15 cavity+R12 foam STD 2X4W T111","10-5",3.9E-2]
[169,"R15 cavity+R12 foam ADV 2X4W T111","10-5",3.7999999999999999E-2]
[170,"R19 cavity+R0 foam STD 2X6W Lap","10-5",6.2E-2]
[171,"R19 cavity+R0 foam INT 2X6W Lap","10-5",5.8000000000000003E-2]
[172,"R19 cavity+R0 foam ADV 2X6W Lap","10-5",5.5E-2]
[173,"R19 cavity+R0 foam STD 2X6W T111","10-5",6.5000000000000002E-2]
[174,"R19 cavity+R0 foam INT 2X6W T111","10-5",6.0999999999999999E-2]
[175,"R19 cavity+R0 foam ADV 2X6W T111","10-5",5.8000000000000003E-2]
[176,"R19 cavity+R1 foam STD 2X6W Lap","10-5",5.8000000000000003E-2]
[177,"R19 cavity+R1 foam INT 2X6W Lap","10-5",5.5E-2]
[178,"R19 cavity+R1 foam ADV 2X6W Lap","10-5",5.1999999999999998E-2]
[179,"R19 cavity+R1 foam STD 2X6W T111","10-5",0.06]
[180,"R19 cavity+R1 foam INT 2X6W T111","10-5",5.7000000000000002E-2]
[181,"R19 cavity+R1 foam ADV 2X6W T111","10-5",5.5E-2]
[182,"R19 cavity+R2 foam STD 2X6W Lap","10-5",5.3999999999999999E-2]
[183,"R19 cavity+R2 foam INT 2X6W Lap","10-5",5.1999999999999998E-2]
[184,"R19 cavity+R2 foam ADV 2X6W Lap","10-5",0.05]
[185,"R19 cavity+R2 foam STD 2X6W T111","10-5",5.6000000000000001E-2]
[186,"R19 cavity+R2 foam INT 2X6W T111","10-5",5.3999999999999999E-2]
[187,"R19 cavity+R2 foam ADV 2X6W T111","10-5",5.0999999999999997E-2]
[188,"R19 cavity+R3 foam STD 2X6W Lap","10-5",5.0999999999999997E-2]
[189,"R19 cavity+R3 foam INT 2X6W Lap","10-5",4.9000000000000002E-2]
[190,"R19 cavity+R3 foam ADV 2X6W Lap","10-5",4.7E-2]
[191,"R19 cavity+R3 foam STD 2X6W T111","10-5",5.2999999999999999E-2]
[192,"R19 cavity+R3 foam INT 2X6W T111","10-5",5.0999999999999997E-2]
[193,"R19 cavity+R3 foam ADV 2X6W T111","10-5",4.9000000000000002E-2]
[194,"R19 cavity+R4 foam STD 2X6W Lap","10-5",4.8000000000000001E-2]
[{"$f":"A196+1","v":195},"R19 cavity+R4 foam INT 2X6W Lap","10-5",4.5999999999999999E-2]
[196,"R19 cavity+R4 foam ADV 2X6W Lap","10-5",4.4999999999999998E-2]
[197,"R19 cavity+R4 foam STD 2X6W T111","10-5",0.05]
[198,"R19 cavity+R4 foam INT 2X6W T111","10-5",4.8000000000000001E-2]
[199,"R19 cavity+R4 foam ADV 2X6W T111","10-5",4.5999999999999999E-2]
[200,"R19 cavity+R5 foam STD 2X6W Lap","10-5",4.5999999999999999E-2]
[201,"R19 cavity+R5 foam INT 2X6W Lap","10-5",4.3999999999999997E-2]
[202,"R19 cavity+R5 foam ADV 2X6W Lap","10-5",4.2999999999999997E-2]
[203,"R19 cavity+R5 foam STD 2X6W T111","10-5",4.8000000000000001E-2]
[204,"R19 cavity+R5 foam INT 2X6W T111","10-5",4.5999999999999999E-2]
[205,"R19 cavity+R5 foam ADV 2X6W T111","10-5",4.3999999999999997E-2]
[206,"R19 cavity+R6 foam STD 2X6W Lap","10-5",4.3999999999999997E-2]
[207,"R19 cavity+R6 foam INT 2X6W Lap","10-5",4.2000000000000003E-2]
[208,"R19 cavity+R6 foam ADV 2X6W Lap","10-5",4.1000000000000002E-2]
[209,"R19 cavity+R6 foam STD 2X6W T111","10-5",4.4999999999999998E-2]
[210,"R19 cavity+R6 foam INT 2X6W T111","10-5",4.3999999999999997E-2]
[211,"R19 cavity+R6 foam ADV 2X6W T111","10-5",4.2000000000000003E-2]
[212,"R19 cavity+R7 foam STD 2X6W Lap","10-5",4.2000000000000003E-2]
[213,"R19 cavity+R7 foam INT 2X6W Lap","10-5",0.04]
[214,"R19 cavity+R7 foam ADV 2X6W Lap","10-5",3.9E-2]
[215,"R19 cavity+R7 foam STD 2X6W T111","10-5",4.2999999999999997E-2]
[216,"R19 cavity+R7 foam INT 2X6W T111","10-5",4.2000000000000003E-2]
[217,"R19 cavity+R7 foam ADV 2X6W T111","10-5",0.04]
[218,"R19 cavity+R8 foam STD 2X6W Lap","10-5",0.04]
[219,"R19 cavity+R8 foam INT 2X6W Lap","10-5",3.9E-2]
[220,"R19 cavity+R8 foam ADV 2X6W Lap","10-5",3.7999999999999999E-2]
[221,"R19 cavity+R8 foam STD 2X6W T111","10-5",4.1000000000000002E-2]
[222,"R19 cavity+R8 foam INT 2X6W T111","10-5",0.04]
[223,"R19 cavity+R8 foam ADV 2X6W T111","10-5",3.9E-2]
[224,"R19 cavity+R9 foam STD 2X6W Lap","10-5",3.7999999999999999E-2]
[225,"R19 cavity+R9 foam INT 2X6W Lap","10-5",3.6999999999999998E-2]
[226,"R19 cavity+R9 foam ADV 2X6W Lap","10-5",3.5000000000000003E-2]
[227,"R19 cavity+R9 foam STD 2X6W T111","10-5",3.9E-2]
[228,"R19 cavity+R9 foam INT 2X6W T111","10-5",3.7999999999999999E-2]
[229,"R19 cavity+R9 foam ADV 2X6W T111","10-5",3.6999999999999998E-2]
[230,"R19 cavity+R10 foam STD 2X6W Lap","10-5",3.6999999999999998E-2]
[231,"R19 cavity+R10 foam INT 2X6W Lap","10-5",3.5999999999999997E-2]
[232,"R19 cavity+R10 foam ADV 2X6W Lap","10-5",3.5000000000000003E-2]
[233,"R19 cavity+R10 foam STD 2X6W T111","10-5",3.7999999999999999E-2]
[234,"R19 cavity+R10 foam INT 2X6W T111","10-5",3.6999999999999998E-2]
[235,"R19 cavity+R10 foam ADV 2X6W T111","10-5",3.5999999999999997E-2]
[236,"R19 cavity+R11 foam STD 2X6W Lap","10-5",3.5999999999999997E-2]
[237,"R19 cavity+R11 foam INT 2X6W Lap","10-5",3.5000000000000003E-2]
[238,"R19 cavity+R11 foam ADV 2X6W Lap","10-5",3.4000000000000002E-2]
[239,"R19 cavity+R11 foam STD 2X6W T111","10-5",3.5999999999999997E-2]
[240,"R19 cavity+R11 foam INT 2X6W T111","10-5",3.5000000000000003E-2]
[241,"R19 cavity+R11 foam ADV 2X6W T111","10-5",3.5000000000000003E-2]
[242,"R19 cavity+R12 foam STD 2X6W Lap","10-5",3.4000000000000002E-2]
[243,"R19 cavity+R12 foam INT 2X6W Lap","10-5",3.3000000000000002E-2]
[244,"R19 cavity+R12 foam ADV 2X6W Lap","10-5",3.3000000000000002E-2]
[245,"R19 cavity+R12 foam STD 2X6W T111","10-5",3.5000000000000003E-2]
[246,"R19 cavity+R12 foam INT 2X6W T111","10-5",3.4000000000000002E-2]
[247,"R19 cavity+R12 foam ADV 2X6W T111","10-5",3.3000000000000002E-2]
[248,"R21 cavity+R0 foam STD 2X6W Lap","10-5",5.7000000000000002E-2]
[249,"R21 cavity+R0 foam INT 2X6W Lap","10-5",5.3999999999999999E-2]
[250,"R21 cavity+R0 foam ADV 2X6W Lap","10-5",5.0999999999999997E-2]
[251,"R21 cavity+R0 foam STD 2X6W T111","10-5",0.06]
[252,"R21 cavity+R0 foam INT 2X6W T111","10-5",5.6000000000000001E-2]
[253,"R21 cavity+R0 foam ADV 2X6W T111","10-5",5.2999999999999999E-2]
[254,"R21 cavity+R1 foam STD 2X6W Lap","10-5",5.3999999999999999E-2]
[255,"R21 cavity+R1 foam INT 2X6W Lap","10-5",5.0999999999999997E-2]
[256,"R21 cavity+R1 foam ADV 2X6W Lap","10-5",4.8000000000000001E-2]
[257,"R21 cavity+R1 foam STD 2X6W T111","10-5",5.6000000000000001E-2]
[258,"R21 cavity+R1 foam INT 2X6W T111","10-5",5.2999999999999999E-2]
[{"$f":"A260+1","v":259},"R21 cavity+R1 foam ADV 2X6W T111","10-5",0.05]
[260,"R21 cavity+R2 foam STD 2X6W Lap","10-5",0.05]
[261,"R21 cavity+R2 foam INT 2X6W Lap","10-5",4.8000000000000001E-2]
[262,"R21 cavity+R2 foam ADV 2X6W Lap","10-5",4.4999999999999998E-2]
[263,"R21 cavity+R2 foam STD 2X6W T111","10-5",5.1999999999999998E-2]
[264,"R21 cavity+R2 foam INT 2X6W T111","10-5",0.05]
[265,"R21 cavity+R2 foam ADV 2X6W T111","10-5",4.7E-2]
[266,"R21 cavity+R3 foam STD 2X6W Lap","10-5",4.8000000000000001E-2]
[267,"R21 cavity+R3 foam INT 2X6W Lap","10-5",4.4999999999999998E-2]
[268,"R21 cavity+R3 foam ADV 2X6W Lap","10-5",4.2999999999999997E-2]
[269,"R21 cavity+R3 foam STD 2X6W T111","10-5",4.9000000000000002E-2]
[270,"R21 cavity+R3 foam INT 2X6W T111","10-5",4.7E-2]
[271,"R21 cavity+R3 foam ADV 2X6W T111","10-5",4.4999999999999998E-2]
[272,"R21 cavity+R4 foam STD 2X6W Lap","10-5",4.4999999999999998E-2]
[273,"R21 cavity+R4 foam INT 2X6W Lap","10-5",4.2999999999999997E-2]
[274,"R21 cavity+R4 foam ADV 2X6W Lap","10-5",4.1000000000000002E-2]
[275,"R21 cavity+R4 foam STD 2X6W T111","10-5",4.7E-2]
[276,"R21 cavity+R4 foam INT 2X6W T111","10-5",4.4999999999999998E-2]
[277,"R21 cavity+R4 foam ADV 2X6W T111","10-5",4.2999999999999997E-2]
[278,"R21 cavity+R5 foam STD 2X6W Lap","10-5",4.2999999999999997E-2]
[279,"R21 cavity+R5 foam INT 2X6W Lap","10-5",4.1000000000000002E-2]
[280,"R21 cavity+R5 foam ADV 2X6W Lap","10-5",0.04]
[281,"R21 cavity+R5 foam STD 2X6W T111","10-5",4.3999999999999997E-2]
[282,"R21 cavity+R5 foam INT 2X6W T111","10-5",4.2000000000000003E-2]
[283,"R21 cavity+R5 foam ADV 2X6W T111","10-5",4.1000000000000002E-2]
[284,"R21 cavity+R6 foam STD 2X6W Lap","10-5",4.1000000000000002E-2]
[285,"R21 cavity+R6 foam INT 2X6W Lap","10-5",3.9E-2]
[286,"R21 cavity+R6 foam ADV 2X6W Lap","10-5",3.7999999999999999E-2]
[287,"R21 cavity+R6 foam STD 2X6W T111","10-5",4.2000000000000003E-2]
[288,"R21 cavity+R6 foam INT 2X6W T111","10-5",4.1000000000000002E-2]
[289,"R21 cavity+R6 foam ADV 2X6W T111","10-5",3.9E-2]
[290,"R21 cavity+R7 foam STD 2X6W Lap","10-5",3.9E-2]
[291,"R21 cavity+R7 foam INT 2X6W Lap","10-5",3.7999999999999999E-2]
[292,"R21 cavity+R7 foam ADV 2X6W Lap","10-5",3.5999999999999997E-2]
[293,"R21 cavity+R7 foam STD 2X6W T111","10-5",0.04]
[294,"R21 cavity+R7 foam INT 2X6W T111","10-5",3.9E-2]
[295,"R21 cavity+R7 foam ADV 2X6W T111","10-5",3.6999999999999998E-2]
[296,"R21 cavity+R8 foam STD 2X6W Lap","10-5",3.7999999999999999E-2]
[297,"R21 cavity+R8 foam INT 2X6W Lap","10-5",3.5999999999999997E-2]
[298,"R21 cavity+R8 foam ADV 2X6W Lap","10-5",3.5000000000000003E-2]
[299,"R21 cavity+R8 foam STD 2X6W T111","10-5",3.9E-2]
[300,"R21 cavity+R8 foam INT 2X6W T111","10-5",3.6999999999999998E-2]
[301,"R21 cavity+R8 foam ADV 2X6W T111","10-5",3.5999999999999997E-2]
[302,"R21 cavity+R9 foam STD 2X6W Lap","10-5",3.5999999999999997E-2]
[303,"R21 cavity+R9 foam INT 2X6W Lap","10-5",3.5000000000000003E-2]
[304,"R21 cavity+R9 foam ADV 2X6W Lap","10-5",3.4000000000000002E-2]
[305,"R21 cavity+R9 foam STD 2X6W T111","10-5",3.6999999999999998E-2]
[306,"R21 cavity+R9 foam INT 2X6W T111","10-5",3.5999999999999997E-2]
[307,"R21 cavity+R9 foam ADV 2X6W T111","10-5",3.5000000000000003E-2]
[308,"R21 cavity+R10 foam STD 2X6W Lap","10-5",3.5000000000000003E-2]
[309,"R21 cavity+R10 foam INT 2X6W Lap","10-5",3.4000000000000002E-2]
[310,"R21 cavity+R10 foam ADV 2X6W Lap","10-5",3.3000000000000002E-2]
[311,"R21 cavity+R10 foam STD 2X6W T111","10-5",3.5999999999999997E-2]
[312,"R21 cavity+R10 foam INT 2X6W T111","10-5",3.5000000000000003E-2]
[313,"R21 cavity+R10 foam ADV 2X6W T111","10-5",3.3000000000000002E-2]
[314,"R21 cavity+R11 foam STD 2X6W Lap","10-5",3.3000000000000002E-2]
[315,"R21 cavity+R11 foam INT 2X6W Lap","10-5",3.3000000000000002E-2]
[316,"R21 cavity+R11 foam ADV 2X6W Lap","10-5",3.2000000000000001E-2]
[317,"R21 cavity+R11 foam STD 2X6W T111","10-5",3.4000000000000002E-2]
[318,"R21 cavity+R11 foam INT 2X6W T111","10-5",3.3000000000000002E-2]
[319,"R21 cavity+R11 foam ADV 2X6W T111","10-5",3.2000000000000001E-2]
[320,"R21 cavity+R12 foam STD 2X6W Lap","10-5",3.2000000000000001E-2]
[321,"R21 cavity+R12 foam INT 2X6W Lap","10-5",3.1E-2]
[322,"R21 cavity+R12 foam ADV 2X6W Lap","10-5",3.1E-2]
[{"$f":"A324+1","v":323},"R21 cavity+R12 foam STD 2X6W T111","10-5",3.3000000000000002E-2]
[324,"R21 cavity+R12 foam INT 2X6W T111","10-5",3.2000000000000001E-2]
[325,"R21 cavity+R12 foam ADV 2X6W T111","10-5",3.1E-2]
[326,"R22 cavity+R0 foam STD 2X6W Lap","10-5",5.8999999999999997E-2]
[327,"R22 cavity+R0 foam INT 2X6W Lap","10-5",5.5E-2]
[328,"R22 cavity+R0 foam ADV 2X6W Lap","10-5",5.1999999999999998E-2]
[329,"R22 cavity+R0 foam STD 2X6W T111","10-5",6.2E-2]
[330,"R22 cavity+R0 foam INT 2X6W T111","10-5",5.8000000000000003E-2]
[331,"R22 cavity+R0 foam ADV 2X6W T111","10-5",5.3999999999999999E-2]
[332,"R22 cavity+R1 foam STD 2X6W Lap","10-5",5.5E-2]
[333,"R22 cavity+R1 foam INT 2X6W Lap","10-5",5.1999999999999998E-2]
[334,"R22 cavity+R1 foam ADV 2X6W Lap","10-5",4.9000000000000002E-2]
[335,"R22 cavity+R1 foam STD 2X6W T111","10-5",5.7000000000000002E-2]
[336,"R22 cavity+R1 foam INT 2X6W T111","10-5",5.3999999999999999E-2]
[337,"R22 cavity+R1 foam ADV 2X6W T111","10-5",5.0999999999999997E-2]
[338,"R22 cavity+R2 foam STD 2X6W Lap","10-5",5.1999999999999998E-2]
[339,"R22 cavity+R2 foam INT 2X6W Lap","10-5",4.9000000000000002E-2]
[340,"R22 cavity+R2 foam ADV 2X6W Lap","10-5",4.7E-2]
[341,"R22 cavity+R2 foam STD 2X6W T111","10-5",5.3999999999999999E-2]
[342,"R22 cavity+R2 foam INT 2X6W T111","10-5",5.0999999999999997E-2]
[343,"R22 cavity+R2 foam ADV 2X6W T111","10-5",4.8000000000000001E-2]
[344,"R22 cavity+R3 foam STD 2X6W Lap","10-5",4.9000000000000002E-2]
[345,"R22 cavity+R3 foam INT 2X6W Lap","10-5",4.5999999999999999E-2]
[346,"R22 cavity+R3 foam ADV 2X6W Lap","10-5",4.3999999999999997E-2]
[347,"R22 cavity+R3 foam STD 2X6W T111","10-5",0.05]
[348,"R22 cavity+R3 foam INT 2X6W T111","10-5",4.8000000000000001E-2]
[349,"R22 cavity+R3 foam ADV 2X6W T111","10-5",4.5999999999999999E-2]
[350,"R22 cavity+R4 foam STD 2X6W Lap","10-5",4.5999999999999999E-2]
[351,"R22 cavity+R4 foam INT 2X6W Lap","10-5",4.3999999999999997E-2]
[352,"R22 cavity+R4 foam ADV 2X6W Lap","10-5",4.2000000000000003E-2]
[353,"R22 cavity+R4 foam STD 2X6W T111","10-5",4.8000000000000001E-2]
[354,"R22 cavity+R4 foam INT 2X6W T111","10-5",4.5999999999999999E-2]
[355,"R22 cavity+R4 foam ADV 2X6W T111","10-5",4.3999999999999997E-2]
[356,"R22 cavity+R5 foam STD 2X6W Lap","10-5",4.3999999999999997E-2]
[357,"R22 cavity+R5 foam INT 2X6W Lap","10-5",4.2000000000000003E-2]
[358,"R22 cavity+R5 foam ADV 2X6W Lap","10-5",4.1000000000000002E-2]
[359,"R22 cavity+R5 foam STD 2X6W T111","10-5",4.4999999999999998E-2]
[360,"R22 cavity+R5 foam INT 2X6W T111","10-5",4.2999999999999997E-2]
[361,"R22 cavity+R5 foam ADV 2X6W T111","10-5",4.2000000000000003E-2]
[362,"R22 cavity+R6 foam STD 2X6W Lap","10-5",4.2000000000000003E-2]
[363,"R22 cavity+R6 foam INT 2X6W Lap","10-5",0.04]
[364,"R22 cavity+R6 foam ADV 2X6W Lap","10-5",3.9E-2]
[365,"R22 cavity+R6 foam STD 2X6W T111","10-5",4.2999999999999997E-2]
[366,"R22 cavity+R6 foam INT 2X6W T111","10-5",4.2000000000000003E-2]
[367,"R22 cavity+R6 foam ADV 2X6W T111","10-5",0.04]
[368,"R22 cavity+R7 foam STD 2X6W Lap","10-5",0.04]
[369,"R22 cavity+R7 foam INT 2X6W Lap","10-5",3.9E-2]
[370,"R22 cavity+R7 foam ADV 2X6W Lap","10-5",3.6999999999999998E-2]
[371,"R22 cavity+R7 foam STD 2X6W T111","10-5",4.1000000000000002E-2]
[372,"R22 cavity+R7 foam INT 2X6W T111","10-5",3.7999999999999999E-2]
[373,"R22 cavity+R7 foam ADV 2X6W T111","10-5",0.04]
[374,"R22 cavity+R8 foam STD 2X6W Lap","10-5",3.7999999999999999E-2]
[375,"R22 cavity+R8 foam INT 2X6W Lap","10-5",3.6999999999999998E-2]
[376,"R22 cavity+R8 foam ADV 2X6W Lap","10-5",3.5999999999999997E-2]
[377,"R22 cavity+R8 foam STD 2X6W T111","10-5",3.9E-2]
[378,"R22 cavity+R8 foam INT 2X6W T111","10-5",3.7999999999999999E-2]
[379,"R22 cavity+R8 foam ADV 2X6W T111","10-5",3.6999999999999998E-2]
[380,"R22 cavity+R9 foam STD 2X6W Lap","10-5",3.6999999999999998E-2]
[381,"R22 cavity+R9 foam INT 2X6W Lap","10-5",3.5999999999999997E-2]
[382,"R22 cavity+R9 foam ADV 2X6W Lap","10-5",3.5000000000000003E-2]
[383,"R22 cavity+R9 foam STD 2X6W T111","10-5",3.7999999999999999E-2]
[384,"R22 cavity+R9 foam INT 2X6W T111","10-5",3.6999999999999998E-2]
[385,"R22 cavity+R9 foam ADV 2X6W T111","10-5",3.5000000000000003E-2]
[386,"R22 cavity+R10 foam STD 2X6W Lap","10-5",3.5000000000000003E-2]
[{"$f":"A388+1","v":387},"R22 cavity+R10 foam INT 2X6W Lap","10-5",3.4000000000000002E-2]
[388,"R22 cavity+R10 foam ADV 2X6W Lap","10-5",3.3000000000000002E-2]
[389,"R22 cavity+R10 foam STD 2X6W T111","10-5",3.5999999999999997E-2]
[390,"R22 cavity+R10 foam INT 2X6W T111","10-5",3.5000000000000003E-2]
[391,"R22 cavity+R10 foam ADV 2X6W T111","10-5",3.4000000000000002E-2]
[392,"R22 cavity+R11 foam STD 2X6W Lap","10-5",3.4000000000000002E-2]
[393,"R22 cavity+R11 foam INT 2X6W Lap","10-5",3.3000000000000002E-2]
[394,"R22 cavity+R11 foam ADV 2X6W Lap","10-5",3.2000000000000001E-2]
[395,"R22 cavity+R11 foam STD 2X6W T111","10-5",3.5000000000000003E-2]
[396,"R22 cavity+R11 foam INT 2X6W T111","10-5",3.4000000000000002E-2]
[397,"R22 cavity+R11 foam ADV 2X6W T111","10-5",3.3000000000000002E-2]
[398,"R22 cavity+R12 foam STD 2X6W Lap","10-5",3.3000000000000002E-2]
[399,"R22 cavity+R12 foam INT 2X6W Lap","10-5",3.2000000000000001E-2]
[400,"R22 cavity+R12 foam ADV 2X6W Lap","10-5",3.1E-2]
[401,"R22 cavity+R12 foam STD 2X6W T111","10-5",3.4000000000000002E-2]
[402,"R22 cavity+R12 foam INT 2X6W T111","10-5",3.3000000000000002E-2]
[403,"R22 cavity+R12 foam ADV 2X6W T111","10-5",3.2000000000000001E-2]
[404,"R11+11 cavity+R0 foam STD 2X6W Lap","10-5",0.06]
[405,"R11+11 cavity+R0 foam INT 2X6W Lap","10-5",5.7000000000000002E-2]
[406,"R11+11 cavity+R0 foam ADV 2X6W Lap","10-5",5.3999999999999999E-2]
[407,"R11+11 cavity+R0 foam STD 2X6W T111","10-5",6.3E-2]
[408,"R11+11 cavity+R0 foam INT 2X6W T111","10-5",5.8999999999999997E-2]
[409,"R11+11 cavity+R0 foam ADV 2X6W T111","10-5",5.6000000000000001E-2]
[410,"R11+11 cavity+R1 foam STD 2X6W Lap","10-5",5.6000000000000001E-2]
[411,"R11+11 cavity+R1 foam INT 2X6W Lap","10-5",5.2999999999999999E-2]
[412,"R11+11 cavity+R1 foam ADV 2X6W Lap","10-5",5.0999999999999997E-2]
[413,"R11+11 cavity+R1 foam STD 2X6W T111","10-5",5.8999999999999997E-2]
[414,"R11+11 cavity+R1 foam INT 2X6W T111","10-5",5.6000000000000001E-2]
[415,"R11+11 cavity+R1 foam ADV 2X6W T111","10-5",5.2999999999999999E-2]
[416,"R11+11 cavity+R2 foam STD 2X6W Lap","10-5",5.2999999999999999E-2]
[417,"R11+11 cavity+R2 foam INT 2X6W Lap","10-5",0.05]
[418,"R11+11 cavity+R2 foam ADV 2X6W Lap","10-5",4.8000000000000001E-2]
[419,"R11+11 cavity+R2 foam STD 2X6W T111","10-5",5.5E-2]
[420,"R11+11 cavity+R2 foam INT 2X6W T111","10-5",5.1999999999999998E-2]
[421,"R11+11 cavity+R2 foam ADV 2X6W T111","10-5",0.05]
[422,"R11+11 cavity+R3 foam STD 2X6W Lap","10-5",0.05]
[423,"R11+11 cavity+R3 foam INT 2X6W Lap","10-5",4.8000000000000001E-2]
[424,"R11+11 cavity+R3 foam ADV 2X6W Lap","10-5",4.5999999999999999E-2]
[425,"R11+11 cavity+R3 foam STD 2X6W T111","10-5",5.1999999999999998E-2]
[426,"R11+11 cavity+R3 foam INT 2X6W T111","10-5",4.9000000000000002E-2]
[427,"R11+11 cavity+R3 foam ADV 2X6W T111","10-5",4.7E-2]
[428,"R11+11 cavity+R4 foam STD 2X6W Lap","10-5",4.7E-2]
[429,"R11+11 cavity+R4 foam INT 2X6W Lap","10-5",4.4999999999999998E-2]
[430,"R11+11 cavity+R4 foam ADV 2X6W Lap","10-5",4.3999999999999997E-2]
[431,"R11+11 cavity+R4 foam STD 2X6W T111","10-5",4.9000000000000002E-2]
[432,"R11+11 cavity+R4 foam INT 2X6W T111","10-5",4.7E-2]
[433,"R11+11 cavity+R4 foam ADV 2X6W T111","10-5",4.4999999999999998E-2]
[434,"R11+11 cavity+R5 foam STD 2X6W Lap","10-5",4.4999999999999998E-2]
[435,"R11+11 cavity+R5 foam INT 2X6W Lap","10-5",4.2999999999999997E-2]
[436,"R11+11 cavity+R5 foam ADV 2X6W Lap","10-5",4.2000000000000003E-2]
[437,"R11+11 cavity+R5 foam STD 2X6W T111","10-5",4.5999999999999999E-2]
[438,"R11+11 cavity+R5 foam INT 2X6W T111","10-5",4.4999999999999998E-2]
[439,"R11+11 cavity+R5 foam ADV 2X6W T111","10-5",4.2999999999999997E-2]
[440,"R11+11 cavity+R6 foam STD 2X6W Lap","10-5",4.2999999999999997E-2]
[441,"R11+11 cavity+R6 foam INT 2X6W Lap","10-5",4.1000000000000002E-2]
[442,"R11+11 cavity+R6 foam ADV 2X6W Lap","10-5",0.04]
[443,"R11+11 cavity+R6 foam STD 2X6W T111","10-5",4.3999999999999997E-2]
[444,"R11+11 cavity+R6 foam INT 2X6W T111","10-5",4.2999999999999997E-2]
[445,"R11+11 cavity+R6 foam ADV 2X6W T111","10-5",4.1000000000000002E-2]
[446,"R11+11 cavity+R7 foam STD 2X6W Lap","10-5",4.1000000000000002E-2]
[447,"R11+11 cavity+R7 foam INT 2X6W Lap","10-5",0.04]
[448,"R11+11 cavity+R7 foam ADV 2X6W Lap","10-5",3.7999999999999999E-2]
[449,"R11+11 cavity+R7 foam STD 2X6W T111","10-5",4.2000000000000003E-2]
[450,"R11+11 cavity+R7 foam INT 2X6W T111","10-5",4.1000000000000002E-2]
[{"$f":"A452+1","v":451},"R11+11 cavity+R7 foam ADV 2X6W T111","10-5",3.9E-2]
[452,"R11+11 cavity+R8 foam STD 2X6W Lap","10-5",3.9E-2]
[453,"R11+11 cavity+R8 foam INT 2X6W Lap","10-5",3.7999999999999999E-2]
[454,"R11+11 cavity+R8 foam ADV 2X6W Lap","10-5",3.6999999999999998E-2]
[455,"R11+11 cavity+R8 foam STD 2X6W T111","10-5",0.04]
[456,"R11+11 cavity+R8 foam INT 2X6W T111","10-5",3.9E-2]
[457,"R11+11 cavity+R8 foam ADV 2X6W T111","10-5",3.7999999999999999E-2]
[458,"R11+11 cavity+R9 foam STD 2X6W Lap","10-5",3.7999999999999999E-2]
[459,"R11+11 cavity+R9 foam INT 2X6W Lap","10-5",3.6999999999999998E-2]
[460,"R11+11 cavity+R9 foam ADV 2X6W Lap","10-5",3.5999999999999997E-2]
[461,"R11+11 cavity+R9 foam STD 2X6W T111","10-5",3.9E-2]
[462,"R11+11 cavity+R9 foam INT 2X6W T111","10-5",3.7999999999999999E-2]
[463,"R11+11 cavity+R9 foam ADV 2X6W T111","10-5",3.5999999999999997E-2]
[464,"R11+11 cavity+R10 foam STD 2X6W Lap","10-5",3.5999999999999997E-2]
[465,"R11+11 cavity+R10 foam INT 2X6W Lap","10-5",3.5000000000000003E-2]
[466,"R11+11 cavity+R10 foam ADV 2X6W Lap","10-5",3.4000000000000002E-2]
[467,"R11+11 cavity+R10 foam STD 2X6WT111","10-5",3.6999999999999998E-2]
[468,"R11+11 cavity+R10 foam INT 2X6W T111","10-5",3.5999999999999997E-2]
[469,"R11+11 cavity+R10 foam ADV 2X6WT111","10-5",3.5000000000000003E-2]
[470,"R11+11 cavity+R11 foam STD 2X6W Lap","10-5",3.5000000000000003E-2]
[471,"R11+11 cavity+R11 foam INT 2X6W Lap","10-5",3.4000000000000002E-2]
[472,"R11+11 cavity+R11 foam ADV 2X6W Lap","10-5",3.3000000000000002E-2]
[473,"R11+11 cavity+R11 foam STD 2X6WT111","10-5",3.5999999999999997E-2]
[474,"R11+11 cavity+R11 foam INT 2X6W T111","10-5",3.5000000000000003E-2]
[475,"R11+11 cavity+R11 foam ADV 2X6WT111","10-5",3.4000000000000002E-2]
[476,"R11+11 cavity+R12 foam STD 2X6W Lap","10-5",3.4000000000000002E-2]
[477,"R11+11 cavity+R12 foam INT 2X6W Lap","10-5",3.3000000000000002E-2]
[478,"R11+11 cavity+R12 foam ADV 2X6W Lap","10-5",3.2000000000000001E-2]
[479,"R11+11 cavity+R12 foam STD 2X6WT111","10-5",3.4000000000000002E-2]
[480,"R11+11 cavity+R12 foam INT 2X6W T111","10-5",3.4000000000000002E-2]
[481,"R11+11 cavity+R12 foam ADV 2X6WT111","10-5",3.3000000000000002E-2]
[482,"R25 cavity+R0 foam STD 2X8W Lap","10-5",5.0999999999999997E-2]
[483,"R25 cavity+R0 foam INT 2X8W Lap","10-5",4.7E-2]
[484,"R25 cavity+R0 foam ADV 2X8W Lap","10-5",4.4999999999999998E-2]
[485,"R25 cavity+R0 foam STD 2X8W T111","10-5",5.2999999999999999E-2]
[486,"R25 cavity+R0 foam INT 2X8W T111","10-5",4.9000000000000002E-2]
[487,"R25 cavity+R0 foam ADV 2X8W T111","10-5",4.5999999999999999E-2]
[488,"R25 cavity+R1 foam STD 2X8W Lap","10-5",4.8000000000000001E-2]
[489,"R25 cavity+R1 foam INT 2X8W Lap","10-5",4.4999999999999998E-2]
[490,"R25 cavity+R1 foam ADV 2X8W Lap","10-5",4.2999999999999997E-2]
[491,"R25 cavity+R1 foam STD 2X8W T111","10-5",4.9000000000000002E-2]
[492,"R25 cavity+R1 foam INT 2X8W T111","10-5",4.5999999999999999E-2]
[493,"R25 cavity+R1 foam ADV 2X8W T111","10-5",4.3999999999999997E-2]
[494,"R25 cavity+R2 foam STD 2X8W Lap","10-5",4.4999999999999998E-2]
[495,"R25 cavity+R2 foam INT 2X8W Lap","10-5",4.2999999999999997E-2]
[496,"R25 cavity+R2 foam ADV 2X8W Lap","10-5",4.1000000000000002E-2]
[497,"R25 cavity+R2 foam STD 2X8W T111","10-5",4.7E-2]
[498,"R25 cavity+R2 foam INT 2X8W T111","10-5",4.3999999999999997E-2]
[499,"R25 cavity+R2 foam ADV 2X8W T111","10-5",4.2000000000000003E-2]
[500,"R25 cavity+R3 foam STD 2X8W Lap","10-5",4.2999999999999997E-2]
[501,"R25 cavity+R3 foam INT 2X8W Lap","10-5",4.1000000000000002E-2]
[502,"R25 cavity+R3 foam ADV 2X8W Lap","10-5",3.9E-2]
[503,"R25 cavity+R3 foam STD 2X8W T111","10-5",4.3999999999999997E-2]
[504,"R25 cavity+R3 foam INT 2X8W T111","10-5",4.2000000000000003E-2]
[505,"R25 cavity+R3 foam ADV 2X8W T111","10-5",0.04]
[506,"R25 cavity+R4 foam STD 2X8W Lap","10-5",4.1000000000000002E-2]
[507,"R25 cavity+R4 foam INT 2X8W Lap","10-5",3.9E-2]
[508,"R25 cavity+R4 foam ADV 2X8W Lap","10-5",3.6999999999999998E-2]
[509,"R25 cavity+R4 foam STD 2X8W T111","10-5",4.2000000000000003E-2]
[510,"R25 cavity+R4 foam INT 2X8W T111","10-5",0.04]
[511,"R25 cavity+R4 foam ADV 2X8W T111","10-5",3.7999999999999999E-2]
[512,"R25 cavity+R5 foam STD 2X8W Lap","10-5",3.9E-2]
[513,"R25 cavity+R5 foam INT 2X8W Lap","10-5",3.6999999999999998E-2]
[514,"R25 cavity+R5 foam ADV 2X8W Lap","10-5",3.5999999999999997E-2]
[{"$f":"A516+1","v":515},"R25 cavity+R5 foam STD 2X8W T111","10-5",0.04]
[516,"R25 cavity+R5 foam INT 2X8W T111","10-5",3.7999999999999999E-2]
[517,"R25 cavity+R5 foam ADV 2X8W T111","10-5",3.6999999999999998E-2]
[518,"R25 cavity+R6 foam STD 2X8W Lap","10-5",3.6999999999999998E-2]
[519,"R25 cavity+R6 foam INT 2X8W Lap","10-5",3.5999999999999997E-2]
[520,"R25 cavity+R6 foam ADV 2X8W Lap","10-5",3.5000000000000003E-2]
[521,"R25 cavity+R6 foam STD 2X8W T111","10-5",3.7999999999999999E-2]
[522,"R25 cavity+R6 foam INT 2X8W T111","10-5",3.6999999999999998E-2]
[523,"R25 cavity+R6 foam ADV 2X8W T111","10-5",3.5999999999999997E-2]
[524,"R25 cavity+R7 foam STD 2X8W Lap","10-5",3.5999999999999997E-2]
[525,"R25 cavity+R7 foam INT 2X8W Lap","10-5",3.5000000000000003E-2]
[526,"R25 cavity+R7 foam ADV 2X8W Lap","10-5",3.3000000000000002E-2]
[527,"R25 cavity+R7 foam STD 2X8W T111","10-5",3.6999999999999998E-2]
[528,"R25 cavity+R7 foam INT 2X8W T111","10-5",3.5000000000000003E-2]
[529,"R25 cavity+R7 foam ADV 2X8W T111","10-5",3.4000000000000002E-2]
[530,"R25 cavity+R8 foam STD 2X8W Lap","10-5",3.5000000000000003E-2]
[531,"R25 cavity+R8 foam INT 2X8W Lap","10-5",3.3000000000000002E-2]
[532,"R25 cavity+R8 foam ADV 2X8W Lap","10-5",3.2000000000000001E-2]
[533,"R25 cavity+R8 foam STD 2X8W T111","10-5",3.5000000000000003E-2]
[534,"R25 cavity+R8 foam INT 2X8W T111","10-5",3.4000000000000002E-2]
[535,"R25 cavity+R8 foam ADV 2X8W T111","10-5",3.3000000000000002E-2]
[536,"R25 cavity+R9 foam STD 2X8W Lap","10-5",3.3000000000000002E-2]
[537,"R25 cavity+R9 foam INT 2X8W Lap","10-5",3.2000000000000001E-2]
[538,"R25 cavity+R9 foam ADV 2X8W Lap","10-5",3.1E-2]
[539,"R25 cavity+R9 foam STD 2X8W T111","10-5",3.4000000000000002E-2]
[540,"R25 cavity+R9 foam INT 2X8W T111","10-5",3.3000000000000002E-2]
[541,"R25 cavity+R9 foam ADV 2X8W T111","10-5",3.2000000000000001E-2]
[542,"R25 cavity+R10 foam STD 2X8W Lap","10-5",3.2000000000000001E-2]
[543,"R25 cavity+R10 foam INT 2X8W Lap","10-5",3.1E-2]
[544,"R25 cavity+R10 foam ADV 2X8W Lap","10-5",0.03]
[545,"R25 cavity+R10 foam STD 2X8W T111","10-5",3.3000000000000002E-2]
[546,"R25 cavity+R10 foam INT 2X8W T111","10-5",3.2000000000000001E-2]
[547,"R25 cavity+R10 foam ADV 2X8W T111","10-5",3.1E-2]
[548,"R25 cavity+R11 foam STD 2X8W Lap","10-5",3.1E-2]
[549,"R25 cavity+R11 foam INT 2X8W Lap","10-5",0.03]
[550,"R25 cavity+R11 foam ADV 2X8W Lap","10-5",2.9000000000000001E-2]
[551,"R25 cavity+R11 foam STD 2X8W T111","10-5",3.2000000000000001E-2]
[552,"R25 cavity+R11 foam INT 2X8W T111","10-5",3.1E-2]
[553,"R25 cavity+R11 foam ADV 2X8W T111","10-5",0.03]
[554,"R25 cavity+R12 foam STD 2X8W Lap","10-5",0.03]
[555,"R25 cavity+R12 foam INT 2X8W Lap","10-5",2.9000000000000001E-2]
[556,"R25 cavity+R12 foam ADV 2X8W Lap","10-5",2.8000000000000001E-2]
[557,"R25 cavity+R12 foam STD 2X8W T111","10-5",3.1E-2]
[558,"R25 cavity+R12 foam INT 2X8W T111","10-5",0.03]
[559,"R25 cavity+R12 foam ADV 2X8W T111","10-5",2.9000000000000001E-2]
[560,"R19+11 Strap 2X6W STD Lap","10-5",0.36]
[561,"R19+11 Strap 2X6W ADV Lap","10-5",3.5000000000000003E-2]
[562,"R19+11 Strap 2X6W STD T111","10-5",3.7999999999999999E-2]
[563,"R19+11 Strap 2X6W ADV T111","10-5",3.5999999999999997E-2]
[564,"R19+8 Strap 2X6W STD Lap","10-5",4.1000000000000002E-2]
[565,"R19+8 Strap 2X6W ADV Lap","10-5",3.9E-2]
[566,"R19+8 Strap 2X6W STD T111","10-5",4.2000000000000003E-2]
[567,"R19+8 Strap 2X6W ADV T111","10-5",0.04]
[568,"R19+0+11 2X6+2X4W STD Lap","10-5",0.4]
[569,"R19+0+11 2X6+2X4W ADV Lap","10-5",0.37]
[570,"R19+0+11 2X6+2X4W STD T111","10-5",4.1000000000000002E-2]
[571,"R19+0+11 2X6+2X4W ADV T111","10-5",3.7999999999999999E-2]
[572,"R19+0+19 2X6+2X4W STD Lap","10-5",3.4000000000000002E-2]
[573,"R19+0+19 2X6+2X4W ADV Lap","10-5",3.1E-2]
[574,"R19+0+19 2X6+2X4W STD T111","10-5",3.5000000000000003E-2]
[575,"R19+0+19 2X6+2X4W ADV T111","10-5",3.2000000000000001E-2]
[576,"R19+8+11 2X6+2X4W STD Lap","10-5",2.9000000000000001E-2]
[577,"R19+8+11 2X6+2X4W ADV Lap","10-5",2.8000000000000001E-2]
[578,"R19+8+11 2X6+2X4W STD T111","10-5",3.1E-2]
[{"$f":"A580+1","v":579},"R19+8+11 2X6+2X4W ADV T111","10-5",2.9000000000000001E-2]
[580,"R11+11+11 2X6+2X4W STD Lap","10-5",2.7E-2]
[581,"R11+11+11 2X6+2X4W ADV Lap","10-5",2.5999999999999999E-2]
[582,"R11+11+11 2X6+2X4W STD T111","10-5",2.8000000000000001E-2]
[583,"R11+11+11 2X6+2X4W ADV T111","10-5",2.7E-2]
[584,"R13+13+13 2X6+2X4W STD Lap","10-5",2.4E-2]
[585,"R13+13+13 2X6+2X4W ADV Lap","10-5",2.3E-2]
[586,"R13+13+13 2X6+2X4W STD T111","10-5",2.5000000000000001E-2]
[587,"R13+13+13 2X6+2X4W ADV T111","10-5",2.3E-2]
[588,"R11+19+11 2X6+2X4W STD Lap","10-5",2.1000000000000001E-2]
[589,"R11+19+11 2X6+2X4W ADV Lap","10-5",0.02]
[590,"R11+19+11 2X6+2X4W STD T111","10-5",2.1000000000000001E-2]
[591,"R11+19+11 2X6+2X4W ADV T111","10-5",0.02]
[592,"R19+0+11 2X4+2X4W STD Lap","10-5",0.05]
[593,"R19+0+11 2X4+2X4W ADV Lap","10-5",4.5999999999999999E-2]
[594,"R19+0+11 2X4+2X4W STD T111","10-5",5.1999999999999998E-2]
[595,"R19+0+11 2X4+2X4W ADV T111","10-5",4.8000000000000001E-2]
[596,"R19+0+19 2X4+2X4W STD Lap","10-5",3.9E-2]
[597,"R19+0+19 2X4+2X4W ADV Lap","10-5",3.6999999999999998E-2]
[598,"R19+0+19 2X4+2X4W STD T111","10-5",4.2999999999999997E-2]
[599,"R19+0+19 2X4+2X4W ADV T111","10-5",3.9E-2]
[600,"R19+8+11 2X4+2X4W STD Lap","10-5",3.6999999999999998E-2]
[601,"R19+8+11 2X4+2X4W ADV Lap","10-5",3.5000000000000003E-2]
[602,"R19+8+11 2X4+2X4W STD T111","10-5",3.5999999999999997E-2]
[603,"R19+8+11 2X4+2X4W ADV T111","10-5",3.5999999999999997E-2]
[604,"R11+11+11 2X4+2X4W STD Lap","10-5",3.2000000000000001E-2]
[605,"R11+11+11 2X4+2X4W ADV Lap","10-5",3.1E-2]
[606,"R11+11+11 2X4+2X4W STD T111","10-5",3.3000000000000002E-2]
[607,"R11+11+11 2X4+2X4W ADV T111","10-5",3.2000000000000001E-2]
[608,"R13+13+13 2X4+2X4W STD Lap","10-5",2.9000000000000001E-2]
[609,"R13+13+13 2X4+2X4W ADV Lap","10-5",2.8000000000000001E-2]
[610,"R13+13+13 2X4+2X4W STD T111","10-5",2.9000000000000001E-2]
[611,"R13+13+13 2X4+2X4W ADV T111","10-5",2.8000000000000001E-2]
[612,"R11+19+11 2X4+2X4W STD Lap","10-5",2.5999999999999999E-2]
[613,"R11+19+11 2X4+2X4W ADV Lap","10-5",2.5999999999999999E-2]
[614,"R11+19+11 2X4+2X4W STD T111","10-5",2.7E-2]
[615,"R11+19+11 2X4+2X4W ADV T111","10-5",2.5999999999999999E-2]
[616,"6 inch diameter log","10-5",0.14799999999999999]
[617,"8 inch diameter log","10-5",0.111]
[618,"10 inch diameter log","10-5",8.8999999999999996E-2]
[619,"12 inch diameter log","10-5",7.3999999999999996E-2]
[620,"14 inch diameter log","10-5",6.3E-2]
[621,"16 inch diameter log","10-5",5.6000000000000001E-2]
[622,"3.5\" Core Stress Skin Panel","10-5",7.0999999999999994E-2]
[623,"5.5\" Core Stress Skin Panel","10-5",4.8000000000000001E-2]
[624,"7.25\" Core Stress Skin Panel","10-5",3.6999999999999998E-2]
[625,"9.25\" Core Stress Skin Panel","10-5",0.03]
[626,"11.25\" Core Stress Skin Panel","10-5",2.5000000000000001E-2]
[627,"R11 cavity+R0 foam Metal 16\"OC","10-5",0.14000000000000001]
[628,"R11 cavity+R1 foam Metal 16\"OC","10-5",0.12]
[629,"R11 cavity+R2 foam Metal 16\"OC","10-5",0.11]
[630,"R11 cavity+R3 foam Metal 16\"OC","10-5",0.1]
[631,"R11 cavity+R4 foam Metal 16\"OC","10-5",9.0999999999999998E-2]
[632,"R11 cavity+R5 foam Metal 16\"OC","10-5",8.3000000000000004E-2]
[633,"R11 cavity+R6 foam Metal 16\"OC","10-5",7.6999999999999999E-2]
[634,"R11 cavity+R7 foam Metal 16\"OC","10-5",7.0999999999999994E-2]
[635,"R11 cavity+R8 foam Metal 16\"OC","10-5",6.7000000000000004E-2]
[636,"R11 cavity+R9 foam Metal 16\"OC","10-5",6.2E-2]
[637,"R11 cavity+R10 foam Metal 16\"OC","10-5",5.8999999999999997E-2]
[638,"R13 cavity+R0 foam Metal 16\"OC","10-5",0.124]
[639,"R13 cavity+R1 foam Metal 16\"OC","10-5",0.111]
[640,"R13 cavity+R2 foam Metal 16\"OC","10-5",0.1]
[641,"R13 cavity+R3 foam Metal 16\"OC","10-5",9.0999999999999998E-2]
[642,"R13 cavity+R4 foam Metal 16\"OC","10-5",8.3000000000000004E-2]
[{"$f":"A644+1","v":643},"R13 cavity+R5 foam Metal 16\"OC","10-5",7.6999999999999999E-2]
[644,"R13 cavity+R6 foam Metal 16\"OC","10-5",7.0999999999999994E-2]
[645,"R13 cavity+R7 foam Metal 16\"OC","10-5",6.6000000000000003E-2]
[646,"R13 cavity+R8 foam Metal 16\"OC","10-5",6.2E-2]
[647,"R13 cavity+R9 foam Metal 16\"OC","10-5",5.8999999999999997E-2]
[648,"R13 cavity+R10 foam Metal 16\"OC","10-5",5.5E-2]
[649,"R15 cavity+R0 foam Metal 16\"OC","10-5",0.11799999999999999]
[650,"R15 cavity+R1 foam Metal 16\"OC","10-5",0.106]
[651,"R15 cavity+R2 foam Metal 16\"OC","10-5",9.6000000000000002E-2]
[652,"R15 cavity+R3 foam Metal 16\"OC","10-5",8.6999999999999994E-2]
[653,"R15 cavity+R4 foam Metal 16\"OC","10-5",0.08]
[654,"R15 cavity+R5 foam Metal 16\"OC","10-5",7.3999999999999996E-2]
[655,"R15 cavity+R6 foam Metal 16\"OC","10-5",6.9000000000000006E-2]
[656,"R15 cavity+R7 foam Metal 16\"OC","10-5",6.5000000000000002E-2]
[657,"R15 cavity+R8 foam Metal 16\"OC","10-5",6.0999999999999999E-2]
[658,"R15 cavity+R9 foam Metal 16\"OC","10-5",5.7000000000000002E-2]
[659,"R15 cavity+R10 foam Metal 16\"OC","10-5",5.3999999999999999E-2]
[660,"R19 cavity+R0 foam Metal 16\"OC","10-5",0.109]
[661,"R19 cavity+R1 foam Metal 16\"OC","10-5",9.9000000000000005E-2]
[662,"R19 cavity+R2 foam Metal 16\"OC","10-5",0.09]
[663,"R19 cavity+R3 foam Metal 16\"OC","10-5",8.2000000000000003E-2]
[664,"R19 cavity+R4 foam Metal 16\"OC","10-5",7.5999999999999998E-2]
[665,"R19 cavity+R5 foam Metal 16\"OC","10-5",7.0999999999999994E-2]
[666,"R19 cavity+R6 foam Metal 16\"OC","10-5",6.6000000000000003E-2]
[667,"R19 cavity+R7 foam Metal 16\"OC","10-5",6.2E-2]
[668,"R19 cavity+R8 foam Metal 16\"OC","10-5",5.8000000000000003E-2]
[669,"R19 cavity+R9 foam Metal 16\"OC","10-5",5.5E-2]
[670,"R19 cavity+R10 foam Metal 16\"OC","10-5",5.1999999999999998E-2]
[671,"R21 cavity+R0 foam Metal 16\"OC","10-5",0.106]
[672,"R21 cavity+R1 foam Metal 16\"OC","10-5",9.6000000000000002E-2]
[673,"R21 cavity+R2 foam Metal 16\"OC","10-5",8.6999999999999994E-2]
[674,"R21 cavity+R3 foam Metal 16\"OC","10-5",0.08]
[675,"R21 cavity+R4 foam Metal 16\"OC","10-5",7.3999999999999996E-2]
[676,"R21 cavity+R5 foam Metal 16\"OC","10-5",6.9000000000000006E-2]
[677,"R21 cavity+R6 foam Metal 16\"OC","10-5",6.5000000000000002E-2]
[678,"R21 cavity+R7 foam Metal 16\"OC","10-5",6.0999999999999999E-2]
[679,"R21 cavity+R8 foam Metal 16\"OC","10-5",5.7000000000000002E-2]
[680,"R21 cavity+R9 foam Metal 16\"OC","10-5",5.3999999999999999E-2]
[681,"R21 cavity+R10 foam Metal 16\"OC","10-5",5.0999999999999997E-2]
[682,"R25 cavity+R0 foam Metal 16\"OC","10-5",9.0999999999999998E-2]
[683,"R25 cavity+R1 foam Metal 16\"OC","10-5",8.3000000000000004E-2]
[684,"R25 cavity+R2 foam Metal 16\"OC","10-5",7.6999999999999999E-2]
[685,"R25 cavity+R3 foam Metal 16\"OC","10-5",7.0999999999999994E-2]
[686,"R25 cavity+R4 foam Metal 16\"OC","10-5",6.7000000000000004E-2]
[687,"R25 cavity+R5 foam Metal 16\"OC","10-5",6.2E-2]
[688,"R25 cavity+R6 foam Metal 16\"OC","10-5",5.8999999999999997E-2]
[689,"R25 cavity+R7 foam Metal 16\"OC","10-5",5.5E-2]
[690,"R25 cavity+R8 foam Metal 16\"OC","10-5",5.2999999999999999E-2]
[691,"R25 cavity+R9 foam Metal 16\"OC","10-5",0.05]
[692,"R25 cavity+R10 foam Metal 16\"OC","10-5",4.8000000000000001E-2]
[693,"R11 cavity+R0 foam Metal 24\"OC","10-5",0.11600000000000001]
[694,"R11 cavity+R1 foam Metal 24\"OC","10-5",0.104]
[695,"R11 cavity+R2 foam Metal 24\"OC","10-5",9.4E-2]
[696,"R11 cavity+R3 foam Metal 24\"OC","10-5",8.5999999999999993E-2]
[697,"R11 cavity+R4 foam Metal 24\"OC","10-5",7.9000000000000001E-2]
[698,"R11 cavity+R5 foam Metal 24\"OC","10-5",7.2999999999999995E-2]
[699,"R11 cavity+R6 foam Metal 24\"OC","10-5",6.8000000000000005E-2]
[700,"R11 cavity+R7 foam Metal 24\"OC","10-5",6.4000000000000001E-2]
[701,"R11 cavity+R8 foam Metal 24\"OC","10-5",0.06]
[702,"R11 cavity+R9 foam Metal 24\"OC","10-5",5.7000000000000002E-2]
[703,"R11 cavity+R10 foam Metal 24\"OC","10-5",5.3999999999999999E-2]
[704,"R13 cavity+R0 foam Metal 24\"OC","10-5",0.108]
[705,"R13 cavity+R1 foam Metal 24\"OC","10-5",9.8000000000000004E-2]
[706,"R13 cavity+R2 foam Metal 24\"OC","10-5",8.8999999999999996E-2]
[{"$f":"A708+1","v":707},"R13 cavity+R3 foam Metal 24\"OC","10-5",8.2000000000000003E-2]
[708,"R13 cavity+R4 foam Metal 24\"OC","10-5",7.4999999999999997E-2]
[709,"R13 cavity+R5 foam Metal 24\"OC","10-5",7.0000000000000007E-2]
[710,"R13 cavity+R6 foam Metal 24\"OC","10-5",6.6000000000000003E-2]
[711,"R13 cavity+R7 foam Metal 24\"OC","10-5",6.2E-2]
[712,"R13 cavity+R8 foam Metal 24\"OC","10-5",5.8000000000000003E-2]
[713,"R13 cavity+R9 foam Metal 24\"OC","10-5",5.5E-2]
[714,"R13 cavity+R10 foam Metal 24\"OC","10-5",5.1999999999999998E-2]
[715,"R15 cavity+R0 foam Metal 24\"OC","10-5",0.10199999999999999]
[716,"R15 cavity+R1 foam Metal 24\"OC","10-5",9.1999999999999998E-2]
[717,"R15 cavity+R2 foam Metal 24\"OC","10-5",8.4000000000000005E-2]
[718,"R15 cavity+R3 foam Metal 24\"OC","10-5",7.8E-2]
[719,"R15 cavity+R4 foam Metal 24\"OC","10-5",7.1999999999999995E-2]
[720,"R15 cavity+R5 foam Metal 24\"OC","10-5",6.7000000000000004E-2]
[721,"R15 cavity+R6 foam Metal 24\"OC","10-5",6.3E-2]
[722,"R15 cavity+R7 foam Metal 24\"OC","10-5",5.8999999999999997E-2]
[723,"R15 cavity+R8 foam Metal 24\"OC","10-5",5.6000000000000001E-2]
[724,"R15 cavity+R9 foam Metal 24\"OC","10-5",5.2999999999999999E-2]
[725,"R15 cavity+R10 foam Metal 24\"OC","10-5",0.05]
[726,"R19 cavity+R0 foam Metal 24\"OC","10-5",9.4E-2]
[727,"R19 cavity+R1 foam Metal 24\"OC","10-5",8.5999999999999993E-2]
[728,"R19 cavity+R2 foam Metal 24\"OC","10-5",7.9000000000000001E-2]
[729,"R19 cavity+R3 foam Metal 24\"OC","10-5",7.2999999999999995E-2]
[730,"R19 cavity+R4 foam Metal 24\"OC","10-5",6.8000000000000005E-2]
[731,"R19 cavity+R5 foam Metal 24\"OC","10-5",6.4000000000000001E-2]
[732,"R19 cavity+R6 foam Metal 24\"OC","10-5",0.06]
[733,"R19 cavity+R7 foam Metal 24\"OC","10-5",5.7000000000000002E-2]
[734,"R19 cavity+R8 foam Metal 24\"OC","10-5",5.3999999999999999E-2]
[735,"R19 cavity+R9 foam Metal 24\"OC","10-5",5.0999999999999997E-2]
[736,"R19 cavity+R10 foam Metal 24\"OC","10-5",4.8000000000000001E-2]
[737,"R21 cavity+R0 foam Metal 24\"OC","10-5",0.09]
[738,"R21 cavity+R1 foam Metal 24\"OC","10-5",8.3000000000000004E-2]
[739,"R21 cavity+R2 foam Metal 24\"OC","10-5",7.6999999999999999E-2]
[740,"R21 cavity+R3 foam Metal 24\"OC","10-5",7.0999999999999994E-2]
[741,"R21 cavity+R4 foam Metal 24\"OC","10-5",6.6000000000000003E-2]
[742,"R21 cavity+R5 foam Metal 24\"OC","10-5",6.2E-2]
[743,"R21 cavity+R6 foam Metal 24\"OC","10-5",5.8999999999999997E-2]
[744,"R21 cavity+R7 foam Metal 24\"OC","10-5",5.5E-2]
[745,"R21 cavity+R8 foam Metal 24\"OC","10-5",5.1999999999999998E-2]
[746,"R21 cavity+R9 foam Metal 24\"OC","10-5",0.05]
[747,"R21 cavity+R10 foam Metal 24\"OC","10-5",4.8000000000000001E-2]
[748,"R25 cavity+R0 foam Metal 24\"OC","10-5",7.9000000000000001E-2]
[749,"R25 cavity+R1 foam Metal 24\"OC","10-5",7.2999999999999995E-2]
[750,"R25 cavity+R2 foam Metal 24\"OC","10-5",6.8000000000000005E-2]
[751,"R25 cavity+R3 foam Metal 24\"OC","10-5",6.4000000000000001E-2]
[752,"R25 cavity+R4 foam Metal 24\"OC","10-5",0.06]
[753,"R25 cavity+R5 foam Metal 24\"OC","10-5",5.7000000000000002E-2]
[754,"R25 cavity+R6 foam Metal 24\"OC","10-5",5.3999999999999999E-2]
[755,"R25 cavity+R7 foam Metal 24\"OC","10-5",5.0999999999999997E-2]
[756,"R25 cavity+R8 foam Metal 24\"OC","10-5",4.8000000000000001E-2]
[757,"R25 cavity+R9 foam Metal 24\"OC","10-5",4.5999999999999999E-2]
[758,"R25 cavity+R10 foam Metal 24\"OC","10-5",4.3999999999999997E-2]
[759,"R0 Exposed 8\"block+empty","10-5",0.4]
[760,"R0 Exposed 8\"block+perlite ","10-5",0.23]
[761,"R0 Exposed 8\"block+vermiculite","10-5",0.24]
[762,"R0 Exposed 8\"block+solid. ","10-5",0.43]
[763,"R5 int. Wood furring 8\"block+empty ","10-5",0.14000000000000001]
[764,"R5 int. Wood furring 8\"block+perlite ","10-5",0.11]
[765,"R5 int. Wood furring 8\"block+vermiculite","10-5",0.12]
[766,"R5 int. Wood furring 8\"block+solid ","10-5",0.15]
[767,"R6 int. Wood furring 8\"block+empty ","10-5",0.14000000000000001]
[768,"R6 int. Wood furring 8\"block+perlite ","10-5",0.11]
[769,"R6 int. Wood furring 8\"block+vermiculite","10-5",0.11]
[770,"R6 int. Wood furring 8\"block+solid ","10-5",0.14000000000000001]
[{"$f":"A772+1","v":771},"R10.5 int. Wood furring 8\"block+empty ","10-5",0.11]
[772,"R10.5 int. Wood furring 8\"block+perlite ","10-5",0.09]
[773,"R10.5 int. Wood furring 8\"block+vermic.","10-5",0.09]
[774,"R10.5 int. Wood furring 8\"block+solid ","10-5",0.11]
[775,"R8 int. Metal Clips 8\"block+empty ","10-5",0.11]
[776,"R8 int. Metal Clips 8\"block+perlite ","10-5",0.09]
[777,"R8 int. Metal Clips 8\"block+vermiculite","10-5",0.09]
[778,"R8 int. Metal Clips 8\"block+solid ","10-5",0.11]
[779,"R6 Exterior  8\"block+empty ","10-5",0.12]
[780,"R6 Exterior  8\"block+perlite ","10-5",0.1]
[781,"R6 Exterior  8\"block+vermiculite","10-5",0.1]
[782,"R6 Exterior  8\"block+solid ","10-5",0.12]
[783,"R10 Exterior  8\"block+empty ","10-5",0.08]
[784,"R10 Exterior  8\"block+perlite ","10-5",7.0000000000000007E-2]
[785,"R10 Exterior  8\"block+vermiculite","10-5",7.0000000000000007E-2]
[786,"R10 Exterior  8\"block+solid ","10-5",0.08]
[787,"R9.5 Poly Two Web  8\"block+empty ","10-5",0.11]
[788,"R9.5 Poly Two Web  8\"block+perlite ","10-5",0.09]
[789,"R9.5 Poly Two Web  8\"block+vermiculite","10-5",0.09]
[790,"R9.5 Poly Two Web  8\"block+solid ","10-5",0.12]
[791,"R0 Exposed 12\"block+empty","10-5",0.35]
[792,"R0 Exposed 12\"block+perlite ","10-5",0.17]
[793,"R0 Exposed 12\"block+vermiculite","10-5",0.18]
[794,"R0 Exposed 12\"block+solid. ","10-5",0.33]
[795,"R5 int. Wood furring 12\"block+empty ","10-5",0.14000000000000001]
[796,"R5 int. Wood furring 12\"block+perlite ","10-5",0.1]
[797,"R5 int. Wood furring 12\"block+vermiculite","10-5",0.1]
[798,"R5 int. Wood furring 12\"block+solid ","10-5",0.13]
[799,"R6 int. Wood furring 12\"block+empty ","10-5",0.13]
[800,"R6 int. Wood furring 12\"block+perlite ","10-5",0.09]
[801,"R6 int. Wood furring 12\"block+vermiculite","10-5",0.1]
[802,"R6 int. Wood furring 12\"block+solid ","10-5",0.13]
[803,"R10.5 int. Wood furring 12\"block+empty ","10-5",0.11]
[804,"R10.5 int. Wood furring 12\"block+perlite ","10-5",0.08]
[805,"R10.5 int. Wood furring 12\"block+vermic.","10-5",0.08]
[806,"R10.5 int. Wood furring 12\"block+solid ","10-5",0.1]
[807,"R8 int. Metal Clips 12\"block+empty ","10-5",0.1]
[808,"R8 int. Metal Clips 12\"block+perlite ","10-5",0.08]
[809,"R8 int. Metal Clips 12\"block+vermiculite","10-5",0.08]
[810,"R8 int. Metal Clips 12\"block+solid ","10-5",0.09]
[811,"R6 Exterior  12\"block+empty ","10-5",0.11]
[812,"R6 Exterior  12\"block+perlite ","10-5",0.09]
[813,"R6 Exterior  12\"block+vermiculite","10-5",0.09]
[814,"R6 Exterior  12\"block+solid ","10-5",0.11]
[815,"R10 Exterior  12\"block+empty ","10-5",0.08]
[816,"R10 Exterior  12\"block+perlite ","10-5",0.06]
[817,"R10 Exterior  12\"block+vermiculite","10-5",0.06]
[818,"R10 Exterior  12\"block+solid ","10-5",0.08]
[819,"R9.5 Poly Two Web  12\"block+empty ","10-5",0.11]
[820,"R9.5 Poly Two Web  12\"block+perlite ","10-5",0.08]
[821,"R9.5 Poly Two Web  12\"block+vermic.","10-5",0.09]
[822,"R9.5 Poly Two Web  12\"block+solid ","10-5",0.12]
[823,"R0 Exposed 8\"brick+empty","10-5",0.5]
[824,"R0 Exposed 8\"brick+perlite ","10-5",0.31]
[825,"R0 Exposed 8\"brick+vermiculite","10-5",0.32]
[826,"R0 Exposed 8\"brick+solid. ","10-5",0.56000000000000005]
[827,"R5 Wood furring 8\"brick+empty ","10-5",0.15]
[828,"R5 int.. Wood furring 8\"brick+perlite ","10-5",0.13]
[829,"R5 int. Wood furring 8\"brick+vermiculite","10-5",0.13]
[830,"R5 int. Wood furring 8\"brick+solid ","10-5",0.16]
[831,"R6 int. Wood furring 8\"brick+empty ","10-5",0.15]
[832,"R6 int. Wood furring 8\"brick+perlite ","10-5",0.12]
[833,"R6 int. Wood furring 8\"brick+vermiculite","10-5",0.12]
[834,"R6 int. Wood furring 8\"brick+solid ","10-5",0.15]
[{"$f":"A836+1","v":835},"R10.5 int. Wood furring 8\"brick+empty ","10-5",0.12]
[836,"R10.5 int. Wood furring 8\"brick+perlite ","10-5",0.1]
[837,"R10.5 int. Wood furring 8\"brick+vermic","10-5",0.1]
[838,"R10.5 int. Wood furring 8\"brick+solid ","10-5",0.12]
[839,"R8 int. Metal Clips 8\"brick+empty ","10-5",0.11]
[840,"R8 int. Metal Clips 8\"brick+perlite ","10-5",0.1]
[841,"R8 int. Metal Clips 8\"brick+vermiculite","10-5",0.1]
[842,"R8 int. Metal Clips 8\"brick+solid ","10-5",0.11]
[843,"R6 Exterior  8\"brick+empty ","10-5",0.12]
[844,"R6 Exterior  8\"brick+perlite ","10-5",0.11]
[845,"R6 Exterior  8\"brick+vermiculite","10-5",0.11]
[846,"R6 Exterior  8\"brick+solid ","10-5",0.13]
[847,"R10 Exterior  8\"brick+empty ","10-5",0.08]
[848,"R10 Exterior  8\"brick+perlite ","10-5",0.08]
[849,"R10 Exterior  8\"brick+vermiculite","10-5",0.08]
[850,"R10 Exterior  8\"brick+solid ","10-5",0.09]
[851,"R0 Exposed 6\"Concrete+solid. ","10-5",0.61]
[852,"R5 int. Wood furring 6\"Concrete+solid ","10-5",0.16]
[853,"R6 int. Wood furring 6\"Concrete+solid ","10-5",0.15]
[854,"R10.5 int. Wood furring 6\"Concrete+solid ","10-5",0.12]
[855,"R8 int. Metal Clips 6\"Concrete+solid ","10-5",0.12]
[856,"R6 Exterior  6\"Concrete+solid ","10-5",0.13]
[857,"R10 Exterior  6\"Concrete+solid ","10-5",0.09]
[858,"Int Concrete Floors, Exposed Concrete,6\"wall","10-5B",0.81599999999999995]
[859,"Int Concrete Floors, R-5 Ext., 6\"wall","10-5B",0.161]
[860,"Int Concrete, Floors R-6 Ext., 6\"wall","10-5B",0.13800000000000001]
[861,"Int Concrete, Floors R-7 Ext., 6\"wall","10-5B",0.122]
[862,"Int Concrete, Floors R-8 Ext., 6\"wall","10-5B",0.108]
[863,"Int Concrete, Floors R-9 Ext., 6\"wall","10-5B",9.8000000000000004E-2]
[864,"Int Concrete, Floors R-10 Ext., 6\"wall","10-5B",8.8999999999999996E-2]
[865,"Int Concrete Floors, Exposed Concrete,8\"wall","10-5B",0.74099999999999999]
[866,"Int Concrete Floors, R-5 Ext., 8\"wall","10-5B",0.157]
[867,"Int Concrete, Floors R-6 Ext., 8\"wall","10-5B",0.13600000000000001]
[868,"Int Concrete, Floors R-7 Ext., 8\"wall","10-5B",0.12]
[869,"Int Concrete, Floors R-8 Ext., 8\"wall","10-5B",0.107]
[870,"Int Concrete, Floors R-9 Ext., 8\"wall","10-5B",9.7000000000000003E-2]
[871,"Int Concrete, Floors R-10 Ext., 8\"wall","10-5B",8.7999999999999995E-2]
[872,"Int Concrete Floors, Exposed Concrete,10\"wall","10-5B",0.67800000000000005]
[873,"Int Concrete Floors, R-5 Ext., 10\"wall","10-5B",0.154]
[874,"Int Concrete, Floors R-6 Ext., 10\"wall","10-5B",0.13400000000000001]
[875,"Int Concrete, Floors R-7 Ext., 10\"wall","10-5B",0.11799999999999999]
[876,"Int Concrete, Floors R-8 Ext., 10\"wall","10-5B",0.106]
[877,"Int Concrete, Floors R-9 Ext., 10\"wall","10-5B",9.5000000000000001E-2]
[878,"Int Concrete, Floors R-10 Ext., 10\"wall","10-5B",8.6999999999999994E-2]
[879,"Int Concrete Floors, Exposed Concrete,12\"wall","10-5B",0.625]
[880,"Int Concrete Floors, R-5 Ext., 12\"wall","10-5B",0.152]
[881,"Int Concrete, Floors R-6 Ext., 12\"wall","10-5B",0.13200000000000001]
[882,"Int Concrete, Floors R-7 Ext., 12\"wall","10-5B",0.11600000000000001]
[883,"Int Concrete, Floors R-8 Ext., 12\"wall","10-5B",0.104]
[884,"Int Concrete, Floors R-9 Ext., 12\"wall","10-5B",9.4E-2]
[885,"Int Concrete, Floors R-10 Ext., 12\"wall","10-5B",8.5999999999999993E-2]
[886,{"$f":"'Flat-Vaulted Ceilings'!$B$330","v":"== Custom Entries per WSEC R402.1.5 U-factor Reference and Calculations ========"},null,null,"Notes"]
[887,"R21 cavity+R16 foam INT 2X6W T111","Custom",2.8000000000000001E-2,null,{"$f":"IF(AND(B890<>\"\",B889=\"\"),\"Don't skip lines\",IF(AND(D889=\"\",B889<>\"\"),\"Enter U-value\",IF(AND(D889<>\"\",B889=\"\"),\"Enter Description\",\"\")))","v":""}]
[888,null,"Custom",null,null,""]
[889,null,"Custom",null,null,""]
[890,null,"Custom",null,null,""]
[891,null,"Custom",null,null,""]
[892,null,"Custom",null,null,""]
[893,null,"Custom",null,null,""]
[894,null,"Custom",null,null,""]
[895,null,"Custom",null,null,""]
[896,null,"Custom",null,null,""]
[897,null,"Custom",null,null,""]
[898,null,"Custom",null,null,""]
[899,null,"Custom",null,null,""]
[{"$f":"A901+1","v":900},null,"Custom",null,null,""]
[901,null,"Custom",null,null,""]
[902,null,"Custom",null,null,""]
[903,null,"Custom",null,null,""]
[904,null,"Custom",null,null,""]
[905,null,"Custom",null,null,""]
[906,null,"Custom",null,null,""]
[907,null,"Custom",null,null,""]
[908,null,"Custom",null,null,""]
[909,null,"Custom",null,null,""]
[910,null,"Custom",null,null,""]
[911,null,"Custom",null,null,""]
[912,null,"Custom",null,null,""]
[913,null,"Custom",null,null,""]
[914,null,"Custom",null,null,""]
[915,null,"Custom",null,null,""]
[916,null,"Custom",null,null,""]
[917,null,"Custom",null,null,""]
[918,null,"Custom",null,null,""]
[919,null,"Custom",null,null,""]
[920,null,"Custom",null,null,""]
[921,null,"Custom",null,null,""]
[922,null,"Custom",null,null,""]
[923,null,"Custom",null,null,""]
[924,null,"Custom",null,null,""]
[925,null,"Custom",null,null,""]
[926,null,"Custom",null,null,""]
[927,null,"Custom",null,null,""]
[928,null,"Custom",null,null,""]
[929,null,"Custom",null,null,""]
[930,null,"Custom",null,null,""]
[931,null,"Custom",null,null,""]
[932,null,"Custom",null,null,""]
[933,null,"Custom",null,null,""]
[934,null,"Custom",null,null,""]
[935,null,"Custom",null,null,""]
[936,null,"Custom",null,null,""]
[937,null,"Custom",null,null,""]
[938,null,"Custom",null,null,""]
[939,null,"Custom",null,null,""]
[940,null,"Custom",null,null,""]
[941,null,"Custom",null,null,""]

{"sheet":"Floors","index":9,"n_rows":111,"n_cols":6,"rows_kept":111,"cut":false,"hidden":true,"merged":[]}
["Index","Component Description","Reference","Floor U"]
[]
[1]
[{"$f":"A3+1","v":2},"=== Most Frequently Used ========= "]
[{"$f":"A4+1","v":3},"R0 vented Joist 16oc","10-3",0.13400000000000001]
[4,"R19 vented Joist 16oc","10-3",4.1000000000000002E-2]
[5,"R30 vented Joist 16oc (Code Target)","10-3",2.9000000000000001E-2]
[6,"R30 vented Post/Beam 48oc (Code Target)","10-3",2.8000000000000001E-2]
[7,"R38 vented Joist 16oc (Option 1a-1c)","10-3",2.5000000000000001E-2]
[8,"R38 vented Post/Beam 48oc (Option 1a-1c)","10-3",2.4E-2]
[9,"============================"]
[10,"R0 vented Joist 16oc","10-3",0.13400000000000001]
[11,"R0 vented Post/Beam 48oc","10-3",0.112]
[12,"R11 vented Joist 16oc","10-3",5.6000000000000001E-2]
[13,"R11 vented Post/Beam 48oc","10-3",5.1999999999999998E-2]
[14,"R19 vented Joist 16oc","10-3",4.1000000000000002E-2]
[15,"R19 vented Post/Beam 48oc","10-3",3.7999999999999999E-2]
[16,"R22 vented Joist 16oc","10-3",3.6999999999999998E-2]
[17,"R22 vented Post/Beam 48oc","10-3",3.4000000000000002E-2]
[18,"R25 vented Joist 16oc","10-3",3.4000000000000002E-2]
[19,"R25 vented Post/Beam 48oc","10-3",3.2000000000000001E-2]
[20,"R30 vented Joist 16oc","10-3",2.9000000000000001E-2]
[21,"R30 vented Post/Beam 48oc","10-3",2.8000000000000001E-2]
[22,"R38 vented Joist 16oc","10-3",2.5000000000000001E-2]
[23,"R38 vented Post/Beam 48oc","10-3",2.4E-2]
[24,"R11 perim vented Joist 16oc","10-3",0.11600000000000001]
[25,"R11 perim vented Post/Beam 48oc","10-3",0.1]
[26,"R19 perim vented Joist 16oc","10-3",0.114]
[27,"R19 perim vented Post/Beam 48oc","10-3",9.8000000000000004E-2]
[28,"R30 perim vented Joist 16oc","10-3",0.107]
[29,"R30 perim vented Post/Beam 48oc","10-3",9.2999999999999999E-2]
[30,"R11 + R11 perim vented Joist 16oc","10-3",5.1999999999999998E-2]
[31,"R11 + R11 perim vented Post/Beam 48oc","10-3",4.8000000000000001E-2]
[32,"R19 + R11 perim vented Joist 16oc","10-3",3.7999999999999999E-2]
[33,"R19 + R11 perim vented Post/Beam 48oc","10-3",3.5999999999999997E-2]
[34,"R22 + R11 perim vented Joist 16oc","10-3",3.5000000000000003E-2]
[35,"R22 + R11 perim vented Post/Beam 48oc","10-3",3.3000000000000002E-2]
[36,"R25 + R11 perim vented Joist 16oc","10-3",3.3000000000000002E-2]
[37,"R25 + R11 perim vented Post/Beam 48oc","10-3",3.1E-2]
[38,"R30 + R11 perim vented Joist 16oc","10-3",2.8000000000000001E-2]
[39,"R30 + R11 perim vented Post/Beam 48oc","10-3",2.7E-2]
[40,"R38 + R11 perim vented Joist 16oc","10-3",2.4E-2]
[41,"R38 + R11 perim vented Post/Beam 48oc","10-3",2.4E-2]
[42,"R11 perim unvented Heated plenum","10-4",8.5000000000000006E-2]
[43,"R19 perim unvented Heated plenum","10-4",7.4999999999999997E-2]
[44,"R30 perim unvented Heated plenum","10-4",6.9000000000000006E-2]
[45,"7.25\" stress skin panel","WSU",3.4000000000000002E-2]
[46,"9.25\" stress skin panel","WSU",2.8000000000000001E-2]
[47,"11.25\" stress skin panel","WSU",2.4E-2]
[48,"R11 Concrete Exposed","10-4A",7.6999999999999999E-2]
[49,"R15 Concrete Exposed","10-4A",5.8999999999999997E-2]
[50,"R19 Concrete Exposed","10-4A",4.8000000000000001E-2]
[51,"R21 Concrete Exposed","10-4A",4.2999999999999997E-2]
[52,"R25 Concrete Exposed","10-4A",3.6999999999999998E-2]
[53,"R30 Concrete Exposed","10-4A",3.1E-2]
[54,"R38 Concrete Exposed","10-4A",2.5000000000000001E-2]
[55,"R11 Wood Joist Exposed","10-4A",8.7999999999999995E-2]
[56,"R15 Wood Joist Exposed","10-4A",7.5999999999999998E-2]
[57,"R19 Wood Joist Exposed","10-4A",6.2E-2]
[58,"R21 Wood Joist Exposed","10-4A",5.7000000000000002E-2]
[59,"R30 Wood Joist Exposed","10-4A",5.0999999999999997E-2]
[60,"R38 Wood Joist Exposed","10-4A",0.04]
[61,"R25 Wood Joist Exposed","10-4A",3.4000000000000002E-2]
[62,"R11 Metal Joist Exposed","10-4A",0.14000000000000001]
[63,"R15 Metal Joist Exposed","10-4A",0.12]
[64,"R19 Metal Joist Exposed","10-4A",0.11]
[65,"R21 Metal Joist Exposed","10-4A",0.11]
[66,"R25 Metal Joist Exposed","10-4A",0.1]
[67,"R30 Metal Joist Exposed","10-4A",0.09]
[{"$f":"A69+1","v":68},"R38 Metal Joist Exposed","10-4A",0.08]
[69,{"$f":"'Flat-Vaulted Ceilings'!$B$330","v":"== Custom Entries per WSEC R402.1.5 U-factor Reference and Calculations ========"},null,null,"Notes"]
[70,"R48 vented Joist 16oc","Custom",0.02,null,{"$f":"IF(AND(B73<>\"\",B72=\"\"),\"Don't skip lines\",IF(AND(D72=\"\",B72<>\"\"),\"Enter U-value\",IF(AND(D72<>\"\",B72=\"\"),\"Enter Description\",\"\")))","v":""}]
[71,null,"Custom",null,null,""]
[72,null,"Custom",null,null,""]
[73,null,"Custom",null,null,""]
[74,null,"Custom",null,null,""]
[75,null,"Custom",null,null,""]
[{"$f":"A77+1","v":76},null,"Custom",null,null,""]
[77,null,"Custom",null,null,""]
[78,null,"Custom",null,null,""]
[79,null,"Custom",null,null,""]
[80,null,"Custom",null,null,""]
[81,null,"Custom",null,null,""]
[82,null,"Custom",null,null,""]
[83,null,"Custom",null,null,""]
[84,null,"Custom",null,null,""]
[85,null,"Custom",null,null,""]
[86,null,"Custom",null,null,""]
[87,null,"Custom",null,null,""]
[88,null,"Custom",null,null,""]
[89,null,"Custom",null,null,""]
[90,null,"Custom",null,null,""]
[91,null,"Custom",null,null,""]
[92,null,"Custom",null,null,""]
[93,null,"Custom",null,null,""]
[94,null,"Custom",null,null,""]
[95,null,"Custom",null,null,""]
[96,null,"Custom",null,null,""]
[97,null,"Custom",null,null,""]
[98,null,"Custom",null,null,""]
[99,null,"Custom",null,null,""]
[100,null,"Custom",null,null,""]
[101,null,"Custom",null,null,""]
[102,null,"Custom",null,null,""]
[103,null,"Custom",null,null,""]
[104,null,"Custom",null,null,""]
[105,null,"Custom",null,null,""]
[106,null,"Custom",null,null,""]
[107,null,"Custom",null,null,""]
[108,null,"Custom",null,null,""]
[109,null,"Custom",null,null,""]

{"sheet":"Slab on Grade","index":10,"n_rows":77,"n_cols":11,"rows_kept":77,"cut":false,"hidden":true,"merged":[]}
["Index","Component Description","Reference","Floor F"]
[]
[1]
[{"$f":"A3+1","v":2},"=== Most Frequently Used ========= "]
[{"$f":"A4+1","v":3},"R0  uninsulated","10-2",0.73]
[4,"R10 2' vertical (Code Target)","10-2",0.54]
[null,"R-7.5 On top of slab (Existing slab conversion only)","Footnote, Table 402",0.54]
[{"$f":"A6+1","v":5},"R10 Fully insulated Heated (Code Target)","10-2",0.55000000000000004]
[6,"R10 Fully insulated (Option 1a-1c) ","10-2",0.36]
[7,"R20 Fully insulated (Option 1.6)","Table A6.3, ASHRAE 90.1",0.26100000000000001]
[8,"============================"]
[9,"R0  uninsulated","10-2",0.73]
[10,"R5 2' horizontal","10-2",0.7]
[11,"R7.5 2' horizontal","10-2",0.7]
[12,"R10 2' horizontal","10-2",0.7]
[13,"R15 2' horizontal","10-2",0.69]
[14,"R5 4' horizontal","10-2",0.67]
[15,"R7.5 4' horizontal","WSU",0.65500000000000003]
[16,"R10 4' horizontal","10-2",0.64]
[17,"R15 4' horizontal","10-2",0.63]
[18,"R5 2' vertical","10-2",0.57999999999999996]
[19,"R7.5 2' vertical","WSU",0.56000000000000005]
[20,"R10 2' vertical","10-2",0.54]
[21,"R15 2' vertical","10-2",0.52]
[22,"R5 4' vertical","10-2",0.54]
[23,"R7.5 4' vertical","WSU",0.51]
[24,"R10 4' vertical","10-2",0.48]
[25,"R15 4' vertical","10-2",0.45]
[26,"R5 2' horizontal w/TB","WSU",0.57999999999999996]
[27,"R7.5 2' horizontal w/TB","WSU",0.56000000000000005]
[28,"R10 2' horizontal w/TB","WSU",0.54]
[29,"R15 2' horizontal w/TB","WSU",0.52]
[30,"R5 4' horizontal w/TB","WSU",0.54]
[31,"R7.5 4' horizontal w/TB","WSU",0.51]
[32,"R10 4' horizontal w/TB","WSU",0.48]
[33,"R15 4' horizontal w/TB","WSU",0.45]
[34,"R5 Fully insulated","WSU",0.46]
[35,"R10 Fully insulated","10-2",0.36]
[36,"R15 Fully insulated","WSU",0.3]
[37,"R20 Fully insulated","Table A6.3, ASHRAE 90.1",0.26100000000000001,"Added 2020"]
[38,"R25 Fully insulated","Table A6.3, ASHRAE 90.1",0.23300000000000001,"Added 2020"]
[39,"R30 Fully insulated","Table A6.3, ASHRAE 90.1",0.21299999999999999,"Added 2020"]
[40,"R35 Fully insulated","Table A6.3, ASHRAE 90.1",0.19800000000000001,"Added 2020"]
[41,"R40 Fully insulated","Table A6.3, ASHRAE 90.1",0.186,"Added 2020"]
[42,"R45 Fully insulated","Table A6.3, ASHRAE 90.1",0.17599999999999999,"Added 2020"]
[43,"R50 Fully insulated","Table A6.3, ASHRAE 90.1",0.16800000000000001,"Added 2020"]
[44,"R10 2' perim/R5 center","WSU",0.42]
[45,"R15 2' perim/R5 center","WSU",0.4]
[46,"R15 2' perim/R10 center","WSU",0.34]
[47,"R0  Uninsulated Heated","10-2",0.84]
[48,"R5 Fully insulated Heated","10-2",0.74]
[49,"R10 Fully insulated Heated","10-2",0.55000000000000004]
[50,"R15 Fully insulated Heated","10-2",0.44]
[51,"R20 Fully insulated Heated","Table A6.3, ASHRAE 90.1",0.373,"Added 2020"]
[52,"R25 Fully insulated Heated","Table A6.3, ASHRAE 90.1",0.32600000000000001,"Added 2020"]
[53,"R30 Fully insulated Heated","Table A6.3, ASHRAE 90.1",0.29599999999999999,"Added 2020"]
[54,"R35 Fully insulated Heated","Table A6.3, ASHRAE 90.1",0.27300000000000002,"Added 2020"]
[55,"R40 Fully insulated Heated","Table A6.3, ASHRAE 90.1",0.255,"Added 2020"]
[56,"R45 Fully insulated Heated","Table A6.3, ASHRAE 90.1",0.23899999999999999,"Added 2020"]
[57,"R50 Fully insulated Heated","Table A6.3, ASHRAE 90.1",0.22700000000000001,"Added 2020"]
[58,"R10 perim/R5 center Heated","10-2",0.66]
[59,"R15 perim/R5 center Heated","10-2",0.62]
[60,"R15 perim/R10 center Heated","10-2",0.51]
[61,"R10 3' vertical Heated","10-2",0.78]
[62,{"$f":"'Flat-Vaulted Ceilings'!$B$330","v":"== Custom Entries per WSEC R402.1.5 U-factor Reference and Calculations ========"},null,null,"Notes",null,null,null,"CALCUALTOR 1: Calculate F-value of unheated fully insulated slab from R-value of insulation"]
[63,{"$f":"K67","v":"R-7.5 fully insulated unheated (est from ASHRAE 90.1 fit"},"Custom",{"$f":"J67","v":0.40376168090312503},"Estimated from ASHRAE 90.1",{"$f":"IF(AND(B67<>\"\",B66=\"\"),\"Don't skip lines\",IF(AND(D66=\"\",B66<>\"\"),\"Enter U-value\",IF(AND(D66<>\"\",B66=\"\"),\"Enter Description\",\"\")))","v":""},null,null,"R-value","F-value"]
[64,null,"Custom",null,null,"",null,null,7.5,{"$f":"IF(I67=\"\",\"-\",-0.0000000135*I67^5 + 0.0000022123*I67^4 - 0.0001389239*I67^3 + 0.0042308151*I67^2 - 0.067716536*I67 + 0.7255813777)","v":0.40376168090312503},{"$f":"IF(I67=\"\",\"-\",CONCATENATE(\"R-\",ROUND(I67,2),\" fully insulated unheated (est from ASHRAE 90.1 fit\"))","v":"R-7.5 fully insulated unheated (est from ASHRAE 90.1 fit"}]
[65,null,"Custom",null,null,"",null,null,null,{"$f":"IF(I68=\"\",\"-\",-0.0000000135*I68^5 + 0.0000022123*I68^4 - 0.0001389239*I68^3 + 0.0042308151*I68^2 - 0.067716536*I68 + 0.7255813777)","v":"-"},{"$f":"IF(I68=\"\",\"-\",CONCATENATE(\"R-\",ROUND(I68,2),\" fully insulated unheated (est from ASHRAE 90.1 fit\"))","v":"-"}]
[66,null,"Custom",null,null,""]
[67,null,"Custom",null,null,""]
[68,null,"Custom",null,null,""]
[69,null,"Custom",null,null,""]
[70,null,"Custom",null,null,""]
[71,null,"Custom",null,null,""]
[72,null,"Custom",null,null,""]
[73,null,"Custom",null,null,""]
[74,null,"Custom",null,null,""]

{"sheet":"Below Grade Walls & Slabs","index":11,"n_rows":79,"n_cols":20,"rows_kept":79,"cut":false,"hidden":true,"merged":[]}
["Index","Component Description","Reference","Wall U","Slab F"]
[1]
[{"$f":"A2+1","v":2},"=== Most Frequently Used ========= "]
[{"$f":"A3+1","v":3},"R0  Uninsulated 2' depth","10-1",0.35,0.59]
[4,"R0  Uninsulated 3.5' depth","10-1",0.27800000000000002,0.53]
[5,"R0  Uninsulated 7' depth","10-1",0.193,0.46]
[6,"R11 Batt 7' depth","10-1",5.3999999999999999E-2,0.56000000000000005]
[7,"R11 Batt 7' depth w/TB (Code Target)","10-1",5.6000000000000001E-2,0.42]
[8,"R10 Foam Ext 7' depth (Code Target)","10-1",5.6000000000000001E-2,0.42]
[9,"R12 Foam Ext 7' depth","10-1",0.05,0.42]
[10,"R10 Perimeter 7' depth w/TB, R10 Full Underslab (Option 1a-1c)","Baylon & Kennedy, https://web.ornl.gov/sci/buildings/conf-archive/2007%20B10%20papers/092_Baylon.pdf",5.5E-2,0.29299999999999998,"Added 2020"]
[11,"R21 Batt  + R5 ci 7' depth R10 Fully Underslab (Option 1.4)","Baylon & Kennedy, https://web.ornl.gov/sci/buildings/conf-archive/2007%20B10%20papers/092_Baylon.pdf",2.9000000000000001E-2,0.307,"Added 2020"]
[12,"R20 Perimeter  7' depth w/TB, R10 Full Underslab (Opton 1.6 estimated)","Baylon & Kennedy, https://web.ornl.gov/sci/buildings/conf-archive/2007%20B10%20papers/092_Baylon.pdf",3.4000000000000002E-2,0.30399999999999999,"Added 2020"]
[13,"============================"]
[14,"R0  Uninsulated 2' depth","10-1",0.35,0.59]
[15,"R11 Batt 2' depth","10-1",6.6000000000000003E-2,0.68]
[16,"R11 Batt 2' depth w/TB","10-1",7.0000000000000007E-2,0.6]
[17,"R11 Batt  + R5 ci 2' depth w/TB","Baylon & Kennedy, https://web.ornl.gov/sci/buildings/conf-archive/2007%20B10%20papers/092_Baylon.pdf",4.5999999999999999E-2,0.59,"Added 2020"]
[18,"R11 Batt  + R5 ci 2' depth R10 Fully Underslab","Baylon & Kennedy, https://web.ornl.gov/sci/buildings/conf-archive/2007%20B10%20papers/092_Baylon.pdf",4.8000000000000001E-2,0.34799999999999998,"Added 2020"]
[19,"R10 Perimeter 2' depth w/TB, R10 Full Underslab","Baylon & Kennedy, https://web.ornl.gov/sci/buildings/conf-archive/2007%20B10%20papers/092_Baylon.pdf",6.8000000000000005E-2,0.34499999999999997]
[20,"R13 Batt 2' depth","WSU",5.6000000000000001E-2,0.67300000000000004]
[21,"R13 Batt 2' depth w/TB ","WSU",5.8999999999999997E-2,0.58799999999999997]
[22,"R19 Batt 2' depth","10-1",4.2999999999999997E-2,0.69]
[23,"R19 Batt 2' depth w/TB","10-1",4.4999999999999998E-2,0.61]
[24,"R21 Batt 2' depth","WSU",0.04,0.67900000000000005]
[25,"R21 Batt  2' depth w/TB","WSU",4.2000000000000003E-2,0.59199999999999997]
[26,"R21 Batt  + R5 ci 2' depth R10 Fully Underslab","Baylon & Kennedy, https://web.ornl.gov/sci/buildings/conf-archive/2007%20B10%20papers/092_Baylon.pdf",3.1E-2,0.35,"Added 2020"]
[{"$f":"A27+1","v":27},"R25 Batt  2' depth w/TB","Baylon & Kennedy, https://web.ornl.gov/sci/buildings/conf-archive/2007%20B10%20papers/092_Baylon.pdf",3.7999999999999999E-2,0.59299999999999997,"Added 2020"]
[28,"R25 Batt  2' depth w/TB, R10 Full Underslab","Baylon & Kennedy, https://web.ornl.gov/sci/buildings/conf-archive/2007%20B10%20papers/092_Baylon.pdf",0.04,0.35,"Added 2020"]
[29,"R20 perimeter,  2' depth w/TB, R10 Full Underslab","Baylon & Kennedy, https://web.ornl.gov/sci/buildings/conf-archive/2007%20B10%20papers/092_Baylon.pdf",0.04,0.35,"Added 2020"]
[30,"R10 Foam Ext 2' depth","10-1",7.0000000000000007E-2,0.6]
[31,"R12 Foam Ext 2' depth","10-1",6.0999999999999999E-2,0.6]
[32,"R10 Perimeter 2' depth w/TB, R10 Full Underslab","Baylon & Kennedy, https://web.ornl.gov/sci/buildings/conf-archive/2007%20B10%20papers/092_Baylon.pdf",6.8000000000000005E-2,0.34499999999999997,"Added 2020"]
[{"$f":"A33+1","v":33},"R0  Uninsulated 3.5' depth","10-1",0.27800000000000002,0.53]
[34,"R11 Batt 3.5' depth","10-1",6.2E-2,0.63]
[35,"R11 Batt 3.5' depth w/TB","10-1",6.4000000000000001E-2,0.56999999999999995]
[36,"R11 Batt  + R5 ci 3.5' depth w/TB",null,4.2999999999999997E-2,0.55300000000000005,"Added 2020"]
[37,"R11 Batt  + R5 ci 3.5' depth R10 Fully Underslab","Baylon & Kennedy, https://web.ornl.gov/sci/buildings/conf-archive/2007%20B10%20papers/092_Baylon.pdf",4.4999999999999998E-2,0.32900000000000001,"Added 2020"]
[38,"R13 Batt 3.5' depth","WSU",5.2999999999999999E-2,0.61799999999999999]
[39,"R13 Batt 3.5' depth w/TB","WSU",5.5E-2,0.54800000000000004,null,null,null,null,null,null,null,null,"Figures from:  Baylon & Kennedy, https://web.ornl.gov/sci/buildings/conf-archive/2007%20B10%20papers/092_Baylon.pdf"]
[40,"R19 Batt 3.5' depth","10-1",4.1000000000000002E-2,0.64]
[41,"R19 Batt 3.5' depth w/TB","10-1",4.2000000000000003E-2,0.56999999999999995]
[42,"R21 Batt 3.5' depth","WSU",3.7999999999999999E-2,0.627]
[43,"R21 Batt  3.5' depth w/TB","WSU",0.04,0.55600000000000005,null,null,null,null,null,null,null,null,null,null,3.7999999999999999E-2,0.499,null,0.04,0.30099999999999999]
[44,"R21 Batt  + R5 ci 3.5' depth R10 Fully Underslab","Baylon & Kennedy, https://web.ornl.gov/sci/buildings/conf-archive/2007%20B10%20papers/092_Baylon.pdf",3.2000000000000001E-2,0.33300000000000002,"Added 2020"]
[45,"R25 Batt  3.5' depth w/TB","Baylon & Kennedy, https://web.ornl.gov/sci/buildings/conf-archive/2007%20B10%20papers/092_Baylon.pdf",3.5999999999999997E-2,0.55700000000000005,"Added 2020"]
[46,"R25 Batt  3.5' depth w/TB, R10 Full Underslab","Baylon & Kennedy, https://web.ornl.gov/sci/buildings/conf-archive/2007%20B10%20papers/092_Baylon.pdf",3.7999999999999999E-2,0.33100000000000002,"Added 2020"]
[47,"R-20 perimeter, 3.5' depth w/TB, R10 Full Underslab","Baylon & Kennedy, https://web.ornl.gov/sci/buildings/conf-archive/2007%20B10%20papers/092_Baylon.pdf",3.7999999999999999E-2,0.33100000000000002,"Added 2020"]
[48,"R10 Foam Ext 3.5' depth","10-1",6.4000000000000001E-2,0.56999999999999995]
[49,"R12 Foam Ext 3.5' depth","10-1",5.7000000000000002E-2,0.56999999999999995]
[50,"R10 Perimeter 3.5' depth w/TB, R10 Full Underslab","Baylon & Kennedy, https://web.ornl.gov/sci/buildings/conf-archive/2007%20B10%20papers/092_Baylon.pdf",6.4000000000000001E-2,0.32400000000000001,"Added 2020"]
[51,"R0  Uninsulated 7' depth","10-1",0.193,0.46]
[52,"R11 Batt 7' depth","10-1",5.3999999999999999E-2,0.56000000000000005]
[53,"R11 Batt 7' depth w/TB","10-1",5.6000000000000001E-2,0.42]
[54,"R11 Batt  + R5 ci 7' depth w/TB","Baylon & Kennedy, https://web.ornl.gov/sci/buildings/conf-archive/2007%20B10%20papers/092_Baylon.pdf",3.7999999999999999E-2,0.499,"Added 2020"]
[55,"R11 Batt  + R5 ci 7' depth R10 Fully Underslab","Baylon & Kennedy, https://web.ornl.gov/sci/buildings/conf-archive/2007%20B10%20papers/092_Baylon.pdf",0.04,0.30099999999999999,"Added 2020"]
[56,"R13 Batt 7' depth","WSU",4.5999999999999999E-2,0.54500000000000004]
[57,"R13 Batt 7' depth w/TB","WSU",4.8000000000000001E-2,0.49299999999999999]
[58,"R19 Batt 7' depth","10-1",3.6999999999999998E-2,0.56999999999999995]
[59,"R19 Batt 7' depth w/TB","10-1",3.7999999999999999E-2,0.43]
[60,"R21 Batt 7' depth","WSU",3.4000000000000002E-2,0.55700000000000005]
[61,"R21 Batt  7' depth w/TB","Baylon & Kennedy, https://web.ornl.gov/sci/buildings/conf-archive/2007%20B10%20papers/092_Baylon.pdf",3.5000000000000003E-2,0.503]
[62,"R21 Batt  + R5 ci 7' depth R10 Fully Underslab","Baylon & Kennedy, https://web.ornl.gov/sci/buildings/conf-archive/2007%20B10%20papers/092_Baylon.pdf",2.9000000000000001E-2,0.307,"Added 2020"]
[63,"R25 Batt  7' depth w/TB","Baylon & Kennedy, https://web.ornl.gov/sci/buildings/conf-archive/2007%20B10%20papers/092_Baylon.pdf",3.2000000000000001E-2,0.505,"Added 2020"]
[64,"R25 Batt  7' depth w/TB, R10 Full Underslab","Baylon & Kennedy, https://web.ornl.gov/sci/buildings/conf-archive/2007%20B10%20papers/092_Baylon.pdf",3.4000000000000002E-2,0.30399999999999999,"Added 2020"]
[65,"R20 Perimeter  7' depth w/TB, R10 Full Underslab","Baylon & Kennedy, https://web.ornl.gov/sci/buildings/conf-archive/2007%20B10%20papers/092_Baylon.pdf",3.4000000000000002E-2,0.30399999999999999,"Added 2020"]
[66,"R21 Batt 7' depth w/TB","WSU",3.5000000000000003E-2,0.503]
[67,"R10 Foam Ext 7' depth","10-1",5.6000000000000001E-2,0.42]
[68,"R12 Foam Ext 7' depth","10-1",0.05,0.42]
[69,"R10 Perimeter 7' depth w/TB, R10 Full Underslab","Baylon & Kennedy, https://web.ornl.gov/sci/buildings/conf-archive/2007%20B10%20papers/092_Baylon.pdf",5.5E-2,0.29299999999999998,"Added 2020"]
[70,{"$f":"'Flat-Vaulted Ceilings'!$B$330","v":"== Custom Entries per WSEC R402.1.5 U-factor Reference and Calculations ========"},null,"Wall U","Slab F","Notes"]
[71,null,"Custom",null,null,null,{"$f":"IF(AND(B73<>\"\",B72=\"\"),\"Don't skip lines\",IF(AND(OR(E72=\"\",D72=\"\"),B72<>\"\"),\"Enter U- and F-values\",IF(AND(OR(E72<>\"\",D72<>\"\"),B72=\"\"),\"Enter Description\",\"\")))","v":""}]
[72,null,"Custom",null,null,null,""]
[73,null,"Custom",null,null,null,""]
[74,null,"Custom",null,null,null,""]
[75,null,"Custom",null,null,null,""]
[76,null,"Custom",null,null,null,""]
[77,null,"Custom",null,null,null,""]
[78,null,"Custom",null,null,null,""]

{"sheet":"Table 406.2 (WSEC 2015)","index":12,"n_rows":119,"n_cols":3,"rows_kept":119,"cut":false,"hidden":true,"merged":[[113,1,113,2],[114,1,114,2],[115,1,115,2],[117,1,117,2],[118,1,118,2],[116,1,116,2],[10,0,10,2],[12,0,12,2],[13,0,13,2],[16,0,16,2],[2,0,2,2],[4,0,4,2],[6,0,6,2],[7,0,7,2],[9,0,9,2],[78,0,84,0],[78,2,84,2],[85,0,87,0],[85,2,87,2],[88,0,95,0],[88,2,95,2],[96,0,103,0],[96,2,103,2],[104,0,106,0],[104,2,106,2],[107,0,112,0],[107,2,112,2],[67,0,69,0],[67,2,69,2],[70,0,74,0],[70,2,74,2],[75,0,77,0],[75,2,77,2],[53,0,57,0],[53,2,57,2],[58,0,62,0],[58,2,62,2],[63,0,66,0],[63,2,66,2],[45,0,47,0],[45,2,47,2],[48,0,52,0],[48,2,52,2],[17,0,24,0],[17,2,24,2],[25,0,34,0],[25,2,34,2],[35,0,44,0],[35,2,44,2]]}
["SECTION R406"]
[]
["R406.1 Scope. This section establishes options for additional criteria to be met for one- and two-family dwellings and townhouses, as defined in Section 101.2 of the International Residential Code to demonstrate compliance with this code."]
[]
["R406.2 Additional energy efficiency requirements (Mandatory). Each dwelling unit in a residential building shall comply with sufficient options from Table R406.2 so as to achieve the following minimum number of credits:"]
["1.    Small Dwelling Unit: ","1.5 credits"]
["         Dwelling units less than 1500 square feet in conditioned floor area with less than 300 square feet of fenestration area. "]
["         Additions to existing building greater than 500 square feet of heated floor area but less than 1500 square feet."]
["2.    Medium Dwelling Unit: ","3.5 credits"]
["         All dwelling units that are not included in #1 or #3."]
["         Exception: Dwelling units serving R-2 occupancies shall require 2.5 credits."]
["3.    Large Dwelling Unit: ","4.5 credits"]
["         Dwelling units exceeding 5000 square feet of conditioned floor area."]
["         Exception: Dwelling units serving R-2 occupancies shall require 2.5 credits."]
["4.    Additions less than 500 square feet:","0.5 credits"]
[]
["The drawings included with the building permit application shall identify which options have been selected and the point value of each option, regardless of whether separate mechanical, plumbing, electrical, or other permits are utilized for the project."]
["1a","EFFICIENT BUILDING ENVELOPE 1a:",0.5]
[null,"Prescriptive compliance is based on Table R402.1.1 with the following modifications:  "]
[null,"Vertical fenestration U  = 0.28"]
[null,"Floor R-38"]
[null,"Slab on grade R-10 perimeter and under entire slab"]
[null,"Below grade slab R-10 perimeter and under entire slab"]
[null,"or"]
[null,"Compliance based on Section R402.1.4:  Reduce the Total UA by 5%."]
["1b","EFFICIENT BUILDING ENVELOPE 1b:",1]
[null,"Prescriptive compliance is based on Table R402.1.1 with the following modifications:  "]
[null,"Vertical fenestration U  = 0.25 "]
[null,"Wall R-21 plus R-4 "]
[null,"Floor R-38 "]
[null,"Basement wall R-21 int plus R-5 ci"]
[null,"Slab on grade R-10 perimeter and under entire slab"]
[null,"Below grade slab R-10 perimeter and under entire slab"]
[null,"or"]
[null,"Compliance based on Section R402.1.4:  Reduce the Total UA by 15%."]
["1c","EFFICIENT BUILDING ENVELOPE 1c:",2]
[null,"Prescriptive compliance is based on Table R402.1.1 with the following modifications:  Vertical fenestration U  = 0.22"]
[null,"Ceiling and single-rafter or joist-vaulted R-49 advanced"]
[null,"Wood frame wall R-21 int plus R-12 ci"]
[null,"Floor R-38"]
[null,"Basement wall R-21 int plus R-12 ci"]
[null,"Slab on grade R-10 perimeter and under entire slab"]
[null,"Below grade slab R-10 perimeter and under entire slab"]
[null,"or"]
[null,"Compliance based on Section R402.1.4:  Reduce the Total UA by 30%."]
["1da","EFFICIENT BUILDING ENVELOPE 1d:",0.5]
[null,"Prescriptive compliance is based on Table R402.1.1 with the following modifications:"]
[null,"Vertical fenestration U = 0.24"]
["2a","AIR LEAKAGE CONTROL AND EFFICIENT VENTILATION 2a:",0.5]
[null,"Compliance based on R402.4.1.2:  Reduce the tested air leakage to 3.0 air changes per hour maximum"]
[null,"and"]
[null,"All whole house ventilation requirements as determined by Section M1507.3 of the International Residential Code shall be met with a high efficiency fan (maximum 0.35 watts/cfm), not interlocked with the furnace fan. Ventilation systems using a furnace including an ECM motor are allowed, provided that they are controlled to operate at low speed in ventilation only mode."]
[null,"To qualify to claim this credit, the building permit drawings shall specify the option being selected and shall specify the maximum tested building air leakage and shall show the qualifying ventilation system."]
["2b","AIR LEAKAGE CONTROL AND EFFICIENT VENTILATION 2b:",1]
[null,"Compliance based on Section R402.4.1.2:  Reduce the tested air leakage to 2.0 air changes per hour maximum"]
[null,"and"]
[null,"All whole house ventilation requirements as determined by Section M1507.3 of the International Residential Code shall be met with a heat recovery ventilation system with minimum sensible heat recovery efficiency of 0.70."]
[null,"To qualify to claim this credit, the building permit drawings shall specify the option being selected and shall specify the maximum tested building air leakage and shall show the heat recovery ventilation system."]
["2c","AIR LEAKAGE CONTROL AND EFFICIENT VENTILATION 2c:",1.5]
[null,"Compliance based on Section R402.4.1.2:  Reduce the tested air leakage to 1.5 air changes per hour maximum"]
[null,"and"]
[null,"All whole house ventilation requirements as determined by Section M1507.3 of the International Residential Code shall be met with a heat recovery ventilation system with minimum sensible heat recovery efficiency of 0.85."]
[null,"To qualify to claim this credit, the building permit drawings shall specify the option being selected and shall specify the maximum tested building air leakage and shall show the heat recovery ventilation system."]
["3ab","HIGH EFFICIENCY HVAC EQUIPMENT 3a:",1]
[null,"Gas, propane or oil-fired furnace with minimum AFUE of 94%, or"]
[null,"Gas, propane or oiled-fired boiler with minimum AFUE of 92%"]
[null,"To qualify to claim this credit, the building permit drawings shall specify the option being selected and shall specify the heating equipment type and the minimum equipment efficiency."]
["3bb","HIGH EFFICIENCY HVAC EQUIPMENT 3b:",1]
[null,"Air-source heat pump with minimum HSPF of 9.0"]
[null,"To qualify to claim this credit, the building permit drawings shall specify the option being selected and shall specify the heating equipment type and the minimum equipment efficiency."]
["3cb","HIGH EFFICIENCY HVAC EQUIPMENT 3c:",1.5]
[null,"Closed-loop ground source heat pump; with a minimum COP of 3.3"]
[null,"or"]
[null,"Open loop water source heat pump with a maximum pumping hydraulic head of 150 feet and minimum COP of 3.6"]
[null,"To qualify to claim this credit, the building permit drawings shall specify the option being selected and shall specify the heating equipment type and the minimum equipment efficiency."]
["3db","HIGH EFFICIENCY HVAC EQUIPMENT 3d:",1]
[null,"Ductless Split System Heat Pumps, Zonal Control: In homes where the primary space heating system is zonal electric heating, a ductless heat pump system shall be installed and provide heating to the largest zone of the housing unit."]
[null,"To qualify to claim this credit, the building permit drawings shall specify the option being selected and shall specify the heating equipment type and the minimum equipment efficiency."]
[4,"HIGH EFFICIENCY HVAC DISTRIBUTION SYSTEM:",1]
[null,"All heating and cooling system components installed inside the conditioned space. This includes all equipment and distribution system components such as forced air ducts, hydronic piping, hydronic floor heating loop, convectors and radiators. All combustion equipment shall be direct vent or sealed combustion."]
[null,"For forced air ducts: A maximum of 10 linear feet of return ducts and 5 linear feet of supply ducts may be located outside the conditioned space. All metallic ducts located outside the conditioned space must have both transverse and longitudinal joints sealed with mastic. If flex ducts are used, they cannot contain splices. Flex duct connections must be made with nylon straps and installed using a plastic strapping tensioning tool. Ducts located outside the conditioned space must be insulated to a minimum of R-8."]
[null,"Locating system components in conditioned crawl spaces is not permitted under this option."]
[null,"Electric resistance heat and ductless heat pumps are not permitted under this option."]
[null,"Direct combustion heating equipment with AFUE less than 80% is not permitted under this option."]
[null,"To qualify to claim this credit, the building permit drawings shall specify the option being selected and shall specify the heating equipment type and shall show the location of the heating and cooling equipment and all the ductwork."]
["5a","EFFICIENT WATER HEATING 5a:",0.5]
[null,"All showerhead and kitchen sink faucets installed in the house shall be rated at 1.75 GPM or less. All other lavatory faucets shall be rated at 1.0 GPM or less.c"]
[null,"To qualify to claim this credit, the building permit drawings shall specify the option being selected and shall specify the maximum flow rates for all showerheads, kitchen sink faucets, and other lavatory faucets."]
["5b","EFFICIENT WATER HEATING 5b:",1]
[null,"Water heating system shall include one of the following:"]
[null,"Gas, propane or oil water heater with a minimum EF of 0.74"]
[null,"or"]
[null,"Water heater heated by ground source heat pump meeting the requirements of Option 3c."]
[null,"or"]
[null,"For R-2 occupancy, a central heat pump water heater with an EF greater than 2.0 that would supply DHW to all the units through a central water loop insulated with R-8 minimum pipe insulation."]
[null,"To qualify to claim this credit, the building permit drawings shall specify the option being selected and shall specify the water heater equipment type and the minimum equipment efficiency."]
["5c","EFFICIENT WATER HEATING 5c:",1.5]
[null,"Water heating system shall include one of the following:"]
[null,"Gas, propane or oil water heater with a minimum EF of 0.91"]
[null,"or"]
[null,"Solar water heating supplementing a minimum standard water heater. Solar water heating will provide a rated minimum savings of 85 therms or 2000 kWh based on the Solar Rating and Certification Corporation (SRCC) Annual Performance of OG-300 Certified Solar Water Heating Systems."]
[null,"or"]
[null,"Electric heat pump water heater with a minimum EF of 2.0 and meeting the standards of NEEA's Northern Climate Specifications for Heat Pump Water Heaters."]
[null,"To qualify to claim this credit, the building permit drawings shall specify the option being selected and shall specify the water heater equipment type and the minimum equipment efficiency and, for solar water heating systems, the calculation of the minimum energy savings."]
["5d","EFFICIENT WATER HEATING 5d:",0.5]
[null,"A drain water heat recovery unit(s) shall be installed, which captures waste water heat from all the showers, and has a minimum efficiency of 40% if installed for equal flow or a minimum efficiency of 52% if installed for unequal flow. Such units shall be rated in accordance with CSA B55.1 and be so labeled."]
[null,"To qualify to claim this credit, the building permit drawings shall include a plumbing diagram that specifies the drain water heat recovery units and the plumbing layout needed to install it and labels or other documentation shall be provided that demonstrates that the unit complies with the standard."]
[6,"RENEWABLE ELECTRIC ENERGY:",0.5]
[null,"For each 1200 kWh of electrical generation per housing unit provided annually by on-site wind or solar equipment a 0.5 credit shall be allowed, up to 3 credits. Generation shall be calculated as follows:"]
[null,"For solar electric systems, the design shall be demonstrated to meet this requirement using the National Renewable Energy Laboratory calculator PVWATTs. Documentation noting solar access shall be included on the plans."]
[null,"For wind generation projects designs shall document annual power generation based on the following factors:"]
[null,"The wind turbine power curve; average annual wind speed at the site; frequency distribution of the wind speed at the site and height of the tower."]
[null,"To qualify to claim this credit, the building permit drawings shall specify the option being selected and shall show the photovoltaic or wind turbine equipment type, provide documentation of solar and wind access, and include a calculation of the minimum annual energy power production."]
["a.","Projects using this option may not use Option 1a, 1b or 1c."]
["b.","Projects may only include credit from one space heating option, 3a, 3b, 3c or 3d. When a housing unit has two pieces of equipment (i.e., two furnaces) both must meet the standard to receive the credit."]
["c.","Plumbing Fixtures Flow Ratings. Low flow plumbing fixtures (water closets and urinals) and fittings (faucets and showerheads) shall comply with the following requirements:"]
[null,"1.        Residential bathroom lavatory sink faucets: Maximum flow rate - 3.8 L/min (1.0 gal/min) when tested in accordance with ASME A112.18.1/CSA B125.1."]
[null,"2.        Residential kitchen faucets: Maximum flow rate - 6.6 L/min (1.75 gal/min) when tested in accordance with ASME A112.18.1/CSA B125.1."]
[null,"3.        Residential showerheads: Maximum flow rate - 6.6 L/min (1.75 gal/min) when tested in accordance with ASME A112.18.1/CSA B125.1."]

{"sheet":"Weather","index":13,"n_rows":238,"n_cols":4,"rows_kept":238,"cut":false,"hidden":true,"merged":[]}
["Index","Location","Heating","Design"]
[null,null,"Design","Temp"]
[null,null,"Temp","Difference"]
[1]
[2,"Aberdeen 20 NNE",25,{"$f":"70-C5","v":45}]
[3,"Anacortes",24,{"$f":"70-C6","v":46}]
[4,"Anatone",-4,74]
[5,"Appleton",11,59]
[6,"Auburn",25,45]
[7,"Battleground",19,51]
[8,"Bellevue",24,46]
[9,"Bellingham 2N",19,51]
[10,"Benton City 2 NW",11,59]
[11,"Bickleton",4,66]
[12,"Blaine",17,53]
[13,"Bothell 2 N",17,53]
[14,"Bremerton",29,41]
[15,"Brier",24,46]
[16,"Buckley 1 NE",26,44]
[17,"Bumping Lake",-5,75]
[18,"Burlington",19,51]
[19,"Camas",21,49]
[20,"Castle Rock",23,47]
[21,"Cedar Lake",20,50]
[22,"Centralia",21,49]
[23,"Central Park",27,43]
[24,"Chehalis",21,49]
[25,"Chelan",10,60]
[26,"Cheney",4,66]
[27,"Chesaw",-11,81]
[28,"Chewalah 2 S",-9,79]
[29,"Chief Joseph Dam",6,64]
[30,"Clallam Bay 1 NNE",28,42]
[31,"Clarkston",10,60]
[32,"Clearbrook",19,51]
[33,"Clearwater",26,44]
[34,"Cle Elum",1,69]
[35,"Clyde Hill",24,46]
[36,"Colfax 1 NW",2,68]
[37,"College Place",6,64]
[38,"Colville AP",-2,72]
[39,"Conconully",-7,77]
[40,"Concrete",19,51]
[41,"Connell 4 NNW",6,64]
[42,"Cougar 5 E",25,45]
[43,"Coulee Dam 1 SW",9,61]
[44,"Coupeville 1 S",21,49]
[45,"Cushman Dam",22,48]
[46,"Dallesport AP",14,56]
[47,"Darrington RS",13,57]
[48,"Davenport",5,65]
[49,"Dayton 1 WSW",5,65]
[50,"Deer Park 2 E",-5,75]
[51,"Des Moines",25,45]
[52,"Diablo Dam",15,55]
[53,"Dishman",9,61]
[54,"East Bremerton",29,41]
[55,"Edmonds",24,46]
[56,"Electron Headwks",16,54]
[57,"Ellensburg AP",2,68]
[58,"Elma",24,46]
[59,"Eltopia 6 W",9,61]
[60,"Elwha RS",24,46]
[61,"Enumclaw",26,44]
[62,"Ephrata AP",7,63]
[63,"Everett JC",23,47]
[64,"Everett Paine AFB",21,49]
[65,"Fircrest",29,41]
[66,"Forks I E",23,47]
[67,"Fort Lewis",24,{"$f":"70-C70","v":46}]
[68,"Fruitvale",1.1000000000000001,68.900000000000006]
[69,"Glacier RS",13,57]
[70,"Glenoma (Kosmos)",18,52]
[71,"Goldendale",7,63]
[72,"Grandview",12,58]
[73,"Grapeview",30,40]
[74,"Grayland 2 S",28,42]
[75,"Grays River Hatchery",24,46]
[76,"Greenwater",1.4,68.599999999999994]
[77,"Grotto",21,49]
[78,"Harrington 2 S",3,67]
[79,"Hartline",7,63]
[80,"Hatton 8 E",1,69]
[81,"Holden Village",4,66]
[82,"Hoquiam AP",26,44]
[83,"Ice Harbor Dam",17,53]
[84,"Inchelium 2 NW",0,70]
[85,"Issaquah",23,47]
[86,"John Day Dam",19,51]
[87,"Kelso AP",24,46]
[88,"Kennewick 10 SW",13,57]
[89,"Kent",21,49]
[90,"Kid Valley",20,50]
[91,"Kirkland",17,53]
[92,"Lacey",17,53]
[93,"Lacrosse 3 ESE",-3,73]
[94,"La Grande",23,47]
[95,"Lake Cle Elum",-4,74]
[96,"Lake Forest Park",20,50]
[97,"Lake Kachess",-2,72]
[98,"Lake Keechelus",0,70]
[99,"Lakewood Center",23,47]
[100,"Landsburg",18,52]
[101,"Larson AFB",6,64]
[102,"Laurier",-8,78]
[103,"Leavenworth",-3,73]
[104,"Lemanasky Lake",-7,77]
[105,"Lind 3 NE",6,64]
[106,"Linwood",10,60]
[107,"Little Goose Dam",22,48]
[108,"Long Beach 3 NNE",25,45]
[109,"Longview",24,46]
[110,"Lower Granite Dam",14,56]
[111,"Lower Monument Dam",18,52]
[112,"Lynden",18,52]
[113,"Lynnwood",24,46]
[114,"Maloft",4,66]
[115,"Marietta 3 NNW",18,52]
[116,"Marysville",23,47]
[117,"McMillin Res.",21,49]
[118,"McNary Dam",11,59]
[119,"Medical Lake",4,66]
[120,"Medina",24,46]
[121,"Mercer Island",25,45]
[122,"Metaline Falls",-1,71]
[123,"Methow 2 W",1,69]
[124,"Mountlake Terrace",22,48]
[125,"Mt. Spokane Summit",-2,72]
[126,"Mount Vernon 3 WNW",20,50]
[127,"Moxee City 10 E",8,62]
[128,"Mud Mtn. Dam",23,47]
[129,"Nespelem 2 S",-4,74]
[130,"Newhalem",19,51]
[131,"Newport",-5,{"$f":"70-C134","v":75}]
[132,"Normandy Park",24,46]
[133,"Northport",2,68]
[134,"Oak Harbor",16,54]
[135,"Oakville",20,50]
[136,"Odessa",7,63]
[137,"Olga 2 SE",24,46]
[138,"Olympia, AP.",17,53]
[139,"Omak 2 NW",3,67]
[140,"Opportunity",8,62]
[141,"Oroville",5,65]
[142,"Othello",9,61]
[143,"Packwood",16,54]
[144,"Palmer 3 SE",22,48]
[145,"Parkland",20,50]
[146,"Pasco",13,57]
[147,"Plain",-3,73]
[148,"Pleasant View",16,54]
[149,"Pt. Grenville",27,43]
[150,"Pomeroy",3,67]
[151,"Port Angeles",28,42]
[152,"Port Orchard",29,41]
[153,"Pon Townsend",25,45]
[154,"Priest Rapids Dam",14,56]
[155,"Prosser",12,58]
[156,"Pullman Exp. Sta.",1,69]
[157,"Puyallup",19,51]
[158,"Quilcene 2 SW",23,47]
[159,"Quillayute AP",23,47]
[160,"Quinault RS",25,45]
[161,"Quincy 1 NE",4,66]
[162,"Rainier, Longmire",15,55]
[163,"Paradise RS",8,62]
[164,"Raymond",28,42]
[165,"Redmond",17,53]
[166,"Renton",24,46]
[167,"Republic",-9,79]
[168,"Richland",11,59]
[169,"Rimrock Tieton Dam",4,66]
[170,"Ritzville",6,64]
[171,"Rosalia",6,64]
[172,"Ross Dam",14,56]
[173,"St. John",15,55]
[174,"Sappho 8 E",23,47]
[175,"Satus Pass",10,60]
[176,"Seattle: Sea-Tac AP",24,46]
[177,"Sedro Woolley 1 E",19,51]
[178,"Selah",11,59]
[179,"Sequim",23,47]
[180,"Shelton",23,47]
[181,"Shoultes",23,47]
[182,"Skamania Fish Hatch.",24,46]
[183,"Smyrna",8,62]
[184,"Snohomish",21,49]
[185,"Snoqualmie Falls",22,48]
[186,"Snoqualmie Pass",6,64]
[187,"South Broadway",11,59]
[188,"So. Olympic Tree Farm",24,46]
[189,"Spanaway",20,50]
[190,"Spokane AP",4,66]
[191,"Spokane CO",10,60]
[192,"Spokane Fairchild AFB",4,66]
[193,"Sprague",4,66]
[194,"Stampede Pass",7,63]
[195,"Startup 1 E",20,{"$f":"70-C198","v":50}]
[196,"Stehekin 3 NW",12,58]
[197,"Steilacoom",21,49]
[198,"Stevens Pass",6,64]
[199,"Stockdill Ranch",-14,84]
[200,"Sumner",19,51]
[201,"Sunnyside",12,58]
[202,"Tacoma McChord",21,49]
[203,"Tacoma CO",29,41]
[204,"Tatoosh Island",31,39]
[205,"Thompson Place",20,50]
[206,"Tietort Intake",6,64]
[207,"Toledo AP",17,53]
[208,"Toppenish",11,59]
[209,"Trinidad 2 SSE",13,57]
[210,"Tukwila",24,46]
[211,"Tumwater",17,53]
[212,"University Place",29,41]
[213,"Upper Baker Dam",14,56]
[214,"Vancouver",22,48]
[215,"Vashon Island",28,42]
[216,"Walla Walla AP",6,64]
[217,"Walla Walla CO",13,57]
[218,"Wapato",10,60]
[219,"Washougal 8 ENE",21,49]
[220,"Waterville",1,69]
[221,"Wawawai 2 NW",14,56]
[222,"Wellpinit",1,69]
[223,"Wenatchee AP",13,57]
[224,"Wenatchee CO",10,60]
[225,"West Clarkston",10,60]
[226,"Whidbey Island",11,59]
[227,"White River RS",12,58]
[228,"White Swan RS",8,62]
[229,"Whitman Mission",11,59]
[230,"Wilbur",4,66]
[231,"Willapa Harbor",26,44]
[232,"Wilson Creek",3,67]
[233,"Wind River",15,55]
[234,"Winthrop 1 WSW",-12,82]
[235,"Yakima AP",11,59]

{"sheet":"Agreement Not Accepted","index":14,"n_rows":12,"n_cols":2,"rows_kept":12,"cut":false,"hidden":true,"merged":[]}
[]
[null,"Total UA Alternative Calculator"]
[]
[null,"Terms of use were not accepted. "]
[]
[null," Please click on \"Review & Accept Terms of Use\" button below to try again. "]
[]
[null,"For Assistance please contact:"]
[null,"Carolyn Roos"]
[null,"Washington State University Energy Program"]
[null,"roosc@energy.wsu.edu"]
[null,"Please include 'UA Alternative Calculator' in the subject line."]

{"sheet":"UserRegistration","index":15,"n_rows":17,"n_cols":2,"rows_kept":17,"cut":false,"hidden":true,"merged":[]}
["User Registration",{"$f":"'Group R'!E1","v":"Total UA Alternative Worksheet  - WSEC 2015 & 2018"}]
[]
["First Name","Carolyn"]
["Last Name","Roos"]
["Registration Date:","2020-08-15"]
["Version","Version: 2015-2018 Total UA Alternative Worksheet~20200814a~C2200-1.xlsm, 8/14/2020 7:04:19 PM"]
["Company","WSUEP"]
["Demographic"]
["ContactInfo1"]
["ContactInfo2"]
["ContactInfo3"]
["ContactInfo4"]
["City","Olympia"]
["State"]
["Zipcode"]
["Add to Mailing List?","No"]
["Registrations with this file",1]